Workbook

Sheet CSS BMP Sizing Instructions
A2: COMBINED SEWER SYSTEM (CSS) STORMWATER BMP SIZING CALCULATOR INSTRUCTIONS
A3: • This worksheet provides instructions on how to use the Combined Sewer System (CSS) Stormwater Best Management Practice (BMP) Sizing Calculator.
A4: • The CSS BMP Sizing Calculator (Sizing Calculator) was developed to assist San Francisco developers in selecting and sizing stormwater BMPs that will enable them to meet the CSS stormwater performance measures per the Stormwater Management Requirements (SMR) and Green Infrastructure Typical Details.
A5: • The CSS performance measures are intended to reduce the volume and peak flow of runoff to the CSS by requiring percent reductions (originally based on LEED Sustainable Sites 6.1 Stormwater Quantity Credit [LEED 6.1]).
A6: • New and redevelopment projects in the CSS area that create and/or replace 5,000 sf or more of impervious surface are required to comply with the SMR.
A7: • Complying with the CSS performance measures can be achieved by reducing the existing imperviousness at the site or by implementing stormwater BMPs.
A8: • The CSS BMP Sizing Calculator is intended for sites (or site subwatersheds) less than 2 acres but may also be used for parks up to 5 acres. Multiple CSS BMP Sizing Calculators may be used for project sites with multiple subwatershed discharges up to or equal to 5 acres. Larger sites or sites with complex stormwater management systems should use other SFPUC accepted hydrologic modeling software. Multiple Sizing Calculators should also be used to divide a project site to ensure that similar bioretention BMPs types have a similar sizing ratio (BMP area : DMA area). Refer to the "SFPUC Accepted Hydrologic Calculation Methods" memorandum available for download through the SFPUC stormwater website (http://sfwater.org/SMR).
A9: • Additional calculations may be required to supplement the intended capabilities and output of the CSS BMP Sizing Calculator.
A11: CALCULATION APPROACH
A12: • The Sizer calculates the site's pre-project and post-project runoff hydrographs using the Santa Barbara Urban Hydrograph (SBUH) method.
A13: • The SBUH method was developed by the Santa Barbara County Flood Control and Water Conservation District to determine runoff hydrographs for small and medium-sized urban areas.
A14: • The SBUH method is based on the Soil Conservation Service (SCS) curve number (CN) approach, but is generally easier to implement in spreadsheet calculations than SCS because it computes the runoff hydrograph directly without going through the intermediate steps of generating unit hydrographs.
A15: • For more detailed information about SBUH and the calculation method employed in the Sizer refer to the "CSS BMP Sizing Calculator - Calculation Approach" memorandum available for download through the SFPUC stormwater website (http://sfwater.org/SMR).
A17: SUMMARY OF WORKSHEETS
A18: CSS BMP Sizing Calculator: The user enters the site design and Stormwater Control Plan information on this worksheet. The worksheet calculates the pre-project and post-project runoff from the site and indicates whether the performance measures have been met.
A19: RWH Calculator: Necessary for sites using rainwater harvesting. This worksheet calculates a site's annual non-potable demand and estimates the average volume remaining in storage prior to a storm event. Data input into the "RWH Calculator" are automatically populated into the "CSS BMP Sizing Calculator" sheet. Additional RW Cistern calculations may be required.
A20: Rainfall and Hydrographs: This worksheet is for informational purposes only. It displays the 1-yr and 2-yr, 24-hour design storms for San Francisco. This worksheet also includes graphs of the site's existing and proposed runoff hydrographs based on the user-entered data in the "CSS BMP Sizing Calculator" tab.
A22: LEGEND
A23: User Input = | C23: Green-shaded cells accept user-entered data.
A24: Default Value = | C24: Gray-shaded cells include default values that can be revised by the user if supporting documentation is provided.
A25: Locked Cell = | C25: White cells contain calculations or instructions. These cells are locked to prevent modification.
A26: Note/Comment = | C26: Red triangles indicate that there is a comment on the cell that provides additional instructions.
A29: STEPS FOR COMPLETING THE "CSS BMP SIZING CALCULATOR" WORKSHEET
A30: • Unless rainwater harvesting is proposed, only the "CSS BMP Sizing Calculator" worksheet is required. Enter data on page 1; results are summarized on page 2.
A31: • "Clear Input Cells" macro button: This macro will clear all "User Input" cells and allow the user to start over.
A32: • "Restore Defaults" macro button: This macro will restore "Default Value" cells if user elects to change the default values during the design process.
A33: • "Example 1, Sample Calculations: "Example SMP 1: Standard SMR Compliance" macro button: For added guidance, a completed example of a stormwater management plan is provided on the SFPUC stormwater website (http://sfwater.org/SMR). To see the "simplified" calculations for Example SMP 1, press the macro button on the "CSS BMP Sizing Calculator" worksheet.
A34: • "Example 2, Sample Calculations: "Example SMP 2: Modified Compliance w/ No Sidewalks" (online)" macro button: For added guidance, a completed example of a stormwater management plan with Modified Compliance is provided on the SFPUC stormwater website (http://sfwater.org/SMR). To see the calculations for Example SMP 2, press the macro button on the "CSS BMP Sizing Calculator" worksheet.
A35: • "Example 3, Sample Calculations: BMPs in Series (online example SMP coming soon)" macro button: For added guidance, a completed example with appropriate use of BMPs in Series based on Example SMP 1 is provided. To see the calculations for the BMPs in Series example based on Example SMP 1, press the macro button on the "CSS BMP Sizing Calculator" worksheet.
A37: General: Project Name, Address, Project Site Area
A38: • Enter the general specifications for the project. The Sizer is only recommended for sites (or site subwatersheds) less than 2 acres. However, multiple subwatersheds summing up to a site maximum of 5 acres may be used for parks.
A39: • Modified Compliance: Enter the target percent reductions as approved by SFPUC staff within the Modified Compliance Application.
A40: An input of 'No' means that Modified Compliance was not approved for the site and the standard SFPUC stormwater performance % reductions will be used for compliance (see Step 5).
A41: An input of 'Yes' indicates that Modified Compliance was approved for the site. The user must enter in the approved modified target % reductions for compliance (see Step 5).
A43: Step 1: Enter the site's infiltration characteristics
A44: • Select the hydrologic soil group (HSG) of the native soils at the site based on finding and boring logs from the Geotechnical Investigation Report.
A45: The HSG is a Natural Resources Conservation Service classification system in which soils are categorized into four runoff potential groups.
A46: The groups range from A soils, with high permeability and little runoff production, to D soils, which have low permeability rates and produce much more runoff.
A47: • Select 'Yes' if the site meets San Francisco's infiltration constraints, and BMPs will be at-grade and unlined. Select 'No' if it does not meet the infiltration constraints, no infiltration BMPs are proposed, or if the BMPs will be lined.
A48: Infiltration feasibility depends on several factors (depth to groundwater, depth to bedrock, liquefaction hazard, etc). See SMR Appendix C for full list of infiltration site constraints (http://sfwater.org/smr).
A49: • Enter Field Tested Infiltration Rate, if applicable.
A50: If a field infiltration test has been conducted, entered the saturated 'Measured Infiltration Rate' here; otherwise, leave blank.
A51: • Select Field Testing Method, if any.
A52: Choose one of the following options from the drop-down menu: 1) Not Conducted, 2) Pilot Infiltration Test, 3) Double-Ring Infiltrometer, 4) Soil Grain Size Analysis, 5) and 6) Alternate Approved Method (e.g., Boring Test).
A53: Based on the type of test conducted, a correction factor is automatically applied to the measured infiltration rate to calculate a Design Infiltration Rate.
A54: See http://sfwater.org/smr for more information on infiltration testing requirements.
A55: The max allowable Design Infiltration Rate for the Sizing Calculator is 5 in/hr.
A57: Step 2: Enter the Existing sites Time of Concentration (Tc) information
A58: Note: The data entered in Step 2 affect the site's time of concentration. Increasing the time of concentration helps slow and dissipate runoff before it leaves the site.
A59: • Select the means by which exsiting runoff is currently conveyed from the site to the CSS.
A60: If the runoff flows over land to the local catch basin, enter "Overland".
A61: If the runoff flows by a local channel to the CSS, enter "Channel".
A62: If the runoff is collected by an area drain on site and piped to the CSS, enter "Pipe".
A63: • Enter the site's average slope in the direction of flow.
A64: • Enter the maximum length that runoff has to travel to exit the site.
A66: Step 3a: Enter the existing and proposed areas of pervious, impervious, and BMP surfaces
A67: • Enter area of existing pervious and impervious surfaces at the site.
A68: • Enter area of proposed pervious and impervious surfaces at the site. The runoff curve numbers (CN) are populated automatically based on the surface and HSG soil type.
A69: • CNs are used to estimate the amount of rainfall that becomes runoff. The methodology and values are based on the Soil Conservation Service's Urban Hydrology for Small Watershed, Technical Release 55. Enter surface area (sf) into the following catagories:
A70: > "Grass/Lawn on Grade": Landscaped areas with less than 50% plant coverage
A71: > "Landscaping on Grade (Low Density)": Landscaped areas with 50 to 75% planting coverage (e.g., shrubs, trees, and other native plants).
A72: > "Landscaping on Grade (High Density)": Landscaped areas with greater than 75% coverage.
A73: > "Street Tree Well": Tree well pit area located in the public ROW.
A74: > "Traditional Planter on Structure": Landscape areas located on structure (or lined) using conventional planting soils (i.e. not lightweight Vegetated Roof).
A75: • Enter BMP areas. These areas will likely have to be adjusted as part of an iterative process to achieve the required runoff reductions summarized in Step 4.
A76: With the exception of RW cisterns, dry wells/infiltration galleries, and detention vaults, BMPs are treated as surface BMPs (i.e., open to the atmosphere) that take up real surface space at the site.
A77: If the area of a proposed BMP needs to be increased to meet the runoff requirements, the area of the conventional surfaces at the site must be decreased accordingly. The sum of the conventional and BMP areas should equal the total site area from the existing conditions.
A78: Note: "Swales" are typically sloped systems designed to convey and treat runoff. These systems are generally not applicable to meeting the CSS runoff reduction requirements unless they are designed with check dams or other means to slow and infiltrate runoff. If designed as such, swales can be approximated as Bioretention in the calculator.
A79: • If applicable, enter the storage volume of cisterns and detention vaults. These BMPs are treated as bulk storage items rather than site surfaces.
A81: Step 3b: Enter the stormwater BMP design information AND conventional areas from Step 3a that drain to each BMP
A82: • The information to be entered in Step 3b is grouped into three categories, as explained below:
A84: Drainage Areas
A85: • Enter the portion of the impervious and pervious conventional areas from Step 3a that drain to each BMP. Include only the area of the conventional surfaces, not the BMP surfaces.
A86: The impervious and pervious areas entered in Step 3a serve as the possible drainage areas in Step 3b.
A87: The total drainage areas entered in Step 3b should be less than or equal to the total proposed conventional areas listed in Step 3a.
A89: Stormwater BMP Depths and Volumes
A90: Note: Default depths are provided in the CSS BMP Sizing Calculator but can be replaced with site-specific design values. Values should be entered in feet.
A91: • Enter "BMP Ponding Depth": refers to ponding areas above the soil media in bioretention systems (e.g., rain gardens, flow-through planters, etc.) including the mulch layer. For detention vaults, and (non-rock filled) dry wells, ponding depth refers to active storage volume depth.
A92: • Enter "BMP Media Depth": refers to the depth of the planting soil media, to be used for bioretention systems (e.g., rain gardens, flow-through planters, etc.) and vegetated roofs. For infiltration trenches, dry wells, and permeable pavement, media depth should not be used.
A93: • Enter "Gravel Storage Depth": refers to the entire depth of the gravel "storage" or "reservoir" course, including the "choking course" (for bioretention systems) or the "leveling course" (for permeable paver systems) located between the BMP media or wearing course and the native soil sub-base.
A94: • Enter "Height of Underdrain Above Base": refers to the portion of the gravel storage layer that is between the underdrain and the native soil sub-base or liner. Note that a gravel layer of 2-inch minimum thickness is required for unlined systems and 2-inch maximum for lined systems.
A95: • Enter "Storage Volume": refers to the usuable/active storage volume of a detention vault or subsurface infiltration system (i.e., pore volume in a infiltration system filled with clean aggregate).
A97: Outlet Control Structure
A98: Orifice Control Structures allow for enhanced design of stormwater BMPs. The use of Orifice Control Structures require additional design coordination with SFPUC and DBI Plumbing Inspection Division (PID) staff.
A99: • If an orifice control structure is proposed to control discharge rates, enter the orifice diameter. If no outlet control device is used, enter the diameter of the outlet pipe.
A100: The drawdown rate is estimated based on the outlet or orifice diameter entered. The drawdown time is the time it takes for the BMP to completely drain its design storage volume.
A101: The recommended minimum diameter for orifices is 1-inch. The allowed minimum diameter in the CSS BMP Sizing Calculator is 0.5-inch. Designs with orifice diameters less than 1-inch should include measures to prevent orifice clogging. (Note: Outlet Control Structure details are required if default values are adjusted.)
A102: Drawdown rates for infiltration BMPs are based on the site's design infiltration rate and are thus not subject to outlet control modifications.
A104: Drawdown Time
A105: Drawdown is the time for a BMP to drain its full storage volume. Ponding and soil media of vegetated BMPs must drain within 24 hours or less. All other non-planted BMPs must drain within 48 hours with the exception of cisterns. Rainwater harvesting cisterns do not have a maximum drawdown time as they are designed for longer-term storage and reuse.
A107: BMPs in Series
A108: BMPs in Series allow for enhanced design of stormwater BMPs. The use of BMPs in Series must be proposed and approved by SFPUC staff at a SCP Pre-application meeting, or via written approval.
A109: • If BMPs in Series are proposed at the site, the user should select "Yes" from the corresponding drop-down menu. If BMPs in Series are not proposed, leave
A110: as this as the default "No".
A111: • After selecting "Yes", select the First BMP in Series and Receiving BMP in Series from the corresponding drop-down menus.
A112: The First BMP in Series and Receiving BMP in Series must be different and cannot be the same type of stormwater BMP. The calculator will add the outflow from the First BMP (i.e., the overflow and detained discharge) to the inflow for the Receiving BMP. The Receiving BMP is allowed to have its own separate drainage area un-associated with the First BMP in Series. See Figure 12 on the BMP Schematics for an example of a rainwater harvesting cistern in series with a detention tank.
A114: Step 4: Check that the site and Drainage Management Areas (DMAs) are entered correctly
A115: • Step 4 summarizes the site's drainage management areas and checks the feasibility of areas input in Step 3a.
A116: • Ensure that the "Check of Areas" column does not include "ERROR" responses. If the column does include "ERROR," check areas and drainage areas in Step 3a.
A118: Steps 5 and 6 do not require user input. They are included as a summary of checks, overall SMR performance, and stormwater BMP performance.
A120: Step 5: Compare if the SMR runoff reduction requirements are met
A121: • Step 6 summarizes the information needed to check compliance with the CSS performance measures.
A122: • An answer of "YES" or "PASS" in the "Requirement Met?" column in the table indicates that the stormwater requirement has been met. If the volume requirement or peak flow requirement has not been met, a note will be generated that suggests using different BMPs.
A124: Step 6: Review Stormwater BMP performance
A125: • Step 6 summarizes the runoff reduction performance during the 2-yr, 24-hour storm for each BMP at the site.
A126: • The table displays the peak flow in and out of each BMP, as well as the total runoff volume to each BMP, the volume retained (through infiltration, evapotranspiration, or reuse), and the volume discharged back to the sewer.
A127: • Retained volume also includes "volume remaining in storage," which equals the total volume left in the BMP 48 hours after the end of the storm event. With the exception of cisterns, all volume captured by stormwater BMPs should have been drawn down by this time, and thus, this value should be zero.
A128: • If Step 5 indicates that the proposed stormwater plan does not meet the requirements, Step 6 can be used to assess the performance of each BMP and determine necessary adjustments.
A130: Iterative Adjustments: Iterative adjustments should be expected. If adjustments are required, return to Step 3a and 3b to make the necessary changes.

Sheet BMP Schematics
A2: Typical BMP Schematics for CSS and MS4 Sizing Calculators (Not to be used as Construction Details)
A3: Refer to the CSS and MS4 BMP Sizing Calculators: Calculation Approach using the SBUH Method report (https://sfwater.org/modules/showdocument.aspx?documentid=9083)
A5: 'Click' on each schematic to zoom.
A6: Bioretention Basin (no underdrain, no liner) | F6: Bioretention Planter (no underdrain, no liner) | K6: Rainwater Harvesting Cistern sub-grade | P6: Rainwater Harvesting Cistern on-grade | U6: Dry Well/Infiltration Gallery | Z6: Permeable Pavement
A24: Bioretention Basin (underdrain) | F24: Bioretention Planter (underdrain) | K24: Bioretention Planter on grade (underdrain) | P24: Vegetated Roof, Infiltration Gallery, and Infiltration Trench | U24: Detention Vault and Detention Tank | Z24: Rainwater Harvesting Cistern to Detention in Series
A42: Propietary Infiltration System

Sheet CSS BMP Sizing Calculator
C1: CSS BMP SIZING CALCULATOR - Only use for subwatersheds less than 2 acres, and sites less than 5 acres. | J1: Modified Compliance Application | O1: LEGEND: | Q1: Supporting Calculations
C2: Project Address: | F2: Applicant Name: | J2: Modified Compliance approved? | O2: User Input
C3: Project Name (Alias): | F3: Company: | J3: =IF(M2="Yes","2-yr, 24-hr: Peak Flow % Reduction","N/A") -> N/A | O3: Default Value | T3: Summary of Site Infiltration Characteristics
C4: Total Project Site Area (ft2): | F4: Date: | J4: =IF(M2="Yes","2-yr, 24-hr: Runoff Volume % Reduction","N/A") -> N/A | O4: Locked | T4: Soil Type | U4: =IF(D8="", "", D8) ->  | AB4: Evapotranspiration Factors
C5: Subwatershed Name (if applicable): | J5: Project Requirement: | L5: =IF(D52=0,"Requirement will be populated when existing site areas are entered in Step 3a",IF(M2="No", IF($D27/$D$36<=0.5, "Case 1: No net increase in peak flow and volume from the 1-yr and 2-yr, 24 hr storms","Case 2: 25% reduction in peak flow and volume from the 2-yr, 24 hr storm"), IF(M2="Yes", "Modified Compliance Percent Reductions Entered Above", "Select Yes or No above"))) -> Requirement will be populated when existing site areas are entered in Step 3a | O5: Comment | T5: HSG Est. Inf. Rate (in/hr) | U5: =IF(U4="","",HLOOKUP(U4,W7:Z8,2)) ->  | AB5: Bioretention/FTP (Underdrain, Liner) | AD5: Bioretention/FTP (Underdrain, No Liner) | AF5: Vegetated Roof
C6: =IF(D4>2*43560,"The Sizing Calculator is not recommend for large or complex sites. See 'BMP Sizing Instructions' worksheet for", " ") ->  | T6: Unconstrained Inf. Rate (in/hr) | U6: =IF($D$9="No",0,IF(ISBLANK(D10),U5,IF($D$12="N/A",U5,$D$10*$D$12))) ->  | W6: HSG Soil Type | AB6: Soil Depth (ft) | AC6: All Soil Types | AD6: Soil Type D | AE6: Soil Type C | AF6: Soil Depth | AG6: Loss | AH6: Adjustment for No Liner with no Sub-U/D Storage
C7: STEP 1 - Enter the site's infiltration characteristics | I7: =IF(C6<>" ","site size restrictions.","") ->  | T7: Design Inf. Rate (in/hr) | U7: =D13 ->  | W7: A | X7: B | Y7: C | Z7: D | AA7: Not Feas. | AB7: (ft) | AC7: (in/hr) | AD7: in/hr | AE7: in/hr | AF7: (ft) | AG7: (in/hr) | AH7: in/hr
C8: HSG Soil Type: | V8: Estimated Infiltration Rate (in/hr) | W8: 0.5 | X8: 0.35 | Y8: 0.2 | Z8: 0.1 | AA8: 0 | AB8: 1.5 | AC8: 0.11 | AD8: 0.02 | AE8: 0.0025 | AF8: 0.25 | AG8: 0.025 | AH8: 0
C9: Is Infiltration Feasible or Proposed? | Q9: Not Conducted | V9: Expected BMP as % of DMA | W9: 0.07 | X9: 0.09 | Y9: 0.13 | Z9: 0.17 | AA9: 0.2 | AB9: 1.75 | AC9: 0.115 | AD9: 0.025 | AE9: 0.005 | AF9: 0.33 | AG9: 0.03125
C10: Measured Infiltration Rate (in/hr): | Q10: Pilot Infiltration Test | R10: 0.5 | AB10: 2 | AC10: 0.12 | AD10: 0.03 | AE10: 0.01 | AF10: 0.5 | AG10: 0.0375
C11: Infiltration Testing Method: | Q11: Double-Ring Infiltrometer | R11: 0.333 | T11: Tree Canopy Credit (ft2) | AB11: 2.5 | AC11: 0.125 | AD11: 0.035 | AE11: 0.015 | AF11: 0.75 | AG11: 0.05
C12: Infiltration Rate Correction Factor: | D12: =IF(D9="No",0,IF(ISBLANK(D11)," ",VLOOKUP(D11,Q8:R14,2,FALSE))) ->  | Q12: Soil Grain Size Analysis | R12: 0.333 | T12: 100 | AB12: 3 | AC12: 0.13 | AD12: 0.04 | AE12: 0.02 | AF12: 1 | AG12: 0.0625
C13: Design Infiltration Rate (in/hr): | D13: =IF(U6="","",IF(U6>5,5,U6)) ->  | E13: =IF(ISERR(R15),"", IF(ISBLANK(D9),"Select Yes or No above for infiltration feasibility","")) ->  | Q13: Boring Test (D10 ≥ 0.1mm) | R13: 0.15 | W13: CN | X13: S | Y13: Ia | AF13: 1.25 | AG13: 0.075
Q14: Boring Test (D10 < 0.1mm) | R14: 0.1 | V14: Undeveloped (Natural) Conditions | W14: =F29 ->  | X14: =1000/W14-10 ->  | Y14: =X14*0.2 -> 
C15: STEP 2 - Enter the site's EXISTING runoff pathway information to estimate the Time of Concentration (Tc) | Q15: For E17 Note: | R15: =D13+1 -> 
C16: Existing Means of Conveying Runoff Offsite? | W16: Site Weighted Averages - Existing Conditions | Z16: Site Weighted Averages - Proposed Conditions | AE16: ET Rate Used in Bioretention/FTP (Underdrain, No Liner) (in/hr) | AF16: =IF(J45>0, IF(U7=0,VLOOKUP(J45,AB8:AC12,2),IF(U4="D",VLOOKUP(J45,AB8:AE12,3),VLOOKUP(J45,AB8:AE12,4)))+IF(AND(U7>0,L45=0),AH8,0), 0) -> 0.0025
C17: Avg. Site Slope in Direction of Flow (%): | W17: CN | X17: Sheet n | Y17: Shallow Ks | Z17: CN | AA17: Sheet n | AB17: Shallow Ks | AE17: ET Rate Used for Bioretention/FTP (Underdrain, Liner) (in/hr) | AF17: =IF(J46>0, VLOOKUP(J$46,AB$8:AC$12,2), 0) -> 0.11
C18: Maximum Flow Length (ft): | W18: =IF($D$52>0,(W22*$X$24+W29*$X$34)/$D52,0) -> 0 | X18: =IF($D$52>0,(X22*$X$24+X29*$X$34)/$D52,0) -> 0 | Y18: =IF($D$52>0,(Y22*$X$24+Y29*$X$34)/$D52,0) -> 0 | Z18: =IF($AA$24+$AA$34>0,(Z22*$AA$24+Z29*$AA$34)/($AA$24+$AA$34),0) -> 0 | AA18: =IF($AA$24+$AA$34>0,(AA22*$AA$24+AA29*$AA$34)/($AA$24+$AA$34),0) -> 0 | AB18: =IF($AA$24+$AA$34>0,(AB22*$AA$24+AB29*$AA$34)/($AA$24+$AA$34),0) -> 0 | AE18: ET Rate Used for Vegetated Roof | AF18: =IF(J47>0, VLOOKUP($J$47,AF$8:AG$13,2), 0) -> 0.0375
S19: Existing | T19: Proposed
C20: STEP 3a - Enter the sites EXISTING and PROPOSED areas of impervious, pervious, and BMP surfaces. | L20: BMPs in Series | Q20: Receiving BMP list | S20: Impervious Surfaces | T20: Impervious Surfaces | U20: Value for Surfaces | W20: Weighted Values - Existing | Z20: Weighted Values - Proposed
A21: Conventional Surfaces | B21: Impervious | C21: Surface Type | D21: Existing (ft2) | E21: Proposed (ft2) | F21: Curve Number | M21: Are BMPs in Series Proposed? | N21: No | Q21: Bioretention (No Underdrain No Liner) | S21: Effective Imp Area | T21: Effective Imp Area | U21: Sheet n | V21: Shallow Ks | W21: CN | X21: Sheet n | Y21: Shallow Ks | Z21: Proj CN | AA21: Sheet n | AB21: Shallow Ks | AD21: Aggregate Porosity | AF21: 0.4
C22: Pavement (Conventional) | F22: =HLOOKUP('CSS BMP Sizing Calculator'!$D$8,'Tc Calcs'!$O$3:$R$15,3) ->  | M22: First BMP in Series | Q22: Cistern | S22: =D22 -> 0 | T22: 0 | U22: ='Tc Calcs'!S5 -> 0.011 | V22: ='Tc Calcs'!T5 -> 20.33 | W22: =IF(X24>0,SUMPRODUCT(S22:S26,F22:F26)/X24,0) -> 0 | X22: =IF(X24>0,SUMPRODUCT(S22:S26,U22:U26)/X24,0) -> 0 | Y22: =IF(X24>0,SUMPRODUCT(S22:S26,V22:V26)/X24,0) -> 0 | Z22: =IF(AA24>0,SUMPRODUCT($T22:$T26,F22:F26)/AA24,98) -> 98 | AA22: =IF(AA24>0,SUMPRODUCT(T22:T26,U22:U26)/AA24,0.012) -> 0.012 | AB22: =IF(AA24>0,SUMPRODUCT(T22:T26,V22:V26)/AA24,20.3) -> 20.3 | AD22: Media Porosity | AF22: 0.3 | AG22: Long-Term Design K | AH22: Factor of Safety
C23: Roof (Conventional) | F23: =HLOOKUP('CSS BMP Sizing Calculator'!$D$8,'Tc Calcs'!$O$3:$R$15,4) ->  | M23: Receiving BMP in Series | Q23: Infiltration Trench | S23: 0 | T23: 0 | U23: ='Tc Calcs'!S6 -> 0.013 | V23: ='Tc Calcs'!T6 -> 20.33 | AD23: Media Conductivity | AF23: =AG23*AH23 -> 4 | AG23: 5 | AH23: 0.8
C24: Gravel on Soils | F24: =HLOOKUP('CSS BMP Sizing Calculator'!$D$8,'Tc Calcs'!$O$3:$R$15,5) ->  | L24: =IF(AND(N21="Yes",OR(ISBLANK(N22), ISBLANK(N23))), "Select First BMP and Receiving BMP or change answer to No", IF(AND(N21="No",ISTEXT(N22),ISTEXT(N23)), "Select 'Yes' if BMPs in Series are used", IF(AND(N21="Yes",N22=N23),"Error! First BMP and Receiving BMP cannot be the same"," "))) ->  | Q24: Dry Well/Infiltration Gallery | S24: 0 | T24: 0 | U24: ='Tc Calcs'!S7 -> 0.05 | V24: ='Tc Calcs'!T7 -> 16.13 | W24: Total Area = | X24: =SUM(S22:S26) -> 0 | Z24: Total Area = | AA24: =SUM(T22:T26) -> 0
C25: Water | Q25: Bioretention/FTP (Underdrain No Liner) | S25: =D25 -> 0 | T25: =E25 -> 0
C26: Other: | Q26: Bioretention/FTP (Underdrain Liner) | S26: =D26 -> 0 | T26: =E26 -> 0 | U26: =IF(F26>=F22,U22,IF(F26>=F24,U24,U24)) ->  | V26: =IF(F26>=F22,V22,IF(F26>=F24,V24,V24)) ->  | W26: Weighted Values - Existing | Z26: Weighted Values - Proposed | AD26: FTP-UL Weighted Porosity | AF26: =(J45*AF22+K45*AF21)/(J45+K45) -> 0.3
C27: Impervious Areas Subtotal | D27: =SUM(D22:D26) -> 0 | E27: =SUM(E22:E26) -> 0 | Q27: Detention Vault or Tank | AD27: FTP-L Weighted Porosity | AF27: =(J46*$AF$22+K46*$AF$21)/(J46+K46) -> 0.3
C28: Pervious Areas | D28: Existing (ft2) | E28: Proposed (ft2) | F28: CN | U28: Sheet n | V28: Shallow Ks | W28: CN | X28: Sheet n | Y28: Shallow Ks | Z28: Proj CN | AA28: Sheet n | AB28: Shallow Ks | AD28: Trad. Planter Weighted Porosity
B29: Pervious | C29: Grass/Lawn on Grade | F29: =HLOOKUP('CSS BMP Sizing Calculator'!$D$8,'Tc Calcs'!$O$3:$R$15,9) ->  | Q29: Upstream BMP list | U29: ='Tc Calcs'!S11 -> 0.15 | V29: ='Tc Calcs'!T11 -> 7 | W29: =IF($X$34>0,SUMPRODUCT($D29:$D34,F29:F34)/$X$34,0) -> 0 | X29: =IF($X$34>0,SUMPRODUCT($D29:$D34,U29:U34)/$X$34,0) -> 0 | Y29: =IF($X$34>0,SUMPRODUCT($D29:$D34,V29:V34)/$X$34,0) -> 0 | Z29: =IF(AA34>0,SUMPRODUCT($E29:$E34,F29:F34)/AA34,0) -> 0 | AA29: =IF(AA34>0,SUMPRODUCT($E29:$E34,U29:U34)/AA34,0) -> 0 | AB29: =IF(AA34>0,SUMPRODUCT($E29:$E34,V29:V34)/AA34,0) -> 0 | AD29: Veg. Roof Weighted Porosity | AF29: =(J47*$AF$22)/(J47) -> 0.3
C30: Landscaping on Grade (Low Density) | F30: =HLOOKUP('CSS BMP Sizing Calculator'!$D$8,'Tc Calcs'!$O$3:$R$15,10) ->  | Q30: Cistern | U30: ='Tc Calcs'!S12 -> 0.24 | V30: ='Tc Calcs'!T12 -> 6 | W30: =IF($X$33>0,(SUMPRODUCT($D29:$D32,F29:F32)+D34*F34)/$X$33,0) -> 0 | Z30: =IF(AA33>0,(SUMPRODUCT($E29:$E32,F29:F32)+E34*F34)/AA33,0) -> 0 | AD30: PP with Drain Weighted Porosity | AF30: =S49 -> 0.4
C31: Landscaping on Grade (High Density) | F31: =HLOOKUP('CSS BMP Sizing Calculator'!$D$8,'Tc Calcs'!$O$3:$R$15,11) ->  | G31: STEP 3b - Enter stormwater BMP design information AND the conventional areas from Step 3a that drain to each BMP measure. | Q31: Bioretention/FTP (Underdrain No Liner) | U31: ='Tc Calcs'!S13 -> 0.4 | V31: ='Tc Calcs'!T13 -> 5
C32: Street Tree Well (ROW Only) | F32: =HLOOKUP('CSS BMP Sizing Calculator'!$D$8,'Tc Calcs'!$O$3:$R$15,12) ->  | G32: Drainage Areas | I32: BMP Depths and Volumes | N32: Outlet Design | Q32: Bioretention/FTP (Underdrain Liner) | U32: ='Tc Calcs'!S14 -> 0.4 | V32: ='Tc Calcs'!T14 -> 5 | W32: TP Area = | X32: =D33 -> 0 | Z32: TP Area = | AA32: =E33 -> 0
C33: Traditional Planter on Structure | G33: Impervious Area Draining to BMP (ft2) | H33: Pervious Area Draining to BMP (ft2) | I33: BMP Ponding Depth (ft) | J33: BMP Media Depth (ft) | K33: Gravel Storage Depth (ft) | L33: Height of Underdrain Above Base (ft) | M33: Storage Volume (gallons) | N33: Outlet or Orifice Diameter (in) | O33: Approx. Drawdown Time (hrs) | Q33: Vegetated Roof | U33: ='Tc Calcs'!S15 -> 0.4 | V33: ='Tc Calcs'!T15 -> 5 | W33: Pervious Area = | X33: =X34-X32 -> 0 | Z33: Pervious Area = | AA33: =AA34-AA32 -> 0
C34: Other: | Q34: Detention Vault or Tank | U34: =IF(F34>=F29,U29,IF(F34>=F30,U30,IF(F34>=F31,U31,U22))) ->  | V34: =IF(F34>=F29,V29,IF(F34>=F30,V30,IF(F34>=F31,V31,IF(F34>=F32,V32,V32)))) ->  | W34: Total Area = | X34: =D35 -> 0 | Z34: Total Area = | AA34: =E35 -> 0
C35: Pervious Areas Subtotal | D35: =SUM(D29:D34) -> 0 | E35: =SUM(E29:E34) -> 0 | F35: --
C36: Subtotal of Conventional Areas | D36: =SUM(D27,D35) -> 0 | E36: =SUM(E27,E35) -> 0 | F36: --
C37: BMP Areas | D37: Existing BMP Area (ft2) | E37: Proposed BMP Area (ft2) | R37: Dry Well Area (ft2) | S37: Porosity of Media Area | T37: Available Storage Volume (ft3) | U37: Default K (in/hr) | V37: f (in/hr) | W37: Sub-UD storage (ft3) | X37: Orifice Area (ft2) | Y37: Orifice Avg Q (cfs) | Z37: Average Reuse Rate (gpd) | AA37: Average Starting Volume (ft3) | AB37: Total Cistern Volume (ft3) | AC37: Drawdown (Orifice Controls Rate) (hrs) | AD37: Drawdown (Media Controls Rate) (hrs) | AE37: Detention Storage (cf) | AF37: BMP Area (sf) | AG37: Annual % Reuse
C38: Retention BMP Measures
A39: Stormwater BMPs | B39: Retention | C39: Bioretention (No Underdrain, No Liner) | D39: -- | F39: -- | I39: 0.5 | J39: 1.5 | L39: -- | M39: =T39*7.48 -> 0 | N39: -- | O39: =AD39 -> 0 | S39: =AF22 -> 0.3 | T39: =E39*(I39+J39*S39+K39*AF21) -> 0 | U39: =IF($D$9="Yes", IF($U$7<$AF$23, $U$7, $AF$23),0) -> 0 | V39: =U39 -> 0 | AD39: =IF(T39>0,(E39*(I39+J39*S39))/((U39/12)*E39),0) -> 0
C40: Cistern | D40: -- | E40: 0 | F40: -- | G40: ='RWH Calculator'!$C$73 -> 0 | H40: ='RWH Calculator'!C74 -> 0 | I40: -- | J40: -- | K40: ='RWH Calculator'!C80 -> 0 | L40: -- | M40: ='RWH Calculator'!E86 -> 0 | N40: -- | O40: =AD40&" days" -> 0 days | S40: 1 | T40: =AB40-AA40 -> 0 | X40: =PI()*(N40/2/12)^2 ->  | Y40: =0.66*X40*(2*32.17*(I40)/2)^0.5 ->  | Z40: ='RWH Performance Evaluation'!D7/3651 -> 0 | AA40: ='RWH Calculator'!E87/7.48 -> 0 | AB40: =M40/7.48 -> 0 | AC40: =IF(Y40>0,AE40/ Y40/3600,0) ->  | AD40: ='RWH 10-yr Simulation'!BH26 -> 0 | AE40: 0 | AF40: ='RWH Calculator'!E84 -> 0 | AG40: =IF('RWH Calculator'!E89>0,'RWH Calculator'!E89,0) -> 
C41: Infiltration Trench | D41: -- | F41: -- | I41: -- | J41: -- | K41: 3 | L41: -- | M41: =T41*7.48 -> 0 | N41: -- | O41: =AD41 -> 0 | S41: =$AF$21 -> 0.4 | T41: =E41*(K41*$AF$21) -> 0 | U41: =IF($D$9 = "Yes", $U$7,0) -> 0 | V41: =U41 -> 0 | AD41: =IF(T41>0,T41/(U41/12*E41),0) -> 0
C42: Dry Well/Infiltration Gallery | D42: -- | E42: 0 | F42: -- | I42: 0 | J42: -- | K42: 4 | L42: -- | N42: -- | O42: =AD42 -> 0 | R42: =IF($I42+$K42>0,$M42/7.48/($AF$21*$K42+$I42),0) -> 0 | S42: =$AF$21 -> 0.4 | T42: =M42/7.48 -> 0 | U42: =IF($D$9 = "Yes", $U$7,0) -> 0 | V42: =U42 -> 0 | AD42: =IF(T42>0,T42/(U42/12*R42),0) -> 0
C43: Permeable Pavement (No Underdrain) | D43: -- | F43: -- | H43: 0 | I43: -- | J43: -- | K43: 1 | L43: -- | M43: =T43*7.48 -> 0 | N43: -- | O43: =AD43 -> 0 | Q43: Min Storage Depth | S43: =$AF$21 -> 0.4 | T43: =E43*(K43*$AF$21) -> 0 | U43: =IF($D$9 = "Yes", $U$7,0) -> 0 | V43: =U43 -> 0 | AD43: =IF(T43>0,T43/(U43/12*E43),0) -> 0
C44: Detention + Evapotranspiration BMP Measures | N44: 4 | T44: Available Storage Volume (ft3) | U44: Default K (in/hr) | V44: Calc'd f (in/hr) | W44: Sub-UD storage (ft3) | X44: Orifice Area (ft2) | Y44: Orifice Ave Q (cfs) | Z44: Orifice Drawdown (hrs) | AA44: Media Drawdown (hrs) | AB44: Drawdown Used (hrs) | AC44: Storage Above Underdrain (ft3)
B45: Detention | C45: Bioretention/FTP (Underdrain, No Liner) | D45: -- | F45: -- | I45: 0.5 | J45: 1.5 | L45: 0.167 | M45: =T45*7.48 -> 0 | N45: 4 | O45: =AB45 -> 0 | Q45: =ROUND(MAX(8/12,L45+N45/12),2) -> 0.67 | S45: =$AF$22 -> 0.3 | T45: =E45*(I45+J45*S45+K45*$AF$21) -> 0 | U45: =$AF$23 -> 4 | V45: =IF(AC45>0,AC45/E45/AB45*12,0) -> 0 | W45: =L45*E45*$AF$21 -> 0 | X45: =PI()*(N45/12/2)^2 -> 0.0872664626 | Y45: =0.66*X45*(2*32.17*(I45+J45*$AF$22+IF(K45>L45,(K45-L45)*$AF$21,0))/2)^0.5 -> 0.3184040921 | Z45: =IF(Y45>0,AC45/Y45/3600,0) -> 0 | AA45: =IF(T45>0,(E45*(I45+J45*S45))*(J45)/(U45/12*(I45/2+J45)*E45),0) -> 0 | AB45: =IF(E45>0,IF(AA45>=Z45,AA45,Z45),0) -> 0 | AC45: =E45*(I45+J45*S45+IF(K45>L45,K45-L45,0)*$AF$21) -> 0
C46: Bioretention/FTP (Underdrain, Liner) | D46: -- | F46: -- | I46: 0.5 | J46: 1.5 | L46: -- | M46: =T46*7.48 -> 0 | N46: 4 | O46: =AB46 -> 0 | S46: =$AF$22 -> 0.3 | T46: =E46*(I46+J46*S46+K46*$AF$21) -> 0 | U46: =$AF$23 -> 4 | V46: =IF(AC46>0,AC46/E46/AB46*12,0) -> 0 | W46: 0 | X46: =PI()*(N46/12/2)^2 -> 0.0872664626 | Y46: =0.66*X46*(2*32.17*(I46+J46*$AF$22+K46*$AF$21)/2)^0.5 -> 0.3184040921 | Z46: =IF(Y46>0,AC46/Y46/3600,0) -> 0 | AA46: =IF(T46>0,(E46*(I46+J46*S46))*(J46)/(U46/12*(I46/2+J46)*E46),0) -> 0 | AB46: =IF(E46>0,IF(AA46>=Z46,AA46,Z46),0) -> 0 | AC46: =E46*(I46+J46*S46+K46*$AF$21) -> 0
C47: Vegetated Roof | D47: -- | F47: -- | H47: 0 | I47: -- | J47: 0.5 | K47: -- | L47: -- | M47: =T47*7.48 -> 0 | N47: 4 | O47: =AB47 -> 0 | S47: =$AF$22 -> 0.3 | T47: =E47*(J47*S47)+1/24*E47 -> 0 | U47: 1 | V47: =IF(T47>0,T47/E47/AB47*12,0) -> 0 | X47: =PI()*(N47/12/2)^2 -> 0.0872664626 | Y47: =0.66*X47*(2*32.17*(J47)/2)^0.5 -> 0.2309946067 | Z47: =IF(Y47>0,T47/Y47/3600,0) -> 0 | AA47: =IF(T47>0,T47*(J47)/(U47/12*(J47)*E47),0) -> 0 | AB47: =IF(E47>0,IF(AA47>=Z47,AA47,Z47),0) -> 0 | AC47: =E47*(J47*S47) -> 0
C48: Detention BMP Measures | K48: 1 | L48: 0.167 | N48: 4 | T48: Total Storage Volume (ft3) | W48: Sub-UD storage (ft3) | X48: Orifice Area (ft2) | Y48: Orifice Avg Q (cfs) | Z48: Orifice Drawdown (hrs) | AA48: Media Drawdown (hrs)
C49: Permeable Pavement (Underdrain) | D49: -- | F49: -- | H49: 0 | I49: -- | J49: -- | K49: 1 | L49: 0.167 | M49: =T49*7.48 -> 0 | N49: 4 | O49: =AB49 -> 0 | Q49: =ROUND(MAX(0.5,L49+N49/12),2) -> 0.5 | S49: =$AF$21 -> 0.4 | T49: =E49*K49*$AF$21 -> 0 | U49: =IF($D$9="Yes", $U$7, 0) -> 0 | W49: =L49*E49*AF21 -> 0 | X49: =PI()*(N49/12/2)^2 -> 0.0872664626 | Y49: =0.66*X49*(2*32.17*(IF(K49>L49,(K49-L49)*$AF$21,0))/2)^0.5 -> 0.1885685816 | Z49: =IF(Y49>0,AC49/Y49/3600,0) -> 0 | AA49: =IF(T49>0,L49*AF21/(U49/12),0) -> 0 | AB49: =IF(E49>0,Z49+AA49,0) -> 0 | AC49: =E49*(IF(K49>L49,K49-L49,0)*$AF$21) -> 0
C50: Detention Vault or Tank | D50: -- | E50: 0 | F50: -- | J50: -- | K50: -- | L50: -- | N50: 1.5 | O50: =AB50 -> 0 | S50: 1 | T50: =M50/7.48 -> 0 | V50: =IF(T50>0, T50/I50, 0) -> 0 | X50: =PI()*(N50/12/2)^2 -> 0.0122718463 | Y50: =0.66*X50*(2*32.17*(I50)/2)^0.5 -> 0 | Z50: =IF(Y50>0,T50/Y50/3600,0) -> 0 | AA50: -- | AB50: =IF(M50>0,Z50,0) -> 0
C51: BMP Areas Subtotals | D51: -- | E51: =SUM(E39:E50) -> 0 | F51: --
C52: Total Project Site Areas | D52: =0+D36 -> 0 | E52: =E51+E36 -> 0 | F52: -- | G52: =SUM(G39:G50) -> 0 | H52: =SUM(H39:H50) -> 0 | M52: =SUM(M39:M50) -> 0 | T52: Total Storage Volume (ft3)
G53: =IF(OR(O46>=24.5,O45>=24.5,O39>=24.5,O47>=24.5,O41>=48.5,O42>=48.5,O43>=48.5,O49>=48.5,O50>=48.5),"Drawdown time exceeds maximum."& CHAR(10),"")&IF(AD40>=365," Cistern drawdown is excessively long, consider reducing cistern size or using a different stormwater management approach.","") ->  | T53: =SUM(T39:T50) -> 0
C54: STEP 4 - Check that site and drainage management areas are entered correctly. (CSS = Combined Sewer System)
C55: Project Site Surfaces | D55: Existing Area (ft2) | E55: Proposed Area (ft2) | F55: CHECK OF AREAS | K55: Other Performance Outputs (For PUC tracking/auditing, not compliance related)
C56: Impervious Area Draining to BMP | D56: 0 | E56: =T59 -> 0 | F56: =IF(E56>E27,"ERROR","OK") -> OK | G56: =IF(F56="ERROR","< Area should be less than or equal to total proposed impervious area.",IF(G47>(0.5*E47),"<- Vegetated roof should not have significant impervious run-on.","")) ->  | K56: Total Runoff from Drainage Area (gal per year) | O56: =IFERROR(Annual!C21,"") ->  | Q56: Summary of Site Areas
C57: Impervious Area Draining Directly to CSS | D57: =R59 -> 0 | E57: =U59 -> 0 | K57: Annual Runoff Removed From Sewer (gal per year) | O57: =IFERROR(Annual!C23,"") ->  | Q57: Site Surfaces | R57: Existing | S57: Proposed Areas (ft2)
C58: Pervious Area Draining to BMP | D58: 0 | E58: =T60 -> 0 | F58: =IF(E58>E35,"ERROR","OK") -> OK | G58: =IF(F58="ERROR", "<- Area should be less than or equal to total proposed pervious area."," ") ->  | K58: Annual Runoff Detained (gal per year) | O58: =IFERROR(Annual!C25,"") -> 0 | Q58: Surfaces | R58: Area (ft2) | S58: Total Area | T58: Portion Draining to BMP | U58: Portion Draining Directly to Sewer
C59: Pervious Area Draining Directly to CSS | D59: =R60 -> 0 | E59: =U60 -> 0 | K59: Increased Green Space (acres) | O59: =IFERROR(Annual!C28,"") -> 0 | Q59: Impervious Areas | R59: =D27 -> 0 | S59: =E27 -> 0 | T59: =G52 -> 0 | U59: =IF(S59-T59>0,S59-T59,0) -> 0
C60: Stormwater BMP Area | D60: 0 | E60: =T61 -> 0 | Q60: Pervious Areas | R60: =D35 -> 0 | S60: =E35 -> 0 | T60: =H52 -> 0 | U60: =S60-T60 -> 0
C61: Total Area | D61: =SUM(D56:D60) -> 0 | E61: =SUM(E56:E60) -> 0 | F61: =IF(D61=E61,"OK", "ERROR") -> OK | G61: =IF(F61="ERROR", "Total areas should be equal"," ") ->  | Q61: BMP Areas | R61: 0 | S61: =T61 -> 0 | T61: =SUM(E39:E50) -> 0 | U61: =S61-T61 -> 0
Q62: Totals | R62: =SUM(R59:R61) -> 0 | S62: =SUM(S59:S61) -> 0 | T62: =SUM(T59:T61) -> 0 | U62: =SUM(U59:U61) -> 0
C63: STEP 5 - Compare if the SMR runoff reductions to quantity control requirements are met. If not, review BMP performance output in Step 6, then return to Step 3 to adjust stormwater strategies.
C64: Quantity Control Parameter | D64: Existing Conditions | E64: Proposed Conditions | F64: % Reduction From Existing Conditions | G64: Target % Reduction | H64: Requirement Met? | Q64: Check of Stormwater Management Strategy
C65: 1-yr, 24 hr: Peak Flow (cfs) | D65: ='1-yr SBUH'!M10 ->  | E65: =IF(N21="Yes", IF(AND(N22<>"", N23<>""),'1-yr SBUH TT'!FQ9, '1-yr SBUH'!FP9), '1-yr SBUH'!FP9) -> 0 | F65: =ROUND((D65-E65)/D65,2) ->  | G65: =IF(M2="Yes", "N/A", IF($D$27/$D$36 <= 0.5, 0, "N/A")) ->  | H65: =IF(G65="N/A","N/A",IF(E65<=D65,"YES", "NO")) ->  | I65: =IFERROR(IF(H65="NO", "Use detention or retention BMP measures to reduce peak flow"," "),"") -> 
C66: 1-yr, 24 hr: Runoff Volume (ft3) | D66: ='1-yr SBUH'!M9 ->  | E66: =IF(N21="Yes", IF(AND(N22<>"", N23<>""),'1-yr SBUH TT'!FQ6, '1-yr SBUH'!FP6),'1-yr SBUH'!FP6) -> 0 | F66: =ROUND((D66-E66)/D66,2) ->  | G66: =IF(M2="Yes", "N/A", IF($D$27/$D$36 <= 0.5, 0, "N/A")) ->  | H66: =IF(G66="N/A","N/A",IF(E66<=D66,"YES", "NO")) ->  | I66: =IFERROR(IF(H66="NO", "Use retention or evapotranspiration BMP measures to reduce runoff volume"," "),"") ->  | T66: Change in % Impervious from Existing to Proposed Conditions: | U66: =(S59+S61-R59)/R62 -> 
C67: 2-yr, 24 hr: Peak Flow (cfs) | D67: ='2-yr SBUH'!M10 ->  | E67: =IF(N21="Yes", IF(AND(N22<>"", N23<>""),'2-yr SBUH TT'!FQ9, '2-yr SBUH'!FP9), '2-yr SBUH'!FP9) -> 0 | F67: =ROUND((D67-E67)/D67,2) ->  | G67: =IF(M2="Yes", M3, IF($D$27/$D$36 <= 0.5, 0, 0.25)) ->  | H67: =IF(M2="Yes",IF(F67>=G67,"YES",IF(AND(F68>=G68,F67+F68>=G67+G68),"PASS","NO")),IF(F67>=G67,"YES", "NO")) ->  | I67: =IFERROR(IF(H67="NO", "Use detention or retention BMP measures to reduce peak flow"," "),"") ->  | T67: Expected BMP Area Required as Percent of Impervious Project Drainage Area: | U67: =IF(U66<-0.3,0,HLOOKUP(D8,W7:Z9,3)+0.2*U66) -> 
C68: 2-yr, 24 hr: Runoff Volume (ft3) | D68: ='2-yr SBUH'!M9 ->  | E68: =IF(N21="Yes", IF(AND(N22<>"", N23<>""),'2-yr SBUH TT'!FQ6, '2-yr SBUH'!FP6),'2-yr SBUH'!FP6) -> 0 | F68: =ROUND((D68-E68)/D68,2) ->  | G68: =IF(M2="Yes", M4, IF($D$27/$D$36 <= 0.5, 0, 0.25)) ->  | H68: =IF(M2="Yes",IF(H67="PASS","PASS",IF(F68>=G68,"YES","NO")),IF(F68>=G68,"YES", "NO")) ->  | I68: =IFERROR(IF(H68="NO", "Use retention or evapotranspiration BMP measures to reduce runoff volume"," "),"") ->  | T68: Actual BMP Area as Percent of Impervious Project Drainage Area: | U68: =IF(SUM(E22:E26)>0,SUM(E39:E50)/SUM(E22:E26,E43, E47, E49)," ") -> 
C70: STEP 6 - Review the summary table below to see how each BMP performs during the 2-yr 24 hr storm. The site's hydrographs are shown in the "Rainfall and Hydrographs" tab. | N70: For BMPs in Series Only
B71: Stormwater BMP Measures | D71: Inflows | E71: Outflows | G71: Volume In | H71: Volume Retained | K71: Volume Out to CSS | N71: Volume to Receiving BMP
D72: Peak Flow to BMP (cfs) | E72: Peak Rate of Discharged Flow (cfs) | F72: Peak Rate of Overflow (cfs) | G72: Runoff to BMP (ft3) | H72: Infiltration + E/T (ft3) | I72: Reuse (ft3) | J72: Volume Remaining in Storage (ft3) | K72: Detained Discharge Volume (ft3) | L72: Overflow Volume (ft3) | N72: Detained Discharge Volume (ft3) | O72: Overflow Volume (ft3) | Q72: Total
B73: Retention | C73: Retention BMP Measures
C74: Bioretention (No Underdrain, No Liner) | D74: =IF($N$21="Yes", IF(OR($N$22="Bioretention (No Underdrain No Liner)", $N$23="Bioretention (No Underdrain No Liner)"), '2-yr SBUH TT'!$AN8,'2-yr SBUH'!$AN8),'2-yr SBUH'!$AN8) -> 0 | E74: =IF($N$21="Yes", IF($N$22="Bioretention (No Underdrain No Liner)", 0, IF($N$23="Bioretention (No Underdrain No Liner)", '2-yr SBUH TT'!$AN9,'2-yr SBUH'!$AN9)),'2-yr SBUH'!$AN9) -> 0 | F74: =IF($N$21="Yes", IF($N$22="Bioretention (No Underdrain No Liner)", 0, IF($N$23="Bioretention (No Underdrain No Liner)", '2-yr SBUH TT'!$AN10,'2-yr SBUH'!$AN10)),'2-yr SBUH'!$AN10) -> 0 | G74: =IF($N$21="Yes", IF(OR($N$22="Bioretention (No Underdrain No Liner)", $N$23="Bioretention (No Underdrain No Liner)"), '2-yr SBUH TT'!$AN2,'2-yr SBUH'!$AN2),'2-yr SBUH'!$AN2) -> 0 | H74: =IF($N$21="Yes", IF(OR($N$22="Bioretention (No Underdrain No Liner)", $N$23="Bioretention (No Underdrain No Liner)"), '2-yr SBUH TT'!$AN3,'2-yr SBUH'!$AN3),'2-yr SBUH'!$AN3) -> 0 | I74: =IF($N$21="Yes", IF(OR($N$22="Bioretention (No Underdrain No Liner)", $N$23="Bioretention (No Underdrain No Liner)"), '2-yr SBUH TT'!$AN4,'2-yr SBUH'!$AN4),'2-yr SBUH'!$AN4) -> 0 | J74: =IF($N$21="Yes", IF(OR($N$22="Bioretention (No Underdrain No Liner)", $N$23="Bioretention (No Underdrain No Liner)"), '2-yr SBUH TT'!$AN5,'2-yr SBUH'!$AN5),'2-yr SBUH'!$AN5) -> 0 | K74: =IF($N$21="Yes", IF($N$22="Bioretention (No Underdrain No Liner)", 0, IF($N$23="Bioretention (No Underdrain No Liner)", '2-yr SBUH TT'!$AN6,'2-yr SBUH'!$AN6)),'2-yr SBUH'!$AN6) -> 0 | L74: =IF($N$21="Yes", IF($N$22="Bioretention (No Underdrain No Liner)", 0, IF($N$23="Bioretention (No Underdrain No Liner)", '2-yr SBUH TT'!$AN7,'2-yr SBUH'!$AN7)),'2-yr SBUH'!$AN7) -> 0 | N74: -- | O74: -- | Q74: =SUM(H74:L74) -> 0
C75: Cistern | D75: =IF($N$21="Yes", IF(OR($N$22="Cistern", $N$23="Cistern"), '2-yr SBUH TT'!$AY8,'2-yr SBUH'!$AY8),'2-yr SBUH'!$AY8) -> 0 | E75: =IF($N$21="Yes", IF($N$22="Cistern", 0, IF($N$23="Cistern", '2-yr SBUH TT'!$AY9,'2-yr SBUH'!$AY9)),'2-yr SBUH'!$AY9) -> 0 | F75: =IF($N$21="Yes", IF($N$22="Cistern", 0, IF($N$23="Cistern", '2-yr SBUH TT'!$AY10,'2-yr SBUH'!$AY10)),'2-yr SBUH'!$AY10) -> 0 | G75: =IF($N$21="Yes", IF(OR($N$22="Cistern", $N$23="Cistern"), '2-yr SBUH TT'!$AY2,'2-yr SBUH'!$AY2),'2-yr SBUH'!$AY2) -> 0 | H75: =IF($N$21="Yes", IF(OR($N$22="Cistern", $N$23="Cistern"), '2-yr SBUH TT'!$AY3,'2-yr SBUH'!$AY3),'2-yr SBUH'!$AY3) -> 0 | I75: =IF($N$21="Yes", IF(OR($N$22="Cistern", $N$23="Cistern"), '2-yr SBUH TT'!$AY4, IF('2-yr SBUH'!$AY4<'2-yr SBUH'!AY2, '2-yr SBUH'!AY4, '2-yr SBUH'!AY2)), IF('2-yr SBUH'!$AY4<'2-yr SBUH'!AY2,'2-yr SBUH'!AY4,'2-yr SBUH'!AY2)) -> 0 | J75: =IF($N$21="Yes", IF(OR($N$22="Cistern", $N$23="Cistern"), ('2-yr SBUH TT'!$AY5-'2-yr SBUH TT'!AS8),('2-yr SBUH'!$AY5-'2-yr SBUH'!AS8)),('2-yr SBUH'!$AY5-'2-yr SBUH'!AS8)) -> 0 | K75: =IF($N$21="Yes", IF($N$22="Cistern", 0, IF($N$23="Cistern", '2-yr SBUH TT'!$AY6,'2-yr SBUH'!$AY6)),'2-yr SBUH'!$AY6) -> 0 | L75: =IF($N$21="Yes", IF($N$22="Cistern", 0, IF($N$23="Cistern", '2-yr SBUH TT'!$AY7,'2-yr SBUH'!$AY7)),'2-yr SBUH'!$AY7) -> 0 | N75: =IF(N22="Cistern",'2-yr SBUH TT'!$AY$6,0) -> 0 | O75: =IF(N22="Cistern",'2-yr SBUH TT'!$AY$7,0) -> 0 | Q75: =SUM(H75:L75) -> 0
C76: Infiltration Trench | D76: =IF($N$21="Yes", IF(OR($N$22="Infiltration Trench", $N$23="Infiltration Trench"), '2-yr SBUH TT'!$BM8,'2-yr SBUH'!$BM8),'2-yr SBUH'!$BM8) -> 0 | E76: =IF($N$21="Yes", IF($N$22="Infiltration Trench", 0, IF($N$23="Infiltration Trench", '2-yr SBUH TT'!$BM9,'2-yr SBUH'!$BM9)),'2-yr SBUH'!$BM9) -> 0 | F76: =IF($N$21="Yes", IF($N$22="Infiltration Trench", 0, IF($N$23="Infiltration Trench", '2-yr SBUH TT'!$BM10,'2-yr SBUH'!$BM10)),'2-yr SBUH'!$BM10) -> 0 | G76: =IF($N$21="Yes", IF(OR($N$22="Infiltration Trench", $N$23="Infiltration Trench"), '2-yr SBUH TT'!$BM2,'2-yr SBUH'!$BM2),'2-yr SBUH'!$BM2) -> 0 | H76: =IF($N$21="Yes", IF(OR($N$22="Infiltration Trench", $N$23="Infiltration Trench"), '2-yr SBUH TT'!$BM3,'2-yr SBUH'!$BM3),'2-yr SBUH'!$BM3) -> 0 | I76: =IF($N$21="Yes", IF(OR($N$22="Infiltration Trench", $N$23="Infiltration Trench"), '2-yr SBUH TT'!$BM4,'2-yr SBUH'!$BM4),'2-yr SBUH'!$BM4) -> 0 | J76: =IF($N$21="Yes", IF(OR($N$22="Infiltration Trench", $N$23="Infiltration Trench"), '2-yr SBUH TT'!$BM5,'2-yr SBUH'!$BM5),'2-yr SBUH'!$BM5) -> 0 | K76: =IF($N$21="Yes", IF($N$22="Infiltration Trench", 0, IF($N$23="Infiltration Trench", '2-yr SBUH TT'!$BM6,'2-yr SBUH'!$BM6)),'2-yr SBUH'!$BM6) -> 0 | L76: =IF($N$21="Yes", IF($N$22="Infiltration Trench", 0, IF($N$23="Infiltration Trench", '2-yr SBUH TT'!$BM7,'2-yr SBUH'!$BM7)),'2-yr SBUH'!$BM7) -> 0 | N76: -- | O76: -- | Q76: =SUM(H76:L76) -> 0
C77: Dry Well/Infiltration Gallery | D77: =IF($N$21="Yes", IF(OR($N$22="Dry Well/Infiltration Gallery", $N$23="Dry Well/Infiltration Gallery"), '2-yr SBUH TT'!$BX8,'2-yr SBUH'!$BX8),'2-yr SBUH'!$BX8) -> 0 | E77: =IF($N$21="Yes", IF($N$22="Dry Well/Infiltration Gallery", 0, IF($N$23="Dry Well/Infiltration Gallery", '2-yr SBUH TT'!$BX9,'2-yr SBUH'!$BX9)),'2-yr SBUH'!$BX9) -> 0 | F77: =IF($N$21="Yes", IF($N$22="Dry Well/Infiltration Gallery", 0, IF($N$23="Dry Well/Infiltration Gallery", '2-yr SBUH TT'!$BX10,'2-yr SBUH'!$BX10)),'2-yr SBUH'!$BX10) -> 0 | G77: =IF($N$21="Yes", IF(OR($N$22="Dry Well/Infiltration Gallery", $N$23="Dry Well/Infiltration Gallery"), '2-yr SBUH TT'!$BX2,'2-yr SBUH'!$BX2),'2-yr SBUH'!$BX2) -> 0 | H77: =IF($N$21="Yes", IF(OR($N$22="Dry Well/Infiltration Gallery", $N$23="Dry Well/Infiltration Gallery"), '2-yr SBUH TT'!$BX3,'2-yr SBUH'!$BX3),'2-yr SBUH'!$BX3) -> 0 | I77: =IF($N$21="Yes", IF(OR($N$22="Dry Well/Infiltration Gallery", $N$23="Dry Well/Infiltration Gallery"), '2-yr SBUH TT'!$BX4,'2-yr SBUH'!$BX4),'2-yr SBUH'!$BX4) -> 0 | J77: =IF($N$21="Yes", IF(OR($N$22="Dry Well/Infiltration Gallery", $N$23="Dry Well/Infiltration Gallery"), '2-yr SBUH TT'!$BX5,'2-yr SBUH'!$BX5),'2-yr SBUH'!$BX5) -> 0 | K77: =IF($N$21="Yes", IF($N$22="Dry Well/Infiltration Gallery", 0, IF($N$23="Dry Well/Infiltration Gallery", '2-yr SBUH TT'!$BX6,'2-yr SBUH'!$BX6)),'2-yr SBUH'!$BX6) -> 0 | L77: =IF($N$21="Yes", IF($N$22="Dry Well/Infiltration Gallery", 0, IF($N$23="Dry Well/Infiltration Gallery", '2-yr SBUH TT'!$BX7,'2-yr SBUH'!$BX7)),'2-yr SBUH'!$BX7) -> 0 | N77: -- | O77: -- | Q77: =SUM(H77:L77) -> 0
C78: Permeable Pavement (No Underdrain) | D78: =IF($N$21="Yes", IF(OR($N$22="Permeable Pavement (No Underdrain)", $N$23="Permeable Pavement (No Underdrain)"), '2-yr SBUH TT'!$CI8,'2-yr SBUH'!$CI8),'2-yr SBUH'!$CI8) -> 0 | E78: =IF($N$21="Yes", IF($N$22="Permeable Pavement (No Underdrain)", 0, IF($N$23="Permeable Pavement (No Underdrain)", '2-yr SBUH TT'!$CI9,'2-yr SBUH'!$CI9)),'2-yr SBUH'!$CI9) -> 0 | F78: =IF($N$21="Yes", IF($N$22="Permeable Pavement (No Underdrain)", 0, IF($N$23="Permeable Pavement (No Underdrain)", '2-yr SBUH TT'!$CI10,'2-yr SBUH'!$CI10)),'2-yr SBUH'!$CI10) -> 0 | G78: =IF($N$21="Yes", IF(OR($N$22="Permeable Pavement (No Underdrain)", $N$23="Permeable Pavement (No Underdrain)"), '2-yr SBUH TT'!$CI2,'2-yr SBUH'!$CI2),'2-yr SBUH'!$CI2) -> 0 | H78: =IF($N$21="Yes", IF(OR($N$22="Permeable Pavement (No Underdrain)", $N$23="Permeable Pavement (No Underdrain)"), '2-yr SBUH TT'!$CI3,'2-yr SBUH'!$CI3),'2-yr SBUH'!$CI3) -> 0 | I78: =IF($N$21="Yes", IF(OR($N$22="Permeable Pavement (No Underdrain)", $N$23="Permeable Pavement (No Underdrain)"), '2-yr SBUH TT'!$CI4,'2-yr SBUH'!$CI4),'2-yr SBUH'!$CI4) -> 0 | J78: =IF($N$21="Yes", IF(OR($N$22="Permeable Pavement (No Underdrain)", $N$23="Permeable Pavement (No Underdrain)"), '2-yr SBUH TT'!$CI5,'2-yr SBUH'!$CI5),'2-yr SBUH'!$CI5) -> 0 | K78: =IF($N$21="Yes", IF($N$22="Permeable Pavement (No Underdrain)", 0, IF($N$23="Permeable Pavement (No Underdrain)", '2-yr SBUH TT'!$CI6,'2-yr SBUH'!$CI6)),'2-yr SBUH'!$CI6) -> 0 | L78: =IF($N$21="Yes", IF($N$22="Permeable Pavement (No Underdrain)", 0, IF($N$23="Permeable Pavement (No Underdrain)", '2-yr SBUH TT'!$CI7,'2-yr SBUH'!$CI7)),'2-yr SBUH'!$CI7) -> 0 | N78: -- | O78: -- | Q78: =SUM(H78:L78) -> 0
B79: Detention | C79: Detention + E/T BMP Measures
C80: Bioretention/FTP (Underdrain, No Liner) | D80: =IF($N$21="Yes", IF(OR($N$22="Bioretention/FTP (Underdrain No Liner)", $N$23="Bioretention/FTP (Underdrain No Liner)"), '2-yr SBUH TT'!$CX9,'2-yr SBUH'!$CX9),'2-yr SBUH'!$CX9) -> 0 | E80: =IF($N$21="Yes", IF($N$22="Bioretention/FTP (Underdrain No Liner)", 0, IF($N$23="Bioretention/FTP (Underdrain No Liner)", '2-yr SBUH TT'!$CX10,'2-yr SBUH'!$CX10)),'2-yr SBUH'!$CX10) -> 0 | F80: =IF($N$21="Yes", IF($N$22="Bioretention/FTP (Underdrain No Liner)", 0, IF($N$23="Bioretention/FTP (Underdrain No Liner)", '2-yr SBUH TT'!$CX11,'2-yr SBUH'!$CX11)),'2-yr SBUH'!$CX11) -> 0 | G80: =IF($N$21="Yes", IF(OR($N$22="Bioretention/FTP (Underdrain No Liner)", $N$23="Bioretention/FTP (Underdrain No Liner)"), '2-yr SBUH TT'!$CX2,'2-yr SBUH'!$CX2),'2-yr SBUH'!$CX2) -> 0 | H80: =IF($N$21="Yes", IF(OR($N$22="Bioretention/FTP (Underdrain No Liner)", $N$23="Bioretention/FTP (Underdrain No Liner)"), '2-yr SBUH TT'!$CX3+'2-yr SBUH TT'!CX4,'2-yr SBUH'!$CX3+'2-yr SBUH'!CX4),'2-yr SBUH'!$CX3+'2-yr SBUH'!CX4) -> 0 | I80: =IF($N$21="Yes", IF(OR($N$22="Bioretention/FTP (Underdrain No Liner)", $N$23="Bioretention/FTP (Underdrain No Liner)"), '2-yr SBUH TT'!$CX5,'2-yr SBUH'!$CX5),'2-yr SBUH'!$CX5) -> 0 | J80: =IF($N$21="Yes", IF(OR($N$22="Bioretention/FTP (Underdrain No Liner)", $N$23="Bioretention/FTP (Underdrain No Liner)"), '2-yr SBUH TT'!$CX6,'2-yr SBUH'!$CX6),'2-yr SBUH'!$CX6) -> 0 | K80: =IF($N$21="Yes", IF($N$22="Bioretention/FTP (Underdrain No Liner)", 0, IF($N$23="Bioretention/FTP (Underdrain No Liner)", '2-yr SBUH TT'!$CX7,'2-yr SBUH'!$CX7)),'2-yr SBUH'!$CX7) -> 0 | L80: =IF($N$21="Yes", IF($N$22="Bioretention/FTP (Underdrain No Liner)", 0, IF($N$23="Bioretention/FTP (Underdrain No Liner)", '2-yr SBUH TT'!$CX8,'2-yr SBUH'!$CX8)),'2-yr SBUH'!$CX8) -> 0 | N80: =IF(N22="Bioretention/FTP (Underdrain No Liner)",'2-yr SBUH TT'!$CX$7,0) -> 0 | O80: =IF(N22="Bioretention/FTP (Underdrain No Liner)",'2-yr SBUH TT'!$CX$8,0) -> 0 | Q80: =SUM(H80:L80) -> 0
C81: Bioretention/FTP (Underdrain, Liner) | D81: =IF($N$21="Yes", IF(OR($N$22="Bioretention/FTP (Underdrain Liner)", $N$23="Bioretention/FTP (Underdrain Liner)"), '2-yr SBUH TT'!$DP9,'2-yr SBUH'!$DP9),'2-yr SBUH'!$DP9) -> 0 | E81: =IF($N$21="Yes", IF($N$22="Bioretention/FTP (Underdrain Liner)", 0, IF($N$23="Bioretention/FTP (Underdrain Liner)", '2-yr SBUH TT'!$DP10,'2-yr SBUH'!$DP10)),'2-yr SBUH'!$DP10) -> 0 | F81: =IF($N$21="Yes", IF($N$22="Bioretention/FTP (Underdrain Liner)", 0, IF($N$23="Bioretention/FTP (Underdrain Liner)", '2-yr SBUH TT'!$DP11,'2-yr SBUH'!$DP11)),'2-yr SBUH'!$DP11) -> 0 | G81: =IF($N$21="Yes", IF(OR($N$22="Bioretention/FTP (Underdrain Liner)", $N$23="Bioretention/FTP (Underdrain Liner)"), '2-yr SBUH TT'!$DP2,'2-yr SBUH'!$DP2),'2-yr SBUH'!$DP2) -> 0 | H81: =IF($N$21="Yes", IF(OR($N$22="Bioretention/FTP (Underdrain Liner)", $N$23="Bioretention/FTP (Underdrain Liner)"), '2-yr SBUH TT'!$DP3+'2-yr SBUH TT'!DP4,'2-yr SBUH'!$DP3+'2-yr SBUH'!DP4),'2-yr SBUH'!$DP3+'2-yr SBUH'!DP4) -> 0 | I81: =IF($N$21="Yes", IF(OR($N$22="Bioretention/FTP (Underdrain Liner)", $N$23="Bioretention/FTP (Underdrain Liner)"), '2-yr SBUH TT'!$DP5,'2-yr SBUH'!$DP5),'2-yr SBUH'!$DP5) -> 0 | J81: =IF($N$21="Yes", IF(OR($N$22="Bioretention/FTP (Underdrain Liner)", $N$23="Bioretention/FTP (Underdrain Liner)"), '2-yr SBUH TT'!$DP6,'2-yr SBUH'!$DP6),'2-yr SBUH'!$DP6) -> 0 | K81: =IF($N$21="Yes", IF($N$22="Bioretention/FTP (Underdrain Liner)", 0, IF($N$23="Bioretention/FTP (Underdrain Liner)", '2-yr SBUH TT'!$DP7,'2-yr SBUH'!$DP7)),'2-yr SBUH'!$DP7) -> 0 | L81: =IF($N$21="Yes", IF($N$22="Bioretention/FTP (Underdrain Liner)", 0, IF($N$23="Bioretention/FTP (Underdrain Liner)", '2-yr SBUH TT'!$DP8,'2-yr SBUH'!$DP8)),'2-yr SBUH'!$DP8) -> 0 | N81: =IF(N22="Bioretention/FTP (Underdrain Liner)",'2-yr SBUH TT'!$DP$7,0) -> 0 | O81: =IF(N22="Bioretention/FTP (Underdrain Liner)",'2-yr SBUH TT'!$DP$8,0) -> 0 | Q81: =SUM(H81:L81) -> 0
C82: Vegetated Roof | D82: =IF($N$21="Yes", IF(OR($N$22="Vegetated Roof", $N$23="Vegetated Roof"), '2-yr SBUH TT'!$EG8,'2-yr SBUH'!$EG8),'2-yr SBUH'!$EG8) -> 0 | E82: =IF($N$21="Yes", IF($N$22="Vegetated Roof", 0, IF($N$23="Vegetated Roof", '2-yr SBUH TT'!$EG9,'2-yr SBUH'!$EG9)),'2-yr SBUH'!$EG9) -> 0 | F82: =IF($N$21="Yes", IF($N$22="Vegetated Roof", 0, IF($N$23="Vegetated Roof", '2-yr SBUH TT'!$EG10,'2-yr SBUH'!$EG10)),'2-yr SBUH'!$EG10) -> 0 | G82: =IF($N$21="Yes", IF(OR($N$22="Vegetated Roof", $N$23="Vegetated Roof"), '2-yr SBUH TT'!$EG2,'2-yr SBUH'!$EG2),'2-yr SBUH'!$EG2) -> 0 | H82: =IF($N$21="Yes", IF(OR($N$22="Vegetated Roof", $N$23="Vegetated Roof"), '2-yr SBUH TT'!$EG3,'2-yr SBUH'!$EG3),'2-yr SBUH'!$EG3) -> 0 | I82: =IF($N$21="Yes", IF(OR($N$22="Vegetated Roof", $N$23="Vegetated Roof"), '2-yr SBUH TT'!$EG4,'2-yr SBUH'!$EG4),'2-yr SBUH'!$EG4) -> 0 | J82: =IF($N$21="Yes", IF(OR($N$22="Vegetated Roof", $N$23="Vegetated Roof"), '2-yr SBUH TT'!$EG5,'2-yr SBUH'!$EG5),'2-yr SBUH'!$EG5) -> 0 | K82: =IF($N$21="Yes", IF($N$22="Vegetated Roof", 0, IF($N$23="Vegetated Roof", '2-yr SBUH TT'!$EG6,'2-yr SBUH'!$EG6)),'2-yr SBUH'!$EG6) -> 0 | L82: =IF($N$21="Yes", IF($N$22="Vegetated Roof", 0, IF($N$23="Vegetated Roof", '2-yr SBUH TT'!$EG7,'2-yr SBUH'!$EG7)),'2-yr SBUH'!$EG7) -> 0 | N82: =IF(N22="Vegetated Roof",'2-yr SBUH TT'!$EG$6,0) -> 0 | O82: =IF(N22="Vegetated Roof",'2-yr SBUH TT'!$EG$7,0) -> 0 | Q82: =SUM(H82:L82) -> 0
C83: Detention BMP Measures
C84: Permeable Pavement (Underdrain) | D84: =IF($N$21="Yes", IF(OR($N$22="Permeable Pavement (Underdrain)", $N$23="Permeable Pavement (Underdrain)"), '2-yr SBUH TT'!$EU8,'2-yr SBUH'!$EU8),'2-yr SBUH'!$EU8) -> 0 | E84: =IF($N$21="Yes", IF($N$22="Permeable Pavement (Underdrain)", 0, IF($N$23="Permeable Pavement (Underdrain)", '2-yr SBUH TT'!$EU9,'2-yr SBUH'!$EU9)),'2-yr SBUH'!$EU9) -> 0 | F84: =IF($N$21="Yes", IF($N$22="Permeable Pavement (Underdrain)", 0, IF($N$23="Permeable Pavement (Underdrain)", '2-yr SBUH TT'!$EU10,'2-yr SBUH'!$EU10)),'2-yr SBUH'!$EU10) -> 0 | G84: =IF($N$21="Yes", IF(OR($N$22="Permeable Pavement (Underdrain)", $N$23="Permeable Pavement (Underdrain)"), '2-yr SBUH TT'!$EU2,'2-yr SBUH'!$EU2),'2-yr SBUH'!$EU2) -> 0 | H84: =IF($N$21="Yes", IF(OR($N$22="Permeable Pavement (Underdrain)", $N$23="Permeable Pavement (Underdrain)"), '2-yr SBUH TT'!$EU3,'2-yr SBUH'!$EU3),'2-yr SBUH'!$EU3) -> 0 | I84: =IF($N$21="Yes", IF(OR($N$22="Permeable Pavement (Underdrain)", $N$23="Permeable Pavement (Underdrain)"), '2-yr SBUH TT'!$EU4,'2-yr SBUH'!$EU4),'2-yr SBUH'!$EU4) -> 0 | J84: =IF($N$21="Yes", IF(OR($N$22="Permeable Pavement (Underdrain)", $N$23="Permeable Pavement (Underdrain)"), '2-yr SBUH TT'!$EU5,'2-yr SBUH'!$EU5),'2-yr SBUH'!$EU5) -> 0 | K84: =IF($N$21="Yes", IF($N$22="Permeable Pavement (Underdrain)", 0, IF($N$23="Permeable Pavement (Underdrain)", '2-yr SBUH TT'!$EU6,'2-yr SBUH'!$EU6)),'2-yr SBUH'!$EU6) -> 0 | L84: =IF($N$21="Yes", IF($N$22="Permeable Pavement (Underdrain)", 0, IF($N$23="Permeable Pavement (Underdrain)", '2-yr SBUH TT'!$EU7,'2-yr SBUH'!$EU7)),'2-yr SBUH'!$EU7) -> 0 | N84: -- | O84: -- | Q84: =SUM(H84:L84) -> 0
C85: Detention Vault or Tank | D85: =IF($N$21="Yes", IF(OR($N$22="Detention Vault or Tank", $N$23="Detention Vault or Tank"), '2-yr SBUH TT'!$FI8,'2-yr SBUH'!$FI8),'2-yr SBUH'!$FI8) -> 0 | E85: =IF($N$21="Yes", IF($N$22="Detention Vault or Tank", 0, IF($N$23="Detention Vault or Tank", '2-yr SBUH TT'!$FI9,'2-yr SBUH'!$FI9)),'2-yr SBUH'!$FI9) -> 0 | F85: =IF($N$21="Yes", IF($N$22="Detention Vault or Tank", 0, IF($N$23="Detention Vault or Tank", '2-yr SBUH TT'!$FI10,'2-yr SBUH'!$FI10)),'2-yr SBUH'!$FI10) -> 0 | G85: =IF($N$21="Yes", IF(OR($N$22="Detention Vault or Tank", $N$23="Detention Vault or Tank"), '2-yr SBUH TT'!$FI2,'2-yr SBUH'!$FI2),'2-yr SBUH'!$FI2) -> 0 | H85: =IF($N$21="Yes", IF(OR($N$22="Detention Vault or Tank", $N$23="Detention Vault or Tank"), '2-yr SBUH TT'!$FI3,'2-yr SBUH'!$FI3),'2-yr SBUH'!$FI3) -> 0 | I85: =IF($N$21="Yes", IF(OR($N$22="Detention Vault or Tank", $N$23="Detention Vault or Tank"), '2-yr SBUH TT'!$FI4,'2-yr SBUH'!$FI4),'2-yr SBUH'!$FI4) -> 0 | J85: =IF($N$21="Yes", IF(OR($N$22="Detention Vault or Tank", $N$23="Detention Vault or Tank"), '2-yr SBUH TT'!$FI5,'2-yr SBUH'!$FI5),'2-yr SBUH'!$FI5) -> 0 | K85: =IF($N$21="Yes", IF($N$22="Detention Vault or Tank", 0, IF($N$23="Detention Vault or Tank", '2-yr SBUH TT'!$FI6,'2-yr SBUH'!$FI6)),'2-yr SBUH'!$FI6) -> 0 | L85: =IF($N$21="Yes", IF($N$22="Detention Vault or Tank", 0, IF($N$23="Detention Vault or Tank", '2-yr SBUH TT'!$FI7,'2-yr SBUH'!$FI7)),'2-yr SBUH'!$FI7) -> 0 | N85: =IF(N22="Detention Vault or Tank",'2-yr SBUH TT'!$FI$6,0) -> 0 | O85: =IF(N22="Detention Vault or Tank",'2-yr SBUH TT'!$FI$7,0) -> 0 | Q85: =SUM(H85:L85) -> 0
B86: Totals | G86: =SUM(G74:G85) -> 0 | H86: 0 | I86: 0 | J86: 0 | K86: 0 | L86: 0 | N86: =SUM(N74:N85) -> 0 | O86: =SUM(O74:O85) -> 0 | Q86: =SUM(Q74:Q85) -> 0
C88: NOTE: With the exception of Cisterns, BMP measures should not have any "Volume Remaining in Storage". If volume is remaining in any BMP measures other than a Cistern, check and revise STEP 3b for the "Outlet Design" (outlet/orifice diameter) or underdrain such that the "Approx. Drawdown Time" is less than 48 hours, therefore empty for the next storm event.

Sheet Tc Calcs (hidden)
B2: Time of Concentration Calculations | N2: Surface Type | O2: Runoff Curve Number* | S2: Sheet Flow* | T2: Shallow Flow** | W2: NRCS Hydrologic Soil Group Definitions | Z2: TR-55 | AA2: Infoworks | AB2: CSS Sizer
O3: A | P3: B | Q3: C | R3: D | S3: Manning's N | T3: Kv (fps) | Z3: Saturated | AA3: Saturated | AB3: Saturated
C4: Natural (Undeveloped) Conditions | F4: Existing Conditions | J4: Proposed Conditions | N4: Impervious Areas | Z4: Conductivity | AA4: Conductivity | AB4: Conductivity
B5: Flow Length | C5: ='CSS BMP Sizing Calculator'!$D$18 -> 0 | D5: ft | F5: Flow Length | G5: ='CSS BMP Sizing Calculator'!$D$18 -> 0 | H5: ft | J5: Flow Length | K5: ='CSS BMP Sizing Calculator'!$D$18 -> 0 | L5: ft | N5: Pavement | O5: 98 | P5: 98 | Q5: 98 | R5: 98 | S5: 0.011 | T5: 20.33 | W5: Group | X5: Soil Types | Y5: Description | Z5: (in/hr) | AA5: (in/hr) | AB5: (in/hr)
B6: Land Slope | C6: ='CSS BMP Sizing Calculator'!$D$17 -> 0 | D6: ft/ft | F6: Land Slope | G6: ='CSS BMP Sizing Calculator'!$D$17 -> 0 | H6: ft/ft | J6: Land Slope | K6: ='CSS BMP Sizing Calculator'!$D$17 -> 0 | L6: ft/ft | N6: Roof (conventional) | O6: 98 | P6: 98 | Q6: 98 | R6: 98 | S6: 0.013 | T6: 20.33 | W6: A | X6: Sand, loamy sand, or sandy loam | Y6: Low runoff potential. Soils having high infiltration rates even when thoroughly wetted and consisting chiefly of deep, well to excessively drained sands or gravels. | Z6: > 0.45 | AA6: 1 | AB6: 0.5
B7: Manning's Sheet Flow N | C7: =S11 -> 0.15 | F7: Manning's Sheet Flow N | G7: ='CSS BMP Sizing Calculator'!X18 -> 0 | J7: Manning's Sheet Flow N | K7: ='CSS BMP Sizing Calculator'!AA18 -> 0 | N7: Gravel | O7: 76 | P7: 85 | Q7: 89 | R7: 91 | S7: 0.05 | T7: 16.13 | W7: B | X7: Silt loam or loam | Y7: Soils having moderate infiltration rates when thoroughly wetted and consisting chiefly of moderately deep to deep, moderately well to well-drained soils with moderately fine to moderately coarse textures. E.g., shallow loess, sandy loam. | Z7: 0.30 - 0.15 | AA7: 0.5 | AB7: 0.35
B8: 2-yr, 24 hr Depth | C8: 2.85 | D8: in | F8: Velocity Shallow Flow Coefficient | G8: ='CSS BMP Sizing Calculator'!Y18 -> 0 | J8: Velocity Shallow Flow Coefficient | K8: ='CSS BMP Sizing Calculator'!AB18 -> 0 | N8: Water | O8: 0 | P8: 0 | Q8: 0 | R8: 0
F9: 2-yr, 24 hr Depth | G9: 2.85 | H9: in | J9: 2-yr, 24 hr Depth | K9: 2.85 | L9: in | N9: Other | W9: C | X9: Sandy clay loam | Y9: Soils having slow infiltration rates when thoroughly wetted and consisting chiefly of soils with a layer that impedes downward movement of water, or soils with moderately fine to fine textures. E.g., clay loams, shallow sandy loam. | Z9: 0.15 - 0.05 | AA9: 0.25 | AB9: 0.2
B10: Calculated Tc | C10: =0.42*(C7*C5)^0.8/((C8^0.527)*(C6^0.4)) ->  | D10: minutes | F10: Velocity Channel Flow Coefficient | G10: 25 | J10: Velocity Channel Flow Coefficient | K10: 30 | N10: Pervious Areas
B11: Design Tc | C11: =IF(C10<5,5,C10) ->  | D11: minutes | N11: Grass/Lawn | O11: 49 | P11: 61 | Q11: 74 | R11: 80 | S11: 0.15 | T11: 7 | W11: D | X11: Clay loam, silty clay loam, sandy clay, silty clay, or clay | Y11: High runoff potential. Soils having very slow infiltration rates when thoroughly wetted and consisting chiefly of clay soils with a high swelling potential, soils with a permanent high water table, soils with a clay-pan or clay layer at or near the surface, and shallow soils over nearly impervious material. | Z11: 0.05 - 0.00 | AA11: 0.1 | AB11: 0.1
N12: Landscaping at Grade (Lower Dens.) | O12: 39 | P12: 56 | Q12: 70 | R12: 77 | S12: 0.24 | T12: 6
F13: Sheet Flow | G13: =0.42*(G7*G5)^0.8/((G9^0.527)*(G6^0.4)) ->  | H13: minutes | J13: Sheet Flow | K13: =0.42*(K7*K5)^0.8/((K9^0.527)*(K6^0.4)) ->  | L13: minutes | N13: Landscaping at Grade (Higher Dens.) | O13: 35 | P13: 48 | Q13: 65 | R13: 73 | S13: 0.4 | T13: 5
F14: Shallow Flow | G14: =G5/(G8*G6^0.5)/60 ->  | H14: minutes | J14: Shallow Flow | K14: =IF(K8>0,K5/(K8*K6^0.5)/60,0) -> 0 | L14: minutes | N14: Tree Well*** | O14: 35 | P14: 35 | Q14: 35 | R14: 35 | S14: 0.4 | T14: 5 | W14: (1) Soil Conservation Service, Urban Hydrology for Small Watersheds, Technical Release 55, June 1986.
F15: Open Channel Flow | G15: =G5/(60*G10*G6^0.5) ->  | H15: minutes | J15: Open Channel Flow | K15: =K5/(60*K10*K6^0.5) ->  | L15: minutes | N15: Traditional Planter on Podium | O15: 77 | P15: 77 | Q15: 77 | R15: 77 | S15: 0.4 | T15: 5
B17: Method A: If L < 100, then Sheet Flow. If 100<L<300, then average of Sheet and Shallow Flow. If L>300ft then shallow flow. | N17: * Soil Conservation Service, Urban Hydrology for Small Watersheds, Technical Release 55, June 1986.
F18: Calculated Tc | G18: =IF(G5<=100,G13,IF(AND(G5>100,G5<300),AVERAGE(G13:G14),G14)) ->  | H18: minutes | J18: Calculated Tc | K18: =IF(K5<=100,K13,IF(AND(K5>100,K5<300),AVERAGE(K13:K14),K14)) ->  | L18: minutes | N18: ** TR-55 and NEH-4 figure 15.2
F19: Design Tc | G19: =IF(G18<1,1,IF(G18>60,60,G18)) ->  | H19: minutes | J19: Design Tc | K19: =IF(K18<1,1,IF(K18>60,60,K18)) ->  | L19: minutes | N19: ***Value initially set based on CN value for woods/trees, then calibrated in the sizer such that a conversion of 25% of a site's impervious area to tree well will meet LEED 6.1 requirements regardless of site soil type.
N20: Poor Condition Lawns | O20: 68 | P20: 79 | Q20: 86 | R20: 89
B21: Method B: If site has "Overland" flow then use sheet flow calc, if pipe or channel use shallow flow. | N21: Fair Condition Woods | O21: 36 | P21: 60 | Q21: 73 | R21: 79
F22: Calculated Tc | G22: =IF('CSS BMP Sizing Calculator'!$D$16="Overland",G13,G14) ->  | H22: minutes | J22: Calculated Tc | K22: =IF('CSS BMP Sizing Calculator'!$D$16="Overland",K13,K14) -> 0 | L22: minutes
F23: Design Tc | G23: =IF(G22<1,1,IF(G22>60,60,G22)) ->  | H23: minutes | J23: Design Tc | K23: =IF(K22<1,1,IF(K22>60,60,K22)) -> 1 | L23: minutes

Sheet RWH Instructions
A2: RAINWATER HARVESTING CALCULATOR INSTRUCTIONS
A3: NOTE: | B3: This Rainwater Harvesting (RWH) calculator is intended for the conceptual design of simple cisterns to meet SMR performance
B4: requirements in regards to peak flow reduction. The RWH calculator simulates the performance of the design over 10 years of
B5: historical rainfall data to determine how much volume is available in the cistern on average prior to a storm event. This volume
B6: becomes the cistern's available storage volume used to evaluate performance during the 1yr and 2yr, 24 hr design storm events.
A8: PART 1 - Calculating Irrigation Demand
A9: 1 | B9: Enter the square footage of the area to be irrigated that is covered by turfgrass or crops. If no turf, skip to Step 4. [1 acre = 43,560 sq ft]
A10: 2 | B10: Enter the Turf/Crop Plant Factor. Typical ranges: very low <0.1, low 0.1 to 0.3, moderate 0.4 to 0.6, high 0.7 to 0.9. For Plant Factor by species, refer to the 'San Francisco Plant Water Use List' at link below. (Also refer to the WUCOLS IV link in the "References" TAB for more information).
B11: https://sfwater.org/Modules/ShowDocument.aspx?documentid=8680
A12: 3 | B12: Enter irrigation efficiency for turfgrass and crop areas. Generally ranges from 0.75 to 0.9, with subsurface drip being the most efficient and spray irrigation the least efficient. Current San Francisco regulations require that harvested rainwater be treated prior to use in spray irrigation.
A13: 4 | B13: Enter the square footage of the landscaped area to be irrigated. If no landscaped area, skip to Step 9. [1 acre = 43,560 sq ft]
A14: 5 | B14: Enter the Landscape Plant Factor. Typical ranges: very low <0.1, low 0.1 to 0.3, moderate 0.4 to 0.6, high 0.7 to 0.9. For Plant Factor by species, refer to the 'San Francisco Plant Water Use List' at link below. (Also refer to the WUCOLS IV link in the "References" TAB for more information).
B15: https://sfwater.org/Modules/ShowDocument.aspx?documentid=8680
A16: 6 | B16: Enter irrigation efficiency for turfgrass and crop areas. Generally ranges from 0.75 to 0.9, with subsurface drip being the most efficient and spray irrigation the least efficient. Current San Francisco regulations require that harvested rainwater be treated prior to use in spray irrigation.
A17: 7 | B17: The site average plant factor calculated here.
A18: 8 | B18: The site average irrigation efficiency is calculated here.
A19: 9 | B19: Select if site is located in 'Western' or 'Eastern' San Francisco. Sites located in the foggier 'Western' half of SF will have lower evapotranspiration values.
B20: NOTE: Other conditions not included in the Sizer may also effect irrigation water demand, such as soil salt concentration, soil evaporation rate, trees in turf, etc. If you feel these special conditions may apply to your site, please see Chapter 7 and 8 of the Guide.
A21: 10 | B21: The monthly irrigation demand is shown in the table. Reference evapotranspiration rates are from CIMIS (DWR 2005).
A23: PART 2 - Calculating Indoor Non-Potable Demand
A24: 11 | B24: Enter the number of residential units at the site and the average people per unit (ranges from 2.0 for multi-family to 3.1 for single-family use).
A25: 12 | B25: For commercial and industrial sites, enter the number of full-time equivalents (FTEs) located on site. A 40 hrs/week occupant has an FTE of 1.
B26: Part-time occupants have an FTE = # hrs per week/40 hrs. The Sizer assumes a 5 day work week to calculate average daily demand from the FTEs.
A27: 13 | B27: For facilities such as schools, museums, and churches, enter the number of students or visitors (per day).
A28: 14 | B28: For retail buildings, enter the number of customers (per day).
A29: 15 | B29: The default values for toilet flushes per day are given here. These values are based on the SFPUC Urban Water Management Plan (UWMP) (SFPUC 2011)
A30: 16 | B30: Enter the gallons per toilet flush. Recommended value is 1.28 gallons per flush based on the California Green Building Standards Code 5.303.2
A31: 17 | B31: The default values for urinal flushes per day are given here. These values are based on the SFPUC Urban Water Management Plan (UWMP) (SFPUC 2011)
A32: 18 | B32: Enter the gallons per urinal flush. Recommended value is 0.5 gallons per flush based on the California Green Building Standards Code 5.303.2
A33: 19 | B33: Enter any additional non-potable demand in gallons per day. This includes industrial uses, heating/cooling, and all other permitted indoor uses.
A34: 20 | B34: The indoor non-potable demand is calculated here.
A35: Part III - Calculate Cistern Size to Meet Desired Percent Capture
A36: 20 | B36: Enter the runoff coefficient for the area draining to the cistern. A value of 0.85 is recommended for roofs.
A37: 21 | B37: Enter the square footage of the area draining to the cistern.
A38: 22 | B38: Enter a volume for the cistern. Adjust the volume until the desired percent capture is met (typically at least 80%) or when 100% of non-potable demand is met.
A39: 23 | B39: If the cistern cannot capture the required percentage of annual runoff (typically at least 80%), then additional BMPs will be needed to manage runoff from the drainage area.
A40: 24 | B40: Enter the depth of the cistern to find the surface area covered by the cistern.
A41: 25 | B41: The estimated monthly runoff captured and reused by the cistern is shown in the table.
A43: PART 3 - Account for Non-Rainwater Sources of Water (complete when alternate non-potable Supplies < Demands)
A44: 21 | B44: Enter non-rainwater supply of water directly copied from the "TOTAL ONSITE SUPPLIES" table found on tab "6. Building Potential Summary" of the project's Non-Potable Water Budget Application Calculator.
A46: PART 4 - Entering RW Cistern Dimensions
A47: 22 | B47: Enter the impervious and pervious areas from the "Sizing Calculator" worksheet that drain to the cistern. The total drainage area to the cistern is then calculated. Note: Please submit a Non-Potable Project Program Application to the SFPUC to initiate guidance on reuse and treatment based on SFDPH requirements.
A48: 23 | B48: Enter the runoff coefficient of the area draining to the cistern. A value of 0.85 is recommended for roofs.
A49: 24 | B49: Enter the shape and dimensions or volume of the cistern.
A50: 22A | B50: Enter the depth of additional detention storage used to control discharge from large storm events. If a separate tank is used for detention, or if the detention component has a significantly different footprint that cannot be normalized to the cistern footprint, it is recommended that the "BMP in Series" function of the 'CSS BMP Sizing Calculator' be used to evaluation additional detention with the Cistern as the First BMP and a Detention Vault as the Receiving BMP.
A52: PART 5 - Calculating Cistern Performance
B53: The surface area and volume of the cistern are calculated here.
B54: The runoff percent capture and the percent of non-potable demand are shown here. These volumes are calculated from the results of a 10-year daily simulation of RWH performance during rain events.
B55: Output from the 10-year daily simulation period are shown in the subsequent figures.
B57: NOTE: The RWH Calculator does not consider treatment requirements for the various non-potable demands. The designer will need to coordinate with SF Department of Public Health, SF Department of Building Inspection and SF Public Utilities Commission for the specific treatment requirement per each proposed use. Additional review may be required based on the proposed use.

Sheet RWH Calculator
A2: RAINWATER HARVESTING (RWH) CALCULATOR | I2: LEGEND:
A3: The RWH Calculator simulates the performance of a cistern over 10 years based on the runoff to the cistern, cistern size, and the site's non-potable demand. | I3: User Input | T3: SF Downtown Gauge | AA3: Estimate of Available Cistern Volume
A4: The RWH's performance is used to calculate the average available volume prior to storm event, which is then input in the CSS BMP Sizing Calculator worksheet. | I4: Default Value | N4: ETo Values (DWR 2005 - CIMIS) | T4: 24 hour curves | V4: C=1 | X4: 48 hour curves | Y4: C =1 | AA4: 48 hour % Capture Curves
A5: The RWH calculator is intended for conceptual design and determining compliance with the CSS performance measures; construction | I5: Locked | N5: Zone 1 | O5: Zone 2 | P5: Zone 1 | Q5: Zone 2 | T5: Unit Storage | U5: Percent | V5: Percent | X5: Unit Storage | Y5: Percent | AA5: Annual | AB5: Equivalent
A6: documents and Stormwater Control Plan shall include further engineering evaluation and system configuration for the cistern design. | N6: (in/mo) | O6: (In/mo) | P6: (in/day) | Q6: (in/day) | T6: (inches) | U6: Capture | V6: Capture | X6: (inches) | Y6: Capture | AA6: Reuse % | AB6: Rainfall Depth (in)
M7: Jan | N7: 0.93 | O7: 1.24 | P7: =N7/31 -> 0.03 | Q7: =O7/31 -> 0.04
M8: Feb | N8: 1.4 | O8: 1.68 | P8: =N8/28 -> 0.05 | Q8: =O8/28 -> 0.06 | T8: 0 | U8: =V8/100 -> 0 | V8: 0 | X8: 0 | Y8: 0 | AA8: 0 | AB8: 0
M9: Mar | N9: 2.48 | O9: 3.1 | P9: =N9/31 -> 0.08 | Q9: =O9/31 -> 0.1 | T9: 0.03 | U9: 0.06 | V9: 6 | X9: 0.03 | Y9: 6 | AA9: 0.06 | AB9: 0.03
A10: PART 1 - Calculate Irrigation Demand | M10: Apr | N10: 3.3 | O10: 3.9 | P10: =N10/30 -> 0.11 | Q10: =O10/30 -> 0.13 | T10: 0.06 | U10: 0.13 | V10: 13 | X10: 0.06 | Y10: 13 | AA10: 0.1 | AB10: 0.05
B11: Irrigation Demand | M11: May | N11: 4.03 | O11: 4.65 | P11: =N11/31 -> 0.13 | Q11: =O11/31 -> 0.15 | T11: 0.12 | U11: 0.2823 | V11: 28.23 | X11: 0.12 | Y11: 21.54 | AA11: 0.13 | AB11: 0.06
A12: 1 | B12: Turf/Crop Area to be Irrigated | D12: ft2 | M12: Jun | N12: 4.5 | O12: 5.1 | P12: =N12/30 -> 0.15 | Q12: =O12/30 -> 0.17 | T12: 0.24 | U12: 0.4922 | V12: 49.22 | X12: 0.24 | Y12: 38.76 | AA12: 0.15 | AB12: 0.08
A13: 2 | B13: Turf/Crop Plant Factor | D13: Irrigation water use relative to reference evapotranspiration, see "RWH Instructions" tab Part 1 - Step 2 for ranges | M13: Jul | N13: 4.65 | O13: 4.96 | P13: =N13/31 -> 0.15 | Q13: =O13/31 -> 0.16 | T13: 0.36 | U13: 0.6458 | V13: 64.58 | X13: 0.36 | Y13: 52.69 | AA13: 0.2154 | AB13: 0.12
A14: 3 | B14: Turf/Crop Irrigation Efficiency | D14: Estimated efficiencies are 0.75 for spray, 0.81 for drip, and 0.9 for subsurface drip | M14: Aug | N14: 4.03 | O14: 4.65 | P14: =N14/31 -> 0.13 | Q14: =O14/31 -> 0.15 | T14: 0.48 | U14: 0.7571 | V14: 75.71 | X14: 0.48 | Y14: 63.74 | AA14: 0.28 | AB14: 0.16
A15: 4 | B15: Landscape Area to be Irrigated | D15: ft2 | M15: Sep | N15: 3.3 | O15: 3.9 | P15: =N15/30 -> 0.11 | Q15: =O15/30 -> 0.13 | T15: 0.6 | U15: 0.8345 | V15: 83.45 | X15: 0.6 | Y15: 72.51 | AA15: 0.3 | AB15: 0.17
A16: 5 | B16: Landscape Plant Factor | D16: Irrigation water use relative to reference evapotranspiration, see "RWH Instructions" tab Part 1 - Step 5 for ranges | M16: Oct | N16: 2.48 | O16: 2.79 | P16: =N16/31 -> 0.08 | Q16: =O16/31 -> 0.09 | T16: 0.72 | U16: 0.8878 | V16: 88.78 | X16: 0.72 | Y16: 79.28 | AA16: 0.335 | AB16: 0.2
A17: 6 | B17: Landscape Irrigation Efficiency | D17: Estimated efficiencies are 0.75 for spray, 0.81 for drip, and 0.9 for subsurface drip | M17: Nov | N17: 1.2 | O17: 1.8 | P17: =N17/30 -> 0.04 | Q17: =O17/30 -> 0.06 | T17: 0.84 | U17: 0.9251 | V17: 92.51 | X17: 0.84 | Y17: 84.49 | AA17: 0.3876 | AB17: 0.24
B18: Total Irrigation Area | C18: =SUM(C15,C12) -> 0 | D18: ft2 | M18: Total | N18: 32.9 | O18: 39 | T18: 1.08 | U18: 0.9663 | V18: 96.63 | X18: 1.08 | Y18: 91.49 | AA18: 0.46 | AB18: 0.3
A19: 7 | B19: Average Plant Factor | C19: =IF(C18>0,(C12*C13+C15*C16)/C18,0) -> 0 | T19: 1.2 | U19: 0.9774 | V19: 97.74 | X19: 1.2 | Y19: 93.71 | AA19: 0.49 | AB19: 0.33
A20: 8 | B20: Average Irrigation Efficiency | C20: =IF(C18>0,(C12*C14+C15*C17)/C18,0) -> 0 | T20: 1.32 | U20: 0.9846 | V20: 98.46 | X20: 1.32 | Y20: 95.35 | AA20: 0.5269 | AB20: 0.36
A21: 9 | B21: Site Location (ETo Zone) | D21: Select Western if located in the Richmond, Sunset, or Lake Merced areas of San Francisco | T21: 1.44 | U21: 0.9892 | V21: 98.92 | X21: 1.44 | Y21: 96.52 | AA21: 0.57 | AB21: 0.4
B22: Monthly Irrigation Demand Calculated | T22: 1.56 | U22: 0.9923 | V22: 99.23 | X22: 1.56 | Y22: 97.4 | AA22: 0.6374 | AB22: 0.48
A23: 10 | B23: Month | C23: Avg. Monthly | D23: Reference | E23: Actual | F23: Irrigation Demand | T23: 1.68 | U23: 0.9948 | V23: 99.48 | X23: 1.68 | Y23: 98.04 | AA23: 0.67 | AB23: 0.52
C24: Rainfall | D24: Evapotranspiration | E24: Evapotranspiration | I24: % of | T24: 1.8 | U24: 0.9963 | V24: 99.63 | X24: 1.8 | Y24: 98.49 | AA24: 0.7251 | AB24: 0.6
C25: in/month | D25: ETo | E25: ETL | F25: ft3/month | G25: gal/mo | H25: gpd | I25: annual | L25: (in/unit area) | M25: days/mo | T25: 1.92 | U25: 0.9972 | V25: 99.72 | X25: 1.92 | Y25: 98.82 | AA25: 0.75 | AB25: 0.64
B26: January | C26: ='RWH 10-yr Simulation'!AH13/10 -> 3.656 | D26: ='RWH 10-yr Simulation'!AK13/10 -> 1.24 | E26: =D26*$C$19 -> 0 | F26: ='RWH 10-yr Simulation'!AM13/10/7.48 -> 0 | G26: =F26*7.48 -> 0 | H26: =(G26)/M26 -> 0 | I26: =G26/$G$38 ->  | L26: =IF(E26-C26>0, (E26-C26)/$C$20,0) -> 0 | M26: 31 | T26: 2.04 | U26: 0.9977 | V26: 99.77 | X26: 2.04 | Y26: 99.1 | AA26: 0.7928 | AB26: 0.72
B27: February | C27: ='RWH 10-yr Simulation'!AH14/10 -> 4.379 | D27: ='RWH 10-yr Simulation'!AK14/10 -> 1.692 | E27: =D27*$C$19 -> 0 | F27: ='RWH 10-yr Simulation'!AM14/10/7.48 -> 0 | G27: =F27*7.48 -> 0 | H27: 0 | I27: =G27/$G$38 ->  | L27: 0 | M27: 28 | T27: 2.16 | U27: 0.998 | V27: 99.8 | X27: 2.16 | Y27: 99.34 | AA27: 0.82 | AB27: 0.78
B28: March | C28: ='RWH 10-yr Simulation'!AH15/10 -> 2.568 | D28: ='RWH 10-yr Simulation'!AK15/10 -> 3.1 | E28: 0 | F28: ='RWH 10-yr Simulation'!AM15/10/7.48 -> 0 | G28: 0 | H28: 0 | I28: =G28/$G$38 ->  | L28: 0 | M28: 31 | T28: 2.28 | U28: 0.9982 | V28: 99.82 | X28: 2.28 | Y28: 99.52 | AA28: 0.8449 | AB28: 0.84
B29: April | C29: ='RWH 10-yr Simulation'!AH16/10 -> 1.436 | D29: ='RWH 10-yr Simulation'!AK16/10 -> 3.9 | E29: 0 | F29: ='RWH 10-yr Simulation'!AM16/10/7.48 -> 0 | G29: 0 | H29: 0 | I29: =G29/$G$38 ->  | L29: 0 | M29: 30 | T29: 2.4 | U29: 0.9985 | V29: 99.85 | X29: 2.4 | Y29: 99.64 | AA29: 0.8846 | AB29: 0.96
B30: May | C30: ='RWH 10-yr Simulation'!AH17/10 -> 0.49 | D30: ='RWH 10-yr Simulation'!AK17/10 -> 4.65 | E30: 0 | F30: ='RWH 10-yr Simulation'!AM17/10/7.48 -> 0 | G30: 0 | H30: 0 | L30: 0 | M30: 31 | T30: 2.52 | U30: 0.9987 | V30: 99.87 | X30: 2.52 | Y30: 99.7 | AA30: 0.9149 | AB30: 1.08
B31: June | C31: ='RWH 10-yr Simulation'!AH18/10 -> 0.119 | D31: ='RWH 10-yr Simulation'!AK18/10 -> 5.1 | E31: 0 | F31: ='RWH 10-yr Simulation'!AM18/10/7.48 -> 0 | G31: 0 | H31: 0 | L31: 0 | M31: 30 | T31: 2.64 | U31: 0.9989 | V31: 99.89 | X31: 2.64 | Y31: 99.74 | AA31: 0.9371 | AB31: 1.2
B32: July | C32: ='RWH 10-yr Simulation'!AH19/10 -> 0.005 | D32: ='RWH 10-yr Simulation'!AK19/10 -> 4.96 | E32: 0 | F32: ='RWH 10-yr Simulation'!AM19/10/7.48 -> 0 | G32: 0 | H32: 0 | L32: 0 | M32: 31 | T32: 2.76 | U32: 0.9992 | V32: 99.92 | X32: 2.76 | Y32: 99.77 | AA32: 0.9535 | AB32: 1.32
B33: August | C33: ='RWH 10-yr Simulation'!AH20/10 -> 0.013 | D33: ='RWH 10-yr Simulation'!AK20/10 -> 4.65 | E33: 0 | F33: ='RWH 10-yr Simulation'!AM20/10/7.48 -> 0 | G33: 0 | H33: 0 | L33: 0 | M33: 31 | T33: 2.88 | U33: 0.9994 | V33: 99.94 | X33: 2.88 | Y33: 99.8 | AA33: 0.9652 | AB33: 1.44
B34: September | C34: ='RWH 10-yr Simulation'!AH21/10 -> 0.062 | D34: ='RWH 10-yr Simulation'!AK21/10 -> 3.9 | E34: 0 | F34: ='RWH 10-yr Simulation'!AM21/10/7.48 -> 0 | G34: 0 | H34: 0 | L34: 0 | M34: 30 | T34: 3 | U34: 0.9996 | V34: 99.96 | X34: 3 | Y34: 99.82 | AA34: 0.974 | AB34: 1.56
B35: October | C35: ='RWH 10-yr Simulation'!AH22/10 -> 1.153 | D35: ='RWH 10-yr Simulation'!AK22/10 -> 2.79 | E35: 0 | F35: ='RWH 10-yr Simulation'!AM22/10/7.48 -> 0 | G35: 0 | H35: 0 | L35: 0 | M35: 31 | T35: 3.12 | U35: 0.9998 | V35: 99.98 | X35: 3.12 | Y35: 99.84 | AA35: 0.9804 | AB35: 1.68
B36: November | C36: ='RWH 10-yr Simulation'!AH23/10 -> 2.354 | D36: ='RWH 10-yr Simulation'!AK23/10 -> 1.8 | E36: 0 | F36: ='RWH 10-yr Simulation'!AM23/10/7.48 -> 0 | G36: 0 | H36: 0 | L36: 0 | M36: 30 | T36: 3.24 | U36: 0.9999 | V36: 99.99 | X36: 3.24 | Y36: 99.86 | AA36: 0.9849 | AB36: 1.8
B37: December | C37: ='RWH 10-yr Simulation'!AH24/10 -> 7.038 | D37: ='RWH 10-yr Simulation'!AK24/10 -> 1.24 | E37: 0 | F37: ='RWH 10-yr Simulation'!AM24/10/7.48 -> 0 | G37: 0 | H37: 0 | L37: 0 | M37: 31 | T37: 3.36 | U37: 1 | V37: 100 | X37: 3.36 | Y37: 99.88 | AA37: 0.9882 | AB37: 1.92
B38: Totals | C38: =SUM(C26:C37) -> 23.273 | D38: =SUM(D26:D37) -> 39.022 | E38: =SUM(E26:E37) -> 0 | F38: =SUM(F26:F37) -> 0 | G38: =SUM(G26:G37) -> 0 | L38: =SUM(L26:L37) -> 0 | M38: =SUM(M26:M37) -> 365 | T38: 3.48 | U38: 1 | V38: 100 | X38: 3.48 | Y38: 99.91 | AA38: 0.991 | AB38: 2.04
X39: 3.6 | Y39: 99.93 | AA39: 0.9934 | AB39: 2.16
A40: PART 2 - Calculate Indoor Non-Potable Demand | X40: 3.72 | Y40: 99.95 | AA40: 0.9952 | AB40: 2.28
B41: Indoor Demand | X41: 3.84 | Y41: 99.97 | AA41: 0.9964 | AB41: 2.4
A42: 11 | B42: No. of Residential Units | X42: 3.96 | Y42: 99.98 | AA42: 0.997 | AB42: 2.52
B43: Persons per Unit | C43: 2.01 | D43: Recommend 2.0 for multi-family, 3.1 for single family. See SFPUC Urban Water Management Plan (SFPUC UWMP), Appendix D. | X43: 4.08 | Y43: 99.99 | AA43: 0.9974 | AB43: 2.64
A44: 12 | B44: Number of Full Time Equivalents | D44: Use for commercial and industrial facilities. A 40-hrs per week employee has an FTE of 1. | X44: 4.2 | Y44: 100 | AA44: 0.9977 | AB44: 2.76
A45: 13 | B45: Number of Students/Visitors | D45: Use for schools, museums, libraries, etc. Enter the average number of student/visitors per day. | AA45: 0.998 | AB45: 2.88
A46: 14 | B46: Number of Retail Customers | D46: Use for retail stores. Enter the average number of customers per day. | AA46: 0.9982 | AB46: 3
A47: 15 | B47: Freq. of Residential Toilet Use | C47: 4.75 | D47: flush/person/day | E47: See SFPUC UWMP | AA47: 0.9984 | AB47: 3.12
B48: Freq. of FTE Toilet Use | C48: 1.74 | D48: flush/person/day | E48: See SFPUC UWMP | AA48: 0.9986 | AB48: 3.24
B49: Freq. of Student/Visitor Toilet Use | C49: 0.5 | D49: flush/person/day | E49: See SFPUC UWMP | AA49: 0.9988 | AB49: 3.36
B50: Freq. of Customer Toilet Use | C50: 0.5 | D50: flush/person/day | E50: See SFPUC UWMP | AA50: 0.9991 | AB50: 3.48
A51: 16 | B51: Volume per Flush | C51: 1.28 | D51: gal/flush | E51: See California Green Building Standards Code 5.303.2. | AA51: 0.9993 | AB51: 3.6
A52: 17 | B52: Freq. of FTE Urinal Use | C52: 1.74 | D52: flush/person/day | E52: See SFPUC UWMP | AA52: 0.9995 | AB52: 3.72
B53: Freq. of Student/Visitor Urinal Use | C53: 0.4 | D53: flush/person/day | E53: See SFPUC UWMP | AA53: 0.9997 | AB53: 3.84
B54: Freq. of Customer Urinal Use | C54: 0.4 | D54: flush/person/day | E54: See SFPUC UWMP | AA54: 0.9998 | AB54: 3.96
A55: 18 | B55: Urinal Volume per Flush | C55: 0.5 | D55: gal/flush | E55: See SFPUC UWMP | AA55: 0.9999 | AB55: 4.08
A56: 19 | B56: Other Non-Potable Demand | D56: gal/day | E56: Additional non-potable demand (e.g. cooling water, industrial) per supporting documentation | AA56: 1 | AB56: 4.2
A57: 20 | B57: Daily Reuse Demand | C57: =C51*(C42*C43*C47+C44*C48*5/7+C45*C49+C46*C50)+ C55*(C44*C52*5/7+C45*C53+C46*C54)+ +C56 -> 0 | D57: gal/day
B58: Monthly Reuse Demand | C58: =(365/12)*C57 -> 0 | D58: gal/month
B59: Annual Reuse Demand | C59: =C57*365/1000000 -> 0 | D59: MG/yr | K59: Daily Non-Rainwater Supply to Cistern (gal/day)
K60: Month | L60: Ratio for Foundation Drainage | M60: Graywater | N60: Blackwater | O60: Foundation Drainage | P60: Other Supplies | Q60: Total (gal/day)
A61: Part 3 - Account for Non-Rainwater Sources of Water | D61: Complete Part 3 for projects that are subject to the Non-Potable Ordinance AND have total annual onsite supply < total annual non-potable demand. If not, skip to Part 4. | K61: 1 | L61: 1.063929806 | M61: =$C$63/365 -> 0 | N61: =$C$64/365 -> 0 | O61: =$C$65/365*L61 -> 0 | P61: =$C$66/365 -> 0 | Q61: 0
B62: Onsite Supplies from NPO Calculator | K62: 2 | L62: 1.085126045 | M62: 0 | N62: 0 | O62: 0 | P62: 0 | Q62: 0
A63: 21 | B63: Graywater Supply | D63: gal/year | K63: 3 | L63: 1.088600918 | M63: 0 | N63: 0 | O63: 0 | P63: 0 | Q63: 0
B64: Blackwater Supply | D64: gal/year | K64: 4 | L64: 1.067848954 | M64: 0 | N64: 0 | O64: 0 | P64: 0 | Q64: 0
B65: Foundation Drainage Supply | D65: gal/year | K65: 5 | L65: 1.016364685 | M65: 0 | N65: 0 | O65: 0 | P65: 0 | Q65: 0
B66: Other Supplies | D66: gal/year | K66: 6 | L66: 0.927642642 | M66: 0 | N66: 0 | O66: 0 | P66: 0 | Q66: 0
B67: Total Non-Rainwater Annual Supply | C67: =SUM(InputCellsRWH) -> 0 | D67: gal/year | K67: 7 | L67: 0.919366048 | M67: 0 | N67: 0 | O67: 0 | P67: 0 | Q67: 0
B68: Total Non-Rainwater Daily Supply | C68: =C67/365 -> 0 | D68: gal/day | K68: 8 | L68: 0.919819523 | M68: 0 | N68: 0 | O68: 0 | P68: 0 | Q68: 0
B69: Adjusted Daily Reuse Demand | C69: =MAX(0,C57-C68) -> 0 | D69: gal/day | K69: 9 | L69: 0.93204056 | M69: 0 | N69: 0 | O69: 0 | P69: 0 | Q69: 0
K70: 10 | L70: 0.959067577 | M70: 0 | N70: 0 | O70: 0 | P70: 0 | Q70: 0
A71: PART 4 - Enter Cistern Design Information and the Conventional Areas that drain to the Cistern | K71: 11 | L71: 0.994395102 | M71: 0 | N71: 0 | O71: 0 | P71: 0 | Q71: 0
B72: RW Cistern Design | K72: 12 | L72: 1.031517668 | M72: 0 | N72: 0 | O72: 0 | P72: 0 | Q72: 0
A73: 22 | B73: Impervious Drainage Area | D73: ft2 Enter roof area, paved area, etc. that drain to cistern. Value will populate Step 3b of "CSS BMP Sizing Calculator". | P73: Annual Total = | Q73: =SUMPRODUCT(Q61:Q72,M26:M37) -> 0
B74: Pervious Drainage Area | D74: ft2 Enter allowed pervious areas that drain to cistern. Value will populate Step 3b of "CSS BMP Sizing Calculator".
B75: Total Area Draining to Cistern | C75: =SUM(C73:C74) -> 0 | D75: ft2
A76: 23 | B76: Avg. Runoff Coefficient | C76: 0.85 | D76: Recommend 0.85 for roofs. Typical values are 0.85 to 0.95. | K76: =IF('RWH 10-yr Simulation'!$AU$25>0,"(Note: Hatched blue indicates supply from non-stormwater sources.)","") -> 
A77: 24 | B77: Cistern Footprint Shape or Active Volume? | D77: Select RW Cistern geometry as 'Circular' or 'Rectangular', or directly enter the 'Active Volume'. Where "active depth" or "active volume" are the depth or volume from low-water pump shutoff to overflow invert. | K77: =IF('RWH 10-yr Simulation'!$AU$25>0,"(Note: Due to daily rainfall totals, overflow may still occur during months where monthly demand exceeds monthly supply. Hatched blue indicates overflow of non-stormwater sources.)","(Note: Due to daily rainfall totals, overflow may still occur during months where monthly demand exceeds monthly supply.") -> (Note: Due to daily rainfall totals, overflow may still occur during months where monthly demand exceeds monthly supply.
B78: =IF(C$77="","N/A",IF(C$77="Circular","Cistern Diameter", IF(C$77="Rectangular","Cistern Length", "Cistern Active Volume"))) -> N/A | D78: =IF(C77="","",IF(C77="Volume","gallons","ft")) ->  | E78: =IF(E85=0,"",IF(E85<(0.25/12)*C73, "The proposed cistern size is insufficient to store the recommended minimum runoff volume of 0.25 inches of rainfall per square foot of impervious drainage area. Please increase the cistern size to provide a minimum of "&TEXT(ROUNDUP(0.25/12*C73*7.48052,0),"#,###")&" gallons for storage or provide justification for the design.", "")) -> 
B79: =IF(C$77="Rectangular","Cistern Width","N/A") -> N/A | D79: =IF(C$77="Rectangular","ft","") -> 
B80: =IF(OR(C77="Volume",C77=""),"N/A","Cistern Active Depth") -> N/A | D80: =IF(C77="Volume","","ft") -> ft
A82: PART 5 - Calculate Cistern Performance in 10-year Simulation Based on Inputs
B83: Table 1. Cistern Performance
B84: Cistern Surface Area | E84: =IFERROR(IF(C77="Rectangular",C78*C79,IF(C77="Circular",PI()*C78^2/4,IF(C77="Volume",0,0))),0) -> 0 | F84: ft2 | G84: Adjust the cistern size until the desired performance is achieved (e.g., CSS performance measures met or 100% of runoff captured). Annual cistern performance is summarized in PART 5 while the 10-year daily precipitation data and the daily cistern performance are shown in the graphs below. The "Available Cistern Volume prior to Design Storm Event" is used as the starting volume for the calculations to evaluate performance during the 1- and 2-yr 24-hr design storms in the "CSS BMP Sizing Calculator". Check results in Steps 5 and 6 of the "CSS BMP Sizing Calculator".
A85: Hide Row | B85: Cistern Volume | E85: =IF(C77="Volume",C78/7.48052,C80*E84) -> 0 | F85: ft3
B86: Cistern Volume | E86: =E85*7.48052 -> 0 | F86: gallons
B87: Average Volume in Cistern prior to each Rainy-Season Storm Event | E87: ='RWH Performance Evaluation'!D17 -> 0 | F87: gallons
B88: Available Cistern Volume prior to Design Storm Event | E88: =ROUND(E86-E87,0) -> 0 | F88: gallons
B89: Percent of 2yr Design Storm Volume Captured | E89: =F99 ->  | F89: Percent of runoff to the cistern from the 2yr, 24hr design storm that is captured (i.e., is reused or is still in the cistern at the end of the simulation). Steps 1-3 of "CSS BMP Sizing Calculator" tab must be complete for results to populate.
B90: =IF(C68>0,"Ave. Annual 'Adjusted' NP Demand (RW only) Met by RW Harvesting","Ave. Annual Non-Potable Demand Met by RW Harvesting") -> Ave. Annual Non-Potable Demand Met by RW Harvesting | E90: ='RWH Performance Evaluation'!D9 ->  | F90: =IF(C68>0,"Average annual percentage of 'adjusted' non-potable demand (see Part 3) that is supplied by captured rainwater.","Average annual percentage of non-potable demand supplied by captured rainwater.") -> Average annual percentage of non-potable demand supplied by captured rainwater.
A91: Hide Row | B91: Rainfall Event Captured | C91: =IF(C76*C75>0,E85/C76/C75*12,0) -> 0 | D91: inches
A92: Hide Row | B92: Storm Percentile | C92: =VLOOKUP(C91,$T$8:$U$38,2) -> 0
B94: Table 2. Rainwater Harvesting Performance Summary
B95: Rainwater Harvesting Performance from Part 5 | E95: (gallons) | F95: (%)
B96: Total Cistern Volume | E96: =E86 -> 0 | G96: =IF(C67>0,"Rainwater storage only, does not include non-rainwater supply storage.","") -> 
B97: Volume Available in Cistern prior to Storm Event | E97: =ROUND(E88,0) -> 0 | F97: =IF(E96>0,E97/E96," ") -> 
B98: 2-yr, 24 hr Runoff Volume (from contributing area) | E98: =IF(AND('CSS BMP Sizing Calculator'!N21="Yes",'CSS BMP Sizing Calculator'!N23="Cistern"),SUM('CSS BMP Sizing Calculator'!N86:O86,'CSS BMP Sizing Calculator'!G75)*7.48052,'CSS BMP Sizing Calculator'!G75*7.48052) -> 0
B99: 2-yr, 24 hr Runoff Captured (Reused) | E99: =('CSS BMP Sizing Calculator'!G75-'CSS BMP Sizing Calculator'!L75-'CSS BMP Sizing Calculator'!O75)*7.48052 -> 0 | F99: =('CSS BMP Sizing Calculator'!G75-'CSS BMP Sizing Calculator'!L75-'CSS BMP Sizing Calculator'!O75)/'CSS BMP Sizing Calculator'!G75 -> 
B100: Ave. Annual Runoff Volume (from contributing area) | E100: ='RWH Performance Evaluation'!D2/10 -> 0
B101: Ave. Annual Runoff Captured & Reused | E101: ='RWH Performance Evaluation'!D3/10 -> 0 | F101: ='RWH Performance Evaluation'!D5 -> 
B102: Annual Non-Potable Demand Volume | E102: ='RWH Performance Evaluation'!D7/10+MAX(0,C57-C69)*365 -> 0
B103: Annual Non-Potable Demand Met by Rainwater Harvesting | E103: ='RWH Performance Evaluation'!D8/10 -> 0 | F103: =E103/E102 -> 
B104: Annual Non-Potable Demand Met by Non-Rainwater Supply | E104: =MIN(E102,C67) -> 0 | F104: =E104/E102 -> 
A106: Figure 1. Rainwater Harvesting Supply and Demand by Month | E106: Figure 2. Runoff Volume Used and Overflowed by Month
A109: Figure 3. Cistern Performance During Typical Rainy Season
C111: Avg. Volume in Cistern prior to Rainy-Season Storm Event | F111: =ROUND(E87,0) -> 0 | G111: =IF(E96>0,F111/E96," ") -> 
A114: References
A115: California Department of Water Resources (DWR). 2005. CIMIS Reference Evapotranspiration Zones. http://wwwcimis.water.ca.gov/cimis/pdf/CimisRefEvapZones.pdf
A116: San Francisco Public Utilities Commission (SFPUC). 2004. Water Use Estimates. Source files: "householdcons.xls", "nonresconsump.xls".
A117: University of California Cooperative Extension and California Department of Water Resources (DWR). 2000. A Guide to Estimating Landscape Planting Needs in California. http://www.owue.water.ca.gov/docs/wucols00.pdf. August 2000.
A118: United States Green Building Council. 2007. LEED New Construction v2.2 Reference Manual. Third Edition October 2007.
A120: Part I calculates the monthly irrigation demand, Part II calculates the indoor non-potable demand, and Part III sizes the cistern.

Sheet RWH 10-yr Simulation (hidden)
N1: Supply | O1: Captured | P1: Overflow | Q1: % Captured
A2: ET Zone | B2: ='RWH Calculator'!C21 -> 0 | I2: Cistern Volume (gal) | J2: ='RWH Calculator'!E86 -> 0 | M2: Stormwater | N2: =SUM(C11:C3662) -> 0 | O2: =SUM(O11:O3662) -> 0 | P2: =SUM(U11:U3662) -> 0 | Q2: =O2/$O$4 -> 
A3: Tot Runoff Area (sf) | B3: ='RWH Calculator'!C75 + IF(AND('CSS BMP Sizing Calculator'!N21="Yes",'CSS BMP Sizing Calculator'!N23="Cistern"),INDEX('CSS BMP Sizing Calculator'!$G$45:$G$47,MATCH('CSS BMP Sizing Calculator'!N22,'CSS BMP Sizing Calculator'!$Q$31:$Q$33,0))+IF('CSS BMP Sizing Calculator'!N22='CSS BMP Sizing Calculator'!Q34,'CSS BMP Sizing Calculator'!G49:G50,0),0) -> 0 | I3: Storm Percentile | J3: ='RWH Calculator'!C92 -> 0 | M3: Other Supplies | N3: =SUM(D11:D3662) -> 0 | O3: =SUM(N11:N3662) -> 0 | P3: =SUM(T11:T3662) -> 0 | Q3: =O3/$O$4 -> 
A4: Avg. Runoff C | B4: ='RWH Calculator'!C76 -> 0.85 | M4: Total | N4: =SUM(N2:N3) -> 0 | O4: =SUM(O2:O3) -> 0 | P4: =SUM(P2:P3) -> 0
A6: Ave. Irr C | B6: ='RWH Calculator'!C19 -> 0
A7: Irrigation Eff | B7: ='RWH Calculator'!C20 -> 0
A8: Irrigation Area (sf) | B8: ='RWH Calculator'!C18 -> 0
H9: Evapotranspiration | J9: Non-Potable Demand | M9: Rainwater Harvesting Performance
A10: Date | B10: Precipitation (in/day) | C10: Runoff (gal/day) | D10: Other Supplies (gal/day) | E10: Total Water Collected (gal/day) | F10: Month | G10: Year | H10: Reference ET (in/day) | I10: Actual ET (in/day) | J10: Irrigation Demand (gal/day) | K10: Indoor (gal/day) | L10: Total (gal/day) | M10: Water in Cistern at End of Day (gal) | N10: Other Supply Captured (gal/day) | O10: Stormwater Captured (gal/day) | P10: Water Captured (gal/day) | Q10: Other Supply Used Today (gal/day) | R10: Stormwater Used Today (gal/day) | S10: Total Water Used (gal/day) | T10: Other Supply Overflow (gal/day) | U10: Stormwater Overflow (gal/day) | V10: Overflow (gal/day) | W10: Net Water (gal/day) | X10: Cumulative Offset (MG) | AA10: ETo Values (DWR 2005 - CIMIS) | AG10: TOTALS FOR 10-YEAR SIMULATION, BY MONTH | BB10: Drawdown
A11: 2001-01-01 | B11: 0 | C11: =$B$3*$B$4*(B11/12)*7.48 -> 0 | D11: =INDEX('RWH Calculator'!$Q$61:$Q$72,MATCH(F11,'RWH Calculator'!$K$61:$K$72,0)) -> 0 | E11: =C11+D11 -> 0 | F11: =MONTH(A11) -> 1 | G11: =YEAR(A11) -> 2001 | H11: =IF($B$2="Western SF", VLOOKUP(F11,$Z$13:$AC$24, 4),VLOOKUP(F11, $Z$13:$AD$24,5)) -> 0.04 | I11: =H11*$B$6 -> 0 | J11: =(IF(I11-B11>0,(I11-B11)/$B$7,0)/12*7.48)*$B$8 -> 0 | K11: =IF('RWH Calculator'!$C$67>0,'RWH Calculator'!$C$69,'RWH Calculator'!$C$57) -> 0 | L11: =J11+K11 -> 0 | M11: =IF(W11<0, 0, IF(W11>$J$2, $J$2, W11)) -> 0 | N11: =D11-T11 -> 0 | O11: =C11-U11 -> 0 | P11: =IF(L11>E11,E11, M11-0+L11) -> 0 | Q11: =IF(D11>L11,L11,D11) -> 0 | R11: =MAX(0, IF(C11>(L11-D11),L11-D11,C11)) -> 0 | S11: =IF(E11+0>L11,L11, E11+0) -> 0 | T11: =MAX(0, 0+D11-Q11-$J$2) -> 0 | U11: =MAX(0, 0+C11+D11-Q11-R11-T11-$J$2) -> 0 | V11: =IF(E11>L11, E11-L11-M11,0) -> 0 | W11: =0+E11-L11 -> 0 | X11: =S11/1000000 -> 0 | AA11: Zone 1 | AB11: Zone 2 | AC11: Zone 1 | AD11: Zone 2 | AG11: Month | AH11: Precipitation | AI11: Runoff | AK11: Evapotranspiration | AM11: Demand | AP11: Total Performance (Total over 10-years) | AT11: Runoff (Average Annual) | AX11: Performance (Average Annual) | BB11: Month | BC11: Days in Month | BD11: Daily Demand (gal) | BE11: Cistern Volume (gal) | BF11: Days of Drawdown this Month (days) | BG11: Start Month | BH11: Days of Drawdown this Month (days)
A12: 2001-01-02 | B12: 0 | C12: =$B$3*$B$4*(B12/12)*7.48 -> 0 | D12: =INDEX('RWH Calculator'!$Q$61:$Q$72,MATCH(F12,'RWH Calculator'!$K$61:$K$72,0)) -> 0 | E12: =C12+D12 -> 0 | F12: =MONTH(A12) -> 1 | G12: =YEAR(A12) -> 2001 | H12: 0.04 | I12: =H12*$B$6 -> 0 | J12: 0 | K12: =IF('RWH Calculator'!$C$67>0,'RWH Calculator'!$C$69,'RWH Calculator'!$C$57) -> 0 | L12: =J12+K12 -> 0 | M12: =IF(W12<0, 0, IF(W12>$J$2, $J$2, W12)) -> 0 | N12: =D12-T12 -> 0 | O12: =C12-U12 -> 0 | P12: =IF(L12>E12,E12, M12-M11+L12) -> 0 | Q12: =IF(D12>L12,L12,D12) -> 0 | R12: =MAX(0, IF(C12>(L12-D12),L12-D12,C12)) -> 0 | S12: =IF(E12+M11>L12,L12, E12+M11) -> 0 | T12: =MAX(0, M11+D12-Q12-$J$2) -> 0 | U12: =MAX(0, M11+C12+D12-Q12-R12-T12-$J$2) -> 0 | V12: =IF(E12>L12, E12-L12-(M12-M11),0) -> 0 | W12: =M11+E12-L12 -> 0 | X12: =X11+S12/1000000 -> 0 | AA12: (in/mo) | AB12: (In/mo) | AC12: (in/day) | AD12: (in/day) | AI12: Runoff (gal) | AJ12: Runoff Collected (gal) | AK12: Reference ET (in) | AL12: Actual ET (in) | AM12: Irrigation (gal) | AN12: Indoor (gal) | AO12: Total (gal) | AP12: Water Captured (gal) | AQ12: Water Used (gal) | AR12: Water in Cistern (gal) | AS12: Overflow (gal) | AT12: Runoff (gal) | AU12: Non-Stormwater Supply | AV12: Total Supply (gal) | AW12: Demand (gal) | AX12: Water Used (gal/month) | AY12: Stormwater Overflow (gal) | AZ12: =IF(AZ25>0,"Non-Rainwater Supply Overflow","") ->  | BE12: ='RWH Calculator'!E86 -> 0
A13: 2001-01-03 | B13: 0 | C13: =$B$3*$B$4*(B13/12)*7.48 -> 0 | D13: =INDEX('RWH Calculator'!$Q$61:$Q$72,MATCH(F13,'RWH Calculator'!$K$61:$K$72,0)) -> 0 | E13: =C13+D13 -> 0 | F13: 1 | G13: 2001 | H13: 0.04 | I13: 0 | J13: 0 | K13: =IF('RWH Calculator'!$C$67>0,'RWH Calculator'!$C$69,'RWH Calculator'!$C$57) -> 0 | L13: 0 | M13: =IF(W13<0, 0, IF(W13>$J$2, $J$2, W13)) -> 0 | N13: =D13-T13 -> 0 | O13: =C13-U13 -> 0 | P13: 0 | Q13: 0 | R13: =MAX(0, IF(C13>(L13-D13),L13-D13,C13)) -> 0 | S13: 0 | T13: =MAX(0, M12+D13-Q13-$J$2) -> 0 | U13: =MAX(0, M12+C13+D13-Q13-R13-T13-$J$2) -> 0 | V13: =IF(E13>L13, E13-L13-(M13-M12),0) -> 0 | W13: 0 | X13: =X12+S13/1000000 -> 0 | Z13: 1 | AA13: 0.93 | AB13: 1.24 | AC13: =AA13/31 -> 0.03 | AD13: =AB13/31 -> 0.04 | AF13: 1 | AG13: Jan | AH13: =SUMIFS($B$11:$B$3662,$F$11:$F$3662,AF13) -> 36.56 | AI13: =SUMIFS($C$11:$C$3662,$F$11:$F$3662,AF13) -> 0 | AJ13: =AI13 -> 0 | AK13: =SUMIFS($H$11:$H$3662,$F$11:$F$3662,AF13) -> 12.4 | AL13: =SUMIFS($I$11:$I$3662,$F$11:$F$3662,AF13) -> 0 | AM13: =SUMIFS($J$11:$J$3662,$F$11:$F$3662,AF13) -> 0 | AN13: =SUMIFS($K$11:$K$3662,$F$11:$F$3662,AF13) -> 0 | AO13: =SUMIFS($L$11:$L$3662,$F$11:$F$3662,$AF13) -> 0 | AP13: =SUMIFS($P$11:$P$3662,$F$11:$F$3662,$AF13) -> 0 | AQ13: =SUMIFS($S$11:$S$3662,$F$11:$F$3662,$AF13) -> 0 | AR13: =SUMIFS($M$11:$M$3662,$F$11:$F$3662,$AF13) -> 0 | AS13: =SUMIFS($V$11:$V$3662,$F$11:$F$3662,$AF13) -> 0 | AT13: =AI13/10 -> 0 | AU13: =SUMIFS($D$11:$D$3662,$F$11:$F$3662,$AF13)/10 -> 0 | AV13: =SUMIFS($E$11:$E$3662,$F$11:$F$3662,$AF13)/10 -> 0 | AW13: =AO13/10 -> 0 | AX13: =AQ13/10 -> 0 | AY13: =SUMIFS($U$11:$U$3662,$F$11:$F$3662,AF13)/10 -> 0 | AZ13: =SUMIFS($T$11:$T$3662,$F$11:$F$3662,AF13)/10 -> 0 | BB13: =BG26 ->  | BC13: =INDEX('RWH Calculator'!$M$26:$M$37,MATCH(BB13,$AF$13:$AF$24,0)) ->  | BD13: =INDEX($AO$13:$AO$24,MATCH(BB13,$AF$13:$AF$24,0))/10/BC13 ->  | BE13: =MAX(0,BE12-BD13*BC13) ->  | BF13: =ROUNDUP(MIN(BC13,BE12/BD13),0) ->  | BH13: =BF41 -> 
A14: 2001-01-04 | B14: 0 | C14: 0 | D14: =INDEX('RWH Calculator'!$Q$61:$Q$72,MATCH(F14,'RWH Calculator'!$K$61:$K$72,0)) -> 0 | E14: 0 | F14: 1 | G14: 2001 | H14: 0.04 | I14: 0 | J14: 0 | K14: =IF('RWH Calculator'!$C$67>0,'RWH Calculator'!$C$69,'RWH Calculator'!$C$57) -> 0 | L14: 0 | M14: 0 | N14: 0 | O14: 0 | P14: 0 | Q14: 0 | R14: 0 | S14: 0 | T14: 0 | U14: 0 | V14: 0 | W14: 0 | X14: 0 | Z14: 2 | AA14: 1.4 | AB14: 1.68 | AC14: =AA14/28 -> 0.05 | AD14: =AB14/28 -> 0.06 | AF14: 2 | AG14: Feb | AH14: =SUMIFS($B$11:$B$3662,$F$11:$F$3662,AF14) -> 43.79 | AI14: =SUMIFS($C$11:$C$3662,$F$11:$F$3662,AF14) -> 0 | AJ14: =AI14 -> 0 | AK14: =SUMIFS($H$11:$H$3662,$F$11:$F$3662,AF14) -> 16.92 | AL14: =SUMIFS($I$11:$I$3662,$F$11:$F$3662,AF14) -> 0 | AM14: =SUMIFS($J$11:$J$3662,$F$11:$F$3662,AF14) -> 0 | AN14: =SUMIFS($K$11:$K$3662,$F$11:$F$3662,AF14) -> 0 | AO14: =SUMIFS($L$11:$L$3662,$F$11:$F$3662,AF14) -> 0 | AP14: =SUMIFS($P$11:$P$3662,$F$11:$F$3662,$AF14) -> 0 | AQ14: =SUMIFS($S$11:$S$3662,$F$11:$F$3662,$AF14) -> 0 | AR14: =SUMIFS($M$11:$M$3662,$F$11:$F$3662,$AF14) -> 0 | AS14: =SUMIFS($V$11:$V$3662,$F$11:$F$3662,$AF14) -> 0 | AT14: =AI14/10 -> 0 | AU14: =SUMIFS($D$11:$D$3662,$F$11:$F$3662,$AF14)/10 -> 0 | AV14: =SUMIFS($E$11:$E$3662,$F$11:$F$3662,$AF14)/10 -> 0 | AW14: 0 | AX14: 0 | AY14: =SUMIFS($U$11:$U$3662,$F$11:$F$3662,AF14)/10 -> 0 | AZ14: =SUMIFS($T$11:$T$3662,$F$11:$F$3662,AF14)/10 -> 0 | BB14: =IF(BB13=12,BB13+1-12,BB13+1) ->  | BC14: =INDEX('RWH Calculator'!$M$26:$M$37,MATCH(BB14,$AF$13:$AF$24,0)) ->  | BE14: =MAX(0,BE13-BD14*BC14) ->  | BF14: =ROUNDUP(MIN(BC14,BE13/BD14),0) ->  | BG14: 1
A15: 2001-01-05 | B15: 0 | C15: 0 | D15: =INDEX('RWH Calculator'!$Q$61:$Q$72,MATCH(F15,'RWH Calculator'!$K$61:$K$72,0)) -> 0 | E15: 0 | F15: 1 | G15: 2001 | H15: 0.04 | I15: 0 | J15: 0 | K15: =IF('RWH Calculator'!$C$67>0,'RWH Calculator'!$C$69,'RWH Calculator'!$C$57) -> 0 | L15: 0 | M15: 0 | N15: 0 | O15: 0 | P15: 0 | Q15: 0 | R15: 0 | S15: 0 | T15: 0 | U15: 0 | V15: 0 | W15: 0 | X15: 0 | Z15: 3 | AA15: 2.48 | AB15: 3.1 | AC15: =AA15/31 -> 0.08 | AD15: =AB15/31 -> 0.1 | AF15: 3 | AG15: Mar | AH15: 25.68 | AI15: 0 | AJ15: 0 | AK15: 31 | AL15: 0 | AM15: 0 | AN15: 0 | AO15: 0 | AP15: 0 | AQ15: 0 | AR15: 0 | AS15: 0 | AT15: 0 | AU15: 0 | AV15: 0 | AW15: 0 | AX15: 0 | AY15: 0 | AZ15: 0 | BB15: =IF(BB14=12,BB14+1-12,BB14+1) ->  | BC15: =INDEX('RWH Calculator'!$M$26:$M$37,MATCH(BB15,$AF$13:$AF$24,0)) ->  | BG15: 2
A16: 2001-01-06 | B16: 0 | C16: 0 | D16: =INDEX('RWH Calculator'!$Q$61:$Q$72,MATCH(F16,'RWH Calculator'!$K$61:$K$72,0)) -> 0 | E16: 0 | F16: 1 | G16: 2001 | H16: 0.04 | I16: 0 | J16: 0 | K16: =IF('RWH Calculator'!$C$67>0,'RWH Calculator'!$C$69,'RWH Calculator'!$C$57) -> 0 | L16: 0 | M16: 0 | N16: 0 | O16: 0 | P16: 0 | Q16: 0 | R16: 0 | S16: 0 | T16: 0 | U16: 0 | V16: 0 | W16: 0 | X16: 0 | Z16: 4 | AA16: 3.3 | AB16: 3.9 | AC16: =AA16/30 -> 0.11 | AD16: =AB16/30 -> 0.13 | AF16: 4 | AG16: Apr | AH16: 14.36 | AI16: 0 | AJ16: 0 | AK16: 39 | AL16: 0 | AM16: 0 | AN16: 0 | AO16: 0 | AP16: 0 | AQ16: 0 | AR16: 0 | AS16: 0 | AT16: 0 | AU16: 0 | AV16: 0 | AW16: 0 | AX16: 0 | AY16: 0 | AZ16: 0 | BC16: =INDEX('RWH Calculator'!$M$26:$M$37,MATCH(BB16,$AF$13:$AF$24,0)) ->  | BG16: 3
A17: 2001-01-07 | B17: 0 | C17: 0 | D17: =INDEX('RWH Calculator'!$Q$61:$Q$72,MATCH(F17,'RWH Calculator'!$K$61:$K$72,0)) -> 0 | E17: 0 | F17: 1 | G17: 2001 | H17: 0.04 | I17: 0 | J17: 0 | K17: =IF('RWH Calculator'!$C$67>0,'RWH Calculator'!$C$69,'RWH Calculator'!$C$57) -> 0 | L17: 0 | M17: 0 | N17: 0 | O17: 0 | P17: 0 | Q17: 0 | R17: 0 | S17: 0 | T17: 0 | U17: 0 | V17: 0 | W17: 0 | X17: 0 | Z17: 5 | AA17: 4.03 | AB17: 4.65 | AC17: =AA17/31 -> 0.13 | AD17: =AB17/31 -> 0.15 | AF17: 5 | AG17: May | AH17: 4.9 | AI17: 0 | AJ17: 0 | AK17: 46.5 | AL17: 0 | AM17: 0 | AN17: 0 | AO17: 0 | AP17: 0 | AQ17: 0 | AR17: 0 | AS17: 0 | AT17: 0 | AU17: 0 | AV17: 0 | AW17: 0 | AX17: 0 | AY17: 0 | AZ17: 0 | BC17: =INDEX('RWH Calculator'!$M$26:$M$37,MATCH(BB17,$AF$13:$AF$24,0)) ->  | BG17: 4
A18: 2001-01-08 | B18: 0.56 | C18: 0 | D18: =INDEX('RWH Calculator'!$Q$61:$Q$72,MATCH(F18,'RWH Calculator'!$K$61:$K$72,0)) -> 0 | E18: 0 | F18: 1 | G18: 2001 | H18: 0.04 | I18: 0 | J18: 0 | K18: =IF('RWH Calculator'!$C$67>0,'RWH Calculator'!$C$69,'RWH Calculator'!$C$57) -> 0 | L18: 0 | M18: 0 | N18: 0 | O18: 0 | P18: 0 | Q18: 0 | R18: 0 | S18: 0 | T18: 0 | U18: 0 | V18: 0 | W18: 0 | X18: 0 | Z18: 6 | AA18: 4.5 | AB18: 5.1 | AC18: =AA18/30 -> 0.15 | AD18: =AB18/30 -> 0.17 | AF18: 6 | AG18: Jun | AH18: 1.19 | AI18: 0 | AJ18: 0 | AK18: 51 | AL18: 0 | AM18: 0 | AN18: 0 | AO18: 0 | AP18: 0 | AQ18: 0 | AR18: 0 | AS18: 0 | AT18: 0 | AU18: 0 | AV18: 0 | AW18: 0 | AX18: 0 | AY18: 0 | AZ18: 0 | BC18: =INDEX('RWH Calculator'!$M$26:$M$37,MATCH(BB18,$AF$13:$AF$24,0)) ->  | BG18: 5
A19: 2001-01-09 | B19: 0.09 | C19: 0 | D19: =INDEX('RWH Calculator'!$Q$61:$Q$72,MATCH(F19,'RWH Calculator'!$K$61:$K$72,0)) -> 0 | E19: 0 | F19: 1 | G19: 2001 | H19: 0.04 | I19: 0 | J19: 0 | K19: =IF('RWH Calculator'!$C$67>0,'RWH Calculator'!$C$69,'RWH Calculator'!$C$57) -> 0 | L19: 0 | M19: 0 | N19: 0 | O19: 0 | P19: 0 | Q19: 0 | R19: 0 | S19: 0 | T19: 0 | U19: 0 | V19: 0 | W19: 0 | X19: 0 | Z19: 7 | AA19: 4.65 | AB19: 4.96 | AC19: =AA19/31 -> 0.15 | AD19: =AB19/31 -> 0.16 | AF19: 7 | AG19: Jul | AH19: 0.05 | AI19: 0 | AJ19: 0 | AK19: 49.6 | AL19: 0 | AM19: 0 | AN19: 0 | AO19: 0 | AP19: 0 | AQ19: 0 | AR19: 0 | AS19: 0 | AT19: 0 | AU19: 0 | AV19: 0 | AW19: 0 | AX19: 0 | AY19: 0 | AZ19: 0 | BC19: =INDEX('RWH Calculator'!$M$26:$M$37,MATCH(BB19,$AF$13:$AF$24,0)) ->  | BG19: 6
A20: 2001-01-10 | B20: 0.75 | C20: 0 | D20: =INDEX('RWH Calculator'!$Q$61:$Q$72,MATCH(F20,'RWH Calculator'!$K$61:$K$72,0)) -> 0 | E20: 0 | F20: 1 | G20: 2001 | H20: 0.04 | I20: 0 | J20: 0 | K20: =IF('RWH Calculator'!$C$67>0,'RWH Calculator'!$C$69,'RWH Calculator'!$C$57) -> 0 | L20: 0 | M20: 0 | N20: 0 | O20: 0 | P20: 0 | Q20: 0 | R20: 0 | S20: 0 | T20: 0 | U20: 0 | V20: 0 | W20: 0 | X20: 0 | Z20: 8 | AA20: 4.03 | AB20: 4.65 | AC20: =AA20/31 -> 0.13 | AD20: =AB20/31 -> 0.15 | AF20: 8 | AG20: Aug | AH20: 0.13 | AI20: 0 | AJ20: 0 | AK20: 46.5 | AL20: 0 | AM20: 0 | AN20: 0 | AO20: 0 | AP20: 0 | AQ20: 0 | AR20: 0 | AS20: 0 | AT20: 0 | AU20: 0 | AV20: 0 | AW20: 0 | AX20: 0 | AY20: 0 | AZ20: 0 | BC20: =INDEX('RWH Calculator'!$M$26:$M$37,MATCH(BB20,$AF$13:$AF$24,0)) ->  | BG20: 7
A21: 2001-01-11 | B21: 0.84 | C21: 0 | D21: =INDEX('RWH Calculator'!$Q$61:$Q$72,MATCH(F21,'RWH Calculator'!$K$61:$K$72,0)) -> 0 | E21: 0 | F21: 1 | G21: 2001 | H21: 0.04 | I21: 0 | J21: 0 | K21: =IF('RWH Calculator'!$C$67>0,'RWH Calculator'!$C$69,'RWH Calculator'!$C$57) -> 0 | L21: 0 | M21: 0 | N21: 0 | O21: 0 | P21: 0 | Q21: 0 | R21: 0 | S21: 0 | T21: 0 | U21: 0 | V21: 0 | W21: 0 | X21: 0 | Z21: 9 | AA21: 3.3 | AB21: 3.9 | AC21: =AA21/30 -> 0.11 | AD21: =AB21/30 -> 0.13 | AF21: 9 | AG21: Sep | AH21: 0.62 | AI21: 0 | AJ21: 0 | AK21: 39 | AL21: 0 | AM21: 0 | AN21: 0 | AO21: 0 | AP21: 0 | AQ21: 0 | AR21: 0 | AS21: 0 | AT21: 0 | AU21: 0 | AV21: 0 | AW21: 0 | AX21: 0 | AY21: 0 | AZ21: 0 | BC21: =INDEX('RWH Calculator'!$M$26:$M$37,MATCH(BB21,$AF$13:$AF$24,0)) ->  | BG21: 8
A22: 2001-01-12 | B22: 0.01 | C22: 0 | D22: =INDEX('RWH Calculator'!$Q$61:$Q$72,MATCH(F22,'RWH Calculator'!$K$61:$K$72,0)) -> 0 | E22: 0 | F22: 1 | G22: 2001 | H22: 0.04 | I22: 0 | J22: 0 | K22: =IF('RWH Calculator'!$C$67>0,'RWH Calculator'!$C$69,'RWH Calculator'!$C$57) -> 0 | L22: 0 | M22: 0 | N22: 0 | O22: 0 | P22: 0 | Q22: 0 | R22: 0 | S22: 0 | T22: 0 | U22: 0 | V22: 0 | W22: 0 | X22: 0 | Z22: 10 | AA22: 2.48 | AB22: 2.79 | AC22: =AA22/31 -> 0.08 | AD22: =AB22/31 -> 0.09 | AF22: 10 | AG22: Oct | AH22: 11.53 | AI22: 0 | AJ22: 0 | AK22: 27.9 | AL22: 0 | AM22: 0 | AN22: 0 | AO22: 0 | AP22: 0 | AQ22: 0 | AR22: 0 | AS22: 0 | AT22: 0 | AU22: 0 | AV22: 0 | AW22: 0 | AX22: 0 | AY22: 0 | AZ22: 0 | BC22: =INDEX('RWH Calculator'!$M$26:$M$37,MATCH(BB22,$AF$13:$AF$24,0)) ->  | BG22: 9
A23: 2001-01-13 | B23: 0 | C23: 0 | D23: =INDEX('RWH Calculator'!$Q$61:$Q$72,MATCH(F23,'RWH Calculator'!$K$61:$K$72,0)) -> 0 | E23: 0 | F23: 1 | G23: 2001 | H23: 0.04 | I23: 0 | J23: 0 | K23: =IF('RWH Calculator'!$C$67>0,'RWH Calculator'!$C$69,'RWH Calculator'!$C$57) -> 0 | L23: 0 | M23: 0 | N23: 0 | O23: 0 | P23: 0 | Q23: 0 | R23: 0 | S23: 0 | T23: 0 | U23: 0 | V23: 0 | W23: 0 | X23: 0 | Z23: 11 | AA23: 1.2 | AB23: 1.8 | AC23: =AA23/30 -> 0.04 | AD23: =AB23/30 -> 0.06 | AF23: 11 | AG23: Nov | AH23: 23.54 | AI23: 0 | AJ23: 0 | AK23: 18 | AL23: 0 | AM23: 0 | AN23: 0 | AO23: 0 | AP23: 0 | AQ23: 0 | AR23: 0 | AS23: 0 | AT23: 0 | AU23: 0 | AV23: 0 | AW23: 0 | AX23: 0 | AY23: 0 | AZ23: 0 | BC23: =INDEX('RWH Calculator'!$M$26:$M$37,MATCH(BB23,$AF$13:$AF$24,0)) ->  | BG23: 10
A24: 2001-01-14 | B24: 0 | C24: 0 | D24: =INDEX('RWH Calculator'!$Q$61:$Q$72,MATCH(F24,'RWH Calculator'!$K$61:$K$72,0)) -> 0 | E24: 0 | F24: 1 | G24: 2001 | H24: 0.04 | I24: 0 | J24: 0 | K24: =IF('RWH Calculator'!$C$67>0,'RWH Calculator'!$C$69,'RWH Calculator'!$C$57) -> 0 | L24: 0 | M24: 0 | N24: 0 | O24: 0 | P24: 0 | Q24: 0 | R24: 0 | S24: 0 | T24: 0 | U24: 0 | V24: 0 | W24: 0 | X24: 0 | Z24: 12 | AA24: 0.62 | AB24: 1.24 | AC24: =AA24/31 -> 0.02 | AD24: =AB24/31 -> 0.04 | AF24: 12 | AG24: Dec | AH24: 70.38 | AI24: 0 | AJ24: 0 | AK24: 12.4 | AL24: 0 | AM24: 0 | AN24: 0 | AO24: 0 | AP24: 0 | AQ24: 0 | AR24: 0 | AS24: 0 | AT24: 0 | AU24: 0 | AV24: 0 | AW24: 0 | AX24: 0 | AY24: 0 | AZ24: 0 | BB24: =IF(BB23=12,BB23+1-12,BB23+1) ->  | BC24: =INDEX('RWH Calculator'!$M$26:$M$37,MATCH(BB24,$AF$13:$AF$24,0)) ->  | BE24: =MAX(0,BE23-BD24*BC24) ->  | BF24: =ROUNDUP(MIN(BC24,BE23/BD24),0) ->  | BG24: 11
A25: 2001-01-15 | B25: 0 | C25: 0 | D25: =INDEX('RWH Calculator'!$Q$61:$Q$72,MATCH(F25,'RWH Calculator'!$K$61:$K$72,0)) -> 0 | E25: 0 | F25: 1 | G25: 2001 | H25: 0.04 | I25: 0 | J25: 0 | K25: =IF('RWH Calculator'!$C$67>0,'RWH Calculator'!$C$69,'RWH Calculator'!$C$57) -> 0 | L25: 0 | M25: 0 | N25: 0 | O25: 0 | P25: 0 | Q25: 0 | R25: 0 | S25: 0 | T25: 0 | U25: 0 | V25: 0 | W25: 0 | X25: 0 | Z25: Total | AA25: 32.9 | AB25: 39 | AG25: Total | AH25: =SUM(AH13:AH24) -> 232.73 | AI25: 0 | AJ25: 0 | AK25: 390.22 | AL25: 0 | AM25: 0 | AN25: 0 | AO25: 0 | AP25: 0 | AQ25: 0 | AR25: 0 | AS25: 0 | AT25: =SUM(AT13:AT24) -> 0 | AU25: =SUM(AU13:AU24) -> 0 | AV25: 0 | AW25: 0 | AX25: 0 | AY25: =SUM(AY13:AY24) -> 0 | AZ25: 0 | BC25: =INDEX('RWH Calculator'!$M$26:$M$37,MATCH(BB25,$AF$13:$AF$24,0)) ->  | BG25: 12
A26: 2001-01-16 | B26: 0 | C26: 0 | D26: =INDEX('RWH Calculator'!$Q$61:$Q$72,MATCH(F26,'RWH Calculator'!$K$61:$K$72,0)) -> 0 | E26: 0 | F26: 1 | G26: 2001 | H26: 0.04 | I26: 0 | J26: 0 | K26: =IF('RWH Calculator'!$C$67>0,'RWH Calculator'!$C$69,'RWH Calculator'!$C$57) -> 0 | L26: 0 | M26: 0 | N26: 0 | O26: 0 | P26: 0 | Q26: 0 | R26: 0 | S26: 0 | T26: 0 | U26: 0 | V26: 0 | W26: 0 | X26: 0 | BB26: =IF(BB25=12,BB25+1-12,BB25+1) ->  | BC26: =INDEX('RWH Calculator'!$M$26:$M$37,MATCH(BB26,$AF$13:$AF$24,0)) ->  | BE26: =MAX(0,BE25-BD26*BC26) ->  | BF26: =ROUNDUP(MIN(BC26,BE25/BD26),0) ->  | BG26: =INDEX(BG14:BG25,MATCH(BH26,$BH$14:$BH$25,0)) ->  | BH26: =IFERROR(MAX(BH14:BH25),0) -> 0
A27: 2001-01-17 | B27: 0 | C27: 0 | D27: =INDEX('RWH Calculator'!$Q$61:$Q$72,MATCH(F27,'RWH Calculator'!$K$61:$K$72,0)) -> 0 | E27: 0 | F27: 1 | G27: 2001 | H27: 0.04 | I27: 0 | J27: 0 | K27: =IF('RWH Calculator'!$C$67>0,'RWH Calculator'!$C$69,'RWH Calculator'!$C$57) -> 0 | L27: 0 | M27: 0 | N27: 0 | O27: 0 | P27: 0 | Q27: 0 | R27: 0 | S27: 0 | T27: 0 | U27: 0 | V27: 0 | W27: 0 | X27: 0 | BB27: =IF(BB26=12,BB26+1-12,BB26+1) ->  | BC27: =INDEX('RWH Calculator'!$M$26:$M$37,MATCH(BB27,$AF$13:$AF$24,0)) ->  | BE27: =MAX(0,BE26-BD27*BC27) ->  | BF27: =ROUNDUP(MIN(BC27,BE26/BD27),0) -> 
A28: 2001-01-18 | B28: 0 | C28: 0 | D28: =INDEX('RWH Calculator'!$Q$61:$Q$72,MATCH(F28,'RWH Calculator'!$K$61:$K$72,0)) -> 0 | E28: 0 | F28: 1 | G28: 2001 | H28: 0.04 | I28: 0 | J28: 0 | K28: =IF('RWH Calculator'!$C$67>0,'RWH Calculator'!$C$69,'RWH Calculator'!$C$57) -> 0 | L28: 0 | M28: 0 | N28: 0 | O28: 0 | P28: 0 | Q28: 0 | R28: 0 | S28: 0 | T28: 0 | U28: 0 | V28: 0 | W28: 0 | X28: 0 | AG28: TOTALS FOR 10-YEAR SIMULATION, BY YEAR | BC28: =INDEX('RWH Calculator'!$M$26:$M$37,MATCH(BB28,$AF$13:$AF$24,0)) -> 
A29: 2001-01-19 | B29: 0 | C29: 0 | D29: =INDEX('RWH Calculator'!$Q$61:$Q$72,MATCH(F29,'RWH Calculator'!$K$61:$K$72,0)) -> 0 | E29: 0 | F29: 1 | G29: 2001 | H29: 0.04 | I29: 0 | J29: 0 | K29: =IF('RWH Calculator'!$C$67>0,'RWH Calculator'!$C$69,'RWH Calculator'!$C$57) -> 0 | L29: 0 | M29: 0 | N29: 0 | O29: 0 | P29: 0 | Q29: 0 | R29: 0 | S29: 0 | T29: 0 | U29: 0 | V29: 0 | W29: 0 | X29: 0 | AG29: Year | AH29: Precipitation | AI29: Runoff | AK29: Evapotranspiration | AM29: Demand | AP29: Performance | AT29: Avg. Annual Runoff Captured and Reused % | AU29: Avg. Annual Demand Met by RWH % | BC29: =INDEX('RWH Calculator'!$M$26:$M$37,MATCH(BB29,$AF$13:$AF$24,0)) -> 
A30: 2001-01-20 | B30: 0 | C30: 0 | D30: =INDEX('RWH Calculator'!$Q$61:$Q$72,MATCH(F30,'RWH Calculator'!$K$61:$K$72,0)) -> 0 | E30: 0 | F30: 1 | G30: 2001 | H30: 0.04 | I30: 0 | J30: 0 | K30: =IF('RWH Calculator'!$C$67>0,'RWH Calculator'!$C$69,'RWH Calculator'!$C$57) -> 0 | L30: 0 | M30: 0 | N30: 0 | O30: 0 | P30: 0 | Q30: 0 | R30: 0 | S30: 0 | T30: 0 | U30: 0 | V30: 0 | W30: 0 | X30: 0 | AI30: Runoff (gal) | AJ30: Runoff Collected (gal) | AK30: Reference ET (in) | AL30: Actual ET (in) | AM30: Irrigation (gal) | AN30: Indoor (gal) | AO30: Total (gal) | AP30: Water Captured (gal) | AQ30: Water Used (gal) | AR30: Water in Cistern (gal) | AS30: Overflow (gal) | BC30: =INDEX('RWH Calculator'!$M$26:$M$37,MATCH(BB30,$AF$13:$AF$24,0)) -> 
A31: 2001-01-21 | B31: 0 | C31: 0 | D31: =INDEX('RWH Calculator'!$Q$61:$Q$72,MATCH(F31,'RWH Calculator'!$K$61:$K$72,0)) -> 0 | E31: 0 | F31: 1 | G31: 2001 | H31: 0.04 | I31: 0 | J31: 0 | K31: =IF('RWH Calculator'!$C$67>0,'RWH Calculator'!$C$69,'RWH Calculator'!$C$57) -> 0 | L31: 0 | M31: 0 | N31: 0 | O31: 0 | P31: 0 | Q31: 0 | R31: 0 | S31: 0 | T31: 0 | U31: 0 | V31: 0 | W31: 0 | X31: 0 | AG31: 2001 | AH31: =SUMIFS($B$11:$B$3662,$G$11:$G$3662,$AG31) -> 31.75 | AI31: =SUMIFS($C$11:$C$3662,$G$11:$G$3662,$AG31) -> 0 | AJ31: =SUMIFS($E$11:$E$3662,$G$11:$G$3662,$AG31) -> 0 | AK31: =SUMIFS($H$11:$H$3662,$G$11:$G$3662,$AG31) -> 39.01 | AL31: =SUMIFS($I$11:$I$3662,$G$11:$G$3662,$AG31) -> 0 | AM31: =SUMIFS($J$11:$J$3662,$G$11:$G$3662,$AG31) -> 0 | AN31: =SUMIFS($K$11:$K$3662,$G$11:$G$3662,$AG31) -> 0 | AO31: =SUMIFS($L$11:$L$3662,$G$11:$G$3662,$AG31) -> 0 | AP31: =SUMIFS($P$11:$P$3662,$G$11:$G$3662,$AG31) -> 0 | AQ31: =SUMIFS($S$11:$S$3662,$G$11:$G$3662,$AG31) -> 0 | AR31: =SUMIFS($M$11:$M$3662,$G$11:$G$3662,$AG31) -> 0 | AS31: =SUMIFS($V$11:$V$3662,$G$11:$G$3662,$AG31) -> 0 | AT31: =AP31/AJ31 ->  | AU31: =AQ31/AO31 ->  | BC31: =INDEX('RWH Calculator'!$M$26:$M$37,MATCH(BB31,$AF$13:$AF$24,0)) -> 
A32: 2001-01-22 | B32: 0 | C32: 0 | D32: =INDEX('RWH Calculator'!$Q$61:$Q$72,MATCH(F32,'RWH Calculator'!$K$61:$K$72,0)) -> 0 | E32: 0 | F32: 1 | G32: 2001 | H32: 0.04 | I32: 0 | J32: 0 | K32: =IF('RWH Calculator'!$C$67>0,'RWH Calculator'!$C$69,'RWH Calculator'!$C$57) -> 0 | L32: 0 | M32: 0 | N32: 0 | O32: 0 | P32: 0 | Q32: 0 | R32: 0 | S32: 0 | T32: 0 | U32: 0 | V32: 0 | W32: 0 | X32: 0 | AG32: 2002 | AH32: =SUMIFS($B$11:$B$3662,$G$11:$G$3662,$AG32) -> 22.46 | AI32: =SUMIFS($C$11:$C$3662,$G$11:$G$3662,$AG32) -> 0 | AJ32: =SUMIFS($E$11:$E$3662,$G$11:$G$3662,$AG32) -> 0 | AK32: =SUMIFS($H$11:$H$3662,$G$11:$G$3662,$AG32) -> 39.01 | AL32: =SUMIFS($I$11:$I$3662,$G$11:$G$3662,$AG32) -> 0 | AM32: =SUMIFS($J$11:$J$3662,$G$11:$G$3662,$AG32) -> 0 | AN32: =SUMIFS($K$11:$K$3662,$G$11:$G$3662,$AG32) -> 0 | AO32: =SUMIFS($L$11:$L$3662,$G$11:$G$3662,$AG32) -> 0 | AP32: =SUMIFS($P$11:$P$3662,$G$11:$G$3662,$AG32) -> 0 | AQ32: =SUMIFS($S$11:$S$3662,$G$11:$G$3662,$AG32) -> 0 | AR32: =SUMIFS($M$11:$M$3662,$G$11:$G$3662,$AG32) -> 0 | AS32: =SUMIFS($V$11:$V$3662,$G$11:$G$3662,$AG32) -> 0 | BC32: =INDEX('RWH Calculator'!$M$26:$M$37,MATCH(BB32,$AF$13:$AF$24,0)) -> 
A33: 2001-01-23 | B33: 0.45 | C33: 0 | D33: =INDEX('RWH Calculator'!$Q$61:$Q$72,MATCH(F33,'RWH Calculator'!$K$61:$K$72,0)) -> 0 | E33: 0 | F33: 1 | G33: 2001 | H33: 0.04 | I33: 0 | J33: 0 | K33: =IF('RWH Calculator'!$C$67>0,'RWH Calculator'!$C$69,'RWH Calculator'!$C$57) -> 0 | L33: 0 | M33: 0 | N33: 0 | O33: 0 | P33: 0 | Q33: 0 | R33: 0 | S33: 0 | T33: 0 | U33: 0 | V33: 0 | W33: 0 | X33: 0 | AG33: 2003 | AH33: 14.32 | AI33: 0 | AJ33: 0 | AK33: 39.01 | AL33: 0 | AM33: 0 | AN33: 0 | AO33: 0 | AP33: 0 | AQ33: 0 | AR33: 0 | AS33: 0 | BC33: =INDEX('RWH Calculator'!$M$26:$M$37,MATCH(BB33,$AF$13:$AF$24,0)) -> 
A34: 2001-01-24 | B34: 0.18 | C34: 0 | D34: =INDEX('RWH Calculator'!$Q$61:$Q$72,MATCH(F34,'RWH Calculator'!$K$61:$K$72,0)) -> 0 | E34: 0 | F34: 1 | G34: 2001 | H34: 0.04 | I34: 0 | J34: 0 | K34: =IF('RWH Calculator'!$C$67>0,'RWH Calculator'!$C$69,'RWH Calculator'!$C$57) -> 0 | L34: 0 | M34: 0 | N34: 0 | O34: 0 | P34: 0 | Q34: 0 | R34: 0 | S34: 0 | T34: 0 | U34: 0 | V34: 0 | W34: 0 | X34: 0 | AG34: 2004 | AH34: 23.19 | AI34: 0 | AJ34: 0 | AK34: 39.07 | AL34: 0 | AM34: 0 | AN34: 0 | AO34: 0 | AP34: 0 | AQ34: 0 | AR34: 0 | AS34: 0 | BC34: =INDEX('RWH Calculator'!$M$26:$M$37,MATCH(BB34,$AF$13:$AF$24,0)) -> 
A35: 2001-01-25 | B35: 0.7 | C35: 0 | D35: =INDEX('RWH Calculator'!$Q$61:$Q$72,MATCH(F35,'RWH Calculator'!$K$61:$K$72,0)) -> 0 | E35: 0 | F35: 1 | G35: 2001 | H35: 0.04 | I35: 0 | J35: 0 | K35: =IF('RWH Calculator'!$C$67>0,'RWH Calculator'!$C$69,'RWH Calculator'!$C$57) -> 0 | L35: 0 | M35: 0 | N35: 0 | O35: 0 | P35: 0 | Q35: 0 | R35: 0 | S35: 0 | T35: 0 | U35: 0 | V35: 0 | W35: 0 | X35: 0 | AG35: 2005 | AH35: 32.32 | AI35: 0 | AJ35: 0 | AK35: 39.01 | AL35: 0 | AM35: 0 | AN35: 0 | AO35: 0 | AP35: 0 | AQ35: 0 | AR35: 0 | AS35: 0 | BC35: =INDEX('RWH Calculator'!$M$26:$M$37,MATCH(BB35,$AF$13:$AF$24,0)) -> 
A36: 2001-01-26 | B36: 0.04 | C36: 0 | D36: =INDEX('RWH Calculator'!$Q$61:$Q$72,MATCH(F36,'RWH Calculator'!$K$61:$K$72,0)) -> 0 | E36: 0 | F36: 1 | G36: 2001 | H36: 0.04 | I36: 0 | J36: 0 | K36: =IF('RWH Calculator'!$C$67>0,'RWH Calculator'!$C$69,'RWH Calculator'!$C$57) -> 0 | L36: 0 | M36: 0 | N36: 0 | O36: 0 | P36: 0 | Q36: 0 | R36: 0 | S36: 0 | T36: 0 | U36: 0 | V36: 0 | W36: 0 | X36: 0 | AG36: 2006 | AH36: 29.49 | AI36: 0 | AJ36: 0 | AK36: 39.01 | AL36: 0 | AM36: 0 | AN36: 0 | AO36: 0 | AP36: 0 | AQ36: 0 | AR36: 0 | AS36: 0 | BC36: =INDEX('RWH Calculator'!$M$26:$M$37,MATCH(BB36,$AF$13:$AF$24,0)) -> 
A37: 2001-01-27 | B37: 0 | C37: 0 | D37: =INDEX('RWH Calculator'!$Q$61:$Q$72,MATCH(F37,'RWH Calculator'!$K$61:$K$72,0)) -> 0 | E37: 0 | F37: 1 | G37: 2001 | H37: 0.04 | I37: 0 | J37: 0 | K37: =IF('RWH Calculator'!$C$67>0,'RWH Calculator'!$C$69,'RWH Calculator'!$C$57) -> 0 | L37: 0 | M37: 0 | N37: 0 | O37: 0 | P37: 0 | Q37: 0 | R37: 0 | S37: 0 | T37: 0 | U37: 0 | V37: 0 | W37: 0 | X37: 0 | AG37: 2007 | AH37: 14.13 | AI37: 0 | AJ37: 0 | AK37: 39.01 | AL37: 0 | AM37: 0 | AN37: 0 | AO37: 0 | AP37: 0 | AQ37: 0 | AR37: 0 | AS37: 0 | BB37: =IF(BB36=12,BB36+1-12,BB36+1) ->  | BC37: =INDEX('RWH Calculator'!$M$26:$M$37,MATCH(BB37,$AF$13:$AF$24,0)) ->  | BE37: =MAX(0,BE36-BD37*BC37) ->  | BF37: =ROUNDUP(MIN(BC37,BE36/BD37),0) -> 
A38: 2001-01-28 | B38: 0 | C38: 0 | D38: =INDEX('RWH Calculator'!$Q$61:$Q$72,MATCH(F38,'RWH Calculator'!$K$61:$K$72,0)) -> 0 | E38: 0 | F38: 1 | G38: 2001 | H38: 0.04 | I38: 0 | J38: 0 | K38: =IF('RWH Calculator'!$C$67>0,'RWH Calculator'!$C$69,'RWH Calculator'!$C$57) -> 0 | L38: 0 | M38: 0 | N38: 0 | O38: 0 | P38: 0 | Q38: 0 | R38: 0 | S38: 0 | T38: 0 | U38: 0 | V38: 0 | W38: 0 | X38: 0 | AG38: 2008 | AH38: 16.72 | AI38: 0 | AJ38: 0 | AK38: 39.07 | AL38: 0 | AM38: 0 | AN38: 0 | AO38: 0 | AP38: 0 | AQ38: 0 | AR38: 0 | AS38: 0 | BC38: =INDEX('RWH Calculator'!$M$26:$M$37,MATCH(BB38,$AF$13:$AF$24,0)) -> 
A39: 2001-01-29 | B39: 0.14 | C39: 0 | D39: =INDEX('RWH Calculator'!$Q$61:$Q$72,MATCH(F39,'RWH Calculator'!$K$61:$K$72,0)) -> 0 | E39: 0 | F39: 1 | G39: 2001 | H39: 0.04 | I39: 0 | J39: 0 | K39: =IF('RWH Calculator'!$C$67>0,'RWH Calculator'!$C$69,'RWH Calculator'!$C$57) -> 0 | L39: 0 | M39: 0 | N39: 0 | O39: 0 | P39: 0 | Q39: 0 | R39: 0 | S39: 0 | T39: 0 | U39: 0 | V39: 0 | W39: 0 | X39: 0 | AG39: 2009 | AH39: 19.23 | AI39: 0 | AJ39: 0 | AK39: 39.01 | AL39: 0 | AM39: 0 | AN39: 0 | AO39: 0 | AP39: 0 | AQ39: 0 | AR39: 0 | AS39: 0 | BC39: =INDEX('RWH Calculator'!$M$26:$M$37,MATCH(BB39,$AF$13:$AF$24,0)) -> 
A40: 2001-01-30 | B40: 0 | C40: 0 | D40: =INDEX('RWH Calculator'!$Q$61:$Q$72,MATCH(F40,'RWH Calculator'!$K$61:$K$72,0)) -> 0 | E40: 0 | F40: 1 | G40: 2001 | H40: 0.04 | I40: 0 | J40: 0 | K40: =IF('RWH Calculator'!$C$67>0,'RWH Calculator'!$C$69,'RWH Calculator'!$C$57) -> 0 | L40: 0 | M40: 0 | N40: 0 | O40: 0 | P40: 0 | Q40: 0 | R40: 0 | S40: 0 | T40: 0 | U40: 0 | V40: 0 | W40: 0 | X40: 0 | AG40: 2010 | AH40: 29.12 | AI40: 0 | AJ40: 0 | AK40: 39.01 | AL40: 0 | AM40: 0 | AN40: 0 | AO40: 0 | AP40: 0 | AQ40: 0 | AR40: 0 | AS40: 0 | BC40: =INDEX('RWH Calculator'!$M$26:$M$37,MATCH(BB40,$AF$13:$AF$24,0)) -> 
A41: 2001-01-31 | B41: 0 | C41: 0 | D41: =INDEX('RWH Calculator'!$Q$61:$Q$72,MATCH(F41,'RWH Calculator'!$K$61:$K$72,0)) -> 0 | E41: 0 | F41: 1 | G41: 2001 | H41: 0.04 | I41: 0 | J41: 0 | K41: =IF('RWH Calculator'!$C$67>0,'RWH Calculator'!$C$69,'RWH Calculator'!$C$57) -> 0 | L41: 0 | M41: 0 | N41: 0 | O41: 0 | P41: 0 | Q41: 0 | R41: 0 | S41: 0 | T41: 0 | U41: 0 | V41: 0 | W41: 0 | X41: 0 | AG41: Total | AH41: =SUM(AH31:AH40) -> 232.73 | AI41: 0 | AJ41: 0 | AK41: 390.22 | AL41: 0 | AM41: 0 | AN41: 0 | AO41: 0 | AP41: 0 | AQ41: 0 | AR41: 0 | AS41: 0 | BE41: Drawdown (days) = | BF41: =IF(SUM(BF13:BF40) = 853, "> 850", SUM(BF13:BF40)) -> 
A42: 2001-02-01 | B42: 0 | C42: 0 | D42: =INDEX('RWH Calculator'!$Q$61:$Q$72,MATCH(F42,'RWH Calculator'!$K$61:$K$72,0)) -> 0 | E42: 0 | F42: 2 | G42: 2001 | H42: 0.06 | I42: 0 | J42: 0 | K42: =IF('RWH Calculator'!$C$67>0,'RWH Calculator'!$C$69,'RWH Calculator'!$C$57) -> 0 | L42: 0 | M42: 0 | N42: 0 | O42: 0 | P42: 0 | Q42: 0 | R42: 0 | S42: 0 | T42: 0 | U42: 0 | V42: 0 | W42: 0 | X42: 0
A43: 2001-02-02 | B43: 0 | C43: 0 | D43: =INDEX('RWH Calculator'!$Q$61:$Q$72,MATCH(F43,'RWH Calculator'!$K$61:$K$72,0)) -> 0 | E43: 0 | F43: 2 | G43: 2001 | H43: 0.06 | I43: 0 | J43: 0 | K43: =IF('RWH Calculator'!$C$67>0,'RWH Calculator'!$C$69,'RWH Calculator'!$C$57) -> 0 | L43: 0 | M43: 0 | N43: 0 | O43: 0 | P43: 0 | Q43: 0 | R43: 0 | S43: 0 | T43: 0 | U43: 0 | V43: 0 | W43: 0 | X43: 0
A44: 2001-02-03 | B44: 0 | C44: 0 | D44: =INDEX('RWH Calculator'!$Q$61:$Q$72,MATCH(F44,'RWH Calculator'!$K$61:$K$72,0)) -> 0 | E44: 0 | F44: 2 | G44: 2001 | H44: 0.06 | I44: 0 | J44: 0 | K44: =IF('RWH Calculator'!$C$67>0,'RWH Calculator'!$C$69,'RWH Calculator'!$C$57) -> 0 | L44: 0 | M44: 0 | N44: 0 | O44: 0 | P44: 0 | Q44: 0 | R44: 0 | S44: 0 | T44: 0 | U44: 0 | V44: 0 | W44: 0 | X44: 0
A45: 2001-02-04 | B45: 0 | C45: 0 | D45: =INDEX('RWH Calculator'!$Q$61:$Q$72,MATCH(F45,'RWH Calculator'!$K$61:$K$72,0)) -> 0 | E45: 0 | F45: 2 | G45: 2001 | H45: 0.06 | I45: 0 | J45: 0 | K45: =IF('RWH Calculator'!$C$67>0,'RWH Calculator'!$C$69,'RWH Calculator'!$C$57) -> 0 | L45: 0 | M45: 0 | N45: 0 | O45: 0 | P45: 0 | Q45: 0 | R45: 0 | S45: 0 | T45: 0 | U45: 0 | V45: 0 | W45: 0 | X45: 0
A46: 2001-02-05 | B46: 0 | C46: 0 | D46: =INDEX('RWH Calculator'!$Q$61:$Q$72,MATCH(F46,'RWH Calculator'!$K$61:$K$72,0)) -> 0 | E46: 0 | F46: 2 | G46: 2001 | H46: 0.06 | I46: 0 | J46: 0 | K46: =IF('RWH Calculator'!$C$67>0,'RWH Calculator'!$C$69,'RWH Calculator'!$C$57) -> 0 | L46: 0 | M46: 0 | N46: 0 | O46: 0 | P46: 0 | Q46: 0 | R46: 0 | S46: 0 | T46: 0 | U46: 0 | V46: 0 | W46: 0 | X46: 0
A47: 2001-02-06 | B47: 0.04 | C47: 0 | D47: =INDEX('RWH Calculator'!$Q$61:$Q$72,MATCH(F47,'RWH Calculator'!$K$61:$K$72,0)) -> 0 | E47: 0 | F47: 2 | G47: 2001 | H47: 0.06 | I47: 0 | J47: 0 | K47: =IF('RWH Calculator'!$C$67>0,'RWH Calculator'!$C$69,'RWH Calculator'!$C$57) -> 0 | L47: 0 | M47: 0 | N47: 0 | O47: 0 | P47: 0 | Q47: 0 | R47: 0 | S47: 0 | T47: 0 | U47: 0 | V47: 0 | W47: 0 | X47: 0
A48: 2001-02-07 | B48: 0 | C48: 0 | D48: =INDEX('RWH Calculator'!$Q$61:$Q$72,MATCH(F48,'RWH Calculator'!$K$61:$K$72,0)) -> 0 | E48: 0 | F48: 2 | G48: 2001 | H48: 0.06 | I48: 0 | J48: 0 | K48: =IF('RWH Calculator'!$C$67>0,'RWH Calculator'!$C$69,'RWH Calculator'!$C$57) -> 0 | L48: 0 | M48: 0 | N48: 0 | O48: 0 | P48: 0 | Q48: 0 | R48: 0 | S48: 0 | T48: 0 | U48: 0 | V48: 0 | W48: 0 | X48: 0
A49: 2001-02-08 | B49: 0 | C49: 0 | D49: =INDEX('RWH Calculator'!$Q$61:$Q$72,MATCH(F49,'RWH Calculator'!$K$61:$K$72,0)) -> 0 | E49: 0 | F49: 2 | G49: 2001 | H49: 0.06 | I49: 0 | J49: 0 | K49: =IF('RWH Calculator'!$C$67>0,'RWH Calculator'!$C$69,'RWH Calculator'!$C$57) -> 0 | L49: 0 | M49: 0 | N49: 0 | O49: 0 | P49: 0 | Q49: 0 | R49: 0 | S49: 0 | T49: 0 | U49: 0 | V49: 0 | W49: 0 | X49: 0
A50: 2001-02-09 | B50: 1.13 | C50: 0 | D50: =INDEX('RWH Calculator'!$Q$61:$Q$72,MATCH(F50,'RWH Calculator'!$K$61:$K$72,0)) -> 0 | E50: 0 | F50: 2 | G50: 2001 | H50: 0.06 | I50: 0 | J50: 0 | K50: =IF('RWH Calculator'!$C$67>0,'RWH Calculator'!$C$69,'RWH Calculator'!$C$57) -> 0 | L50: 0 | M50: 0 | N50: 0 | O50: 0 | P50: 0 | Q50: 0 | R50: 0 | S50: 0 | T50: 0 | U50: 0 | V50: 0 | W50: 0 | X50: 0
A51: 2001-02-10 | B51: 0.96 | C51: 0 | D51: =INDEX('RWH Calculator'!$Q$61:$Q$72,MATCH(F51,'RWH Calculator'!$K$61:$K$72,0)) -> 0 | E51: 0 | F51: 2 | G51: 2001 | H51: 0.06 | I51: 0 | J51: 0 | K51: =IF('RWH Calculator'!$C$67>0,'RWH Calculator'!$C$69,'RWH Calculator'!$C$57) -> 0 | L51: 0 | M51: 0 | N51: 0 | O51: 0 | P51: 0 | Q51: 0 | R51: 0 | S51: 0 | T51: 0 | U51: 0 | V51: 0 | W51: 0 | X51: 0
A52: 2001-02-11 | B52: 0.76 | C52: 0 | D52: =INDEX('RWH Calculator'!$Q$61:$Q$72,MATCH(F52,'RWH Calculator'!$K$61:$K$72,0)) -> 0 | E52: 0 | F52: 2 | G52: 2001 | H52: 0.06 | I52: 0 | J52: 0 | K52: =IF('RWH Calculator'!$C$67>0,'RWH Calculator'!$C$69,'RWH Calculator'!$C$57) -> 0 | L52: 0 | M52: 0 | N52: 0 | O52: 0 | P52: 0 | Q52: 0 | R52: 0 | S52: 0 | T52: 0 | U52: 0 | V52: 0 | W52: 0 | X52: 0
A53: 2001-02-12 | B53: 0.63 | C53: 0 | D53: =INDEX('RWH Calculator'!$Q$61:$Q$72,MATCH(F53,'RWH Calculator'!$K$61:$K$72,0)) -> 0 | E53: 0 | F53: 2 | G53: 2001 | H53: 0.06 | I53: 0 | J53: 0 | K53: =IF('RWH Calculator'!$C$67>0,'RWH Calculator'!$C$69,'RWH Calculator'!$C$57) -> 0 | L53: 0 | M53: 0 | N53: 0 | O53: 0 | P53: 0 | Q53: 0 | R53: 0 | S53: 0 | T53: 0 | U53: 0 | V53: 0 | W53: 0 | X53: 0
A54: 2001-02-13 | B54: 0 | C54: 0 | D54: =INDEX('RWH Calculator'!$Q$61:$Q$72,MATCH(F54,'RWH Calculator'!$K$61:$K$72,0)) -> 0 | E54: 0 | F54: 2 | G54: 2001 | H54: 0.06 | I54: 0 | J54: 0 | K54: =IF('RWH Calculator'!$C$67>0,'RWH Calculator'!$C$69,'RWH Calculator'!$C$57) -> 0 | L54: 0 | M54: 0 | N54: 0 | O54: 0 | P54: 0 | Q54: 0 | R54: 0 | S54: 0 | T54: 0 | U54: 0 | V54: 0 | W54: 0 | X54: 0
A55: 2001-02-14 | B55: 0 | C55: 0 | D55: =INDEX('RWH Calculator'!$Q$61:$Q$72,MATCH(F55,'RWH Calculator'!$K$61:$K$72,0)) -> 0 | E55: 0 | F55: 2 | G55: 2001 | H55: 0.06 | I55: 0 | J55: 0 | K55: =IF('RWH Calculator'!$C$67>0,'RWH Calculator'!$C$69,'RWH Calculator'!$C$57) -> 0 | L55: 0 | M55: 0 | N55: 0 | O55: 0 | P55: 0 | Q55: 0 | R55: 0 | S55: 0 | T55: 0 | U55: 0 | V55: 0 | W55: 0 | X55: 0
A56: 2001-02-15 | B56: 0 | C56: 0 | D56: =INDEX('RWH Calculator'!$Q$61:$Q$72,MATCH(F56,'RWH Calculator'!$K$61:$K$72,0)) -> 0 | E56: 0 | F56: 2 | G56: 2001 | H56: 0.06 | I56: 0 | J56: 0 | K56: =IF('RWH Calculator'!$C$67>0,'RWH Calculator'!$C$69,'RWH Calculator'!$C$57) -> 0 | L56: 0 | M56: 0 | N56: 0 | O56: 0 | P56: 0 | Q56: 0 | R56: 0 | S56: 0 | T56: 0 | U56: 0 | V56: 0 | W56: 0 | X56: 0
A57: 2001-02-16 | B57: 0 | C57: 0 | D57: =INDEX('RWH Calculator'!$Q$61:$Q$72,MATCH(F57,'RWH Calculator'!$K$61:$K$72,0)) -> 0 | E57: 0 | F57: 2 | G57: 2001 | H57: 0.06 | I57: 0 | J57: 0 | K57: =IF('RWH Calculator'!$C$67>0,'RWH Calculator'!$C$69,'RWH Calculator'!$C$57) -> 0 | L57: 0 | M57: 0 | N57: 0 | O57: 0 | P57: 0 | Q57: 0 | R57: 0 | S57: 0 | T57: 0 | U57: 0 | V57: 0 | W57: 0 | X57: 0
A58: 2001-02-17 | B58: 0.65 | C58: 0 | D58: =INDEX('RWH Calculator'!$Q$61:$Q$72,MATCH(F58,'RWH Calculator'!$K$61:$K$72,0)) -> 0 | E58: 0 | F58: 2 | G58: 2001 | H58: 0.06 | I58: 0 | J58: 0 | K58: =IF('RWH Calculator'!$C$67>0,'RWH Calculator'!$C$69,'RWH Calculator'!$C$57) -> 0 | L58: 0 | M58: 0 | N58: 0 | O58: 0 | P58: 0 | Q58: 0 | R58: 0 | S58: 0 | T58: 0 | U58: 0 | V58: 0 | W58: 0 | X58: 0
A59: 2001-02-18 | B59: 0.15 | C59: 0 | D59: =INDEX('RWH Calculator'!$Q$61:$Q$72,MATCH(F59,'RWH Calculator'!$K$61:$K$72,0)) -> 0 | E59: 0 | F59: 2 | G59: 2001 | H59: 0.06 | I59: 0 | J59: 0 | K59: =IF('RWH Calculator'!$C$67>0,'RWH Calculator'!$C$69,'RWH Calculator'!$C$57) -> 0 | L59: 0 | M59: 0 | N59: 0 | O59: 0 | P59: 0 | Q59: 0 | R59: 0 | S59: 0 | T59: 0 | U59: 0 | V59: 0 | W59: 0 | X59: 0
A60: 2001-02-19 | B60: 0.65 | C60: 0 | D60: =INDEX('RWH Calculator'!$Q$61:$Q$72,MATCH(F60,'RWH Calculator'!$K$61:$K$72,0)) -> 0 | E60: 0 | F60: 2 | G60: 2001 | H60: 0.06 | I60: 0 | J60: 0 | K60: =IF('RWH Calculator'!$C$67>0,'RWH Calculator'!$C$69,'RWH Calculator'!$C$57) -> 0 | L60: 0 | M60: 0 | N60: 0 | O60: 0 | P60: 0 | Q60: 0 | R60: 0 | S60: 0 | T60: 0 | U60: 0 | V60: 0 | W60: 0 | X60: 0
A61: 2001-02-20 | B61: 0.41 | C61: 0 | D61: =INDEX('RWH Calculator'!$Q$61:$Q$72,MATCH(F61,'RWH Calculator'!$K$61:$K$72,0)) -> 0 | E61: 0 | F61: 2 | G61: 2001 | H61: 0.06 | I61: 0 | J61: 0 | K61: =IF('RWH Calculator'!$C$67>0,'RWH Calculator'!$C$69,'RWH Calculator'!$C$57) -> 0 | L61: 0 | M61: 0 | N61: 0 | O61: 0 | P61: 0 | Q61: 0 | R61: 0 | S61: 0 | T61: 0 | U61: 0 | V61: 0 | W61: 0 | X61: 0
A62: 2001-02-21 | B62: 0.18 | C62: 0 | D62: =INDEX('RWH Calculator'!$Q$61:$Q$72,MATCH(F62,'RWH Calculator'!$K$61:$K$72,0)) -> 0 | E62: 0 | F62: 2 | G62: 2001 | H62: 0.06 | I62: 0 | J62: 0 | K62: =IF('RWH Calculator'!$C$67>0,'RWH Calculator'!$C$69,'RWH Calculator'!$C$57) -> 0 | L62: 0 | M62: 0 | N62: 0 | O62: 0 | P62: 0 | Q62: 0 | R62: 0 | S62: 0 | T62: 0 | U62: 0 | V62: 0 | W62: 0 | X62: 0
A63: 2001-02-22 | B63: 0.79 | C63: 0 | D63: =INDEX('RWH Calculator'!$Q$61:$Q$72,MATCH(F63,'RWH Calculator'!$K$61:$K$72,0)) -> 0 | E63: 0 | F63: 2 | G63: 2001 | H63: 0.06 | I63: 0 | J63: 0 | K63: =IF('RWH Calculator'!$C$67>0,'RWH Calculator'!$C$69,'RWH Calculator'!$C$57) -> 0 | L63: 0 | M63: 0 | N63: 0 | O63: 0 | P63: 0 | Q63: 0 | R63: 0 | S63: 0 | T63: 0 | U63: 0 | V63: 0 | W63: 0 | X63: 0
A64: 2001-02-23 | B64: 0.1 | C64: 0 | D64: =INDEX('RWH Calculator'!$Q$61:$Q$72,MATCH(F64,'RWH Calculator'!$K$61:$K$72,0)) -> 0 | E64: 0 | F64: 2 | G64: 2001 | H64: 0.06 | I64: 0 | J64: 0 | K64: =IF('RWH Calculator'!$C$67>0,'RWH Calculator'!$C$69,'RWH Calculator'!$C$57) -> 0 | L64: 0 | M64: 0 | N64: 0 | O64: 0 | P64: 0 | Q64: 0 | R64: 0 | S64: 0 | T64: 0 | U64: 0 | V64: 0 | W64: 0 | X64: 0
A65: 2001-02-24 | B65: 0.93 | C65: 0 | D65: =INDEX('RWH Calculator'!$Q$61:$Q$72,MATCH(F65,'RWH Calculator'!$K$61:$K$72,0)) -> 0 | E65: 0 | F65: 2 | G65: 2001 | H65: 0.06 | I65: 0 | J65: 0 | K65: =IF('RWH Calculator'!$C$67>0,'RWH Calculator'!$C$69,'RWH Calculator'!$C$57) -> 0 | L65: 0 | M65: 0 | N65: 0 | O65: 0 | P65: 0 | Q65: 0 | R65: 0 | S65: 0 | T65: 0 | U65: 0 | V65: 0 | W65: 0 | X65: 0
A66: 2001-02-25 | B66: 0.35 | C66: 0 | D66: =INDEX('RWH Calculator'!$Q$61:$Q$72,MATCH(F66,'RWH Calculator'!$K$61:$K$72,0)) -> 0 | E66: 0 | F66: 2 | G66: 2001 | H66: 0.06 | I66: 0 | J66: 0 | K66: =IF('RWH Calculator'!$C$67>0,'RWH Calculator'!$C$69,'RWH Calculator'!$C$57) -> 0 | L66: 0 | M66: 0 | N66: 0 | O66: 0 | P66: 0 | Q66: 0 | R66: 0 | S66: 0 | T66: 0 | U66: 0 | V66: 0 | W66: 0 | X66: 0
A67: 2001-02-26 | B67: 0 | C67: 0 | D67: =INDEX('RWH Calculator'!$Q$61:$Q$72,MATCH(F67,'RWH Calculator'!$K$61:$K$72,0)) -> 0 | E67: 0 | F67: 2 | G67: 2001 | H67: 0.06 | I67: 0 | J67: 0 | K67: =IF('RWH Calculator'!$C$67>0,'RWH Calculator'!$C$69,'RWH Calculator'!$C$57) -> 0 | L67: 0 | M67: 0 | N67: 0 | O67: 0 | P67: 0 | Q67: 0 | R67: 0 | S67: 0 | T67: 0 | U67: 0 | V67: 0 | W67: 0 | X67: 0
A68: 2001-02-27 | B68: 0 | C68: 0 | D68: =INDEX('RWH Calculator'!$Q$61:$Q$72,MATCH(F68,'RWH Calculator'!$K$61:$K$72,0)) -> 0 | E68: 0 | F68: 2 | G68: 2001 | H68: 0.06 | I68: 0 | J68: 0 | K68: =IF('RWH Calculator'!$C$67>0,'RWH Calculator'!$C$69,'RWH Calculator'!$C$57) -> 0 | L68: 0 | M68: 0 | N68: 0 | O68: 0 | P68: 0 | Q68: 0 | R68: 0 | S68: 0 | T68: 0 | U68: 0 | V68: 0 | W68: 0 | X68: 0
A69: 2001-02-28 | B69: 0 | C69: 0 | D69: =INDEX('RWH Calculator'!$Q$61:$Q$72,MATCH(F69,'RWH Calculator'!$K$61:$K$72,0)) -> 0 | E69: 0 | F69: 2 | G69: 2001 | H69: 0.06 | I69: 0 | J69: 0 | K69: =IF('RWH Calculator'!$C$67>0,'RWH Calculator'!$C$69,'RWH Calculator'!$C$57) -> 0 | L69: 0 | M69: 0 | N69: 0 | O69: 0 | P69: 0 | Q69: 0 | R69: 0 | S69: 0 | T69: 0 | U69: 0 | V69: 0 | W69: 0 | X69: 0
A70: 2001-03-01 | B70: 0.06 | C70: 0 | D70: =INDEX('RWH Calculator'!$Q$61:$Q$72,MATCH(F70,'RWH Calculator'!$K$61:$K$72,0)) -> 0 | E70: 0 | F70: 3 | G70: 2001 | H70: 0.1 | I70: 0 | J70: 0 | K70: =IF('RWH Calculator'!$C$67>0,'RWH Calculator'!$C$69,'RWH Calculator'!$C$57) -> 0 | L70: 0 | M70: 0 | N70: 0 | O70: 0 | P70: 0 | Q70: 0 | R70: 0 | S70: 0 | T70: 0 | U70: 0 | V70: 0 | W70: 0 | X70: 0
A71: 2001-03-02 | B71: 0.2 | C71: 0 | D71: =INDEX('RWH Calculator'!$Q$61:$Q$72,MATCH(F71,'RWH Calculator'!$K$61:$K$72,0)) -> 0 | E71: 0 | F71: 3 | G71: 2001 | H71: 0.1 | I71: 0 | J71: 0 | K71: =IF('RWH Calculator'!$C$67>0,'RWH Calculator'!$C$69,'RWH Calculator'!$C$57) -> 0 | L71: 0 | M71: 0 | N71: 0 | O71: 0 | P71: 0 | Q71: 0 | R71: 0 | S71: 0 | T71: 0 | U71: 0 | V71: 0 | W71: 0 | X71: 0
A72: 2001-03-03 | B72: 0.23 | C72: 0 | D72: =INDEX('RWH Calculator'!$Q$61:$Q$72,MATCH(F72,'RWH Calculator'!$K$61:$K$72,0)) -> 0 | E72: 0 | F72: 3 | G72: 2001 | H72: 0.1 | I72: 0 | J72: 0 | K72: =IF('RWH Calculator'!$C$67>0,'RWH Calculator'!$C$69,'RWH Calculator'!$C$57) -> 0 | L72: 0 | M72: 0 | N72: 0 | O72: 0 | P72: 0 | Q72: 0 | R72: 0 | S72: 0 | T72: 0 | U72: 0 | V72: 0 | W72: 0 | X72: 0
A73: 2001-03-04 | B73: 0.85 | C73: 0 | D73: =INDEX('RWH Calculator'!$Q$61:$Q$72,MATCH(F73,'RWH Calculator'!$K$61:$K$72,0)) -> 0 | E73: 0 | F73: 3 | G73: 2001 | H73: 0.1 | I73: 0 | J73: 0 | K73: =IF('RWH Calculator'!$C$67>0,'RWH Calculator'!$C$69,'RWH Calculator'!$C$57) -> 0 | L73: 0 | M73: 0 | N73: 0 | O73: 0 | P73: 0 | Q73: 0 | R73: 0 | S73: 0 | T73: 0 | U73: 0 | V73: 0 | W73: 0 | X73: 0
A74: 2001-03-05 | B74: 0.12 | C74: 0 | D74: =INDEX('RWH Calculator'!$Q$61:$Q$72,MATCH(F74,'RWH Calculator'!$K$61:$K$72,0)) -> 0 | E74: 0 | F74: 3 | G74: 2001 | H74: 0.1 | I74: 0 | J74: 0 | K74: =IF('RWH Calculator'!$C$67>0,'RWH Calculator'!$C$69,'RWH Calculator'!$C$57) -> 0 | L74: 0 | M74: 0 | N74: 0 | O74: 0 | P74: 0 | Q74: 0 | R74: 0 | S74: 0 | T74: 0 | U74: 0 | V74: 0 | W74: 0 | X74: 0
A75: 2001-03-06 | B75: 0.01 | C75: 0 | D75: =INDEX('RWH Calculator'!$Q$61:$Q$72,MATCH(F75,'RWH Calculator'!$K$61:$K$72,0)) -> 0 | E75: 0 | F75: 3 | G75: 2001 | H75: =IF($B$2="Western SF", VLOOKUP(F75,$Z$13:$AC$24, 4),VLOOKUP(F75, $Z$13:$AD$24,5)) -> 0.1 | I75: 0 | J75: =(IF(I75-B75>0,(I75-B75)/$B$7,0)/12*7.48)*$B$8 -> 0 | K75: =IF('RWH Calculator'!$C$67>0,'RWH Calculator'!$C$69,'RWH Calculator'!$C$57) -> 0 | L75: 0 | M75: 0 | N75: 0 | O75: 0 | P75: 0 | Q75: 0 | R75: 0 | S75: 0 | T75: 0 | U75: 0 | V75: 0 | W75: 0 | X75: 0
A76: 2001-03-07 | B76: 0 | C76: 0 | D76: =INDEX('RWH Calculator'!$Q$61:$Q$72,MATCH(F76,'RWH Calculator'!$K$61:$K$72,0)) -> 0 | E76: 0 | F76: =MONTH(A76) -> 3 | G76: =YEAR(A76) -> 2001 | H76: 0.1 | I76: =H76*$B$6 -> 0 | J76: 0 | K76: =IF('RWH Calculator'!$C$67>0,'RWH Calculator'!$C$69,'RWH Calculator'!$C$57) -> 0 | L76: =J76+K76 -> 0 | M76: 0 | N76: 0 | O76: 0 | P76: =IF(L76>E76,E76, M76-M75+L76) -> 0 | Q76: =IF(D76>L76,L76,D76) -> 0 | R76: 0 | S76: =IF(E76+M75>L76,L76, E76+M75) -> 0 | T76: 0 | U76: 0 | V76: 0 | W76: =M75+E76-L76 -> 0 | X76: 0
A77: 2001-03-08 | B77: 0 | C77: =$B$3*$B$4*(B77/12)*7.48 -> 0 | D77: =INDEX('RWH Calculator'!$Q$61:$Q$72,MATCH(F77,'RWH Calculator'!$K$61:$K$72,0)) -> 0 | E77: =C77+D77 -> 0 | F77: 3 | G77: 2001 | H77: 0.1 | I77: 0 | J77: 0 | K77: =IF('RWH Calculator'!$C$67>0,'RWH Calculator'!$C$69,'RWH Calculator'!$C$57) -> 0 | L77: 0 | M77: =IF(W77<0, 0, IF(W77>$J$2, $J$2, W77)) -> 0 | N77: =D77-T77 -> 0 | O77: =C77-U77 -> 0 | P77: 0 | Q77: 0 | R77: =MAX(0, IF(C77>(L77-D77),L77-D77,C77)) -> 0 | S77: 0 | T77: =MAX(0, M76+D77-Q77-$J$2) -> 0 | U77: =MAX(0, M76+C77+D77-Q77-R77-T77-$J$2) -> 0 | V77: =IF(E77>L77, E77-L77-(M77-M76),0) -> 0 | W77: 0 | X77: =X76+S77/1000000 -> 0
A78: 2001-03-09 | B78: 0 | C78: 0 | D78: =INDEX('RWH Calculator'!$Q$61:$Q$72,MATCH(F78,'RWH Calculator'!$K$61:$K$72,0)) -> 0 | E78: 0 | F78: 3 | G78: 2001 | H78: 0.1 | I78: 0 | J78: 0 | K78: =IF('RWH Calculator'!$C$67>0,'RWH Calculator'!$C$69,'RWH Calculator'!$C$57) -> 0 | L78: 0 | M78: 0 | N78: 0 | O78: 0 | P78: 0 | Q78: 0 | R78: 0 | S78: 0 | T78: 0 | U78: 0 | V78: 0 | W78: 0 | X78: 0
A79: 2001-03-10 | B79: 0 | C79: 0 | D79: =INDEX('RWH Calculator'!$Q$61:$Q$72,MATCH(F79,'RWH Calculator'!$K$61:$K$72,0)) -> 0 | E79: 0 | F79: 3 | G79: 2001 | H79: 0.1 | I79: 0 | J79: 0 | K79: =IF('RWH Calculator'!$C$67>0,'RWH Calculator'!$C$69,'RWH Calculator'!$C$57) -> 0 | L79: 0 | M79: 0 | N79: 0 | O79: 0 | P79: 0 | Q79: 0 | R79: 0 | S79: 0 | T79: 0 | U79: 0 | V79: 0 | W79: 0 | X79: 0
A80: 2001-03-11 | B80: 0 | C80: 0 | D80: =INDEX('RWH Calculator'!$Q$61:$Q$72,MATCH(F80,'RWH Calculator'!$K$61:$K$72,0)) -> 0 | E80: 0 | F80: 3 | G80: 2001 | H80: 0.1 | I80: 0 | J80: 0 | K80: =IF('RWH Calculator'!$C$67>0,'RWH Calculator'!$C$69,'RWH Calculator'!$C$57) -> 0 | L80: 0 | M80: 0 | N80: 0 | O80: 0 | P80: 0 | Q80: 0 | R80: 0 | S80: 0 | T80: 0 | U80: 0 | V80: 0 | W80: 0 | X80: 0
A81: 2001-03-12 | B81: 0 | C81: 0 | D81: =INDEX('RWH Calculator'!$Q$61:$Q$72,MATCH(F81,'RWH Calculator'!$K$61:$K$72,0)) -> 0 | E81: 0 | F81: 3 | G81: 2001 | H81: 0.1 | I81: 0 | J81: 0 | K81: =IF('RWH Calculator'!$C$67>0,'RWH Calculator'!$C$69,'RWH Calculator'!$C$57) -> 0 | L81: 0 | M81: 0 | N81: 0 | O81: 0 | P81: 0 | Q81: 0 | R81: 0 | S81: 0 | T81: 0 | U81: 0 | V81: 0 | W81: 0 | X81: 0
A82: 2001-03-13 | B82: 0 | C82: 0 | D82: =INDEX('RWH Calculator'!$Q$61:$Q$72,MATCH(F82,'RWH Calculator'!$K$61:$K$72,0)) -> 0 | E82: 0 | F82: 3 | G82: 2001 | H82: 0.1 | I82: 0 | J82: 0 | K82: =IF('RWH Calculator'!$C$67>0,'RWH Calculator'!$C$69,'RWH Calculator'!$C$57) -> 0 | L82: 0 | M82: 0 | N82: 0 | O82: 0 | P82: 0 | Q82: 0 | R82: 0 | S82: 0 | T82: 0 | U82: 0 | V82: 0 | W82: 0 | X82: 0
A83: 2001-03-14 | B83: 0 | C83: 0 | D83: =INDEX('RWH Calculator'!$Q$61:$Q$72,MATCH(F83,'RWH Calculator'!$K$61:$K$72,0)) -> 0 | E83: 0 | F83: 3 | G83: 2001 | H83: 0.1 | I83: 0 | J83: 0 | K83: =IF('RWH Calculator'!$C$67>0,'RWH Calculator'!$C$69,'RWH Calculator'!$C$57) -> 0 | L83: 0 | M83: 0 | N83: 0 | O83: 0 | P83: 0 | Q83: 0 | R83: 0 | S83: 0 | T83: 0 | U83: 0 | V83: 0 | W83: 0 | X83: 0
A84: 2001-03-15 | B84: 0 | C84: 0 | D84: =INDEX('RWH Calculator'!$Q$61:$Q$72,MATCH(F84,'RWH Calculator'!$K$61:$K$72,0)) -> 0 | E84: 0 | F84: 3 | G84: 2001 | H84: 0.1 | I84: 0 | J84: 0 | K84: =IF('RWH Calculator'!$C$67>0,'RWH Calculator'!$C$69,'RWH Calculator'!$C$57) -> 0 | L84: 0 | M84: 0 | N84: 0 | O84: 0 | P84: 0 | Q84: 0 | R84: 0 | S84: 0 | T84: 0 | U84: 0 | V84: 0 | W84: 0 | X84: 0
A85: 2001-03-16 | B85: 0 | C85: 0 | D85: =INDEX('RWH Calculator'!$Q$61:$Q$72,MATCH(F85,'RWH Calculator'!$K$61:$K$72,0)) -> 0 | E85: 0 | F85: 3 | G85: 2001 | H85: 0.1 | I85: 0 | J85: 0 | K85: =IF('RWH Calculator'!$C$67>0,'RWH Calculator'!$C$69,'RWH Calculator'!$C$57) -> 0 | L85: 0 | M85: 0 | N85: 0 | O85: 0 | P85: 0 | Q85: 0 | R85: 0 | S85: 0 | T85: 0 | U85: 0 | V85: 0 | W85: 0 | X85: 0
A86: 2001-03-17 | B86: 0 | C86: 0 | D86: =INDEX('RWH Calculator'!$Q$61:$Q$72,MATCH(F86,'RWH Calculator'!$K$61:$K$72,0)) -> 0 | E86: 0 | F86: 3 | G86: 2001 | H86: 0.1 | I86: 0 | J86: 0 | K86: =IF('RWH Calculator'!$C$67>0,'RWH Calculator'!$C$69,'RWH Calculator'!$C$57) -> 0 | L86: 0 | M86: 0 | N86: 0 | O86: 0 | P86: 0 | Q86: 0 | R86: 0 | S86: 0 | T86: 0 | U86: 0 | V86: 0 | W86: 0 | X86: 0
A87: 2001-03-18 | B87: 0 | C87: 0 | D87: =INDEX('RWH Calculator'!$Q$61:$Q$72,MATCH(F87,'RWH Calculator'!$K$61:$K$72,0)) -> 0 | E87: 0 | F87: 3 | G87: 2001 | H87: 0.1 | I87: 0 | J87: 0 | K87: =IF('RWH Calculator'!$C$67>0,'RWH Calculator'!$C$69,'RWH Calculator'!$C$57) -> 0 | L87: 0 | M87: 0 | N87: 0 | O87: 0 | P87: 0 | Q87: 0 | R87: 0 | S87: 0 | T87: 0 | U87: 0 | V87: 0 | W87: 0 | X87: 0
A88: 2001-03-19 | B88: 0 | C88: 0 | D88: =INDEX('RWH Calculator'!$Q$61:$Q$72,MATCH(F88,'RWH Calculator'!$K$61:$K$72,0)) -> 0 | E88: 0 | F88: 3 | G88: 2001 | H88: 0.1 | I88: 0 | J88: 0 | K88: =IF('RWH Calculator'!$C$67>0,'RWH Calculator'!$C$69,'RWH Calculator'!$C$57) -> 0 | L88: 0 | M88: 0 | N88: 0 | O88: 0 | P88: 0 | Q88: 0 | R88: 0 | S88: 0 | T88: 0 | U88: 0 | V88: 0 | W88: 0 | X88: 0
A89: 2001-03-20 | B89: 0 | C89: 0 | D89: =INDEX('RWH Calculator'!$Q$61:$Q$72,MATCH(F89,'RWH Calculator'!$K$61:$K$72,0)) -> 0 | E89: 0 | F89: 3 | G89: 2001 | H89: 0.1 | I89: 0 | J89: 0 | K89: =IF('RWH Calculator'!$C$67>0,'RWH Calculator'!$C$69,'RWH Calculator'!$C$57) -> 0 | L89: 0 | M89: 0 | N89: 0 | O89: 0 | P89: 0 | Q89: 0 | R89: 0 | S89: 0 | T89: 0 | U89: 0 | V89: 0 | W89: 0 | X89: 0
A90: 2001-03-21 | B90: 0 | C90: 0 | D90: =INDEX('RWH Calculator'!$Q$61:$Q$72,MATCH(F90,'RWH Calculator'!$K$61:$K$72,0)) -> 0 | E90: 0 | F90: 3 | G90: 2001 | H90: 0.1 | I90: 0 | J90: 0 | K90: =IF('RWH Calculator'!$C$67>0,'RWH Calculator'!$C$69,'RWH Calculator'!$C$57) -> 0 | L90: 0 | M90: 0 | N90: 0 | O90: 0 | P90: 0 | Q90: 0 | R90: 0 | S90: 0 | T90: 0 | U90: 0 | V90: 0 | W90: 0 | X90: 0
A91: 2001-03-22 | B91: 0 | C91: 0 | D91: =INDEX('RWH Calculator'!$Q$61:$Q$72,MATCH(F91,'RWH Calculator'!$K$61:$K$72,0)) -> 0 | E91: 0 | F91: 3 | G91: 2001 | H91: 0.1 | I91: 0 | J91: 0 | K91: =IF('RWH Calculator'!$C$67>0,'RWH Calculator'!$C$69,'RWH Calculator'!$C$57) -> 0 | L91: 0 | M91: 0 | N91: 0 | O91: 0 | P91: 0 | Q91: 0 | R91: 0 | S91: 0 | T91: 0 | U91: 0 | V91: 0 | W91: 0 | X91: 0
A92: 2001-03-23 | B92: 0 | C92: 0 | D92: =INDEX('RWH Calculator'!$Q$61:$Q$72,MATCH(F92,'RWH Calculator'!$K$61:$K$72,0)) -> 0 | E92: 0 | F92: 3 | G92: 2001 | H92: 0.1 | I92: 0 | J92: 0 | K92: =IF('RWH Calculator'!$C$67>0,'RWH Calculator'!$C$69,'RWH Calculator'!$C$57) -> 0 | L92: 0 | M92: 0 | N92: 0 | O92: 0 | P92: 0 | Q92: 0 | R92: 0 | S92: 0 | T92: 0 | U92: 0 | V92: 0 | W92: 0 | X92: 0
A93: 2001-03-24 | B93: 0.06 | C93: 0 | D93: =INDEX('RWH Calculator'!$Q$61:$Q$72,MATCH(F93,'RWH Calculator'!$K$61:$K$72,0)) -> 0 | E93: 0 | F93: 3 | G93: 2001 | H93: 0.1 | I93: 0 | J93: 0 | K93: =IF('RWH Calculator'!$C$67>0,'RWH Calculator'!$C$69,'RWH Calculator'!$C$57) -> 0 | L93: 0 | M93: 0 | N93: 0 | O93: 0 | P93: 0 | Q93: 0 | R93: 0 | S93: 0 | T93: 0 | U93: 0 | V93: 0 | W93: 0 | X93: 0
A94: 2001-03-25 | B94: 0.05 | C94: 0 | D94: =INDEX('RWH Calculator'!$Q$61:$Q$72,MATCH(F94,'RWH Calculator'!$K$61:$K$72,0)) -> 0 | E94: 0 | F94: 3 | G94: 2001 | H94: 0.1 | I94: 0 | J94: 0 | K94: =IF('RWH Calculator'!$C$67>0,'RWH Calculator'!$C$69,'RWH Calculator'!$C$57) -> 0 | L94: 0 | M94: 0 | N94: 0 | O94: 0 | P94: 0 | Q94: 0 | R94: 0 | S94: 0 | T94: 0 | U94: 0 | V94: 0 | W94: 0 | X94: 0
A95: 2001-03-26 | B95: 0 | C95: 0 | D95: =INDEX('RWH Calculator'!$Q$61:$Q$72,MATCH(F95,'RWH Calculator'!$K$61:$K$72,0)) -> 0 | E95: 0 | F95: 3 | G95: 2001 | H95: 0.1 | I95: 0 | J95: 0 | K95: =IF('RWH Calculator'!$C$67>0,'RWH Calculator'!$C$69,'RWH Calculator'!$C$57) -> 0 | L95: 0 | M95: 0 | N95: 0 | O95: 0 | P95: 0 | Q95: 0 | R95: 0 | S95: 0 | T95: 0 | U95: 0 | V95: 0 | W95: 0 | X95: 0
A96: 2001-03-27 | B96: 0 | C96: 0 | D96: =INDEX('RWH Calculator'!$Q$61:$Q$72,MATCH(F96,'RWH Calculator'!$K$61:$K$72,0)) -> 0 | E96: 0 | F96: 3 | G96: 2001 | H96: 0.1 | I96: 0 | J96: 0 | K96: =IF('RWH Calculator'!$C$67>0,'RWH Calculator'!$C$69,'RWH Calculator'!$C$57) -> 0 | L96: 0 | M96: 0 | N96: 0 | O96: 0 | P96: 0 | Q96: 0 | R96: 0 | S96: 0 | T96: 0 | U96: 0 | V96: 0 | W96: 0 | X96: 0
A97: 2001-03-28 | B97: 0 | C97: 0 | D97: =INDEX('RWH Calculator'!$Q$61:$Q$72,MATCH(F97,'RWH Calculator'!$K$61:$K$72,0)) -> 0 | E97: 0 | F97: 3 | G97: 2001 | H97: 0.1 | I97: 0 | J97: 0 | K97: =IF('RWH Calculator'!$C$67>0,'RWH Calculator'!$C$69,'RWH Calculator'!$C$57) -> 0 | L97: 0 | M97: 0 | N97: 0 | O97: 0 | P97: 0 | Q97: 0 | R97: 0 | S97: 0 | T97: 0 | U97: 0 | V97: 0 | W97: 0 | X97: 0
A98: 2001-03-29 | B98: 0 | C98: 0 | D98: =INDEX('RWH Calculator'!$Q$61:$Q$72,MATCH(F98,'RWH Calculator'!$K$61:$K$72,0)) -> 0 | E98: 0 | F98: 3 | G98: 2001 | H98: 0.1 | I98: 0 | J98: 0 | K98: =IF('RWH Calculator'!$C$67>0,'RWH Calculator'!$C$69,'RWH Calculator'!$C$57) -> 0 | L98: 0 | M98: 0 | N98: 0 | O98: 0 | P98: 0 | Q98: 0 | R98: 0 | S98: 0 | T98: 0 | U98: 0 | V98: 0 | W98: 0 | X98: 0
A99: 2001-03-30 | B99: 0 | C99: 0 | D99: =INDEX('RWH Calculator'!$Q$61:$Q$72,MATCH(F99,'RWH Calculator'!$K$61:$K$72,0)) -> 0 | E99: 0 | F99: 3 | G99: 2001 | H99: 0.1 | I99: 0 | J99: 0 | K99: =IF('RWH Calculator'!$C$67>0,'RWH Calculator'!$C$69,'RWH Calculator'!$C$57) -> 0 | L99: 0 | M99: 0 | N99: 0 | O99: 0 | P99: 0 | Q99: 0 | R99: 0 | S99: 0 | T99: 0 | U99: 0 | V99: 0 | W99: 0 | X99: 0
A100: 2001-03-31 | B100: 0 | C100: 0 | D100: =INDEX('RWH Calculator'!$Q$61:$Q$72,MATCH(F100,'RWH Calculator'!$K$61:$K$72,0)) -> 0 | E100: 0 | F100: 3 | G100: 2001 | H100: 0.1 | I100: 0 | J100: 0 | K100: =IF('RWH Calculator'!$C$67>0,'RWH Calculator'!$C$69,'RWH Calculator'!$C$57) -> 0 | L100: 0 | M100: 0 | N100: 0 | O100: 0 | P100: 0 | Q100: 0 | R100: 0 | S100: 0 | T100: 0 | U100: 0 | V100: 0 | W100: 0 | X100: 0
A101: 2001-04-01 | B101: 0 | C101: 0 | D101: =INDEX('RWH Calculator'!$Q$61:$Q$72,MATCH(F101,'RWH Calculator'!$K$61:$K$72,0)) -> 0 | E101: 0 | F101: 4 | G101: 2001 | H101: 0.13 | I101: 0 | J101: 0 | K101: =IF('RWH Calculator'!$C$67>0,'RWH Calculator'!$C$69,'RWH Calculator'!$C$57) -> 0 | L101: 0 | M101: 0 | N101: 0 | O101: 0 | P101: 0 | Q101: 0 | R101: 0 | S101: 0 | T101: 0 | U101: 0 | V101: 0 | W101: 0 | X101: 0
A102: 2001-04-02 | B102: 0 | C102: 0 | D102: =INDEX('RWH Calculator'!$Q$61:$Q$72,MATCH(F102,'RWH Calculator'!$K$61:$K$72,0)) -> 0 | E102: 0 | F102: 4 | G102: 2001 | H102: 0.13 | I102: 0 | J102: 0 | K102: =IF('RWH Calculator'!$C$67>0,'RWH Calculator'!$C$69,'RWH Calculator'!$C$57) -> 0 | L102: 0 | M102: 0 | N102: 0 | O102: 0 | P102: 0 | Q102: 0 | R102: 0 | S102: 0 | T102: 0 | U102: 0 | V102: 0 | W102: 0 | X102: 0
A103: 2001-04-03 | B103: 0 | C103: 0 | D103: =INDEX('RWH Calculator'!$Q$61:$Q$72,MATCH(F103,'RWH Calculator'!$K$61:$K$72,0)) -> 0 | E103: 0 | F103: 4 | G103: 2001 | H103: 0.13 | I103: 0 | J103: 0 | K103: =IF('RWH Calculator'!$C$67>0,'RWH Calculator'!$C$69,'RWH Calculator'!$C$57) -> 0 | L103: 0 | M103: 0 | N103: 0 | O103: 0 | P103: 0 | Q103: 0 | R103: 0 | S103: 0 | T103: 0 | U103: 0 | V103: 0 | W103: 0 | X103: 0
A104: 2001-04-04 | B104: 0 | C104: 0 | D104: =INDEX('RWH Calculator'!$Q$61:$Q$72,MATCH(F104,'RWH Calculator'!$K$61:$K$72,0)) -> 0 | E104: 0 | F104: 4 | G104: 2001 | H104: 0.13 | I104: 0 | J104: 0 | K104: =IF('RWH Calculator'!$C$67>0,'RWH Calculator'!$C$69,'RWH Calculator'!$C$57) -> 0 | L104: 0 | M104: 0 | N104: 0 | O104: 0 | P104: 0 | Q104: 0 | R104: 0 | S104: 0 | T104: 0 | U104: 0 | V104: 0 | W104: 0 | X104: 0
A105: 2001-04-05 | B105: 0 | C105: 0 | D105: =INDEX('RWH Calculator'!$Q$61:$Q$72,MATCH(F105,'RWH Calculator'!$K$61:$K$72,0)) -> 0 | E105: 0 | F105: 4 | G105: 2001 | H105: 0.13 | I105: 0 | J105: 0 | K105: =IF('RWH Calculator'!$C$67>0,'RWH Calculator'!$C$69,'RWH Calculator'!$C$57) -> 0 | L105: 0 | M105: 0 | N105: 0 | O105: 0 | P105: 0 | Q105: 0 | R105: 0 | S105: 0 | T105: 0 | U105: 0 | V105: 0 | W105: 0 | X105: 0
A106: 2001-04-06 | B106: 0.25 | C106: 0 | D106: =INDEX('RWH Calculator'!$Q$61:$Q$72,MATCH(F106,'RWH Calculator'!$K$61:$K$72,0)) -> 0 | E106: 0 | F106: 4 | G106: 2001 | H106: 0.13 | I106: 0 | J106: 0 | K106: =IF('RWH Calculator'!$C$67>0,'RWH Calculator'!$C$69,'RWH Calculator'!$C$57) -> 0 | L106: 0 | M106: 0 | N106: 0 | O106: 0 | P106: 0 | Q106: 0 | R106: 0 | S106: 0 | T106: 0 | U106: 0 | V106: 0 | W106: 0 | X106: 0
A107: 2001-04-07 | B107: 0.26 | C107: 0 | D107: =INDEX('RWH Calculator'!$Q$61:$Q$72,MATCH(F107,'RWH Calculator'!$K$61:$K$72,0)) -> 0 | E107: 0 | F107: 4 | G107: 2001 | H107: 0.13 | I107: 0 | J107: 0 | K107: =IF('RWH Calculator'!$C$67>0,'RWH Calculator'!$C$69,'RWH Calculator'!$C$57) -> 0 | L107: 0 | M107: 0 | N107: 0 | O107: 0 | P107: 0 | Q107: 0 | R107: 0 | S107: 0 | T107: 0 | U107: 0 | V107: 0 | W107: 0 | X107: 0
A108: 2001-04-08 | B108: 0 | C108: 0 | D108: =INDEX('RWH Calculator'!$Q$61:$Q$72,MATCH(F108,'RWH Calculator'!$K$61:$K$72,0)) -> 0 | E108: 0 | F108: 4 | G108: 2001 | H108: 0.13 | I108: 0 | J108: 0 | K108: =IF('RWH Calculator'!$C$67>0,'RWH Calculator'!$C$69,'RWH Calculator'!$C$57) -> 0 | L108: 0 | M108: 0 | N108: 0 | O108: 0 | P108: 0 | Q108: 0 | R108: 0 | S108: 0 | T108: 0 | U108: 0 | V108: 0 | W108: 0 | X108: 0
A109: 2001-04-09 | B109: 0.28 | C109: 0 | D109: =INDEX('RWH Calculator'!$Q$61:$Q$72,MATCH(F109,'RWH Calculator'!$K$61:$K$72,0)) -> 0 | E109: 0 | F109: 4 | G109: 2001 | H109: 0.13 | I109: 0 | J109: 0 | K109: =IF('RWH Calculator'!$C$67>0,'RWH Calculator'!$C$69,'RWH Calculator'!$C$57) -> 0 | L109: 0 | M109: 0 | N109: 0 | O109: 0 | P109: 0 | Q109: 0 | R109: 0 | S109: 0 | T109: 0 | U109: 0 | V109: 0 | W109: 0 | X109: 0
A110: 2001-04-10 | B110: 0 | C110: 0 | D110: =INDEX('RWH Calculator'!$Q$61:$Q$72,MATCH(F110,'RWH Calculator'!$K$61:$K$72,0)) -> 0 | E110: 0 | F110: 4 | G110: 2001 | H110: 0.13 | I110: 0 | J110: 0 | K110: =IF('RWH Calculator'!$C$67>0,'RWH Calculator'!$C$69,'RWH Calculator'!$C$57) -> 0 | L110: 0 | M110: 0 | N110: 0 | O110: 0 | P110: 0 | Q110: 0 | R110: 0 | S110: 0 | T110: 0 | U110: 0 | V110: 0 | W110: 0 | X110: 0
A111: 2001-04-11 | B111: 0.08 | C111: 0 | D111: =INDEX('RWH Calculator'!$Q$61:$Q$72,MATCH(F111,'RWH Calculator'!$K$61:$K$72,0)) -> 0 | E111: 0 | F111: 4 | G111: 2001 | H111: 0.13 | I111: 0 | J111: 0 | K111: =IF('RWH Calculator'!$C$67>0,'RWH Calculator'!$C$69,'RWH Calculator'!$C$57) -> 0 | L111: 0 | M111: 0 | N111: 0 | O111: 0 | P111: 0 | Q111: 0 | R111: 0 | S111: 0 | T111: 0 | U111: 0 | V111: 0 | W111: 0 | X111: 0
A112: 2001-04-12 | B112: 0 | C112: 0 | D112: =INDEX('RWH Calculator'!$Q$61:$Q$72,MATCH(F112,'RWH Calculator'!$K$61:$K$72,0)) -> 0 | E112: 0 | F112: 4 | G112: 2001 | H112: 0.13 | I112: 0 | J112: 0 | K112: =IF('RWH Calculator'!$C$67>0,'RWH Calculator'!$C$69,'RWH Calculator'!$C$57) -> 0 | L112: 0 | M112: 0 | N112: 0 | O112: 0 | P112: 0 | Q112: 0 | R112: 0 | S112: 0 | T112: 0 | U112: 0 | V112: 0 | W112: 0 | X112: 0
A113: 2001-04-13 | B113: 0 | C113: 0 | D113: =INDEX('RWH Calculator'!$Q$61:$Q$72,MATCH(F113,'RWH Calculator'!$K$61:$K$72,0)) -> 0 | E113: 0 | F113: 4 | G113: 2001 | H113: 0.13 | I113: 0 | J113: 0 | K113: =IF('RWH Calculator'!$C$67>0,'RWH Calculator'!$C$69,'RWH Calculator'!$C$57) -> 0 | L113: 0 | M113: 0 | N113: 0 | O113: 0 | P113: 0 | Q113: 0 | R113: 0 | S113: 0 | T113: 0 | U113: 0 | V113: 0 | W113: 0 | X113: 0
A114: 2001-04-14 | B114: 0 | C114: 0 | D114: =INDEX('RWH Calculator'!$Q$61:$Q$72,MATCH(F114,'RWH Calculator'!$K$61:$K$72,0)) -> 0 | E114: 0 | F114: 4 | G114: 2001 | H114: 0.13 | I114: 0 | J114: 0 | K114: =IF('RWH Calculator'!$C$67>0,'RWH Calculator'!$C$69,'RWH Calculator'!$C$57) -> 0 | L114: 0 | M114: 0 | N114: 0 | O114: 0 | P114: 0 | Q114: 0 | R114: 0 | S114: 0 | T114: 0 | U114: 0 | V114: 0 | W114: 0 | X114: 0
A115: 2001-04-15 | B115: 0 | C115: 0 | D115: =INDEX('RWH Calculator'!$Q$61:$Q$72,MATCH(F115,'RWH Calculator'!$K$61:$K$72,0)) -> 0 | E115: 0 | F115: 4 | G115: 2001 | H115: 0.13 | I115: 0 | J115: 0 | K115: =IF('RWH Calculator'!$C$67>0,'RWH Calculator'!$C$69,'RWH Calculator'!$C$57) -> 0 | L115: 0 | M115: 0 | N115: 0 | O115: 0 | P115: 0 | Q115: 0 | R115: 0 | S115: 0 | T115: 0 | U115: 0 | V115: 0 | W115: 0 | X115: 0
A116: 2001-04-16 | B116: 0 | C116: 0 | D116: =INDEX('RWH Calculator'!$Q$61:$Q$72,MATCH(F116,'RWH Calculator'!$K$61:$K$72,0)) -> 0 | E116: 0 | F116: 4 | G116: 2001 | H116: 0.13 | I116: 0 | J116: 0 | K116: =IF('RWH Calculator'!$C$67>0,'RWH Calculator'!$C$69,'RWH Calculator'!$C$57) -> 0 | L116: 0 | M116: 0 | N116: 0 | O116: 0 | P116: 0 | Q116: 0 | R116: 0 | S116: 0 | T116: 0 | U116: 0 | V116: 0 | W116: 0 | X116: 0
A117: 2001-04-17 | B117: 0 | C117: 0 | D117: =INDEX('RWH Calculator'!$Q$61:$Q$72,MATCH(F117,'RWH Calculator'!$K$61:$K$72,0)) -> 0 | E117: 0 | F117: 4 | G117: 2001 | H117: 0.13 | I117: 0 | J117: 0 | K117: =IF('RWH Calculator'!$C$67>0,'RWH Calculator'!$C$69,'RWH Calculator'!$C$57) -> 0 | L117: 0 | M117: 0 | N117: 0 | O117: 0 | P117: 0 | Q117: 0 | R117: 0 | S117: 0 | T117: 0 | U117: 0 | V117: 0 | W117: 0 | X117: 0
A118: 2001-04-18 | B118: 0.06 | C118: 0 | D118: =INDEX('RWH Calculator'!$Q$61:$Q$72,MATCH(F118,'RWH Calculator'!$K$61:$K$72,0)) -> 0 | E118: 0 | F118: 4 | G118: 2001 | H118: 0.13 | I118: 0 | J118: 0 | K118: =IF('RWH Calculator'!$C$67>0,'RWH Calculator'!$C$69,'RWH Calculator'!$C$57) -> 0 | L118: 0 | M118: 0 | N118: 0 | O118: 0 | P118: 0 | Q118: 0 | R118: 0 | S118: 0 | T118: 0 | U118: 0 | V118: 0 | W118: 0 | X118: 0
A119: 2001-04-19 | B119: 0.01 | C119: 0 | D119: =INDEX('RWH Calculator'!$Q$61:$Q$72,MATCH(F119,'RWH Calculator'!$K$61:$K$72,0)) -> 0 | E119: 0 | F119: 4 | G119: 2001 | H119: 0.13 | I119: 0 | J119: 0 | K119: =IF('RWH Calculator'!$C$67>0,'RWH Calculator'!$C$69,'RWH Calculator'!$C$57) -> 0 | L119: 0 | M119: 0 | N119: 0 | O119: 0 | P119: 0 | Q119: 0 | R119: 0 | S119: 0 | T119: 0 | U119: 0 | V119: 0 | W119: 0 | X119: 0
A120: 2001-04-20 | B120: 0.92 | C120: 0 | D120: =INDEX('RWH Calculator'!$Q$61:$Q$72,MATCH(F120,'RWH Calculator'!$K$61:$K$72,0)) -> 0 | E120: 0 | F120: 4 | G120: 2001 | H120: 0.13 | I120: 0 | J120: 0 | K120: =IF('RWH Calculator'!$C$67>0,'RWH Calculator'!$C$69,'RWH Calculator'!$C$57) -> 0 | L120: 0 | M120: 0 | N120: 0 | O120: 0 | P120: 0 | Q120: 0 | R120: 0 | S120: 0 | T120: 0 | U120: 0 | V120: 0 | W120: 0 | X120: 0
A121: 2001-04-21 | B121: 0 | C121: 0 | D121: =INDEX('RWH Calculator'!$Q$61:$Q$72,MATCH(F121,'RWH Calculator'!$K$61:$K$72,0)) -> 0 | E121: 0 | F121: 4 | G121: 2001 | H121: 0.13 | I121: 0 | J121: 0 | K121: =IF('RWH Calculator'!$C$67>0,'RWH Calculator'!$C$69,'RWH Calculator'!$C$57) -> 0 | L121: 0 | M121: 0 | N121: 0 | O121: 0 | P121: 0 | Q121: 0 | R121: 0 | S121: 0 | T121: 0 | U121: 0 | V121: 0 | W121: 0 | X121: 0
A122: 2001-04-22 | B122: 0 | C122: 0 | D122: =INDEX('RWH Calculator'!$Q$61:$Q$72,MATCH(F122,'RWH Calculator'!$K$61:$K$72,0)) -> 0 | E122: 0 | F122: 4 | G122: 2001 | H122: 0.13 | I122: 0 | J122: 0 | K122: =IF('RWH Calculator'!$C$67>0,'RWH Calculator'!$C$69,'RWH Calculator'!$C$57) -> 0 | L122: 0 | M122: 0 | N122: 0 | O122: 0 | P122: 0 | Q122: 0 | R122: 0 | S122: 0 | T122: 0 | U122: 0 | V122: 0 | W122: 0 | X122: 0
A123: 2001-04-23 | B123: 0 | C123: 0 | D123: =INDEX('RWH Calculator'!$Q$61:$Q$72,MATCH(F123,'RWH Calculator'!$K$61:$K$72,0)) -> 0 | E123: 0 | F123: 4 | G123: 2001 | H123: 0.13 | I123: 0 | J123: 0 | K123: =IF('RWH Calculator'!$C$67>0,'RWH Calculator'!$C$69,'RWH Calculator'!$C$57) -> 0 | L123: 0 | M123: 0 | N123: 0 | O123: 0 | P123: 0 | Q123: 0 | R123: 0 | S123: 0 | T123: 0 | U123: 0 | V123: 0 | W123: 0 | X123: 0
A124: 2001-04-24 | B124: 0 | C124: 0 | D124: =INDEX('RWH Calculator'!$Q$61:$Q$72,MATCH(F124,'RWH Calculator'!$K$61:$K$72,0)) -> 0 | E124: 0 | F124: 4 | G124: 2001 | H124: 0.13 | I124: 0 | J124: 0 | K124: =IF('RWH Calculator'!$C$67>0,'RWH Calculator'!$C$69,'RWH Calculator'!$C$57) -> 0 | L124: 0 | M124: 0 | N124: 0 | O124: 0 | P124: 0 | Q124: 0 | R124: 0 | S124: 0 | T124: 0 | U124: 0 | V124: 0 | W124: 0 | X124: 0
A125: 2001-04-25 | B125: 0 | C125: 0 | D125: =INDEX('RWH Calculator'!$Q$61:$Q$72,MATCH(F125,'RWH Calculator'!$K$61:$K$72,0)) -> 0 | E125: 0 | F125: 4 | G125: 2001 | H125: 0.13 | I125: 0 | J125: 0 | K125: =IF('RWH Calculator'!$C$67>0,'RWH Calculator'!$C$69,'RWH Calculator'!$C$57) -> 0 | L125: 0 | M125: 0 | N125: 0 | O125: 0 | P125: 0 | Q125: 0 | R125: 0 | S125: 0 | T125: 0 | U125: 0 | V125: 0 | W125: 0 | X125: 0
A126: 2001-04-26 | B126: 0 | C126: 0 | D126: =INDEX('RWH Calculator'!$Q$61:$Q$72,MATCH(F126,'RWH Calculator'!$K$61:$K$72,0)) -> 0 | E126: 0 | F126: 4 | G126: 2001 | H126: 0.13 | I126: 0 | J126: 0 | K126: =IF('RWH Calculator'!$C$67>0,'RWH Calculator'!$C$69,'RWH Calculator'!$C$57) -> 0 | L126: 0 | M126: 0 | N126: 0 | O126: 0 | P126: 0 | Q126: 0 | R126: 0 | S126: 0 | T126: 0 | U126: 0 | V126: 0 | W126: 0 | X126: 0
A127: 2001-04-27 | B127: 0.01 | C127: 0 | D127: =INDEX('RWH Calculator'!$Q$61:$Q$72,MATCH(F127,'RWH Calculator'!$K$61:$K$72,0)) -> 0 | E127: 0 | F127: 4 | G127: 2001 | H127: 0.13 | I127: 0 | J127: 0 | K127: =IF('RWH Calculator'!$C$67>0,'RWH Calculator'!$C$69,'RWH Calculator'!$C$57) -> 0 | L127: 0 | M127: 0 | N127: 0 | O127: 0 | P127: 0 | Q127: 0 | R127: 0 | S127: 0 | T127: 0 | U127: 0 | V127: 0 | W127: 0 | X127: 0
A128: 2001-04-28 | B128: 0.02 | C128: 0 | D128: =INDEX('RWH Calculator'!$Q$61:$Q$72,MATCH(F128,'RWH Calculator'!$K$61:$K$72,0)) -> 0 | E128: 0 | F128: 4 | G128: 2001 | H128: 0.13 | I128: 0 | J128: 0 | K128: =IF('RWH Calculator'!$C$67>0,'RWH Calculator'!$C$69,'RWH Calculator'!$C$57) -> 0 | L128: 0 | M128: 0 | N128: 0 | O128: 0 | P128: 0 | Q128: 0 | R128: 0 | S128: 0 | T128: 0 | U128: 0 | V128: 0 | W128: 0 | X128: 0
A129: 2001-04-29 | B129: 0 | C129: 0 | D129: =INDEX('RWH Calculator'!$Q$61:$Q$72,MATCH(F129,'RWH Calculator'!$K$61:$K$72,0)) -> 0 | E129: 0 | F129: 4 | G129: 2001 | H129: 0.13 | I129: 0 | J129: 0 | K129: =IF('RWH Calculator'!$C$67>0,'RWH Calculator'!$C$69,'RWH Calculator'!$C$57) -> 0 | L129: 0 | M129: 0 | N129: 0 | O129: 0 | P129: 0 | Q129: 0 | R129: 0 | S129: 0 | T129: 0 | U129: 0 | V129: 0 | W129: 0 | X129: 0
A130: 2001-04-30 | B130: 0 | C130: 0 | D130: =INDEX('RWH Calculator'!$Q$61:$Q$72,MATCH(F130,'RWH Calculator'!$K$61:$K$72,0)) -> 0 | E130: 0 | F130: 4 | G130: 2001 | H130: 0.13 | I130: 0 | J130: 0 | K130: =IF('RWH Calculator'!$C$67>0,'RWH Calculator'!$C$69,'RWH Calculator'!$C$57) -> 0 | L130: 0 | M130: 0 | N130: 0 | O130: 0 | P130: 0 | Q130: 0 | R130: 0 | S130: 0 | T130: 0 | U130: 0 | V130: 0 | W130: 0 | X130: 0
A131: 2001-05-01 | B131: 0 | C131: 0 | D131: =INDEX('RWH Calculator'!$Q$61:$Q$72,MATCH(F131,'RWH Calculator'!$K$61:$K$72,0)) -> 0 | E131: 0 | F131: 5 | G131: 2001 | H131: 0.15 | I131: 0 | J131: 0 | K131: =IF('RWH Calculator'!$C$67>0,'RWH Calculator'!$C$69,'RWH Calculator'!$C$57) -> 0 | L131: 0 | M131: 0 | N131: 0 | O131: 0 | P131: 0 | Q131: 0 | R131: 0 | S131: 0 | T131: 0 | U131: 0 | V131: 0 | W131: 0 | X131: 0
A132: 2001-05-02 | B132: 0 | C132: 0 | D132: =INDEX('RWH Calculator'!$Q$61:$Q$72,MATCH(F132,'RWH Calculator'!$K$61:$K$72,0)) -> 0 | E132: 0 | F132: 5 | G132: 2001 | H132: 0.15 | I132: 0 | J132: 0 | K132: =IF('RWH Calculator'!$C$67>0,'RWH Calculator'!$C$69,'RWH Calculator'!$C$57) -> 0 | L132: 0 | M132: 0 | N132: 0 | O132: 0 | P132: 0 | Q132: 0 | R132: 0 | S132: 0 | T132: 0 | U132: 0 | V132: 0 | W132: 0 | X132: 0
A133: 2001-05-03 | B133: 0 | C133: 0 | D133: =INDEX('RWH Calculator'!$Q$61:$Q$72,MATCH(F133,'RWH Calculator'!$K$61:$K$72,0)) -> 0 | E133: 0 | F133: 5 | G133: 2001 | H133: 0.15 | I133: 0 | J133: 0 | K133: =IF('RWH Calculator'!$C$67>0,'RWH Calculator'!$C$69,'RWH Calculator'!$C$57) -> 0 | L133: 0 | M133: 0 | N133: 0 | O133: 0 | P133: 0 | Q133: 0 | R133: 0 | S133: 0 | T133: 0 | U133: 0 | V133: 0 | W133: 0 | X133: 0
A134: 2001-05-04 | B134: 0 | C134: 0 | D134: =INDEX('RWH Calculator'!$Q$61:$Q$72,MATCH(F134,'RWH Calculator'!$K$61:$K$72,0)) -> 0 | E134: 0 | F134: 5 | G134: 2001 | H134: 0.15 | I134: 0 | J134: 0 | K134: =IF('RWH Calculator'!$C$67>0,'RWH Calculator'!$C$69,'RWH Calculator'!$C$57) -> 0 | L134: 0 | M134: 0 | N134: 0 | O134: 0 | P134: 0 | Q134: 0 | R134: 0 | S134: 0 | T134: 0 | U134: 0 | V134: 0 | W134: 0 | X134: 0
A135: 2001-05-05 | B135: 0 | C135: 0 | D135: =INDEX('RWH Calculator'!$Q$61:$Q$72,MATCH(F135,'RWH Calculator'!$K$61:$K$72,0)) -> 0 | E135: 0 | F135: 5 | G135: 2001 | H135: 0.15 | I135: 0 | J135: 0 | K135: =IF('RWH Calculator'!$C$67>0,'RWH Calculator'!$C$69,'RWH Calculator'!$C$57) -> 0 | L135: 0 | M135: 0 | N135: 0 | O135: 0 | P135: 0 | Q135: 0 | R135: 0 | S135: 0 | T135: 0 | U135: 0 | V135: 0 | W135: 0 | X135: 0
A136: 2001-05-06 | B136: 0 | C136: 0 | D136: =INDEX('RWH Calculator'!$Q$61:$Q$72,MATCH(F136,'RWH Calculator'!$K$61:$K$72,0)) -> 0 | E136: 0 | F136: 5 | G136: 2001 | H136: 0.15 | I136: 0 | J136: 0 | K136: =IF('RWH Calculator'!$C$67>0,'RWH Calculator'!$C$69,'RWH Calculator'!$C$57) -> 0 | L136: 0 | M136: 0 | N136: 0 | O136: 0 | P136: 0 | Q136: 0 | R136: 0 | S136: 0 | T136: 0 | U136: 0 | V136: 0 | W136: 0 | X136: 0
A137: 2001-05-07 | B137: 0 | C137: 0 | D137: =INDEX('RWH Calculator'!$Q$61:$Q$72,MATCH(F137,'RWH Calculator'!$K$61:$K$72,0)) -> 0 | E137: 0 | F137: 5 | G137: 2001 | H137: 0.15 | I137: 0 | J137: 0 | K137: =IF('RWH Calculator'!$C$67>0,'RWH Calculator'!$C$69,'RWH Calculator'!$C$57) -> 0 | L137: 0 | M137: 0 | N137: 0 | O137: 0 | P137: 0 | Q137: 0 | R137: 0 | S137: 0 | T137: 0 | U137: 0 | V137: 0 | W137: 0 | X137: 0
A138: 2001-05-08 | B138: 0 | C138: 0 | D138: =INDEX('RWH Calculator'!$Q$61:$Q$72,MATCH(F138,'RWH Calculator'!$K$61:$K$72,0)) -> 0 | E138: 0 | F138: 5 | G138: 2001 | H138: 0.15 | I138: 0 | J138: 0 | K138: =IF('RWH Calculator'!$C$67>0,'RWH Calculator'!$C$69,'RWH Calculator'!$C$57) -> 0 | L138: 0 | M138: 0 | N138: 0 | O138: 0 | P138: 0 | Q138: 0 | R138: 0 | S138: 0 | T138: 0 | U138: 0 | V138: 0 | W138: 0 | X138: 0
A139: 2001-05-09 | B139: 0 | C139: 0 | D139: =INDEX('RWH Calculator'!$Q$61:$Q$72,MATCH(F139,'RWH Calculator'!$K$61:$K$72,0)) -> 0 | E139: 0 | F139: 5 | G139: 2001 | H139: =IF($B$2="Western SF", VLOOKUP(F139,$Z$13:$AC$24, 4),VLOOKUP(F139, $Z$13:$AD$24,5)) -> 0.15 | I139: 0 | J139: =(IF(I139-B139>0,(I139-B139)/$B$7,0)/12*7.48)*$B$8 -> 0 | K139: =IF('RWH Calculator'!$C$67>0,'RWH Calculator'!$C$69,'RWH Calculator'!$C$57) -> 0 | L139: 0 | M139: 0 | N139: 0 | O139: 0 | P139: 0 | Q139: 0 | R139: 0 | S139: 0 | T139: 0 | U139: 0 | V139: 0 | W139: 0 | X139: 0
A140: 2001-05-10 | B140: 0 | C140: 0 | D140: =INDEX('RWH Calculator'!$Q$61:$Q$72,MATCH(F140,'RWH Calculator'!$K$61:$K$72,0)) -> 0 | E140: 0 | F140: =MONTH(A140) -> 5 | G140: =YEAR(A140) -> 2001 | H140: 0.15 | I140: =H140*$B$6 -> 0 | J140: 0 | K140: =IF('RWH Calculator'!$C$67>0,'RWH Calculator'!$C$69,'RWH Calculator'!$C$57) -> 0 | L140: =J140+K140 -> 0 | M140: 0 | N140: 0 | O140: 0 | P140: =IF(L140>E140,E140, M140-M139+L140) -> 0 | Q140: =IF(D140>L140,L140,D140) -> 0 | R140: 0 | S140: =IF(E140+M139>L140,L140, E140+M139) -> 0 | T140: 0 | U140: 0 | V140: 0 | W140: =M139+E140-L140 -> 0 | X140: 0
A141: 2001-05-11 | B141: 0 | C141: =$B$3*$B$4*(B141/12)*7.48 -> 0 | D141: =INDEX('RWH Calculator'!$Q$61:$Q$72,MATCH(F141,'RWH Calculator'!$K$61:$K$72,0)) -> 0 | E141: =C141+D141 -> 0 | F141: 5 | G141: 2001 | H141: 0.15 | I141: 0 | J141: 0 | K141: =IF('RWH Calculator'!$C$67>0,'RWH Calculator'!$C$69,'RWH Calculator'!$C$57) -> 0 | L141: 0 | M141: =IF(W141<0, 0, IF(W141>$J$2, $J$2, W141)) -> 0 | N141: =D141-T141 -> 0 | O141: =C141-U141 -> 0 | P141: 0 | Q141: 0 | R141: =MAX(0, IF(C141>(L141-D141),L141-D141,C141)) -> 0 | S141: 0 | T141: =MAX(0, M140+D141-Q141-$J$2) -> 0 | U141: =MAX(0, M140+C141+D141-Q141-R141-T141-$J$2) -> 0 | V141: =IF(E141>L141, E141-L141-(M141-M140),0) -> 0 | W141: 0 | X141: =X140+S141/1000000 -> 0
A142: 2001-05-12 | B142: 0 | C142: 0 | D142: =INDEX('RWH Calculator'!$Q$61:$Q$72,MATCH(F142,'RWH Calculator'!$K$61:$K$72,0)) -> 0 | E142: 0 | F142: 5 | G142: 2001 | H142: 0.15 | I142: 0 | J142: 0 | K142: =IF('RWH Calculator'!$C$67>0,'RWH Calculator'!$C$69,'RWH Calculator'!$C$57) -> 0 | L142: 0 | M142: 0 | N142: 0 | O142: 0 | P142: 0 | Q142: 0 | R142: 0 | S142: 0 | T142: 0 | U142: 0 | V142: 0 | W142: 0 | X142: 0
A143: 2001-05-13 | B143: 0 | C143: 0 | D143: =INDEX('RWH Calculator'!$Q$61:$Q$72,MATCH(F143,'RWH Calculator'!$K$61:$K$72,0)) -> 0 | E143: 0 | F143: 5 | G143: 2001 | H143: 0.15 | I143: 0 | J143: 0 | K143: =IF('RWH Calculator'!$C$67>0,'RWH Calculator'!$C$69,'RWH Calculator'!$C$57) -> 0 | L143: 0 | M143: 0 | N143: 0 | O143: 0 | P143: 0 | Q143: 0 | R143: 0 | S143: 0 | T143: 0 | U143: 0 | V143: 0 | W143: 0 | X143: 0
A144: 2001-05-14 | B144: 0 | C144: 0 | D144: =INDEX('RWH Calculator'!$Q$61:$Q$72,MATCH(F144,'RWH Calculator'!$K$61:$K$72,0)) -> 0 | E144: 0 | F144: 5 | G144: 2001 | H144: 0.15 | I144: 0 | J144: 0 | K144: =IF('RWH Calculator'!$C$67>0,'RWH Calculator'!$C$69,'RWH Calculator'!$C$57) -> 0 | L144: 0 | M144: 0 | N144: 0 | O144: 0 | P144: 0 | Q144: 0 | R144: 0 | S144: 0 | T144: 0 | U144: 0 | V144: 0 | W144: 0 | X144: 0
A145: 2001-05-15 | B145: 0 | C145: 0 | D145: =INDEX('RWH Calculator'!$Q$61:$Q$72,MATCH(F145,'RWH Calculator'!$K$61:$K$72,0)) -> 0 | E145: 0 | F145: 5 | G145: 2001 | H145: 0.15 | I145: 0 | J145: 0 | K145: =IF('RWH Calculator'!$C$67>0,'RWH Calculator'!$C$69,'RWH Calculator'!$C$57) -> 0 | L145: 0 | M145: 0 | N145: 0 | O145: 0 | P145: 0 | Q145: 0 | R145: 0 | S145: 0 | T145: 0 | U145: 0 | V145: 0 | W145: 0 | X145: 0
A146: 2001-05-16 | B146: 0 | C146: 0 | D146: =INDEX('RWH Calculator'!$Q$61:$Q$72,MATCH(F146,'RWH Calculator'!$K$61:$K$72,0)) -> 0 | E146: 0 | F146: 5 | G146: 2001 | H146: 0.15 | I146: 0 | J146: 0 | K146: =IF('RWH Calculator'!$C$67>0,'RWH Calculator'!$C$69,'RWH Calculator'!$C$57) -> 0 | L146: 0 | M146: 0 | N146: 0 | O146: 0 | P146: 0 | Q146: 0 | R146: 0 | S146: 0 | T146: 0 | U146: 0 | V146: 0 | W146: 0 | X146: 0
A147: 2001-05-17 | B147: 0 | C147: 0 | D147: =INDEX('RWH Calculator'!$Q$61:$Q$72,MATCH(F147,'RWH Calculator'!$K$61:$K$72,0)) -> 0 | E147: 0 | F147: 5 | G147: 2001 | H147: 0.15 | I147: 0 | J147: 0 | K147: =IF('RWH Calculator'!$C$67>0,'RWH Calculator'!$C$69,'RWH Calculator'!$C$57) -> 0 | L147: 0 | M147: 0 | N147: 0 | O147: 0 | P147: 0 | Q147: 0 | R147: 0 | S147: 0 | T147: 0 | U147: 0 | V147: 0 | W147: 0 | X147: 0
A148: 2001-05-18 | B148: 0 | C148: 0 | D148: =INDEX('RWH Calculator'!$Q$61:$Q$72,MATCH(F148,'RWH Calculator'!$K$61:$K$72,0)) -> 0 | E148: 0 | F148: 5 | G148: 2001 | H148: 0.15 | I148: 0 | J148: 0 | K148: =IF('RWH Calculator'!$C$67>0,'RWH Calculator'!$C$69,'RWH Calculator'!$C$57) -> 0 | L148: 0 | M148: 0 | N148: 0 | O148: 0 | P148: 0 | Q148: 0 | R148: 0 | S148: 0 | T148: 0 | U148: 0 | V148: 0 | W148: 0 | X148: 0
A149: 2001-05-19 | B149: 0 | C149: 0 | D149: =INDEX('RWH Calculator'!$Q$61:$Q$72,MATCH(F149,'RWH Calculator'!$K$61:$K$72,0)) -> 0 | E149: 0 | F149: 5 | G149: 2001 | H149: 0.15 | I149: 0 | J149: 0 | K149: =IF('RWH Calculator'!$C$67>0,'RWH Calculator'!$C$69,'RWH Calculator'!$C$57) -> 0 | L149: 0 | M149: 0 | N149: 0 | O149: 0 | P149: 0 | Q149: 0 | R149: 0 | S149: 0 | T149: 0 | U149: 0 | V149: 0 | W149: 0 | X149: 0
A150: 2001-05-20 | B150: 0 | C150: 0 | D150: =INDEX('RWH Calculator'!$Q$61:$Q$72,MATCH(F150,'RWH Calculator'!$K$61:$K$72,0)) -> 0 | E150: 0 | F150: 5 | G150: 2001 | H150: 0.15 | I150: 0 | J150: 0 | K150: =IF('RWH Calculator'!$C$67>0,'RWH Calculator'!$C$69,'RWH Calculator'!$C$57) -> 0 | L150: 0 | M150: 0 | N150: 0 | O150: 0 | P150: 0 | Q150: 0 | R150: 0 | S150: 0 | T150: 0 | U150: 0 | V150: 0 | W150: 0 | X150: 0
A151: 2001-05-21 | B151: 0 | C151: 0 | D151: =INDEX('RWH Calculator'!$Q$61:$Q$72,MATCH(F151,'RWH Calculator'!$K$61:$K$72,0)) -> 0 | E151: 0 | F151: 5 | G151: 2001 | H151: 0.15 | I151: 0 | J151: 0 | K151: =IF('RWH Calculator'!$C$67>0,'RWH Calculator'!$C$69,'RWH Calculator'!$C$57) -> 0 | L151: 0 | M151: 0 | N151: 0 | O151: 0 | P151: 0 | Q151: 0 | R151: 0 | S151: 0 | T151: 0 | U151: 0 | V151: 0 | W151: 0 | X151: 0
A152: 2001-05-22 | B152: 0 | C152: 0 | D152: =INDEX('RWH Calculator'!$Q$61:$Q$72,MATCH(F152,'RWH Calculator'!$K$61:$K$72,0)) -> 0 | E152: 0 | F152: 5 | G152: 2001 | H152: 0.15 | I152: 0 | J152: 0 | K152: =IF('RWH Calculator'!$C$67>0,'RWH Calculator'!$C$69,'RWH Calculator'!$C$57) -> 0 | L152: 0 | M152: 0 | N152: 0 | O152: 0 | P152: 0 | Q152: 0 | R152: 0 | S152: 0 | T152: 0 | U152: 0 | V152: 0 | W152: 0 | X152: 0
A153: 2001-05-23 | B153: 0 | C153: 0 | D153: =INDEX('RWH Calculator'!$Q$61:$Q$72,MATCH(F153,'RWH Calculator'!$K$61:$K$72,0)) -> 0 | E153: 0 | F153: 5 | G153: 2001 | H153: 0.15 | I153: 0 | J153: 0 | K153: =IF('RWH Calculator'!$C$67>0,'RWH Calculator'!$C$69,'RWH Calculator'!$C$57) -> 0 | L153: 0 | M153: 0 | N153: 0 | O153: 0 | P153: 0 | Q153: 0 | R153: 0 | S153: 0 | T153: 0 | U153: 0 | V153: 0 | W153: 0 | X153: 0
A154: 2001-05-24 | B154: 0 | C154: 0 | D154: =INDEX('RWH Calculator'!$Q$61:$Q$72,MATCH(F154,'RWH Calculator'!$K$61:$K$72,0)) -> 0 | E154: 0 | F154: 5 | G154: 2001 | H154: 0.15 | I154: 0 | J154: 0 | K154: =IF('RWH Calculator'!$C$67>0,'RWH Calculator'!$C$69,'RWH Calculator'!$C$57) -> 0 | L154: 0 | M154: 0 | N154: 0 | O154: 0 | P154: 0 | Q154: 0 | R154: 0 | S154: 0 | T154: 0 | U154: 0 | V154: 0 | W154: 0 | X154: 0
A155: 2001-05-25 | B155: 0 | C155: 0 | D155: =INDEX('RWH Calculator'!$Q$61:$Q$72,MATCH(F155,'RWH Calculator'!$K$61:$K$72,0)) -> 0 | E155: 0 | F155: 5 | G155: 2001 | H155: 0.15 | I155: 0 | J155: 0 | K155: =IF('RWH Calculator'!$C$67>0,'RWH Calculator'!$C$69,'RWH Calculator'!$C$57) -> 0 | L155: 0 | M155: 0 | N155: 0 | O155: 0 | P155: 0 | Q155: 0 | R155: 0 | S155: 0 | T155: 0 | U155: 0 | V155: 0 | W155: 0 | X155: 0
A156: 2001-05-26 | B156: 0 | C156: 0 | D156: =INDEX('RWH Calculator'!$Q$61:$Q$72,MATCH(F156,'RWH Calculator'!$K$61:$K$72,0)) -> 0 | E156: 0 | F156: 5 | G156: 2001 | H156: 0.15 | I156: 0 | J156: 0 | K156: =IF('RWH Calculator'!$C$67>0,'RWH Calculator'!$C$69,'RWH Calculator'!$C$57) -> 0 | L156: 0 | M156: 0 | N156: 0 | O156: 0 | P156: 0 | Q156: 0 | R156: 0 | S156: 0 | T156: 0 | U156: 0 | V156: 0 | W156: 0 | X156: 0
A157: 2001-05-27 | B157: 0 | C157: 0 | D157: =INDEX('RWH Calculator'!$Q$61:$Q$72,MATCH(F157,'RWH Calculator'!$K$61:$K$72,0)) -> 0 | E157: 0 | F157: 5 | G157: 2001 | H157: 0.15 | I157: 0 | J157: 0 | K157: =IF('RWH Calculator'!$C$67>0,'RWH Calculator'!$C$69,'RWH Calculator'!$C$57) -> 0 | L157: 0 | M157: 0 | N157: 0 | O157: 0 | P157: 0 | Q157: 0 | R157: 0 | S157: 0 | T157: 0 | U157: 0 | V157: 0 | W157: 0 | X157: 0
A158: 2001-05-28 | B158: 0 | C158: 0 | D158: =INDEX('RWH Calculator'!$Q$61:$Q$72,MATCH(F158,'RWH Calculator'!$K$61:$K$72,0)) -> 0 | E158: 0 | F158: 5 | G158: 2001 | H158: 0.15 | I158: 0 | J158: 0 | K158: =IF('RWH Calculator'!$C$67>0,'RWH Calculator'!$C$69,'RWH Calculator'!$C$57) -> 0 | L158: 0 | M158: 0 | N158: 0 | O158: 0 | P158: 0 | Q158: 0 | R158: 0 | S158: 0 | T158: 0 | U158: 0 | V158: 0 | W158: 0 | X158: 0
A159: 2001-05-29 | B159: 0 | C159: 0 | D159: =INDEX('RWH Calculator'!$Q$61:$Q$72,MATCH(F159,'RWH Calculator'!$K$61:$K$72,0)) -> 0 | E159: 0 | F159: 5 | G159: 2001 | H159: 0.15 | I159: 0 | J159: 0 | K159: =IF('RWH Calculator'!$C$67>0,'RWH Calculator'!$C$69,'RWH Calculator'!$C$57) -> 0 | L159: 0 | M159: 0 | N159: 0 | O159: 0 | P159: 0 | Q159: 0 | R159: 0 | S159: 0 | T159: 0 | U159: 0 | V159: 0 | W159: 0 | X159: 0
A160: 2001-05-30 | B160: 0 | C160: 0 | D160: =INDEX('RWH Calculator'!$Q$61:$Q$72,MATCH(F160,'RWH Calculator'!$K$61:$K$72,0)) -> 0 | E160: 0 | F160: 5 | G160: 2001 | H160: 0.15 | I160: 0 | J160: 0 | K160: =IF('RWH Calculator'!$C$67>0,'RWH Calculator'!$C$69,'RWH Calculator'!$C$57) -> 0 | L160: 0 | M160: 0 | N160: 0 | O160: 0 | P160: 0 | Q160: 0 | R160: 0 | S160: 0 | T160: 0 | U160: 0 | V160: 0 | W160: 0 | X160: 0
A161: 2001-05-31 | B161: 0 | C161: 0 | D161: =INDEX('RWH Calculator'!$Q$61:$Q$72,MATCH(F161,'RWH Calculator'!$K$61:$K$72,0)) -> 0 | E161: 0 | F161: 5 | G161: 2001 | H161: 0.15 | I161: 0 | J161: 0 | K161: =IF('RWH Calculator'!$C$67>0,'RWH Calculator'!$C$69,'RWH Calculator'!$C$57) -> 0 | L161: 0 | M161: 0 | N161: 0 | O161: 0 | P161: 0 | Q161: 0 | R161: 0 | S161: 0 | T161: 0 | U161: 0 | V161: 0 | W161: 0 | X161: 0
A162: 2001-06-01 | B162: 0 | C162: 0 | D162: =INDEX('RWH Calculator'!$Q$61:$Q$72,MATCH(F162,'RWH Calculator'!$K$61:$K$72,0)) -> 0 | E162: 0 | F162: 6 | G162: 2001 | H162: 0.17 | I162: 0 | J162: 0 | K162: =IF('RWH Calculator'!$C$67>0,'RWH Calculator'!$C$69,'RWH Calculator'!$C$57) -> 0 | L162: 0 | M162: 0 | N162: 0 | O162: 0 | P162: 0 | Q162: 0 | R162: 0 | S162: 0 | T162: 0 | U162: 0 | V162: 0 | W162: 0 | X162: 0
A163: 2001-06-02 | B163: 0 | C163: 0 | D163: =INDEX('RWH Calculator'!$Q$61:$Q$72,MATCH(F163,'RWH Calculator'!$K$61:$K$72,0)) -> 0 | E163: 0 | F163: 6 | G163: 2001 | H163: 0.17 | I163: 0 | J163: 0 | K163: =IF('RWH Calculator'!$C$67>0,'RWH Calculator'!$C$69,'RWH Calculator'!$C$57) -> 0 | L163: 0 | M163: 0 | N163: 0 | O163: 0 | P163: 0 | Q163: 0 | R163: 0 | S163: 0 | T163: 0 | U163: 0 | V163: 0 | W163: 0 | X163: 0
A164: 2001-06-03 | B164: 0 | C164: 0 | D164: =INDEX('RWH Calculator'!$Q$61:$Q$72,MATCH(F164,'RWH Calculator'!$K$61:$K$72,0)) -> 0 | E164: 0 | F164: 6 | G164: 2001 | H164: 0.17 | I164: 0 | J164: 0 | K164: =IF('RWH Calculator'!$C$67>0,'RWH Calculator'!$C$69,'RWH Calculator'!$C$57) -> 0 | L164: 0 | M164: 0 | N164: 0 | O164: 0 | P164: 0 | Q164: 0 | R164: 0 | S164: 0 | T164: 0 | U164: 0 | V164: 0 | W164: 0 | X164: 0
A165: 2001-06-04 | B165: 0 | C165: 0 | D165: =INDEX('RWH Calculator'!$Q$61:$Q$72,MATCH(F165,'RWH Calculator'!$K$61:$K$72,0)) -> 0 | E165: 0 | F165: 6 | G165: 2001 | H165: 0.17 | I165: 0 | J165: 0 | K165: =IF('RWH Calculator'!$C$67>0,'RWH Calculator'!$C$69,'RWH Calculator'!$C$57) -> 0 | L165: 0 | M165: 0 | N165: 0 | O165: 0 | P165: 0 | Q165: 0 | R165: 0 | S165: 0 | T165: 0 | U165: 0 | V165: 0 | W165: 0 | X165: 0
A166: 2001-06-05 | B166: 0 | C166: 0 | D166: =INDEX('RWH Calculator'!$Q$61:$Q$72,MATCH(F166,'RWH Calculator'!$K$61:$K$72,0)) -> 0 | E166: 0 | F166: 6 | G166: 2001 | H166: 0.17 | I166: 0 | J166: 0 | K166: =IF('RWH Calculator'!$C$67>0,'RWH Calculator'!$C$69,'RWH Calculator'!$C$57) -> 0 | L166: 0 | M166: 0 | N166: 0 | O166: 0 | P166: 0 | Q166: 0 | R166: 0 | S166: 0 | T166: 0 | U166: 0 | V166: 0 | W166: 0 | X166: 0
A167: 2001-06-06 | B167: 0 | C167: 0 | D167: =INDEX('RWH Calculator'!$Q$61:$Q$72,MATCH(F167,'RWH Calculator'!$K$61:$K$72,0)) -> 0 | E167: 0 | F167: 6 | G167: 2001 | H167: 0.17 | I167: 0 | J167: 0 | K167: =IF('RWH Calculator'!$C$67>0,'RWH Calculator'!$C$69,'RWH Calculator'!$C$57) -> 0 | L167: 0 | M167: 0 | N167: 0 | O167: 0 | P167: 0 | Q167: 0 | R167: 0 | S167: 0 | T167: 0 | U167: 0 | V167: 0 | W167: 0 | X167: 0
A168: 2001-06-07 | B168: 0 | C168: 0 | D168: =INDEX('RWH Calculator'!$Q$61:$Q$72,MATCH(F168,'RWH Calculator'!$K$61:$K$72,0)) -> 0 | E168: 0 | F168: 6 | G168: 2001 | H168: 0.17 | I168: 0 | J168: 0 | K168: =IF('RWH Calculator'!$C$67>0,'RWH Calculator'!$C$69,'RWH Calculator'!$C$57) -> 0 | L168: 0 | M168: 0 | N168: 0 | O168: 0 | P168: 0 | Q168: 0 | R168: 0 | S168: 0 | T168: 0 | U168: 0 | V168: 0 | W168: 0 | X168: 0
A169: 2001-06-08 | B169: 0 | C169: 0 | D169: =INDEX('RWH Calculator'!$Q$61:$Q$72,MATCH(F169,'RWH Calculator'!$K$61:$K$72,0)) -> 0 | E169: 0 | F169: 6 | G169: 2001 | H169: 0.17 | I169: 0 | J169: 0 | K169: =IF('RWH Calculator'!$C$67>0,'RWH Calculator'!$C$69,'RWH Calculator'!$C$57) -> 0 | L169: 0 | M169: 0 | N169: 0 | O169: 0 | P169: 0 | Q169: 0 | R169: 0 | S169: 0 | T169: 0 | U169: 0 | V169: 0 | W169: 0 | X169: 0
A170: 2001-06-09 | B170: 0 | C170: 0 | D170: =INDEX('RWH Calculator'!$Q$61:$Q$72,MATCH(F170,'RWH Calculator'!$K$61:$K$72,0)) -> 0 | E170: 0 | F170: 6 | G170: 2001 | H170: 0.17 | I170: 0 | J170: 0 | K170: =IF('RWH Calculator'!$C$67>0,'RWH Calculator'!$C$69,'RWH Calculator'!$C$57) -> 0 | L170: 0 | M170: 0 | N170: 0 | O170: 0 | P170: 0 | Q170: 0 | R170: 0 | S170: 0 | T170: 0 | U170: 0 | V170: 0 | W170: 0 | X170: 0
A171: 2001-06-10 | B171: 0 | C171: 0 | D171: =INDEX('RWH Calculator'!$Q$61:$Q$72,MATCH(F171,'RWH Calculator'!$K$61:$K$72,0)) -> 0 | E171: 0 | F171: 6 | G171: 2001 | H171: 0.17 | I171: 0 | J171: 0 | K171: =IF('RWH Calculator'!$C$67>0,'RWH Calculator'!$C$69,'RWH Calculator'!$C$57) -> 0 | L171: 0 | M171: 0 | N171: 0 | O171: 0 | P171: 0 | Q171: 0 | R171: 0 | S171: 0 | T171: 0 | U171: 0 | V171: 0 | W171: 0 | X171: 0
A172: 2001-06-11 | B172: 0 | C172: 0 | D172: =INDEX('RWH Calculator'!$Q$61:$Q$72,MATCH(F172,'RWH Calculator'!$K$61:$K$72,0)) -> 0 | E172: 0 | F172: 6 | G172: 2001 | H172: 0.17 | I172: 0 | J172: 0 | K172: =IF('RWH Calculator'!$C$67>0,'RWH Calculator'!$C$69,'RWH Calculator'!$C$57) -> 0 | L172: 0 | M172: 0 | N172: 0 | O172: 0 | P172: 0 | Q172: 0 | R172: 0 | S172: 0 | T172: 0 | U172: 0 | V172: 0 | W172: 0 | X172: 0
A173: 2001-06-12 | B173: 0 | C173: 0 | D173: =INDEX('RWH Calculator'!$Q$61:$Q$72,MATCH(F173,'RWH Calculator'!$K$61:$K$72,0)) -> 0 | E173: 0 | F173: 6 | G173: 2001 | H173: 0.17 | I173: 0 | J173: 0 | K173: =IF('RWH Calculator'!$C$67>0,'RWH Calculator'!$C$69,'RWH Calculator'!$C$57) -> 0 | L173: 0 | M173: 0 | N173: 0 | O173: 0 | P173: 0 | Q173: 0 | R173: 0 | S173: 0 | T173: 0 | U173: 0 | V173: 0 | W173: 0 | X173: 0
A174: 2001-06-13 | B174: 0 | C174: 0 | D174: =INDEX('RWH Calculator'!$Q$61:$Q$72,MATCH(F174,'RWH Calculator'!$K$61:$K$72,0)) -> 0 | E174: 0 | F174: 6 | G174: 2001 | H174: 0.17 | I174: 0 | J174: 0 | K174: =IF('RWH Calculator'!$C$67>0,'RWH Calculator'!$C$69,'RWH Calculator'!$C$57) -> 0 | L174: 0 | M174: 0 | N174: 0 | O174: 0 | P174: 0 | Q174: 0 | R174: 0 | S174: 0 | T174: 0 | U174: 0 | V174: 0 | W174: 0 | X174: 0
A175: 2001-06-14 | B175: 0 | C175: 0 | D175: =INDEX('RWH Calculator'!$Q$61:$Q$72,MATCH(F175,'RWH Calculator'!$K$61:$K$72,0)) -> 0 | E175: 0 | F175: 6 | G175: 2001 | H175: 0.17 | I175: 0 | J175: 0 | K175: =IF('RWH Calculator'!$C$67>0,'RWH Calculator'!$C$69,'RWH Calculator'!$C$57) -> 0 | L175: 0 | M175: 0 | N175: 0 | O175: 0 | P175: 0 | Q175: 0 | R175: 0 | S175: 0 | T175: 0 | U175: 0 | V175: 0 | W175: 0 | X175: 0
A176: 2001-06-15 | B176: 0 | C176: 0 | D176: =INDEX('RWH Calculator'!$Q$61:$Q$72,MATCH(F176,'RWH Calculator'!$K$61:$K$72,0)) -> 0 | E176: 0 | F176: 6 | G176: 2001 | H176: 0.17 | I176: 0 | J176: 0 | K176: =IF('RWH Calculator'!$C$67>0,'RWH Calculator'!$C$69,'RWH Calculator'!$C$57) -> 0 | L176: 0 | M176: 0 | N176: 0 | O176: 0 | P176: 0 | Q176: 0 | R176: 0 | S176: 0 | T176: 0 | U176: 0 | V176: 0 | W176: 0 | X176: 0
A177: 2001-06-16 | B177: 0 | C177: 0 | D177: =INDEX('RWH Calculator'!$Q$61:$Q$72,MATCH(F177,'RWH Calculator'!$K$61:$K$72,0)) -> 0 | E177: 0 | F177: 6 | G177: 2001 | H177: 0.17 | I177: 0 | J177: 0 | K177: =IF('RWH Calculator'!$C$67>0,'RWH Calculator'!$C$69,'RWH Calculator'!$C$57) -> 0 | L177: 0 | M177: 0 | N177: 0 | O177: 0 | P177: 0 | Q177: 0 | R177: 0 | S177: 0 | T177: 0 | U177: 0 | V177: 0 | W177: 0 | X177: 0
A178: 2001-06-17 | B178: 0 | C178: 0 | D178: =INDEX('RWH Calculator'!$Q$61:$Q$72,MATCH(F178,'RWH Calculator'!$K$61:$K$72,0)) -> 0 | E178: 0 | F178: 6 | G178: 2001 | H178: 0.17 | I178: 0 | J178: 0 | K178: =IF('RWH Calculator'!$C$67>0,'RWH Calculator'!$C$69,'RWH Calculator'!$C$57) -> 0 | L178: 0 | M178: 0 | N178: 0 | O178: 0 | P178: 0 | Q178: 0 | R178: 0 | S178: 0 | T178: 0 | U178: 0 | V178: 0 | W178: 0 | X178: 0
A179: 2001-06-18 | B179: 0 | C179: 0 | D179: =INDEX('RWH Calculator'!$Q$61:$Q$72,MATCH(F179,'RWH Calculator'!$K$61:$K$72,0)) -> 0 | E179: 0 | F179: 6 | G179: 2001 | H179: 0.17 | I179: 0 | J179: 0 | K179: =IF('RWH Calculator'!$C$67>0,'RWH Calculator'!$C$69,'RWH Calculator'!$C$57) -> 0 | L179: 0 | M179: 0 | N179: 0 | O179: 0 | P179: 0 | Q179: 0 | R179: 0 | S179: 0 | T179: 0 | U179: 0 | V179: 0 | W179: 0 | X179: 0
A180: 2001-06-19 | B180: 0 | C180: 0 | D180: =INDEX('RWH Calculator'!$Q$61:$Q$72,MATCH(F180,'RWH Calculator'!$K$61:$K$72,0)) -> 0 | E180: 0 | F180: 6 | G180: 2001 | H180: 0.17 | I180: 0 | J180: 0 | K180: =IF('RWH Calculator'!$C$67>0,'RWH Calculator'!$C$69,'RWH Calculator'!$C$57) -> 0 | L180: 0 | M180: 0 | N180: 0 | O180: 0 | P180: 0 | Q180: 0 | R180: 0 | S180: 0 | T180: 0 | U180: 0 | V180: 0 | W180: 0 | X180: 0
A181: 2001-06-20 | B181: 0 | C181: 0 | D181: =INDEX('RWH Calculator'!$Q$61:$Q$72,MATCH(F181,'RWH Calculator'!$K$61:$K$72,0)) -> 0 | E181: 0 | F181: 6 | G181: 2001 | H181: 0.17 | I181: 0 | J181: 0 | K181: =IF('RWH Calculator'!$C$67>0,'RWH Calculator'!$C$69,'RWH Calculator'!$C$57) -> 0 | L181: 0 | M181: 0 | N181: 0 | O181: 0 | P181: 0 | Q181: 0 | R181: 0 | S181: 0 | T181: 0 | U181: 0 | V181: 0 | W181: 0 | X181: 0
A182: 2001-06-21 | B182: 0 | C182: 0 | D182: =INDEX('RWH Calculator'!$Q$61:$Q$72,MATCH(F182,'RWH Calculator'!$K$61:$K$72,0)) -> 0 | E182: 0 | F182: 6 | G182: 2001 | H182: 0.17 | I182: 0 | J182: 0 | K182: =IF('RWH Calculator'!$C$67>0,'RWH Calculator'!$C$69,'RWH Calculator'!$C$57) -> 0 | L182: 0 | M182: 0 | N182: 0 | O182: 0 | P182: 0 | Q182: 0 | R182: 0 | S182: 0 | T182: 0 | U182: 0 | V182: 0 | W182: 0 | X182: 0
A183: 2001-06-22 | B183: 0 | C183: 0 | D183: =INDEX('RWH Calculator'!$Q$61:$Q$72,MATCH(F183,'RWH Calculator'!$K$61:$K$72,0)) -> 0 | E183: 0 | F183: 6 | G183: 2001 | H183: 0.17 | I183: 0 | J183: 0 | K183: =IF('RWH Calculator'!$C$67>0,'RWH Calculator'!$C$69,'RWH Calculator'!$C$57) -> 0 | L183: 0 | M183: 0 | N183: 0 | O183: 0 | P183: 0 | Q183: 0 | R183: 0 | S183: 0 | T183: 0 | U183: 0 | V183: 0 | W183: 0 | X183: 0
A184: 2001-06-23 | B184: 0 | C184: 0 | D184: =INDEX('RWH Calculator'!$Q$61:$Q$72,MATCH(F184,'RWH Calculator'!$K$61:$K$72,0)) -> 0 | E184: 0 | F184: 6 | G184: 2001 | H184: 0.17 | I184: 0 | J184: 0 | K184: =IF('RWH Calculator'!$C$67>0,'RWH Calculator'!$C$69,'RWH Calculator'!$C$57) -> 0 | L184: 0 | M184: 0 | N184: 0 | O184: 0 | P184: 0 | Q184: 0 | R184: 0 | S184: 0 | T184: 0 | U184: 0 | V184: 0 | W184: 0 | X184: 0
A185: 2001-06-24 | B185: 0 | C185: 0 | D185: =INDEX('RWH Calculator'!$Q$61:$Q$72,MATCH(F185,'RWH Calculator'!$K$61:$K$72,0)) -> 0 | E185: 0 | F185: 6 | G185: 2001 | H185: 0.17 | I185: 0 | J185: 0 | K185: =IF('RWH Calculator'!$C$67>0,'RWH Calculator'!$C$69,'RWH Calculator'!$C$57) -> 0 | L185: 0 | M185: 0 | N185: 0 | O185: 0 | P185: 0 | Q185: 0 | R185: 0 | S185: 0 | T185: 0 | U185: 0 | V185: 0 | W185: 0 | X185: 0
A186: 2001-06-25 | B186: 0.15 | C186: 0 | D186: =INDEX('RWH Calculator'!$Q$61:$Q$72,MATCH(F186,'RWH Calculator'!$K$61:$K$72,0)) -> 0 | E186: 0 | F186: 6 | G186: 2001 | H186: 0.17 | I186: 0 | J186: 0 | K186: =IF('RWH Calculator'!$C$67>0,'RWH Calculator'!$C$69,'RWH Calculator'!$C$57) -> 0 | L186: 0 | M186: 0 | N186: 0 | O186: 0 | P186: 0 | Q186: 0 | R186: 0 | S186: 0 | T186: 0 | U186: 0 | V186: 0 | W186: 0 | X186: 0
A187: 2001-06-26 | B187: 0 | C187: 0 | D187: =INDEX('RWH Calculator'!$Q$61:$Q$72,MATCH(F187,'RWH Calculator'!$K$61:$K$72,0)) -> 0 | E187: 0 | F187: 6 | G187: 2001 | H187: 0.17 | I187: 0 | J187: 0 | K187: =IF('RWH Calculator'!$C$67>0,'RWH Calculator'!$C$69,'RWH Calculator'!$C$57) -> 0 | L187: 0 | M187: 0 | N187: 0 | O187: 0 | P187: 0 | Q187: 0 | R187: 0 | S187: 0 | T187: 0 | U187: 0 | V187: 0 | W187: 0 | X187: 0
A188: 2001-06-27 | B188: 0 | C188: 0 | D188: =INDEX('RWH Calculator'!$Q$61:$Q$72,MATCH(F188,'RWH Calculator'!$K$61:$K$72,0)) -> 0 | E188: 0 | F188: 6 | G188: 2001 | H188: 0.17 | I188: 0 | J188: 0 | K188: =IF('RWH Calculator'!$C$67>0,'RWH Calculator'!$C$69,'RWH Calculator'!$C$57) -> 0 | L188: 0 | M188: 0 | N188: 0 | O188: 0 | P188: 0 | Q188: 0 | R188: 0 | S188: 0 | T188: 0 | U188: 0 | V188: 0 | W188: 0 | X188: 0
A189: 2001-06-28 | B189: 0 | C189: 0 | D189: =INDEX('RWH Calculator'!$Q$61:$Q$72,MATCH(F189,'RWH Calculator'!$K$61:$K$72,0)) -> 0 | E189: 0 | F189: 6 | G189: 2001 | H189: 0.17 | I189: 0 | J189: 0 | K189: =IF('RWH Calculator'!$C$67>0,'RWH Calculator'!$C$69,'RWH Calculator'!$C$57) -> 0 | L189: 0 | M189: 0 | N189: 0 | O189: 0 | P189: 0 | Q189: 0 | R189: 0 | S189: 0 | T189: 0 | U189: 0 | V189: 0 | W189: 0 | X189: 0
A190: 2001-06-29 | B190: 0 | C190: 0 | D190: =INDEX('RWH Calculator'!$Q$61:$Q$72,MATCH(F190,'RWH Calculator'!$K$61:$K$72,0)) -> 0 | E190: 0 | F190: 6 | G190: 2001 | H190: 0.17 | I190: 0 | J190: 0 | K190: =IF('RWH Calculator'!$C$67>0,'RWH Calculator'!$C$69,'RWH Calculator'!$C$57) -> 0 | L190: 0 | M190: 0 | N190: 0 | O190: 0 | P190: 0 | Q190: 0 | R190: 0 | S190: 0 | T190: 0 | U190: 0 | V190: 0 | W190: 0 | X190: 0
A191: 2001-06-30 | B191: 0 | C191: 0 | D191: =INDEX('RWH Calculator'!$Q$61:$Q$72,MATCH(F191,'RWH Calculator'!$K$61:$K$72,0)) -> 0 | E191: 0 | F191: 6 | G191: 2001 | H191: 0.17 | I191: 0 | J191: 0 | K191: =IF('RWH Calculator'!$C$67>0,'RWH Calculator'!$C$69,'RWH Calculator'!$C$57) -> 0 | L191: 0 | M191: 0 | N191: 0 | O191: 0 | P191: 0 | Q191: 0 | R191: 0 | S191: 0 | T191: 0 | U191: 0 | V191: 0 | W191: 0 | X191: 0
A192: 2001-07-01 | B192: 0 | C192: 0 | D192: =INDEX('RWH Calculator'!$Q$61:$Q$72,MATCH(F192,'RWH Calculator'!$K$61:$K$72,0)) -> 0 | E192: 0 | F192: 7 | G192: 2001 | H192: 0.16 | I192: 0 | J192: 0 | K192: =IF('RWH Calculator'!$C$67>0,'RWH Calculator'!$C$69,'RWH Calculator'!$C$57) -> 0 | L192: 0 | M192: 0 | N192: 0 | O192: 0 | P192: 0 | Q192: 0 | R192: 0 | S192: 0 | T192: 0 | U192: 0 | V192: 0 | W192: 0 | X192: 0
A193: 2001-07-02 | B193: 0 | C193: 0 | D193: =INDEX('RWH Calculator'!$Q$61:$Q$72,MATCH(F193,'RWH Calculator'!$K$61:$K$72,0)) -> 0 | E193: 0 | F193: 7 | G193: 2001 | H193: 0.16 | I193: 0 | J193: 0 | K193: =IF('RWH Calculator'!$C$67>0,'RWH Calculator'!$C$69,'RWH Calculator'!$C$57) -> 0 | L193: 0 | M193: 0 | N193: 0 | O193: 0 | P193: 0 | Q193: 0 | R193: 0 | S193: 0 | T193: 0 | U193: 0 | V193: 0 | W193: 0 | X193: 0
A194: 2001-07-03 | B194: 0 | C194: 0 | D194: =INDEX('RWH Calculator'!$Q$61:$Q$72,MATCH(F194,'RWH Calculator'!$K$61:$K$72,0)) -> 0 | E194: 0 | F194: 7 | G194: 2001 | H194: 0.16 | I194: 0 | J194: 0 | K194: =IF('RWH Calculator'!$C$67>0,'RWH Calculator'!$C$69,'RWH Calculator'!$C$57) -> 0 | L194: 0 | M194: 0 | N194: 0 | O194: 0 | P194: 0 | Q194: 0 | R194: 0 | S194: 0 | T194: 0 | U194: 0 | V194: 0 | W194: 0 | X194: 0
A195: 2001-07-04 | B195: 0 | C195: 0 | D195: =INDEX('RWH Calculator'!$Q$61:$Q$72,MATCH(F195,'RWH Calculator'!$K$61:$K$72,0)) -> 0 | E195: 0 | F195: 7 | G195: 2001 | H195: 0.16 | I195: 0 | J195: 0 | K195: =IF('RWH Calculator'!$C$67>0,'RWH Calculator'!$C$69,'RWH Calculator'!$C$57) -> 0 | L195: 0 | M195: 0 | N195: 0 | O195: 0 | P195: 0 | Q195: 0 | R195: 0 | S195: 0 | T195: 0 | U195: 0 | V195: 0 | W195: 0 | X195: 0
A196: 2001-07-05 | B196: 0 | C196: 0 | D196: =INDEX('RWH Calculator'!$Q$61:$Q$72,MATCH(F196,'RWH Calculator'!$K$61:$K$72,0)) -> 0 | E196: 0 | F196: 7 | G196: 2001 | H196: 0.16 | I196: 0 | J196: 0 | K196: =IF('RWH Calculator'!$C$67>0,'RWH Calculator'!$C$69,'RWH Calculator'!$C$57) -> 0 | L196: 0 | M196: 0 | N196: 0 | O196: 0 | P196: 0 | Q196: 0 | R196: 0 | S196: 0 | T196: 0 | U196: 0 | V196: 0 | W196: 0 | X196: 0
A197: 2001-07-06 | B197: 0 | C197: 0 | D197: =INDEX('RWH Calculator'!$Q$61:$Q$72,MATCH(F197,'RWH Calculator'!$K$61:$K$72,0)) -> 0 | E197: 0 | F197: 7 | G197: 2001 | H197: 0.16 | I197: 0 | J197: 0 | K197: =IF('RWH Calculator'!$C$67>0,'RWH Calculator'!$C$69,'RWH Calculator'!$C$57) -> 0 | L197: 0 | M197: 0 | N197: 0 | O197: 0 | P197: 0 | Q197: 0 | R197: 0 | S197: 0 | T197: 0 | U197: 0 | V197: 0 | W197: 0 | X197: 0
A198: 2001-07-07 | B198: 0 | C198: 0 | D198: =INDEX('RWH Calculator'!$Q$61:$Q$72,MATCH(F198,'RWH Calculator'!$K$61:$K$72,0)) -> 0 | E198: 0 | F198: 7 | G198: 2001 | H198: 0.16 | I198: 0 | J198: 0 | K198: =IF('RWH Calculator'!$C$67>0,'RWH Calculator'!$C$69,'RWH Calculator'!$C$57) -> 0 | L198: 0 | M198: 0 | N198: 0 | O198: 0 | P198: 0 | Q198: 0 | R198: 0 | S198: 0 | T198: 0 | U198: 0 | V198: 0 | W198: 0 | X198: 0
A199: 2001-07-08 | B199: 0 | C199: 0 | D199: =INDEX('RWH Calculator'!$Q$61:$Q$72,MATCH(F199,'RWH Calculator'!$K$61:$K$72,0)) -> 0 | E199: 0 | F199: 7 | G199: 2001 | H199: 0.16 | I199: 0 | J199: 0 | K199: =IF('RWH Calculator'!$C$67>0,'RWH Calculator'!$C$69,'RWH Calculator'!$C$57) -> 0 | L199: 0 | M199: 0 | N199: 0 | O199: 0 | P199: 0 | Q199: 0 | R199: 0 | S199: 0 | T199: 0 | U199: 0 | V199: 0 | W199: 0 | X199: 0
A200: 2001-07-09 | B200: 0 | C200: 0 | D200: =INDEX('RWH Calculator'!$Q$61:$Q$72,MATCH(F200,'RWH Calculator'!$K$61:$K$72,0)) -> 0 | E200: 0 | F200: 7 | G200: 2001 | H200: 0.16 | I200: 0 | J200: 0 | K200: =IF('RWH Calculator'!$C$67>0,'RWH Calculator'!$C$69,'RWH Calculator'!$C$57) -> 0 | L200: 0 | M200: 0 | N200: 0 | O200: 0 | P200: 0 | Q200: 0 | R200: 0 | S200: 0 | T200: 0 | U200: 0 | V200: 0 | W200: 0 | X200: 0
A201: 2001-07-10 | B201: 0 | C201: 0 | D201: =INDEX('RWH Calculator'!$Q$61:$Q$72,MATCH(F201,'RWH Calculator'!$K$61:$K$72,0)) -> 0 | E201: 0 | F201: 7 | G201: 2001 | H201: 0.16 | I201: 0 | J201: 0 | K201: =IF('RWH Calculator'!$C$67>0,'RWH Calculator'!$C$69,'RWH Calculator'!$C$57) -> 0 | L201: 0 | M201: 0 | N201: 0 | O201: 0 | P201: 0 | Q201: 0 | R201: 0 | S201: 0 | T201: 0 | U201: 0 | V201: 0 | W201: 0 | X201: 0
... 3461 more rows

Sheet RWH Performance Evaluation (hidden)
A1: RAINWATER HARVESTING PERFORMANCE
A2: Runoff Supply | D2: =SUM('RWH 10-yr Simulation'!C11:C3662) -> 0 | E2: gal | G2: Other Sources Supply | J2: =SUM('RWH 10-yr Simulation'!D11:D3662) -> 0 | K2: gal
A3: Runoff Captured | D3: =SUM('RWH 10-yr Simulation'!O11:O3662) -> 0 | E3: gal | G3: Other Sources Captured | J3: =SUM('RWH 10-yr Simulation'!N11:N3662) -> 0 | K3: gal
A4: Runoff Overflow | D4: =SUM('RWH 10-yr Simulation'!U11:U3662) -> 0 | E4: gal | G4: Other Sources Overflow | J4: =SUM('RWH 10-yr Simulation'!T11:T3662) -> 0 | K4: gal
A5: Stormwater Performance Capture | D5: =D3/D2 ->  | G5: Stormwater Performance Capture | J5: =J3/J2 -> 
A7: Non-Potable Water Demand | D7: =SUM('RWH 10-yr Simulation'!L11:L3662) -> 0 | E7: gal
A8: Water Harvested and Reused | D8: =SUM('RWH 10-yr Simulation'!S11:S3662) -> 0 | E8: gal
A9: Non-Potable Demand Met | D9: =D8/D7 -> 
A11: Total Overflow | D11: =SUM('RWH 10-yr Simulation'!V11:V3662) -> 0 | E11: gal
A12: Peak Overflow | D12: =MAX('RWH 10-yr Simulation'!V11:V3662) -> 0 | E12: gal/day
A14: Days with Precipitation | D14: =COUNTIF('RWH 10-yr Simulation'!B11:B3662,">0") -> 689 | E14: days
A15: Days with Irrigation Demand | D15: =COUNTIF('RWH 10-yr Simulation'!J11:J3662, ">0") -> 0 | E15: days
A16: Days with Water in Cistern | D16: =COUNTIF('RWH 10-yr Simulation'!M11:M3662, ">0") -> 0 | E16: days
C17: Avg Cistern Volume Before Storm | D17: =K31 -> 0 | E17: gal
A20: Annual Analysis | G20: Extended Rainy Season Analysis (October - May) | M20: Compacted Rainy Season Analysis (November - April)
A21: Days Prior to Rain Event | G21: Days Prior to Rain Event | M21: Days Prior to Rain Event
A22: Date | B22: Volume in Storage (gal) | C22: Before Storm Statistics | G22: Date | H22: Volume in Storage (gal) | I22: Before Storm Statistics | M22: Date | N22: Volume in Storage (gal) | O22: Before Storm Statistics
A23: 2001-01-07 | B23: =INDEX('RWH 10-yr Simulation'!$M$11:$M$3662,MATCH(A23,'RWH 10-yr Simulation'!$A$11:$A$3662,0)) -> 0 | D23: Total Rainy Days | E23: =COUNT(A23:A711) -> 689 | F23: days | G23: 2001-01-07 | H23: =INDEX('RWH 10-yr Simulation'!$M$11:$M$3662,MATCH(G23,'RWH 10-yr Simulation'!$A$11:$A$3662,0)) -> 0 | J23: Total Rainy Days | K23: =COUNT(G23:G678) -> 656 | M23: 2001-01-07 | N23: =INDEX('RWH 10-yr Simulation'!$M$11:$M$3662,MATCH(M23,'RWH 10-yr Simulation'!$A$11:$A$3662,0)) -> 0 | P23: Total Rainy Days | Q23: =COUNT(M23:M615) -> 593
A24: 2001-01-08 | B24: =INDEX('RWH 10-yr Simulation'!$M$11:$M$3662,MATCH(A24,'RWH 10-yr Simulation'!$A$11:$A$3662,0)) -> 0 | D24: No water in cistern | E24: =COUNTIF(B23:B711, "0") -> 689 | F24: days | G24: 2001-01-08 | H24: =INDEX('RWH 10-yr Simulation'!$M$11:$M$3662,MATCH(G24,'RWH 10-yr Simulation'!$A$11:$A$3662,0)) -> 0 | J24: No water in cistern | K24: =COUNTIF(H23:H678, "0") -> 656 | L24: days | M24: 2001-01-08 | N24: =INDEX('RWH 10-yr Simulation'!$M$11:$M$3662,MATCH(M24,'RWH 10-yr Simulation'!$A$11:$A$3662,0)) -> 0 | P24: No water in cistern | Q24: =COUNTIF(N23:N615, "0") -> 593 | R24: days
A25: 2001-01-09 | B25: =INDEX('RWH 10-yr Simulation'!$M$11:$M$3662,MATCH(A25,'RWH 10-yr Simulation'!$A$11:$A$3662,0)) -> 0 | D25: No water in cistern | E25: =E24/689 -> 1 | G25: 2001-01-09 | H25: =INDEX('RWH 10-yr Simulation'!$M$11:$M$3662,MATCH(G25,'RWH 10-yr Simulation'!$A$11:$A$3662,0)) -> 0 | J25: No water in cistern | K25: =K24/689 -> 0.9521044993 | M25: 2001-01-09 | N25: =INDEX('RWH 10-yr Simulation'!$M$11:$M$3662,MATCH(M25,'RWH 10-yr Simulation'!$A$11:$A$3662,0)) -> 0 | P25: No water in cistern | Q25: =Q24/689 -> 0.8606676343
A26: 2001-01-10 | B26: =INDEX('RWH 10-yr Simulation'!$M$11:$M$3662,MATCH(A26,'RWH 10-yr Simulation'!$A$11:$A$3662,0)) -> 0 | D26: Cistern Full | E26: =COUNTIF(B23:B711, ">=" &'RWH Calculator'!E86) -> 689 | F26: days | G26: 2001-01-10 | H26: =INDEX('RWH 10-yr Simulation'!$M$11:$M$3662,MATCH(G26,'RWH 10-yr Simulation'!$A$11:$A$3662,0)) -> 0 | J26: Cistern Full | K26: =COUNTIF(H23:H678, ">=" &'RWH Calculator'!E86) -> 656 | L26: days | M26: 2001-01-10 | N26: =INDEX('RWH 10-yr Simulation'!$M$11:$M$3662,MATCH(M26,'RWH 10-yr Simulation'!$A$11:$A$3662,0)) -> 0 | P26: Cistern Full | Q26: =COUNTIF(N23:N615, ">=" &'RWH Calculator'!E86) -> 593 | R26: days
A27: 2001-01-11 | B27: =INDEX('RWH 10-yr Simulation'!$M$11:$M$3662,MATCH(A27,'RWH 10-yr Simulation'!$A$11:$A$3662,0)) -> 0 | D27: Cistern Full | E27: =E26/689 -> 1 | G27: 2001-01-11 | H27: =INDEX('RWH 10-yr Simulation'!$M$11:$M$3662,MATCH(G27,'RWH 10-yr Simulation'!$A$11:$A$3662,0)) -> 0 | J27: Cistern Full | K27: =K26/689 -> 0.9521044993 | M27: 2001-01-11 | N27: =INDEX('RWH 10-yr Simulation'!$M$11:$M$3662,MATCH(M27,'RWH 10-yr Simulation'!$A$11:$A$3662,0)) -> 0 | P27: Cistern Full | Q27: =Q26/689 -> 0.8606676343
A28: 2001-01-22 | B28: =INDEX('RWH 10-yr Simulation'!$M$11:$M$3662,MATCH(A28,'RWH 10-yr Simulation'!$A$11:$A$3662,0)) -> 0 | G28: 2001-01-22 | H28: =INDEX('RWH 10-yr Simulation'!$M$11:$M$3662,MATCH(G28,'RWH 10-yr Simulation'!$A$11:$A$3662,0)) -> 0 | M28: 2001-01-22 | N28: =INDEX('RWH 10-yr Simulation'!$M$11:$M$3662,MATCH(M28,'RWH 10-yr Simulation'!$A$11:$A$3662,0)) -> 0
A29: 2001-01-23 | B29: =INDEX('RWH 10-yr Simulation'!$M$11:$M$3662,MATCH(A29,'RWH 10-yr Simulation'!$A$11:$A$3662,0)) -> 0 | G29: 2001-01-23 | H29: =INDEX('RWH 10-yr Simulation'!$M$11:$M$3662,MATCH(G29,'RWH 10-yr Simulation'!$A$11:$A$3662,0)) -> 0 | M29: 2001-01-23 | N29: =INDEX('RWH 10-yr Simulation'!$M$11:$M$3662,MATCH(M29,'RWH 10-yr Simulation'!$A$11:$A$3662,0)) -> 0
A30: 2001-01-24 | B30: =INDEX('RWH 10-yr Simulation'!$M$11:$M$3662,MATCH(A30,'RWH 10-yr Simulation'!$A$11:$A$3662,0)) -> 0 | C30: Annual Averages | G30: 2001-01-24 | H30: =INDEX('RWH 10-yr Simulation'!$M$11:$M$3662,MATCH(G30,'RWH 10-yr Simulation'!$A$11:$A$3662,0)) -> 0 | I30: Seasonal Averages | M30: 2001-01-24 | N30: =INDEX('RWH 10-yr Simulation'!$M$11:$M$3662,MATCH(M30,'RWH 10-yr Simulation'!$A$11:$A$3662,0)) -> 0 | O30: Seasonal Averages
A31: 2001-01-25 | B31: =INDEX('RWH 10-yr Simulation'!$M$11:$M$3662,MATCH(A31,'RWH 10-yr Simulation'!$A$11:$A$3662,0)) -> 0 | D31: Average Volume | E31: =AVERAGE(B23:B711) -> 0 | F31: gal | G31: 2001-01-25 | H31: =INDEX('RWH 10-yr Simulation'!$M$11:$M$3662,MATCH(G31,'RWH 10-yr Simulation'!$A$11:$A$3662,0)) -> 0 | J31: Average Volume | K31: =AVERAGE(H23:H678) -> 0 | L31: gal | M31: 2001-01-25 | N31: =INDEX('RWH 10-yr Simulation'!$M$11:$M$3662,MATCH(M31,'RWH 10-yr Simulation'!$A$11:$A$3662,0)) -> 0 | P31: Average Volume | Q31: =AVERAGE(N23:N615) -> 0 | R31: gal
A32: 2001-01-28 | B32: =INDEX('RWH 10-yr Simulation'!$M$11:$M$3662,MATCH(A32,'RWH 10-yr Simulation'!$A$11:$A$3662,0)) -> 0 | D32: Above Average | E32: =COUNTIF(B23:B711, ">" &E31) -> 0 | F32: days | G32: 2001-01-28 | H32: =INDEX('RWH 10-yr Simulation'!$M$11:$M$3662,MATCH(G32,'RWH 10-yr Simulation'!$A$11:$A$3662,0)) -> 0 | J32: Above Average | K32: =COUNTIF(H23:H678, ">" &K31) -> 0 | L32: days | M32: 2001-01-28 | N32: =INDEX('RWH 10-yr Simulation'!$M$11:$M$3662,MATCH(M32,'RWH 10-yr Simulation'!$A$11:$A$3662,0)) -> 0 | P32: Above Average | Q32: =COUNTIF(N23:N615, ">" &Q31) -> 0 | R32: days
A33: 2001-02-05 | B33: =INDEX('RWH 10-yr Simulation'!$M$11:$M$3662,MATCH(A33,'RWH 10-yr Simulation'!$A$11:$A$3662,0)) -> 0 | D33: Above Average | E33: =E32/E23 -> 0 | G33: 2001-02-05 | H33: =INDEX('RWH 10-yr Simulation'!$M$11:$M$3662,MATCH(G33,'RWH 10-yr Simulation'!$A$11:$A$3662,0)) -> 0 | J33: Above Average | K33: =K32/K23 -> 0 | M33: 2001-02-05 | N33: =INDEX('RWH 10-yr Simulation'!$M$11:$M$3662,MATCH(M33,'RWH 10-yr Simulation'!$A$11:$A$3662,0)) -> 0 | P33: Above Average | Q33: =Q32/Q23 -> 0
A34: 2001-02-08 | B34: =INDEX('RWH 10-yr Simulation'!$M$11:$M$3662,MATCH(A34,'RWH 10-yr Simulation'!$A$11:$A$3662,0)) -> 0 | D34: Below Average | E34: =COUNTIF(B23:B711, "<" &E31) -> 0 | F34: days | G34: 2001-02-08 | H34: =INDEX('RWH 10-yr Simulation'!$M$11:$M$3662,MATCH(G34,'RWH 10-yr Simulation'!$A$11:$A$3662,0)) -> 0 | J34: Below Average | K34: =COUNTIF(H23:H678, "<" &K31) -> 0 | L34: days | M34: 2001-02-08 | N34: =INDEX('RWH 10-yr Simulation'!$M$11:$M$3662,MATCH(M34,'RWH 10-yr Simulation'!$A$11:$A$3662,0)) -> 0 | P34: Below Average | Q34: =COUNTIF(N23:N615, "<" &Q31) -> 0 | R34: days
A35: 2001-02-09 | B35: =INDEX('RWH 10-yr Simulation'!$M$11:$M$3662,MATCH(A35,'RWH 10-yr Simulation'!$A$11:$A$3662,0)) -> 0 | D35: Below Average | E35: =E34/E23 -> 0 | G35: 2001-02-09 | H35: =INDEX('RWH 10-yr Simulation'!$M$11:$M$3662,MATCH(G35,'RWH 10-yr Simulation'!$A$11:$A$3662,0)) -> 0 | J35: Below Average | K35: =K34/K23 -> 0 | M35: 2001-02-09 | N35: =INDEX('RWH 10-yr Simulation'!$M$11:$M$3662,MATCH(M35,'RWH 10-yr Simulation'!$A$11:$A$3662,0)) -> 0 | P35: Below Average | Q35: =Q34/Q23 -> 0
A36: 2001-02-10 | B36: =INDEX('RWH 10-yr Simulation'!$M$11:$M$3662,MATCH(A36,'RWH 10-yr Simulation'!$A$11:$A$3662,0)) -> 0 | G36: 2001-02-10 | H36: =INDEX('RWH 10-yr Simulation'!$M$11:$M$3662,MATCH(G36,'RWH 10-yr Simulation'!$A$11:$A$3662,0)) -> 0 | M36: 2001-02-10 | N36: =INDEX('RWH 10-yr Simulation'!$M$11:$M$3662,MATCH(M36,'RWH 10-yr Simulation'!$A$11:$A$3662,0)) -> 0
A37: 2001-02-11 | B37: =INDEX('RWH 10-yr Simulation'!$M$11:$M$3662,MATCH(A37,'RWH 10-yr Simulation'!$A$11:$A$3662,0)) -> 0 | G37: 2001-02-11 | H37: =INDEX('RWH 10-yr Simulation'!$M$11:$M$3662,MATCH(G37,'RWH 10-yr Simulation'!$A$11:$A$3662,0)) -> 0 | M37: 2001-02-11 | N37: =INDEX('RWH 10-yr Simulation'!$M$11:$M$3662,MATCH(M37,'RWH 10-yr Simulation'!$A$11:$A$3662,0)) -> 0
A38: 2001-02-16 | B38: =INDEX('RWH 10-yr Simulation'!$M$11:$M$3662,MATCH(A38,'RWH 10-yr Simulation'!$A$11:$A$3662,0)) -> 0 | G38: 2001-02-16 | H38: =INDEX('RWH 10-yr Simulation'!$M$11:$M$3662,MATCH(G38,'RWH 10-yr Simulation'!$A$11:$A$3662,0)) -> 0 | M38: 2001-02-16 | N38: =INDEX('RWH 10-yr Simulation'!$M$11:$M$3662,MATCH(M38,'RWH 10-yr Simulation'!$A$11:$A$3662,0)) -> 0
A39: 2001-02-17 | B39: =INDEX('RWH 10-yr Simulation'!$M$11:$M$3662,MATCH(A39,'RWH 10-yr Simulation'!$A$11:$A$3662,0)) -> 0 | G39: 2001-02-17 | H39: =INDEX('RWH 10-yr Simulation'!$M$11:$M$3662,MATCH(G39,'RWH 10-yr Simulation'!$A$11:$A$3662,0)) -> 0 | M39: 2001-02-17 | N39: =INDEX('RWH 10-yr Simulation'!$M$11:$M$3662,MATCH(M39,'RWH 10-yr Simulation'!$A$11:$A$3662,0)) -> 0
A40: 2001-02-18 | B40: =INDEX('RWH 10-yr Simulation'!$M$11:$M$3662,MATCH(A40,'RWH 10-yr Simulation'!$A$11:$A$3662,0)) -> 0 | G40: 2001-02-18 | H40: =INDEX('RWH 10-yr Simulation'!$M$11:$M$3662,MATCH(G40,'RWH 10-yr Simulation'!$A$11:$A$3662,0)) -> 0 | M40: 2001-02-18 | N40: =INDEX('RWH 10-yr Simulation'!$M$11:$M$3662,MATCH(M40,'RWH 10-yr Simulation'!$A$11:$A$3662,0)) -> 0
A41: 2001-02-19 | B41: =INDEX('RWH 10-yr Simulation'!$M$11:$M$3662,MATCH(A41,'RWH 10-yr Simulation'!$A$11:$A$3662,0)) -> 0 | G41: 2001-02-19 | H41: =INDEX('RWH 10-yr Simulation'!$M$11:$M$3662,MATCH(G41,'RWH 10-yr Simulation'!$A$11:$A$3662,0)) -> 0 | M41: 2001-02-19 | N41: =INDEX('RWH 10-yr Simulation'!$M$11:$M$3662,MATCH(M41,'RWH 10-yr Simulation'!$A$11:$A$3662,0)) -> 0
A42: 2001-02-20 | B42: =INDEX('RWH 10-yr Simulation'!$M$11:$M$3662,MATCH(A42,'RWH 10-yr Simulation'!$A$11:$A$3662,0)) -> 0 | G42: 2001-02-20 | H42: =INDEX('RWH 10-yr Simulation'!$M$11:$M$3662,MATCH(G42,'RWH 10-yr Simulation'!$A$11:$A$3662,0)) -> 0 | M42: 2001-02-20 | N42: =INDEX('RWH 10-yr Simulation'!$M$11:$M$3662,MATCH(M42,'RWH 10-yr Simulation'!$A$11:$A$3662,0)) -> 0
A43: 2001-02-21 | B43: =INDEX('RWH 10-yr Simulation'!$M$11:$M$3662,MATCH(A43,'RWH 10-yr Simulation'!$A$11:$A$3662,0)) -> 0 | G43: 2001-02-21 | H43: =INDEX('RWH 10-yr Simulation'!$M$11:$M$3662,MATCH(G43,'RWH 10-yr Simulation'!$A$11:$A$3662,0)) -> 0 | M43: 2001-02-21 | N43: =INDEX('RWH 10-yr Simulation'!$M$11:$M$3662,MATCH(M43,'RWH 10-yr Simulation'!$A$11:$A$3662,0)) -> 0
A44: 2001-02-22 | B44: =INDEX('RWH 10-yr Simulation'!$M$11:$M$3662,MATCH(A44,'RWH 10-yr Simulation'!$A$11:$A$3662,0)) -> 0 | G44: 2001-02-22 | H44: =INDEX('RWH 10-yr Simulation'!$M$11:$M$3662,MATCH(G44,'RWH 10-yr Simulation'!$A$11:$A$3662,0)) -> 0 | M44: 2001-02-22 | N44: =INDEX('RWH 10-yr Simulation'!$M$11:$M$3662,MATCH(M44,'RWH 10-yr Simulation'!$A$11:$A$3662,0)) -> 0
A45: 2001-02-23 | B45: =INDEX('RWH 10-yr Simulation'!$M$11:$M$3662,MATCH(A45,'RWH 10-yr Simulation'!$A$11:$A$3662,0)) -> 0 | G45: 2001-02-23 | H45: =INDEX('RWH 10-yr Simulation'!$M$11:$M$3662,MATCH(G45,'RWH 10-yr Simulation'!$A$11:$A$3662,0)) -> 0 | M45: 2001-02-23 | N45: =INDEX('RWH 10-yr Simulation'!$M$11:$M$3662,MATCH(M45,'RWH 10-yr Simulation'!$A$11:$A$3662,0)) -> 0
A46: 2001-02-24 | B46: =INDEX('RWH 10-yr Simulation'!$M$11:$M$3662,MATCH(A46,'RWH 10-yr Simulation'!$A$11:$A$3662,0)) -> 0 | G46: 2001-02-24 | H46: =INDEX('RWH 10-yr Simulation'!$M$11:$M$3662,MATCH(G46,'RWH 10-yr Simulation'!$A$11:$A$3662,0)) -> 0 | M46: 2001-02-24 | N46: =INDEX('RWH 10-yr Simulation'!$M$11:$M$3662,MATCH(M46,'RWH 10-yr Simulation'!$A$11:$A$3662,0)) -> 0
A47: 2001-02-28 | B47: =INDEX('RWH 10-yr Simulation'!$M$11:$M$3662,MATCH(A47,'RWH 10-yr Simulation'!$A$11:$A$3662,0)) -> 0 | G47: 2001-02-28 | H47: =INDEX('RWH 10-yr Simulation'!$M$11:$M$3662,MATCH(G47,'RWH 10-yr Simulation'!$A$11:$A$3662,0)) -> 0 | M47: 2001-02-28 | N47: =INDEX('RWH 10-yr Simulation'!$M$11:$M$3662,MATCH(M47,'RWH 10-yr Simulation'!$A$11:$A$3662,0)) -> 0
A48: 2001-03-01 | B48: =INDEX('RWH 10-yr Simulation'!$M$11:$M$3662,MATCH(A48,'RWH 10-yr Simulation'!$A$11:$A$3662,0)) -> 0 | G48: 2001-03-01 | H48: =INDEX('RWH 10-yr Simulation'!$M$11:$M$3662,MATCH(G48,'RWH 10-yr Simulation'!$A$11:$A$3662,0)) -> 0 | M48: 2001-03-01 | N48: =INDEX('RWH 10-yr Simulation'!$M$11:$M$3662,MATCH(M48,'RWH 10-yr Simulation'!$A$11:$A$3662,0)) -> 0
A49: 2001-03-02 | B49: =INDEX('RWH 10-yr Simulation'!$M$11:$M$3662,MATCH(A49,'RWH 10-yr Simulation'!$A$11:$A$3662,0)) -> 0 | G49: 2001-03-02 | H49: =INDEX('RWH 10-yr Simulation'!$M$11:$M$3662,MATCH(G49,'RWH 10-yr Simulation'!$A$11:$A$3662,0)) -> 0 | M49: 2001-03-02 | N49: =INDEX('RWH 10-yr Simulation'!$M$11:$M$3662,MATCH(M49,'RWH 10-yr Simulation'!$A$11:$A$3662,0)) -> 0
A50: 2001-03-03 | B50: =INDEX('RWH 10-yr Simulation'!$M$11:$M$3662,MATCH(A50,'RWH 10-yr Simulation'!$A$11:$A$3662,0)) -> 0 | G50: 2001-03-03 | H50: =INDEX('RWH 10-yr Simulation'!$M$11:$M$3662,MATCH(G50,'RWH 10-yr Simulation'!$A$11:$A$3662,0)) -> 0 | M50: 2001-03-03 | N50: =INDEX('RWH 10-yr Simulation'!$M$11:$M$3662,MATCH(M50,'RWH 10-yr Simulation'!$A$11:$A$3662,0)) -> 0
A51: 2001-03-04 | B51: =INDEX('RWH 10-yr Simulation'!$M$11:$M$3662,MATCH(A51,'RWH 10-yr Simulation'!$A$11:$A$3662,0)) -> 0 | G51: 2001-03-04 | H51: =INDEX('RWH 10-yr Simulation'!$M$11:$M$3662,MATCH(G51,'RWH 10-yr Simulation'!$A$11:$A$3662,0)) -> 0 | M51: 2001-03-04 | N51: =INDEX('RWH 10-yr Simulation'!$M$11:$M$3662,MATCH(M51,'RWH 10-yr Simulation'!$A$11:$A$3662,0)) -> 0
A52: 2001-03-05 | B52: =INDEX('RWH 10-yr Simulation'!$M$11:$M$3662,MATCH(A52,'RWH 10-yr Simulation'!$A$11:$A$3662,0)) -> 0 | G52: 2001-03-05 | H52: =INDEX('RWH 10-yr Simulation'!$M$11:$M$3662,MATCH(G52,'RWH 10-yr Simulation'!$A$11:$A$3662,0)) -> 0 | M52: 2001-03-05 | N52: =INDEX('RWH 10-yr Simulation'!$M$11:$M$3662,MATCH(M52,'RWH 10-yr Simulation'!$A$11:$A$3662,0)) -> 0
A53: 2001-03-23 | B53: =INDEX('RWH 10-yr Simulation'!$M$11:$M$3662,MATCH(A53,'RWH 10-yr Simulation'!$A$11:$A$3662,0)) -> 0 | G53: 2001-03-23 | H53: =INDEX('RWH 10-yr Simulation'!$M$11:$M$3662,MATCH(G53,'RWH 10-yr Simulation'!$A$11:$A$3662,0)) -> 0 | M53: 2001-03-23 | N53: =INDEX('RWH 10-yr Simulation'!$M$11:$M$3662,MATCH(M53,'RWH 10-yr Simulation'!$A$11:$A$3662,0)) -> 0
A54: 2001-03-24 | B54: =INDEX('RWH 10-yr Simulation'!$M$11:$M$3662,MATCH(A54,'RWH 10-yr Simulation'!$A$11:$A$3662,0)) -> 0 | G54: 2001-03-24 | H54: =INDEX('RWH 10-yr Simulation'!$M$11:$M$3662,MATCH(G54,'RWH 10-yr Simulation'!$A$11:$A$3662,0)) -> 0 | M54: 2001-03-24 | N54: =INDEX('RWH 10-yr Simulation'!$M$11:$M$3662,MATCH(M54,'RWH 10-yr Simulation'!$A$11:$A$3662,0)) -> 0
A55: 2001-04-05 | B55: =INDEX('RWH 10-yr Simulation'!$M$11:$M$3662,MATCH(A55,'RWH 10-yr Simulation'!$A$11:$A$3662,0)) -> 0 | G55: 2001-04-05 | H55: =INDEX('RWH 10-yr Simulation'!$M$11:$M$3662,MATCH(G55,'RWH 10-yr Simulation'!$A$11:$A$3662,0)) -> 0 | M55: 2001-04-05 | N55: =INDEX('RWH 10-yr Simulation'!$M$11:$M$3662,MATCH(M55,'RWH 10-yr Simulation'!$A$11:$A$3662,0)) -> 0
A56: 2001-04-06 | B56: =INDEX('RWH 10-yr Simulation'!$M$11:$M$3662,MATCH(A56,'RWH 10-yr Simulation'!$A$11:$A$3662,0)) -> 0 | G56: 2001-04-06 | H56: =INDEX('RWH 10-yr Simulation'!$M$11:$M$3662,MATCH(G56,'RWH 10-yr Simulation'!$A$11:$A$3662,0)) -> 0 | M56: 2001-04-06 | N56: =INDEX('RWH 10-yr Simulation'!$M$11:$M$3662,MATCH(M56,'RWH 10-yr Simulation'!$A$11:$A$3662,0)) -> 0
A57: 2001-04-08 | B57: =INDEX('RWH 10-yr Simulation'!$M$11:$M$3662,MATCH(A57,'RWH 10-yr Simulation'!$A$11:$A$3662,0)) -> 0 | G57: 2001-04-08 | H57: =INDEX('RWH 10-yr Simulation'!$M$11:$M$3662,MATCH(G57,'RWH 10-yr Simulation'!$A$11:$A$3662,0)) -> 0 | M57: 2001-04-08 | N57: =INDEX('RWH 10-yr Simulation'!$M$11:$M$3662,MATCH(M57,'RWH 10-yr Simulation'!$A$11:$A$3662,0)) -> 0
A58: 2001-04-10 | B58: =INDEX('RWH 10-yr Simulation'!$M$11:$M$3662,MATCH(A58,'RWH 10-yr Simulation'!$A$11:$A$3662,0)) -> 0 | G58: 2001-04-10 | H58: =INDEX('RWH 10-yr Simulation'!$M$11:$M$3662,MATCH(G58,'RWH 10-yr Simulation'!$A$11:$A$3662,0)) -> 0 | M58: 2001-04-10 | N58: =INDEX('RWH 10-yr Simulation'!$M$11:$M$3662,MATCH(M58,'RWH 10-yr Simulation'!$A$11:$A$3662,0)) -> 0
A59: 2001-04-17 | B59: =INDEX('RWH 10-yr Simulation'!$M$11:$M$3662,MATCH(A59,'RWH 10-yr Simulation'!$A$11:$A$3662,0)) -> 0 | G59: 2001-04-17 | H59: =INDEX('RWH 10-yr Simulation'!$M$11:$M$3662,MATCH(G59,'RWH 10-yr Simulation'!$A$11:$A$3662,0)) -> 0 | M59: 2001-04-17 | N59: =INDEX('RWH 10-yr Simulation'!$M$11:$M$3662,MATCH(M59,'RWH 10-yr Simulation'!$A$11:$A$3662,0)) -> 0
A60: 2001-04-18 | B60: =INDEX('RWH 10-yr Simulation'!$M$11:$M$3662,MATCH(A60,'RWH 10-yr Simulation'!$A$11:$A$3662,0)) -> 0 | G60: 2001-04-18 | H60: =INDEX('RWH 10-yr Simulation'!$M$11:$M$3662,MATCH(G60,'RWH 10-yr Simulation'!$A$11:$A$3662,0)) -> 0 | M60: 2001-04-18 | N60: =INDEX('RWH 10-yr Simulation'!$M$11:$M$3662,MATCH(M60,'RWH 10-yr Simulation'!$A$11:$A$3662,0)) -> 0
A61: 2001-04-19 | B61: =INDEX('RWH 10-yr Simulation'!$M$11:$M$3662,MATCH(A61,'RWH 10-yr Simulation'!$A$11:$A$3662,0)) -> 0 | G61: 2001-04-19 | H61: =INDEX('RWH 10-yr Simulation'!$M$11:$M$3662,MATCH(G61,'RWH 10-yr Simulation'!$A$11:$A$3662,0)) -> 0 | M61: 2001-04-19 | N61: =INDEX('RWH 10-yr Simulation'!$M$11:$M$3662,MATCH(M61,'RWH 10-yr Simulation'!$A$11:$A$3662,0)) -> 0
A62: 2001-04-26 | B62: =INDEX('RWH 10-yr Simulation'!$M$11:$M$3662,MATCH(A62,'RWH 10-yr Simulation'!$A$11:$A$3662,0)) -> 0 | G62: 2001-04-26 | H62: =INDEX('RWH 10-yr Simulation'!$M$11:$M$3662,MATCH(G62,'RWH 10-yr Simulation'!$A$11:$A$3662,0)) -> 0 | M62: 2001-04-26 | N62: =INDEX('RWH 10-yr Simulation'!$M$11:$M$3662,MATCH(M62,'RWH 10-yr Simulation'!$A$11:$A$3662,0)) -> 0
A63: 2001-04-27 | B63: =INDEX('RWH 10-yr Simulation'!$M$11:$M$3662,MATCH(A63,'RWH 10-yr Simulation'!$A$11:$A$3662,0)) -> 0 | G63: 2001-04-27 | H63: =INDEX('RWH 10-yr Simulation'!$M$11:$M$3662,MATCH(G63,'RWH 10-yr Simulation'!$A$11:$A$3662,0)) -> 0 | M63: 2001-04-27 | N63: =INDEX('RWH 10-yr Simulation'!$M$11:$M$3662,MATCH(M63,'RWH 10-yr Simulation'!$A$11:$A$3662,0)) -> 0
A64: 2001-06-24 | B64: =INDEX('RWH 10-yr Simulation'!$M$11:$M$3662,MATCH(A64,'RWH 10-yr Simulation'!$A$11:$A$3662,0)) -> 0 | G64: 2001-10-28 | H64: =INDEX('RWH 10-yr Simulation'!$M$11:$M$3662,MATCH(G64,'RWH 10-yr Simulation'!$A$11:$A$3662,0)) -> 0 | M64: 2001-11-02 | N64: =INDEX('RWH 10-yr Simulation'!$M$11:$M$3662,MATCH(M64,'RWH 10-yr Simulation'!$A$11:$A$3662,0)) -> 0
A65: 2001-07-29 | B65: =INDEX('RWH 10-yr Simulation'!$M$11:$M$3662,MATCH(A65,'RWH 10-yr Simulation'!$A$11:$A$3662,0)) -> 0 | G65: 2001-10-29 | H65: =INDEX('RWH 10-yr Simulation'!$M$11:$M$3662,MATCH(G65,'RWH 10-yr Simulation'!$A$11:$A$3662,0)) -> 0 | M65: 2001-11-09 | N65: =INDEX('RWH 10-yr Simulation'!$M$11:$M$3662,MATCH(M65,'RWH 10-yr Simulation'!$A$11:$A$3662,0)) -> 0
A66: 2001-08-03 | B66: =INDEX('RWH 10-yr Simulation'!$M$11:$M$3662,MATCH(A66,'RWH 10-yr Simulation'!$A$11:$A$3662,0)) -> 0 | G66: 2001-11-02 | H66: =INDEX('RWH 10-yr Simulation'!$M$11:$M$3662,MATCH(G66,'RWH 10-yr Simulation'!$A$11:$A$3662,0)) -> 0 | M66: 2001-11-10 | N66: =INDEX('RWH 10-yr Simulation'!$M$11:$M$3662,MATCH(M66,'RWH 10-yr Simulation'!$A$11:$A$3662,0)) -> 0
A67: 2001-09-16 | B67: =INDEX('RWH 10-yr Simulation'!$M$11:$M$3662,MATCH(A67,'RWH 10-yr Simulation'!$A$11:$A$3662,0)) -> 0 | G67: 2001-11-09 | H67: =INDEX('RWH 10-yr Simulation'!$M$11:$M$3662,MATCH(G67,'RWH 10-yr Simulation'!$A$11:$A$3662,0)) -> 0 | M67: 2001-11-11 | N67: =INDEX('RWH 10-yr Simulation'!$M$11:$M$3662,MATCH(M67,'RWH 10-yr Simulation'!$A$11:$A$3662,0)) -> 0
A68: 2001-09-23 | B68: =INDEX('RWH 10-yr Simulation'!$M$11:$M$3662,MATCH(A68,'RWH 10-yr Simulation'!$A$11:$A$3662,0)) -> 0 | G68: 2001-11-10 | H68: =INDEX('RWH 10-yr Simulation'!$M$11:$M$3662,MATCH(G68,'RWH 10-yr Simulation'!$A$11:$A$3662,0)) -> 0 | M68: 2001-11-12 | N68: =INDEX('RWH 10-yr Simulation'!$M$11:$M$3662,MATCH(M68,'RWH 10-yr Simulation'!$A$11:$A$3662,0)) -> 0
A69: 2001-09-24 | B69: =INDEX('RWH 10-yr Simulation'!$M$11:$M$3662,MATCH(A69,'RWH 10-yr Simulation'!$A$11:$A$3662,0)) -> 0 | G69: 2001-11-11 | H69: =INDEX('RWH 10-yr Simulation'!$M$11:$M$3662,MATCH(G69,'RWH 10-yr Simulation'!$A$11:$A$3662,0)) -> 0 | M69: 2001-11-13 | N69: =INDEX('RWH 10-yr Simulation'!$M$11:$M$3662,MATCH(M69,'RWH 10-yr Simulation'!$A$11:$A$3662,0)) -> 0
A70: 2001-10-28 | B70: =INDEX('RWH 10-yr Simulation'!$M$11:$M$3662,MATCH(A70,'RWH 10-yr Simulation'!$A$11:$A$3662,0)) -> 0 | G70: 2001-11-12 | H70: =INDEX('RWH 10-yr Simulation'!$M$11:$M$3662,MATCH(G70,'RWH 10-yr Simulation'!$A$11:$A$3662,0)) -> 0 | M70: 2001-11-15 | N70: =INDEX('RWH 10-yr Simulation'!$M$11:$M$3662,MATCH(M70,'RWH 10-yr Simulation'!$A$11:$A$3662,0)) -> 0
A71: 2001-10-29 | B71: =INDEX('RWH 10-yr Simulation'!$M$11:$M$3662,MATCH(A71,'RWH 10-yr Simulation'!$A$11:$A$3662,0)) -> 0 | G71: 2001-11-13 | H71: =INDEX('RWH 10-yr Simulation'!$M$11:$M$3662,MATCH(G71,'RWH 10-yr Simulation'!$A$11:$A$3662,0)) -> 0 | M71: 2001-11-20 | N71: =INDEX('RWH 10-yr Simulation'!$M$11:$M$3662,MATCH(M71,'RWH 10-yr Simulation'!$A$11:$A$3662,0)) -> 0
A72: 2001-11-02 | B72: =INDEX('RWH 10-yr Simulation'!$M$11:$M$3662,MATCH(A72,'RWH 10-yr Simulation'!$A$11:$A$3662,0)) -> 0 | G72: 2001-11-15 | H72: =INDEX('RWH 10-yr Simulation'!$M$11:$M$3662,MATCH(G72,'RWH 10-yr Simulation'!$A$11:$A$3662,0)) -> 0 | M72: 2001-11-21 | N72: =INDEX('RWH 10-yr Simulation'!$M$11:$M$3662,MATCH(M72,'RWH 10-yr Simulation'!$A$11:$A$3662,0)) -> 0
A73: 2001-11-09 | B73: =INDEX('RWH 10-yr Simulation'!$M$11:$M$3662,MATCH(A73,'RWH 10-yr Simulation'!$A$11:$A$3662,0)) -> 0 | G73: 2001-11-20 | H73: =INDEX('RWH 10-yr Simulation'!$M$11:$M$3662,MATCH(G73,'RWH 10-yr Simulation'!$A$11:$A$3662,0)) -> 0 | M73: 2001-11-23 | N73: =INDEX('RWH 10-yr Simulation'!$M$11:$M$3662,MATCH(M73,'RWH 10-yr Simulation'!$A$11:$A$3662,0)) -> 0
A74: 2001-11-10 | B74: =INDEX('RWH 10-yr Simulation'!$M$11:$M$3662,MATCH(A74,'RWH 10-yr Simulation'!$A$11:$A$3662,0)) -> 0 | G74: 2001-11-21 | H74: =INDEX('RWH 10-yr Simulation'!$M$11:$M$3662,MATCH(G74,'RWH 10-yr Simulation'!$A$11:$A$3662,0)) -> 0 | M74: 2001-11-27 | N74: =INDEX('RWH 10-yr Simulation'!$M$11:$M$3662,MATCH(M74,'RWH 10-yr Simulation'!$A$11:$A$3662,0)) -> 0
A75: 2001-11-11 | B75: =INDEX('RWH 10-yr Simulation'!$M$11:$M$3662,MATCH(A75,'RWH 10-yr Simulation'!$A$11:$A$3662,0)) -> 0 | G75: 2001-11-23 | H75: =INDEX('RWH 10-yr Simulation'!$M$11:$M$3662,MATCH(G75,'RWH 10-yr Simulation'!$A$11:$A$3662,0)) -> 0 | M75: 2001-11-28 | N75: =INDEX('RWH 10-yr Simulation'!$M$11:$M$3662,MATCH(M75,'RWH 10-yr Simulation'!$A$11:$A$3662,0)) -> 0
A76: 2001-11-12 | B76: =INDEX('RWH 10-yr Simulation'!$M$11:$M$3662,MATCH(A76,'RWH 10-yr Simulation'!$A$11:$A$3662,0)) -> 0 | G76: 2001-11-27 | H76: =INDEX('RWH 10-yr Simulation'!$M$11:$M$3662,MATCH(G76,'RWH 10-yr Simulation'!$A$11:$A$3662,0)) -> 0 | M76: 2001-11-29 | N76: =INDEX('RWH 10-yr Simulation'!$M$11:$M$3662,MATCH(M76,'RWH 10-yr Simulation'!$A$11:$A$3662,0)) -> 0
A77: 2001-11-13 | B77: =INDEX('RWH 10-yr Simulation'!$M$11:$M$3662,MATCH(A77,'RWH 10-yr Simulation'!$A$11:$A$3662,0)) -> 0 | G77: 2001-11-28 | H77: =INDEX('RWH 10-yr Simulation'!$M$11:$M$3662,MATCH(G77,'RWH 10-yr Simulation'!$A$11:$A$3662,0)) -> 0 | M77: 2001-11-30 | N77: =INDEX('RWH 10-yr Simulation'!$M$11:$M$3662,MATCH(M77,'RWH 10-yr Simulation'!$A$11:$A$3662,0)) -> 0
A78: 2001-11-15 | B78: =INDEX('RWH 10-yr Simulation'!$M$11:$M$3662,MATCH(A78,'RWH 10-yr Simulation'!$A$11:$A$3662,0)) -> 0 | G78: 2001-11-29 | H78: =INDEX('RWH 10-yr Simulation'!$M$11:$M$3662,MATCH(G78,'RWH 10-yr Simulation'!$A$11:$A$3662,0)) -> 0 | M78: 2001-12-01 | N78: =INDEX('RWH 10-yr Simulation'!$M$11:$M$3662,MATCH(M78,'RWH 10-yr Simulation'!$A$11:$A$3662,0)) -> 0
A79: 2001-11-20 | B79: =INDEX('RWH 10-yr Simulation'!$M$11:$M$3662,MATCH(A79,'RWH 10-yr Simulation'!$A$11:$A$3662,0)) -> 0 | G79: 2001-11-30 | H79: =INDEX('RWH 10-yr Simulation'!$M$11:$M$3662,MATCH(G79,'RWH 10-yr Simulation'!$A$11:$A$3662,0)) -> 0 | M79: 2001-12-02 | N79: =INDEX('RWH 10-yr Simulation'!$M$11:$M$3662,MATCH(M79,'RWH 10-yr Simulation'!$A$11:$A$3662,0)) -> 0
A80: 2001-11-21 | B80: =INDEX('RWH 10-yr Simulation'!$M$11:$M$3662,MATCH(A80,'RWH 10-yr Simulation'!$A$11:$A$3662,0)) -> 0 | G80: 2001-12-01 | H80: =INDEX('RWH 10-yr Simulation'!$M$11:$M$3662,MATCH(G80,'RWH 10-yr Simulation'!$A$11:$A$3662,0)) -> 0 | M80: 2001-12-04 | N80: =INDEX('RWH 10-yr Simulation'!$M$11:$M$3662,MATCH(M80,'RWH 10-yr Simulation'!$A$11:$A$3662,0)) -> 0
A81: 2001-11-23 | B81: =INDEX('RWH 10-yr Simulation'!$M$11:$M$3662,MATCH(A81,'RWH 10-yr Simulation'!$A$11:$A$3662,0)) -> 0 | G81: 2001-12-02 | H81: =INDEX('RWH 10-yr Simulation'!$M$11:$M$3662,MATCH(G81,'RWH 10-yr Simulation'!$A$11:$A$3662,0)) -> 0 | M81: 2001-12-05 | N81: =INDEX('RWH 10-yr Simulation'!$M$11:$M$3662,MATCH(M81,'RWH 10-yr Simulation'!$A$11:$A$3662,0)) -> 0
A82: 2001-11-27 | B82: =INDEX('RWH 10-yr Simulation'!$M$11:$M$3662,MATCH(A82,'RWH 10-yr Simulation'!$A$11:$A$3662,0)) -> 0 | G82: 2001-12-04 | H82: =INDEX('RWH 10-yr Simulation'!$M$11:$M$3662,MATCH(G82,'RWH 10-yr Simulation'!$A$11:$A$3662,0)) -> 0 | M82: 2001-12-07 | N82: =INDEX('RWH 10-yr Simulation'!$M$11:$M$3662,MATCH(M82,'RWH 10-yr Simulation'!$A$11:$A$3662,0)) -> 0
A83: 2001-11-28 | B83: =INDEX('RWH 10-yr Simulation'!$M$11:$M$3662,MATCH(A83,'RWH 10-yr Simulation'!$A$11:$A$3662,0)) -> 0 | G83: 2001-12-05 | H83: =INDEX('RWH 10-yr Simulation'!$M$11:$M$3662,MATCH(G83,'RWH 10-yr Simulation'!$A$11:$A$3662,0)) -> 0 | M83: 2001-12-12 | N83: =INDEX('RWH 10-yr Simulation'!$M$11:$M$3662,MATCH(M83,'RWH 10-yr Simulation'!$A$11:$A$3662,0)) -> 0
A84: 2001-11-29 | B84: =INDEX('RWH 10-yr Simulation'!$M$11:$M$3662,MATCH(A84,'RWH 10-yr Simulation'!$A$11:$A$3662,0)) -> 0 | G84: 2001-12-07 | H84: =INDEX('RWH 10-yr Simulation'!$M$11:$M$3662,MATCH(G84,'RWH 10-yr Simulation'!$A$11:$A$3662,0)) -> 0 | M84: 2001-12-13 | N84: =INDEX('RWH 10-yr Simulation'!$M$11:$M$3662,MATCH(M84,'RWH 10-yr Simulation'!$A$11:$A$3662,0)) -> 0
A85: 2001-11-30 | B85: =INDEX('RWH 10-yr Simulation'!$M$11:$M$3662,MATCH(A85,'RWH 10-yr Simulation'!$A$11:$A$3662,0)) -> 0 | G85: 2001-12-12 | H85: =INDEX('RWH 10-yr Simulation'!$M$11:$M$3662,MATCH(G85,'RWH 10-yr Simulation'!$A$11:$A$3662,0)) -> 0 | M85: 2001-12-16 | N85: =INDEX('RWH 10-yr Simulation'!$M$11:$M$3662,MATCH(M85,'RWH 10-yr Simulation'!$A$11:$A$3662,0)) -> 0
A86: 2001-12-01 | B86: =INDEX('RWH 10-yr Simulation'!$M$11:$M$3662,MATCH(A86,'RWH 10-yr Simulation'!$A$11:$A$3662,0)) -> 0 | G86: 2001-12-13 | H86: =INDEX('RWH 10-yr Simulation'!$M$11:$M$3662,MATCH(G86,'RWH 10-yr Simulation'!$A$11:$A$3662,0)) -> 0 | M86: 2001-12-18 | N86: =INDEX('RWH 10-yr Simulation'!$M$11:$M$3662,MATCH(M86,'RWH 10-yr Simulation'!$A$11:$A$3662,0)) -> 0
A87: 2001-12-02 | B87: =INDEX('RWH 10-yr Simulation'!$M$11:$M$3662,MATCH(A87,'RWH 10-yr Simulation'!$A$11:$A$3662,0)) -> 0 | G87: 2001-12-16 | H87: =INDEX('RWH 10-yr Simulation'!$M$11:$M$3662,MATCH(G87,'RWH 10-yr Simulation'!$A$11:$A$3662,0)) -> 0 | M87: 2001-12-19 | N87: =INDEX('RWH 10-yr Simulation'!$M$11:$M$3662,MATCH(M87,'RWH 10-yr Simulation'!$A$11:$A$3662,0)) -> 0
A88: 2001-12-04 | B88: =INDEX('RWH 10-yr Simulation'!$M$11:$M$3662,MATCH(A88,'RWH 10-yr Simulation'!$A$11:$A$3662,0)) -> 0 | G88: 2001-12-18 | H88: =INDEX('RWH 10-yr Simulation'!$M$11:$M$3662,MATCH(G88,'RWH 10-yr Simulation'!$A$11:$A$3662,0)) -> 0 | M88: 2001-12-20 | N88: =INDEX('RWH 10-yr Simulation'!$M$11:$M$3662,MATCH(M88,'RWH 10-yr Simulation'!$A$11:$A$3662,0)) -> 0
A89: 2001-12-05 | B89: =INDEX('RWH 10-yr Simulation'!$M$11:$M$3662,MATCH(A89,'RWH 10-yr Simulation'!$A$11:$A$3662,0)) -> 0 | G89: 2001-12-19 | H89: =INDEX('RWH 10-yr Simulation'!$M$11:$M$3662,MATCH(G89,'RWH 10-yr Simulation'!$A$11:$A$3662,0)) -> 0 | M89: 2001-12-21 | N89: =INDEX('RWH 10-yr Simulation'!$M$11:$M$3662,MATCH(M89,'RWH 10-yr Simulation'!$A$11:$A$3662,0)) -> 0
A90: 2001-12-07 | B90: =INDEX('RWH 10-yr Simulation'!$M$11:$M$3662,MATCH(A90,'RWH 10-yr Simulation'!$A$11:$A$3662,0)) -> 0 | G90: 2001-12-20 | H90: =INDEX('RWH 10-yr Simulation'!$M$11:$M$3662,MATCH(G90,'RWH 10-yr Simulation'!$A$11:$A$3662,0)) -> 0 | M90: 2001-12-22 | N90: =INDEX('RWH 10-yr Simulation'!$M$11:$M$3662,MATCH(M90,'RWH 10-yr Simulation'!$A$11:$A$3662,0)) -> 0
A91: 2001-12-12 | B91: =INDEX('RWH 10-yr Simulation'!$M$11:$M$3662,MATCH(A91,'RWH 10-yr Simulation'!$A$11:$A$3662,0)) -> 0 | G91: 2001-12-21 | H91: =INDEX('RWH 10-yr Simulation'!$M$11:$M$3662,MATCH(G91,'RWH 10-yr Simulation'!$A$11:$A$3662,0)) -> 0 | M91: 2001-12-25 | N91: =INDEX('RWH 10-yr Simulation'!$M$11:$M$3662,MATCH(M91,'RWH 10-yr Simulation'!$A$11:$A$3662,0)) -> 0
A92: 2001-12-13 | B92: =INDEX('RWH 10-yr Simulation'!$M$11:$M$3662,MATCH(A92,'RWH 10-yr Simulation'!$A$11:$A$3662,0)) -> 0 | G92: 2001-12-22 | H92: =INDEX('RWH 10-yr Simulation'!$M$11:$M$3662,MATCH(G92,'RWH 10-yr Simulation'!$A$11:$A$3662,0)) -> 0 | M92: 2001-12-26 | N92: =INDEX('RWH 10-yr Simulation'!$M$11:$M$3662,MATCH(M92,'RWH 10-yr Simulation'!$A$11:$A$3662,0)) -> 0
A93: 2001-12-16 | B93: =INDEX('RWH 10-yr Simulation'!$M$11:$M$3662,MATCH(A93,'RWH 10-yr Simulation'!$A$11:$A$3662,0)) -> 0 | G93: 2001-12-25 | H93: =INDEX('RWH 10-yr Simulation'!$M$11:$M$3662,MATCH(G93,'RWH 10-yr Simulation'!$A$11:$A$3662,0)) -> 0 | M93: 2001-12-27 | N93: =INDEX('RWH 10-yr Simulation'!$M$11:$M$3662,MATCH(M93,'RWH 10-yr Simulation'!$A$11:$A$3662,0)) -> 0
A94: 2001-12-18 | B94: =INDEX('RWH 10-yr Simulation'!$M$11:$M$3662,MATCH(A94,'RWH 10-yr Simulation'!$A$11:$A$3662,0)) -> 0 | G94: 2001-12-26 | H94: =INDEX('RWH 10-yr Simulation'!$M$11:$M$3662,MATCH(G94,'RWH 10-yr Simulation'!$A$11:$A$3662,0)) -> 0 | M94: 2001-12-28 | N94: =INDEX('RWH 10-yr Simulation'!$M$11:$M$3662,MATCH(M94,'RWH 10-yr Simulation'!$A$11:$A$3662,0)) -> 0
A95: 2001-12-19 | B95: =INDEX('RWH 10-yr Simulation'!$M$11:$M$3662,MATCH(A95,'RWH 10-yr Simulation'!$A$11:$A$3662,0)) -> 0 | G95: 2001-12-27 | H95: =INDEX('RWH 10-yr Simulation'!$M$11:$M$3662,MATCH(G95,'RWH 10-yr Simulation'!$A$11:$A$3662,0)) -> 0 | M95: 2001-12-29 | N95: =INDEX('RWH 10-yr Simulation'!$M$11:$M$3662,MATCH(M95,'RWH 10-yr Simulation'!$A$11:$A$3662,0)) -> 0
A96: 2001-12-20 | B96: =INDEX('RWH 10-yr Simulation'!$M$11:$M$3662,MATCH(A96,'RWH 10-yr Simulation'!$A$11:$A$3662,0)) -> 0 | G96: 2001-12-28 | H96: =INDEX('RWH 10-yr Simulation'!$M$11:$M$3662,MATCH(G96,'RWH 10-yr Simulation'!$A$11:$A$3662,0)) -> 0 | M96: 2001-12-30 | N96: =INDEX('RWH 10-yr Simulation'!$M$11:$M$3662,MATCH(M96,'RWH 10-yr Simulation'!$A$11:$A$3662,0)) -> 0
A97: 2001-12-21 | B97: =INDEX('RWH 10-yr Simulation'!$M$11:$M$3662,MATCH(A97,'RWH 10-yr Simulation'!$A$11:$A$3662,0)) -> 0 | G97: 2001-12-29 | H97: =INDEX('RWH 10-yr Simulation'!$M$11:$M$3662,MATCH(G97,'RWH 10-yr Simulation'!$A$11:$A$3662,0)) -> 0 | M97: 2001-12-31 | N97: =INDEX('RWH 10-yr Simulation'!$M$11:$M$3662,MATCH(M97,'RWH 10-yr Simulation'!$A$11:$A$3662,0)) -> 0
A98: 2001-12-22 | B98: =INDEX('RWH 10-yr Simulation'!$M$11:$M$3662,MATCH(A98,'RWH 10-yr Simulation'!$A$11:$A$3662,0)) -> 0 | G98: 2001-12-30 | H98: =INDEX('RWH 10-yr Simulation'!$M$11:$M$3662,MATCH(G98,'RWH 10-yr Simulation'!$A$11:$A$3662,0)) -> 0 | M98: 2002-01-01 | N98: =INDEX('RWH 10-yr Simulation'!$M$11:$M$3662,MATCH(M98,'RWH 10-yr Simulation'!$A$11:$A$3662,0)) -> 0
A99: 2001-12-25 | B99: =INDEX('RWH 10-yr Simulation'!$M$11:$M$3662,MATCH(A99,'RWH 10-yr Simulation'!$A$11:$A$3662,0)) -> 0 | G99: 2001-12-31 | H99: =INDEX('RWH 10-yr Simulation'!$M$11:$M$3662,MATCH(G99,'RWH 10-yr Simulation'!$A$11:$A$3662,0)) -> 0 | M99: 2002-01-05 | N99: =INDEX('RWH 10-yr Simulation'!$M$11:$M$3662,MATCH(M99,'RWH 10-yr Simulation'!$A$11:$A$3662,0)) -> 0
A100: 2001-12-26 | B100: =INDEX('RWH 10-yr Simulation'!$M$11:$M$3662,MATCH(A100,'RWH 10-yr Simulation'!$A$11:$A$3662,0)) -> 0 | G100: 2002-01-01 | H100: =INDEX('RWH 10-yr Simulation'!$M$11:$M$3662,MATCH(G100,'RWH 10-yr Simulation'!$A$11:$A$3662,0)) -> 0 | M100: 2002-01-20 | N100: =INDEX('RWH 10-yr Simulation'!$M$11:$M$3662,MATCH(M100,'RWH 10-yr Simulation'!$A$11:$A$3662,0)) -> 0
A101: 2001-12-27 | B101: =INDEX('RWH 10-yr Simulation'!$M$11:$M$3662,MATCH(A101,'RWH 10-yr Simulation'!$A$11:$A$3662,0)) -> 0 | G101: 2002-01-05 | H101: =INDEX('RWH 10-yr Simulation'!$M$11:$M$3662,MATCH(G101,'RWH 10-yr Simulation'!$A$11:$A$3662,0)) -> 0 | M101: 2002-01-25 | N101: =INDEX('RWH 10-yr Simulation'!$M$11:$M$3662,MATCH(M101,'RWH 10-yr Simulation'!$A$11:$A$3662,0)) -> 0
A102: 2001-12-28 | B102: =INDEX('RWH 10-yr Simulation'!$M$11:$M$3662,MATCH(A102,'RWH 10-yr Simulation'!$A$11:$A$3662,0)) -> 0 | G102: 2002-01-20 | H102: =INDEX('RWH 10-yr Simulation'!$M$11:$M$3662,MATCH(G102,'RWH 10-yr Simulation'!$A$11:$A$3662,0)) -> 0 | M102: 2002-01-27 | N102: =INDEX('RWH 10-yr Simulation'!$M$11:$M$3662,MATCH(M102,'RWH 10-yr Simulation'!$A$11:$A$3662,0)) -> 0
A103: 2001-12-29 | B103: =INDEX('RWH 10-yr Simulation'!$M$11:$M$3662,MATCH(A103,'RWH 10-yr Simulation'!$A$11:$A$3662,0)) -> 0 | G103: 2002-01-25 | H103: =INDEX('RWH 10-yr Simulation'!$M$11:$M$3662,MATCH(G103,'RWH 10-yr Simulation'!$A$11:$A$3662,0)) -> 0 | M103: 2002-02-05 | N103: =INDEX('RWH 10-yr Simulation'!$M$11:$M$3662,MATCH(M103,'RWH 10-yr Simulation'!$A$11:$A$3662,0)) -> 0
A104: 2001-12-30 | B104: =INDEX('RWH 10-yr Simulation'!$M$11:$M$3662,MATCH(A104,'RWH 10-yr Simulation'!$A$11:$A$3662,0)) -> 0 | G104: 2002-01-27 | H104: =INDEX('RWH 10-yr Simulation'!$M$11:$M$3662,MATCH(G104,'RWH 10-yr Simulation'!$A$11:$A$3662,0)) -> 0 | M104: 2002-02-06 | N104: =INDEX('RWH 10-yr Simulation'!$M$11:$M$3662,MATCH(M104,'RWH 10-yr Simulation'!$A$11:$A$3662,0)) -> 0
A105: 2001-12-31 | B105: =INDEX('RWH 10-yr Simulation'!$M$11:$M$3662,MATCH(A105,'RWH 10-yr Simulation'!$A$11:$A$3662,0)) -> 0 | G105: 2002-02-05 | H105: =INDEX('RWH 10-yr Simulation'!$M$11:$M$3662,MATCH(G105,'RWH 10-yr Simulation'!$A$11:$A$3662,0)) -> 0 | M105: 2002-02-07 | N105: =INDEX('RWH 10-yr Simulation'!$M$11:$M$3662,MATCH(M105,'RWH 10-yr Simulation'!$A$11:$A$3662,0)) -> 0
A106: 2002-01-01 | B106: =INDEX('RWH 10-yr Simulation'!$M$11:$M$3662,MATCH(A106,'RWH 10-yr Simulation'!$A$11:$A$3662,0)) -> 0 | G106: 2002-02-06 | H106: =INDEX('RWH 10-yr Simulation'!$M$11:$M$3662,MATCH(G106,'RWH 10-yr Simulation'!$A$11:$A$3662,0)) -> 0 | M106: 2002-02-12 | N106: =INDEX('RWH 10-yr Simulation'!$M$11:$M$3662,MATCH(M106,'RWH 10-yr Simulation'!$A$11:$A$3662,0)) -> 0
A107: 2002-01-05 | B107: =INDEX('RWH 10-yr Simulation'!$M$11:$M$3662,MATCH(A107,'RWH 10-yr Simulation'!$A$11:$A$3662,0)) -> 0 | G107: 2002-02-07 | H107: =INDEX('RWH 10-yr Simulation'!$M$11:$M$3662,MATCH(G107,'RWH 10-yr Simulation'!$A$11:$A$3662,0)) -> 0 | M107: 2002-02-15 | N107: =INDEX('RWH 10-yr Simulation'!$M$11:$M$3662,MATCH(M107,'RWH 10-yr Simulation'!$A$11:$A$3662,0)) -> 0
A108: 2002-01-20 | B108: =INDEX('RWH 10-yr Simulation'!$M$11:$M$3662,MATCH(A108,'RWH 10-yr Simulation'!$A$11:$A$3662,0)) -> 0 | G108: 2002-02-12 | H108: =INDEX('RWH 10-yr Simulation'!$M$11:$M$3662,MATCH(G108,'RWH 10-yr Simulation'!$A$11:$A$3662,0)) -> 0 | M108: 2002-02-16 | N108: =INDEX('RWH 10-yr Simulation'!$M$11:$M$3662,MATCH(M108,'RWH 10-yr Simulation'!$A$11:$A$3662,0)) -> 0
A109: 2002-01-25 | B109: =INDEX('RWH 10-yr Simulation'!$M$11:$M$3662,MATCH(A109,'RWH 10-yr Simulation'!$A$11:$A$3662,0)) -> 0 | G109: 2002-02-15 | H109: =INDEX('RWH 10-yr Simulation'!$M$11:$M$3662,MATCH(G109,'RWH 10-yr Simulation'!$A$11:$A$3662,0)) -> 0 | M109: 2002-02-17 | N109: =INDEX('RWH 10-yr Simulation'!$M$11:$M$3662,MATCH(M109,'RWH 10-yr Simulation'!$A$11:$A$3662,0)) -> 0
A110: 2002-01-27 | B110: =INDEX('RWH 10-yr Simulation'!$M$11:$M$3662,MATCH(A110,'RWH 10-yr Simulation'!$A$11:$A$3662,0)) -> 0 | G110: 2002-02-16 | H110: =INDEX('RWH 10-yr Simulation'!$M$11:$M$3662,MATCH(G110,'RWH 10-yr Simulation'!$A$11:$A$3662,0)) -> 0 | M110: 2002-02-18 | N110: =INDEX('RWH 10-yr Simulation'!$M$11:$M$3662,MATCH(M110,'RWH 10-yr Simulation'!$A$11:$A$3662,0)) -> 0
A111: 2002-02-05 | B111: =INDEX('RWH 10-yr Simulation'!$M$11:$M$3662,MATCH(A111,'RWH 10-yr Simulation'!$A$11:$A$3662,0)) -> 0 | G111: 2002-02-17 | H111: =INDEX('RWH 10-yr Simulation'!$M$11:$M$3662,MATCH(G111,'RWH 10-yr Simulation'!$A$11:$A$3662,0)) -> 0 | M111: 2002-02-19 | N111: =INDEX('RWH 10-yr Simulation'!$M$11:$M$3662,MATCH(M111,'RWH 10-yr Simulation'!$A$11:$A$3662,0)) -> 0
A112: 2002-02-06 | B112: =INDEX('RWH 10-yr Simulation'!$M$11:$M$3662,MATCH(A112,'RWH 10-yr Simulation'!$A$11:$A$3662,0)) -> 0 | G112: 2002-02-18 | H112: =INDEX('RWH 10-yr Simulation'!$M$11:$M$3662,MATCH(G112,'RWH 10-yr Simulation'!$A$11:$A$3662,0)) -> 0 | M112: 2002-02-21 | N112: =INDEX('RWH 10-yr Simulation'!$M$11:$M$3662,MATCH(M112,'RWH 10-yr Simulation'!$A$11:$A$3662,0)) -> 0
A113: 2002-02-07 | B113: =INDEX('RWH 10-yr Simulation'!$M$11:$M$3662,MATCH(A113,'RWH 10-yr Simulation'!$A$11:$A$3662,0)) -> 0 | G113: 2002-02-19 | H113: =INDEX('RWH 10-yr Simulation'!$M$11:$M$3662,MATCH(G113,'RWH 10-yr Simulation'!$A$11:$A$3662,0)) -> 0 | M113: 2002-02-22 | N113: =INDEX('RWH 10-yr Simulation'!$M$11:$M$3662,MATCH(M113,'RWH 10-yr Simulation'!$A$11:$A$3662,0)) -> 0
A114: 2002-02-12 | B114: =INDEX('RWH 10-yr Simulation'!$M$11:$M$3662,MATCH(A114,'RWH 10-yr Simulation'!$A$11:$A$3662,0)) -> 0 | G114: 2002-02-21 | H114: =INDEX('RWH 10-yr Simulation'!$M$11:$M$3662,MATCH(G114,'RWH 10-yr Simulation'!$A$11:$A$3662,0)) -> 0 | M114: 2002-03-04 | N114: =INDEX('RWH 10-yr Simulation'!$M$11:$M$3662,MATCH(M114,'RWH 10-yr Simulation'!$A$11:$A$3662,0)) -> 0
A115: 2002-02-15 | B115: =INDEX('RWH 10-yr Simulation'!$M$11:$M$3662,MATCH(A115,'RWH 10-yr Simulation'!$A$11:$A$3662,0)) -> 0 | G115: 2002-02-22 | H115: =INDEX('RWH 10-yr Simulation'!$M$11:$M$3662,MATCH(G115,'RWH 10-yr Simulation'!$A$11:$A$3662,0)) -> 0 | M115: 2002-03-05 | N115: =INDEX('RWH 10-yr Simulation'!$M$11:$M$3662,MATCH(M115,'RWH 10-yr Simulation'!$A$11:$A$3662,0)) -> 0
A116: 2002-02-16 | B116: =INDEX('RWH 10-yr Simulation'!$M$11:$M$3662,MATCH(A116,'RWH 10-yr Simulation'!$A$11:$A$3662,0)) -> 0 | G116: 2002-03-04 | H116: =INDEX('RWH 10-yr Simulation'!$M$11:$M$3662,MATCH(G116,'RWH 10-yr Simulation'!$A$11:$A$3662,0)) -> 0 | M116: 2002-03-06 | N116: =INDEX('RWH 10-yr Simulation'!$M$11:$M$3662,MATCH(M116,'RWH 10-yr Simulation'!$A$11:$A$3662,0)) -> 0
A117: 2002-02-17 | B117: =INDEX('RWH 10-yr Simulation'!$M$11:$M$3662,MATCH(A117,'RWH 10-yr Simulation'!$A$11:$A$3662,0)) -> 0 | G117: 2002-03-05 | H117: =INDEX('RWH 10-yr Simulation'!$M$11:$M$3662,MATCH(G117,'RWH 10-yr Simulation'!$A$11:$A$3662,0)) -> 0 | M117: 2002-03-08 | N117: =INDEX('RWH 10-yr Simulation'!$M$11:$M$3662,MATCH(M117,'RWH 10-yr Simulation'!$A$11:$A$3662,0)) -> 0
A118: 2002-02-18 | B118: =INDEX('RWH 10-yr Simulation'!$M$11:$M$3662,MATCH(A118,'RWH 10-yr Simulation'!$A$11:$A$3662,0)) -> 0 | G118: 2002-03-06 | H118: =INDEX('RWH 10-yr Simulation'!$M$11:$M$3662,MATCH(G118,'RWH 10-yr Simulation'!$A$11:$A$3662,0)) -> 0 | M118: 2002-03-09 | N118: =INDEX('RWH 10-yr Simulation'!$M$11:$M$3662,MATCH(M118,'RWH 10-yr Simulation'!$A$11:$A$3662,0)) -> 0
A119: 2002-02-19 | B119: =INDEX('RWH 10-yr Simulation'!$M$11:$M$3662,MATCH(A119,'RWH 10-yr Simulation'!$A$11:$A$3662,0)) -> 0 | G119: 2002-03-08 | H119: =INDEX('RWH 10-yr Simulation'!$M$11:$M$3662,MATCH(G119,'RWH 10-yr Simulation'!$A$11:$A$3662,0)) -> 0 | M119: 2002-03-16 | N119: =INDEX('RWH 10-yr Simulation'!$M$11:$M$3662,MATCH(M119,'RWH 10-yr Simulation'!$A$11:$A$3662,0)) -> 0
A120: 2002-02-21 | B120: =INDEX('RWH 10-yr Simulation'!$M$11:$M$3662,MATCH(A120,'RWH 10-yr Simulation'!$A$11:$A$3662,0)) -> 0 | G120: 2002-03-09 | H120: =INDEX('RWH 10-yr Simulation'!$M$11:$M$3662,MATCH(G120,'RWH 10-yr Simulation'!$A$11:$A$3662,0)) -> 0 | M120: 2002-03-21 | N120: =INDEX('RWH 10-yr Simulation'!$M$11:$M$3662,MATCH(M120,'RWH 10-yr Simulation'!$A$11:$A$3662,0)) -> 0
A121: 2002-02-22 | B121: =INDEX('RWH 10-yr Simulation'!$M$11:$M$3662,MATCH(A121,'RWH 10-yr Simulation'!$A$11:$A$3662,0)) -> 0 | G121: 2002-03-16 | H121: =INDEX('RWH 10-yr Simulation'!$M$11:$M$3662,MATCH(G121,'RWH 10-yr Simulation'!$A$11:$A$3662,0)) -> 0 | M121: 2002-03-22 | N121: =INDEX('RWH 10-yr Simulation'!$M$11:$M$3662,MATCH(M121,'RWH 10-yr Simulation'!$A$11:$A$3662,0)) -> 0
A122: 2002-03-04 | B122: =INDEX('RWH 10-yr Simulation'!$M$11:$M$3662,MATCH(A122,'RWH 10-yr Simulation'!$A$11:$A$3662,0)) -> 0 | G122: 2002-03-21 | H122: =INDEX('RWH 10-yr Simulation'!$M$11:$M$3662,MATCH(G122,'RWH 10-yr Simulation'!$A$11:$A$3662,0)) -> 0 | M122: 2002-04-05 | N122: =INDEX('RWH 10-yr Simulation'!$M$11:$M$3662,MATCH(M122,'RWH 10-yr Simulation'!$A$11:$A$3662,0)) -> 0
A123: 2002-03-05 | B123: =INDEX('RWH 10-yr Simulation'!$M$11:$M$3662,MATCH(A123,'RWH 10-yr Simulation'!$A$11:$A$3662,0)) -> 0 | G123: 2002-03-22 | H123: =INDEX('RWH 10-yr Simulation'!$M$11:$M$3662,MATCH(G123,'RWH 10-yr Simulation'!$A$11:$A$3662,0)) -> 0 | M123: 2002-04-08 | N123: =INDEX('RWH 10-yr Simulation'!$M$11:$M$3662,MATCH(M123,'RWH 10-yr Simulation'!$A$11:$A$3662,0)) -> 0
A124: 2002-03-06 | B124: =INDEX('RWH 10-yr Simulation'!$M$11:$M$3662,MATCH(A124,'RWH 10-yr Simulation'!$A$11:$A$3662,0)) -> 0 | G124: 2002-04-05 | H124: =INDEX('RWH 10-yr Simulation'!$M$11:$M$3662,MATCH(G124,'RWH 10-yr Simulation'!$A$11:$A$3662,0)) -> 0 | M124: 2002-04-15 | N124: =INDEX('RWH 10-yr Simulation'!$M$11:$M$3662,MATCH(M124,'RWH 10-yr Simulation'!$A$11:$A$3662,0)) -> 0
A125: 2002-03-08 | B125: =INDEX('RWH 10-yr Simulation'!$M$11:$M$3662,MATCH(A125,'RWH 10-yr Simulation'!$A$11:$A$3662,0)) -> 0 | G125: 2002-04-08 | H125: =INDEX('RWH 10-yr Simulation'!$M$11:$M$3662,MATCH(G125,'RWH 10-yr Simulation'!$A$11:$A$3662,0)) -> 0 | M125: 2002-04-28 | N125: =INDEX('RWH 10-yr Simulation'!$M$11:$M$3662,MATCH(M125,'RWH 10-yr Simulation'!$A$11:$A$3662,0)) -> 0
A126: 2002-03-09 | B126: =INDEX('RWH 10-yr Simulation'!$M$11:$M$3662,MATCH(A126,'RWH 10-yr Simulation'!$A$11:$A$3662,0)) -> 0 | G126: 2002-04-15 | H126: =INDEX('RWH 10-yr Simulation'!$M$11:$M$3662,MATCH(G126,'RWH 10-yr Simulation'!$A$11:$A$3662,0)) -> 0 | M126: 2002-11-06 | N126: =INDEX('RWH 10-yr Simulation'!$M$11:$M$3662,MATCH(M126,'RWH 10-yr Simulation'!$A$11:$A$3662,0)) -> 0
A127: 2002-03-16 | B127: =INDEX('RWH 10-yr Simulation'!$M$11:$M$3662,MATCH(A127,'RWH 10-yr Simulation'!$A$11:$A$3662,0)) -> 0 | G127: 2002-04-28 | H127: =INDEX('RWH 10-yr Simulation'!$M$11:$M$3662,MATCH(G127,'RWH 10-yr Simulation'!$A$11:$A$3662,0)) -> 0 | M127: 2002-11-07 | N127: =INDEX('RWH 10-yr Simulation'!$M$11:$M$3662,MATCH(M127,'RWH 10-yr Simulation'!$A$11:$A$3662,0)) -> 0
A128: 2002-03-21 | B128: =INDEX('RWH 10-yr Simulation'!$M$11:$M$3662,MATCH(A128,'RWH 10-yr Simulation'!$A$11:$A$3662,0)) -> 0 | G128: 2002-05-18 | H128: =INDEX('RWH 10-yr Simulation'!$M$11:$M$3662,MATCH(G128,'RWH 10-yr Simulation'!$A$11:$A$3662,0)) -> 0 | M128: 2002-11-08 | N128: =INDEX('RWH 10-yr Simulation'!$M$11:$M$3662,MATCH(M128,'RWH 10-yr Simulation'!$A$11:$A$3662,0)) -> 0
A129: 2002-03-22 | B129: =INDEX('RWH 10-yr Simulation'!$M$11:$M$3662,MATCH(A129,'RWH 10-yr Simulation'!$A$11:$A$3662,0)) -> 0 | G129: 2002-05-19 | H129: =INDEX('RWH 10-yr Simulation'!$M$11:$M$3662,MATCH(G129,'RWH 10-yr Simulation'!$A$11:$A$3662,0)) -> 0 | M129: 2002-11-09 | N129: =INDEX('RWH 10-yr Simulation'!$M$11:$M$3662,MATCH(M129,'RWH 10-yr Simulation'!$A$11:$A$3662,0)) -> 0
A130: 2002-04-05 | B130: =INDEX('RWH 10-yr Simulation'!$M$11:$M$3662,MATCH(A130,'RWH 10-yr Simulation'!$A$11:$A$3662,0)) -> 0 | G130: 2002-05-20 | H130: =INDEX('RWH 10-yr Simulation'!$M$11:$M$3662,MATCH(G130,'RWH 10-yr Simulation'!$A$11:$A$3662,0)) -> 0 | M130: 2002-11-12 | N130: =INDEX('RWH 10-yr Simulation'!$M$11:$M$3662,MATCH(M130,'RWH 10-yr Simulation'!$A$11:$A$3662,0)) -> 0
A131: 2002-04-08 | B131: =INDEX('RWH 10-yr Simulation'!$M$11:$M$3662,MATCH(A131,'RWH 10-yr Simulation'!$A$11:$A$3662,0)) -> 0 | G131: 2002-10-22 | H131: =INDEX('RWH 10-yr Simulation'!$M$11:$M$3662,MATCH(G131,'RWH 10-yr Simulation'!$A$11:$A$3662,0)) -> 0 | M131: 2002-12-08 | N131: =INDEX('RWH 10-yr Simulation'!$M$11:$M$3662,MATCH(M131,'RWH 10-yr Simulation'!$A$11:$A$3662,0)) -> 0
A132: 2002-04-15 | B132: =INDEX('RWH 10-yr Simulation'!$M$11:$M$3662,MATCH(A132,'RWH 10-yr Simulation'!$A$11:$A$3662,0)) -> 0 | G132: 2002-11-06 | H132: =INDEX('RWH 10-yr Simulation'!$M$11:$M$3662,MATCH(G132,'RWH 10-yr Simulation'!$A$11:$A$3662,0)) -> 0 | M132: 2002-12-09 | N132: =INDEX('RWH 10-yr Simulation'!$M$11:$M$3662,MATCH(M132,'RWH 10-yr Simulation'!$A$11:$A$3662,0)) -> 0
A133: 2002-04-28 | B133: =INDEX('RWH 10-yr Simulation'!$M$11:$M$3662,MATCH(A133,'RWH 10-yr Simulation'!$A$11:$A$3662,0)) -> 0 | G133: 2002-11-07 | H133: =INDEX('RWH 10-yr Simulation'!$M$11:$M$3662,MATCH(G133,'RWH 10-yr Simulation'!$A$11:$A$3662,0)) -> 0 | M133: 2002-12-12 | N133: =INDEX('RWH 10-yr Simulation'!$M$11:$M$3662,MATCH(M133,'RWH 10-yr Simulation'!$A$11:$A$3662,0)) -> 0
A134: 2002-05-18 | B134: =INDEX('RWH 10-yr Simulation'!$M$11:$M$3662,MATCH(A134,'RWH 10-yr Simulation'!$A$11:$A$3662,0)) -> 0 | G134: 2002-11-08 | H134: =INDEX('RWH 10-yr Simulation'!$M$11:$M$3662,MATCH(G134,'RWH 10-yr Simulation'!$A$11:$A$3662,0)) -> 0 | M134: 2002-12-13 | N134: =INDEX('RWH 10-yr Simulation'!$M$11:$M$3662,MATCH(M134,'RWH 10-yr Simulation'!$A$11:$A$3662,0)) -> 0
A135: 2002-05-19 | B135: =INDEX('RWH 10-yr Simulation'!$M$11:$M$3662,MATCH(A135,'RWH 10-yr Simulation'!$A$11:$A$3662,0)) -> 0 | G135: 2002-11-09 | H135: =INDEX('RWH 10-yr Simulation'!$M$11:$M$3662,MATCH(G135,'RWH 10-yr Simulation'!$A$11:$A$3662,0)) -> 0 | M135: 2002-12-14 | N135: =INDEX('RWH 10-yr Simulation'!$M$11:$M$3662,MATCH(M135,'RWH 10-yr Simulation'!$A$11:$A$3662,0)) -> 0
A136: 2002-05-20 | B136: =INDEX('RWH 10-yr Simulation'!$M$11:$M$3662,MATCH(A136,'RWH 10-yr Simulation'!$A$11:$A$3662,0)) -> 0 | G136: 2002-11-12 | H136: =INDEX('RWH 10-yr Simulation'!$M$11:$M$3662,MATCH(G136,'RWH 10-yr Simulation'!$A$11:$A$3662,0)) -> 0 | M136: 2002-12-15 | N136: =INDEX('RWH 10-yr Simulation'!$M$11:$M$3662,MATCH(M136,'RWH 10-yr Simulation'!$A$11:$A$3662,0)) -> 0
A137: 2002-06-21 | B137: =INDEX('RWH 10-yr Simulation'!$M$11:$M$3662,MATCH(A137,'RWH 10-yr Simulation'!$A$11:$A$3662,0)) -> 0 | G137: 2002-12-08 | H137: =INDEX('RWH 10-yr Simulation'!$M$11:$M$3662,MATCH(G137,'RWH 10-yr Simulation'!$A$11:$A$3662,0)) -> 0 | M137: 2002-12-16 | N137: =INDEX('RWH 10-yr Simulation'!$M$11:$M$3662,MATCH(M137,'RWH 10-yr Simulation'!$A$11:$A$3662,0)) -> 0
A138: 2002-06-26 | B138: =INDEX('RWH 10-yr Simulation'!$M$11:$M$3662,MATCH(A138,'RWH 10-yr Simulation'!$A$11:$A$3662,0)) -> 0 | G138: 2002-12-09 | H138: =INDEX('RWH 10-yr Simulation'!$M$11:$M$3662,MATCH(G138,'RWH 10-yr Simulation'!$A$11:$A$3662,0)) -> 0 | M138: 2002-12-17 | N138: =INDEX('RWH 10-yr Simulation'!$M$11:$M$3662,MATCH(M138,'RWH 10-yr Simulation'!$A$11:$A$3662,0)) -> 0
A139: 2002-08-01 | B139: =INDEX('RWH 10-yr Simulation'!$M$11:$M$3662,MATCH(A139,'RWH 10-yr Simulation'!$A$11:$A$3662,0)) -> 0 | G139: 2002-12-12 | H139: =INDEX('RWH 10-yr Simulation'!$M$11:$M$3662,MATCH(G139,'RWH 10-yr Simulation'!$A$11:$A$3662,0)) -> 0 | M139: 2002-12-18 | N139: =INDEX('RWH 10-yr Simulation'!$M$11:$M$3662,MATCH(M139,'RWH 10-yr Simulation'!$A$11:$A$3662,0)) -> 0
A140: 2002-08-24 | B140: =INDEX('RWH 10-yr Simulation'!$M$11:$M$3662,MATCH(A140,'RWH 10-yr Simulation'!$A$11:$A$3662,0)) -> 0 | G140: 2002-12-13 | H140: =INDEX('RWH 10-yr Simulation'!$M$11:$M$3662,MATCH(G140,'RWH 10-yr Simulation'!$A$11:$A$3662,0)) -> 0 | M140: 2002-12-19 | N140: =INDEX('RWH 10-yr Simulation'!$M$11:$M$3662,MATCH(M140,'RWH 10-yr Simulation'!$A$11:$A$3662,0)) -> 0
A141: 2002-09-24 | B141: =INDEX('RWH 10-yr Simulation'!$M$11:$M$3662,MATCH(A141,'RWH 10-yr Simulation'!$A$11:$A$3662,0)) -> 0 | G141: 2002-12-14 | H141: =INDEX('RWH 10-yr Simulation'!$M$11:$M$3662,MATCH(G141,'RWH 10-yr Simulation'!$A$11:$A$3662,0)) -> 0 | M141: 2002-12-20 | N141: =INDEX('RWH 10-yr Simulation'!$M$11:$M$3662,MATCH(M141,'RWH 10-yr Simulation'!$A$11:$A$3662,0)) -> 0
A142: 2002-10-22 | B142: =INDEX('RWH 10-yr Simulation'!$M$11:$M$3662,MATCH(A142,'RWH 10-yr Simulation'!$A$11:$A$3662,0)) -> 0 | G142: 2002-12-15 | H142: =INDEX('RWH 10-yr Simulation'!$M$11:$M$3662,MATCH(G142,'RWH 10-yr Simulation'!$A$11:$A$3662,0)) -> 0 | M142: 2002-12-25 | N142: =INDEX('RWH 10-yr Simulation'!$M$11:$M$3662,MATCH(M142,'RWH 10-yr Simulation'!$A$11:$A$3662,0)) -> 0
A143: 2002-11-06 | B143: =INDEX('RWH 10-yr Simulation'!$M$11:$M$3662,MATCH(A143,'RWH 10-yr Simulation'!$A$11:$A$3662,0)) -> 0 | G143: 2002-12-16 | H143: =INDEX('RWH 10-yr Simulation'!$M$11:$M$3662,MATCH(G143,'RWH 10-yr Simulation'!$A$11:$A$3662,0)) -> 0 | M143: 2002-12-26 | N143: =INDEX('RWH 10-yr Simulation'!$M$11:$M$3662,MATCH(M143,'RWH 10-yr Simulation'!$A$11:$A$3662,0)) -> 0
A144: 2002-11-07 | B144: =INDEX('RWH 10-yr Simulation'!$M$11:$M$3662,MATCH(A144,'RWH 10-yr Simulation'!$A$11:$A$3662,0)) -> 0 | G144: 2002-12-17 | H144: =INDEX('RWH 10-yr Simulation'!$M$11:$M$3662,MATCH(G144,'RWH 10-yr Simulation'!$A$11:$A$3662,0)) -> 0 | M144: 2002-12-27 | N144: =INDEX('RWH 10-yr Simulation'!$M$11:$M$3662,MATCH(M144,'RWH 10-yr Simulation'!$A$11:$A$3662,0)) -> 0
A145: 2002-11-08 | B145: =INDEX('RWH 10-yr Simulation'!$M$11:$M$3662,MATCH(A145,'RWH 10-yr Simulation'!$A$11:$A$3662,0)) -> 0 | G145: 2002-12-18 | H145: =INDEX('RWH 10-yr Simulation'!$M$11:$M$3662,MATCH(G145,'RWH 10-yr Simulation'!$A$11:$A$3662,0)) -> 0 | M145: 2002-12-28 | N145: =INDEX('RWH 10-yr Simulation'!$M$11:$M$3662,MATCH(M145,'RWH 10-yr Simulation'!$A$11:$A$3662,0)) -> 0
A146: 2002-11-09 | B146: =INDEX('RWH 10-yr Simulation'!$M$11:$M$3662,MATCH(A146,'RWH 10-yr Simulation'!$A$11:$A$3662,0)) -> 0 | G146: 2002-12-19 | H146: =INDEX('RWH 10-yr Simulation'!$M$11:$M$3662,MATCH(G146,'RWH 10-yr Simulation'!$A$11:$A$3662,0)) -> 0 | M146: 2002-12-29 | N146: =INDEX('RWH 10-yr Simulation'!$M$11:$M$3662,MATCH(M146,'RWH 10-yr Simulation'!$A$11:$A$3662,0)) -> 0
A147: 2002-11-12 | B147: =INDEX('RWH 10-yr Simulation'!$M$11:$M$3662,MATCH(A147,'RWH 10-yr Simulation'!$A$11:$A$3662,0)) -> 0 | G147: 2002-12-20 | H147: =INDEX('RWH 10-yr Simulation'!$M$11:$M$3662,MATCH(G147,'RWH 10-yr Simulation'!$A$11:$A$3662,0)) -> 0 | M147: 2002-12-30 | N147: =INDEX('RWH 10-yr Simulation'!$M$11:$M$3662,MATCH(M147,'RWH 10-yr Simulation'!$A$11:$A$3662,0)) -> 0
A148: 2002-12-08 | B148: =INDEX('RWH 10-yr Simulation'!$M$11:$M$3662,MATCH(A148,'RWH 10-yr Simulation'!$A$11:$A$3662,0)) -> 0 | G148: 2002-12-25 | H148: =INDEX('RWH 10-yr Simulation'!$M$11:$M$3662,MATCH(G148,'RWH 10-yr Simulation'!$A$11:$A$3662,0)) -> 0 | M148: 2003-01-08 | N148: =INDEX('RWH 10-yr Simulation'!$M$11:$M$3662,MATCH(M148,'RWH 10-yr Simulation'!$A$11:$A$3662,0)) -> 0
A149: 2002-12-09 | B149: =INDEX('RWH 10-yr Simulation'!$M$11:$M$3662,MATCH(A149,'RWH 10-yr Simulation'!$A$11:$A$3662,0)) -> 0 | G149: 2002-12-26 | H149: =INDEX('RWH 10-yr Simulation'!$M$11:$M$3662,MATCH(G149,'RWH 10-yr Simulation'!$A$11:$A$3662,0)) -> 0 | M149: 2003-01-09 | N149: =INDEX('RWH 10-yr Simulation'!$M$11:$M$3662,MATCH(M149,'RWH 10-yr Simulation'!$A$11:$A$3662,0)) -> 0
A150: 2002-12-12 | B150: =INDEX('RWH 10-yr Simulation'!$M$11:$M$3662,MATCH(A150,'RWH 10-yr Simulation'!$A$11:$A$3662,0)) -> 0 | G150: 2002-12-27 | H150: =INDEX('RWH 10-yr Simulation'!$M$11:$M$3662,MATCH(G150,'RWH 10-yr Simulation'!$A$11:$A$3662,0)) -> 0 | M150: 2003-01-11 | N150: =INDEX('RWH 10-yr Simulation'!$M$11:$M$3662,MATCH(M150,'RWH 10-yr Simulation'!$A$11:$A$3662,0)) -> 0
A151: 2002-12-13 | B151: =INDEX('RWH 10-yr Simulation'!$M$11:$M$3662,MATCH(A151,'RWH 10-yr Simulation'!$A$11:$A$3662,0)) -> 0 | G151: 2002-12-28 | H151: =INDEX('RWH 10-yr Simulation'!$M$11:$M$3662,MATCH(G151,'RWH 10-yr Simulation'!$A$11:$A$3662,0)) -> 0 | M151: 2003-01-19 | N151: =INDEX('RWH 10-yr Simulation'!$M$11:$M$3662,MATCH(M151,'RWH 10-yr Simulation'!$A$11:$A$3662,0)) -> 0
A152: 2002-12-14 | B152: =INDEX('RWH 10-yr Simulation'!$M$11:$M$3662,MATCH(A152,'RWH 10-yr Simulation'!$A$11:$A$3662,0)) -> 0 | G152: 2002-12-29 | H152: =INDEX('RWH 10-yr Simulation'!$M$11:$M$3662,MATCH(G152,'RWH 10-yr Simulation'!$A$11:$A$3662,0)) -> 0 | M152: 2003-01-20 | N152: =INDEX('RWH 10-yr Simulation'!$M$11:$M$3662,MATCH(M152,'RWH 10-yr Simulation'!$A$11:$A$3662,0)) -> 0
A153: 2002-12-15 | B153: =INDEX('RWH 10-yr Simulation'!$M$11:$M$3662,MATCH(A153,'RWH 10-yr Simulation'!$A$11:$A$3662,0)) -> 0 | G153: 2002-12-30 | H153: =INDEX('RWH 10-yr Simulation'!$M$11:$M$3662,MATCH(G153,'RWH 10-yr Simulation'!$A$11:$A$3662,0)) -> 0 | M153: 2003-01-21 | N153: =INDEX('RWH 10-yr Simulation'!$M$11:$M$3662,MATCH(M153,'RWH 10-yr Simulation'!$A$11:$A$3662,0)) -> 0
A154: 2002-12-16 | B154: =INDEX('RWH 10-yr Simulation'!$M$11:$M$3662,MATCH(A154,'RWH 10-yr Simulation'!$A$11:$A$3662,0)) -> 0 | G154: 2003-01-08 | H154: =INDEX('RWH 10-yr Simulation'!$M$11:$M$3662,MATCH(G154,'RWH 10-yr Simulation'!$A$11:$A$3662,0)) -> 0 | M154: 2003-01-22 | N154: =INDEX('RWH 10-yr Simulation'!$M$11:$M$3662,MATCH(M154,'RWH 10-yr Simulation'!$A$11:$A$3662,0)) -> 0
A155: 2002-12-17 | B155: =INDEX('RWH 10-yr Simulation'!$M$11:$M$3662,MATCH(A155,'RWH 10-yr Simulation'!$A$11:$A$3662,0)) -> 0 | G155: 2003-01-09 | H155: =INDEX('RWH 10-yr Simulation'!$M$11:$M$3662,MATCH(G155,'RWH 10-yr Simulation'!$A$11:$A$3662,0)) -> 0 | M155: 2003-02-11 | N155: =INDEX('RWH 10-yr Simulation'!$M$11:$M$3662,MATCH(M155,'RWH 10-yr Simulation'!$A$11:$A$3662,0)) -> 0
A156: 2002-12-18 | B156: =INDEX('RWH 10-yr Simulation'!$M$11:$M$3662,MATCH(A156,'RWH 10-yr Simulation'!$A$11:$A$3662,0)) -> 0 | G156: 2003-01-11 | H156: =INDEX('RWH 10-yr Simulation'!$M$11:$M$3662,MATCH(G156,'RWH 10-yr Simulation'!$A$11:$A$3662,0)) -> 0 | M156: 2003-02-12 | N156: =INDEX('RWH 10-yr Simulation'!$M$11:$M$3662,MATCH(M156,'RWH 10-yr Simulation'!$A$11:$A$3662,0)) -> 0
A157: 2002-12-19 | B157: =INDEX('RWH 10-yr Simulation'!$M$11:$M$3662,MATCH(A157,'RWH 10-yr Simulation'!$A$11:$A$3662,0)) -> 0 | G157: 2003-01-19 | H157: =INDEX('RWH 10-yr Simulation'!$M$11:$M$3662,MATCH(G157,'RWH 10-yr Simulation'!$A$11:$A$3662,0)) -> 0 | M157: 2003-02-14 | N157: =INDEX('RWH 10-yr Simulation'!$M$11:$M$3662,MATCH(M157,'RWH 10-yr Simulation'!$A$11:$A$3662,0)) -> 0
A158: 2002-12-20 | B158: =INDEX('RWH 10-yr Simulation'!$M$11:$M$3662,MATCH(A158,'RWH 10-yr Simulation'!$A$11:$A$3662,0)) -> 0 | G158: 2003-01-20 | H158: =INDEX('RWH 10-yr Simulation'!$M$11:$M$3662,MATCH(G158,'RWH 10-yr Simulation'!$A$11:$A$3662,0)) -> 0 | M158: 2003-02-15 | N158: =INDEX('RWH 10-yr Simulation'!$M$11:$M$3662,MATCH(M158,'RWH 10-yr Simulation'!$A$11:$A$3662,0)) -> 0
A159: 2002-12-25 | B159: =INDEX('RWH 10-yr Simulation'!$M$11:$M$3662,MATCH(A159,'RWH 10-yr Simulation'!$A$11:$A$3662,0)) -> 0 | G159: 2003-01-21 | H159: =INDEX('RWH 10-yr Simulation'!$M$11:$M$3662,MATCH(G159,'RWH 10-yr Simulation'!$A$11:$A$3662,0)) -> 0 | M159: 2003-02-18 | N159: =INDEX('RWH 10-yr Simulation'!$M$11:$M$3662,MATCH(M159,'RWH 10-yr Simulation'!$A$11:$A$3662,0)) -> 0
A160: 2002-12-26 | B160: =INDEX('RWH 10-yr Simulation'!$M$11:$M$3662,MATCH(A160,'RWH 10-yr Simulation'!$A$11:$A$3662,0)) -> 0 | G160: 2003-01-22 | H160: =INDEX('RWH 10-yr Simulation'!$M$11:$M$3662,MATCH(G160,'RWH 10-yr Simulation'!$A$11:$A$3662,0)) -> 0 | M160: 2003-02-23 | N160: =INDEX('RWH 10-yr Simulation'!$M$11:$M$3662,MATCH(M160,'RWH 10-yr Simulation'!$A$11:$A$3662,0)) -> 0
A161: 2002-12-27 | B161: =INDEX('RWH 10-yr Simulation'!$M$11:$M$3662,MATCH(A161,'RWH 10-yr Simulation'!$A$11:$A$3662,0)) -> 0 | G161: 2003-02-11 | H161: =INDEX('RWH 10-yr Simulation'!$M$11:$M$3662,MATCH(G161,'RWH 10-yr Simulation'!$A$11:$A$3662,0)) -> 0 | M161: 2003-02-24 | N161: =INDEX('RWH 10-yr Simulation'!$M$11:$M$3662,MATCH(M161,'RWH 10-yr Simulation'!$A$11:$A$3662,0)) -> 0
A162: 2002-12-28 | B162: =INDEX('RWH 10-yr Simulation'!$M$11:$M$3662,MATCH(A162,'RWH 10-yr Simulation'!$A$11:$A$3662,0)) -> 0 | G162: 2003-02-12 | H162: =INDEX('RWH 10-yr Simulation'!$M$11:$M$3662,MATCH(G162,'RWH 10-yr Simulation'!$A$11:$A$3662,0)) -> 0 | M162: 2003-02-25 | N162: =INDEX('RWH 10-yr Simulation'!$M$11:$M$3662,MATCH(M162,'RWH 10-yr Simulation'!$A$11:$A$3662,0)) -> 0
A163: 2002-12-29 | B163: =INDEX('RWH 10-yr Simulation'!$M$11:$M$3662,MATCH(A163,'RWH 10-yr Simulation'!$A$11:$A$3662,0)) -> 0 | G163: 2003-02-14 | H163: =INDEX('RWH 10-yr Simulation'!$M$11:$M$3662,MATCH(G163,'RWH 10-yr Simulation'!$A$11:$A$3662,0)) -> 0 | M163: 2003-02-26 | N163: =INDEX('RWH 10-yr Simulation'!$M$11:$M$3662,MATCH(M163,'RWH 10-yr Simulation'!$A$11:$A$3662,0)) -> 0
A164: 2002-12-30 | B164: =INDEX('RWH 10-yr Simulation'!$M$11:$M$3662,MATCH(A164,'RWH 10-yr Simulation'!$A$11:$A$3662,0)) -> 0 | G164: 2003-02-15 | H164: =INDEX('RWH 10-yr Simulation'!$M$11:$M$3662,MATCH(G164,'RWH 10-yr Simulation'!$A$11:$A$3662,0)) -> 0 | M164: 2003-03-13 | N164: =INDEX('RWH 10-yr Simulation'!$M$11:$M$3662,MATCH(M164,'RWH 10-yr Simulation'!$A$11:$A$3662,0)) -> 0
A165: 2003-01-08 | B165: =INDEX('RWH 10-yr Simulation'!$M$11:$M$3662,MATCH(A165,'RWH 10-yr Simulation'!$A$11:$A$3662,0)) -> 0 | G165: 2003-02-18 | H165: =INDEX('RWH 10-yr Simulation'!$M$11:$M$3662,MATCH(G165,'RWH 10-yr Simulation'!$A$11:$A$3662,0)) -> 0 | M165: 2003-03-14 | N165: =INDEX('RWH 10-yr Simulation'!$M$11:$M$3662,MATCH(M165,'RWH 10-yr Simulation'!$A$11:$A$3662,0)) -> 0
A166: 2003-01-09 | B166: =INDEX('RWH 10-yr Simulation'!$M$11:$M$3662,MATCH(A166,'RWH 10-yr Simulation'!$A$11:$A$3662,0)) -> 0 | G166: 2003-02-23 | H166: =INDEX('RWH 10-yr Simulation'!$M$11:$M$3662,MATCH(G166,'RWH 10-yr Simulation'!$A$11:$A$3662,0)) -> 0 | M166: 2003-03-15 | N166: =INDEX('RWH 10-yr Simulation'!$M$11:$M$3662,MATCH(M166,'RWH 10-yr Simulation'!$A$11:$A$3662,0)) -> 0
A167: 2003-01-11 | B167: =INDEX('RWH 10-yr Simulation'!$M$11:$M$3662,MATCH(A167,'RWH 10-yr Simulation'!$A$11:$A$3662,0)) -> 0 | G167: 2003-02-24 | H167: =INDEX('RWH 10-yr Simulation'!$M$11:$M$3662,MATCH(G167,'RWH 10-yr Simulation'!$A$11:$A$3662,0)) -> 0 | M167: 2003-11-01 | N167: =INDEX('RWH 10-yr Simulation'!$M$11:$M$3662,MATCH(M167,'RWH 10-yr Simulation'!$A$11:$A$3662,0)) -> 0
A168: 2003-01-19 | B168: =INDEX('RWH 10-yr Simulation'!$M$11:$M$3662,MATCH(A168,'RWH 10-yr Simulation'!$A$11:$A$3662,0)) -> 0 | G168: 2003-02-25 | H168: =INDEX('RWH 10-yr Simulation'!$M$11:$M$3662,MATCH(G168,'RWH 10-yr Simulation'!$A$11:$A$3662,0)) -> 0 | M168: 2003-11-02 | N168: =INDEX('RWH 10-yr Simulation'!$M$11:$M$3662,MATCH(M168,'RWH 10-yr Simulation'!$A$11:$A$3662,0)) -> 0
A169: 2003-01-20 | B169: =INDEX('RWH 10-yr Simulation'!$M$11:$M$3662,MATCH(A169,'RWH 10-yr Simulation'!$A$11:$A$3662,0)) -> 0 | G169: 2003-02-26 | H169: =INDEX('RWH 10-yr Simulation'!$M$11:$M$3662,MATCH(G169,'RWH 10-yr Simulation'!$A$11:$A$3662,0)) -> 0 | M169: 2003-11-04 | N169: =INDEX('RWH 10-yr Simulation'!$M$11:$M$3662,MATCH(M169,'RWH 10-yr Simulation'!$A$11:$A$3662,0)) -> 0
A170: 2003-01-21 | B170: =INDEX('RWH 10-yr Simulation'!$M$11:$M$3662,MATCH(A170,'RWH 10-yr Simulation'!$A$11:$A$3662,0)) -> 0 | G170: 2003-03-13 | H170: =INDEX('RWH 10-yr Simulation'!$M$11:$M$3662,MATCH(G170,'RWH 10-yr Simulation'!$A$11:$A$3662,0)) -> 0 | M170: 2003-11-05 | N170: =INDEX('RWH 10-yr Simulation'!$M$11:$M$3662,MATCH(M170,'RWH 10-yr Simulation'!$A$11:$A$3662,0)) -> 0
A171: 2003-01-22 | B171: =INDEX('RWH 10-yr Simulation'!$M$11:$M$3662,MATCH(A171,'RWH 10-yr Simulation'!$A$11:$A$3662,0)) -> 0 | G171: 2003-03-14 | H171: =INDEX('RWH 10-yr Simulation'!$M$11:$M$3662,MATCH(G171,'RWH 10-yr Simulation'!$A$11:$A$3662,0)) -> 0 | M171: 2003-11-06 | N171: =INDEX('RWH 10-yr Simulation'!$M$11:$M$3662,MATCH(M171,'RWH 10-yr Simulation'!$A$11:$A$3662,0)) -> 0
A172: 2003-02-11 | B172: =INDEX('RWH 10-yr Simulation'!$M$11:$M$3662,MATCH(A172,'RWH 10-yr Simulation'!$A$11:$A$3662,0)) -> 0 | G172: 2003-03-15 | H172: =INDEX('RWH 10-yr Simulation'!$M$11:$M$3662,MATCH(G172,'RWH 10-yr Simulation'!$A$11:$A$3662,0)) -> 0 | M172: 2003-11-07 | N172: =INDEX('RWH 10-yr Simulation'!$M$11:$M$3662,MATCH(M172,'RWH 10-yr Simulation'!$A$11:$A$3662,0)) -> 0
A173: 2003-02-12 | B173: =INDEX('RWH 10-yr Simulation'!$M$11:$M$3662,MATCH(A173,'RWH 10-yr Simulation'!$A$11:$A$3662,0)) -> 0 | G173: 2003-11-01 | H173: =INDEX('RWH 10-yr Simulation'!$M$11:$M$3662,MATCH(G173,'RWH 10-yr Simulation'!$A$11:$A$3662,0)) -> 0 | M173: 2003-11-13 | N173: =INDEX('RWH 10-yr Simulation'!$M$11:$M$3662,MATCH(M173,'RWH 10-yr Simulation'!$A$11:$A$3662,0)) -> 0
A174: 2003-02-14 | B174: =INDEX('RWH 10-yr Simulation'!$M$11:$M$3662,MATCH(A174,'RWH 10-yr Simulation'!$A$11:$A$3662,0)) -> 0 | G174: 2003-11-02 | H174: =INDEX('RWH 10-yr Simulation'!$M$11:$M$3662,MATCH(G174,'RWH 10-yr Simulation'!$A$11:$A$3662,0)) -> 0 | M174: 2003-11-14 | N174: =INDEX('RWH 10-yr Simulation'!$M$11:$M$3662,MATCH(M174,'RWH 10-yr Simulation'!$A$11:$A$3662,0)) -> 0
A175: 2003-02-15 | B175: =INDEX('RWH 10-yr Simulation'!$M$11:$M$3662,MATCH(A175,'RWH 10-yr Simulation'!$A$11:$A$3662,0)) -> 0 | G175: 2003-11-04 | H175: =INDEX('RWH 10-yr Simulation'!$M$11:$M$3662,MATCH(G175,'RWH 10-yr Simulation'!$A$11:$A$3662,0)) -> 0 | M175: 2003-11-16 | N175: =INDEX('RWH 10-yr Simulation'!$M$11:$M$3662,MATCH(M175,'RWH 10-yr Simulation'!$A$11:$A$3662,0)) -> 0
A176: 2003-02-18 | B176: =INDEX('RWH 10-yr Simulation'!$M$11:$M$3662,MATCH(A176,'RWH 10-yr Simulation'!$A$11:$A$3662,0)) -> 0 | G176: 2003-11-05 | H176: =INDEX('RWH 10-yr Simulation'!$M$11:$M$3662,MATCH(G176,'RWH 10-yr Simulation'!$A$11:$A$3662,0)) -> 0 | M176: 2003-11-29 | N176: =INDEX('RWH 10-yr Simulation'!$M$11:$M$3662,MATCH(M176,'RWH 10-yr Simulation'!$A$11:$A$3662,0)) -> 0
A177: 2003-02-23 | B177: =INDEX('RWH 10-yr Simulation'!$M$11:$M$3662,MATCH(A177,'RWH 10-yr Simulation'!$A$11:$A$3662,0)) -> 0 | G177: 2003-11-06 | H177: =INDEX('RWH 10-yr Simulation'!$M$11:$M$3662,MATCH(G177,'RWH 10-yr Simulation'!$A$11:$A$3662,0)) -> 0 | M177: 2003-11-30 | N177: =INDEX('RWH 10-yr Simulation'!$M$11:$M$3662,MATCH(M177,'RWH 10-yr Simulation'!$A$11:$A$3662,0)) -> 0
A178: 2003-02-24 | B178: =INDEX('RWH 10-yr Simulation'!$M$11:$M$3662,MATCH(A178,'RWH 10-yr Simulation'!$A$11:$A$3662,0)) -> 0 | G178: 2003-11-07 | H178: =INDEX('RWH 10-yr Simulation'!$M$11:$M$3662,MATCH(G178,'RWH 10-yr Simulation'!$A$11:$A$3662,0)) -> 0 | M178: 2003-12-01 | N178: =INDEX('RWH 10-yr Simulation'!$M$11:$M$3662,MATCH(M178,'RWH 10-yr Simulation'!$A$11:$A$3662,0)) -> 0
A179: 2003-02-25 | B179: =INDEX('RWH 10-yr Simulation'!$M$11:$M$3662,MATCH(A179,'RWH 10-yr Simulation'!$A$11:$A$3662,0)) -> 0 | G179: 2003-11-13 | H179: =INDEX('RWH 10-yr Simulation'!$M$11:$M$3662,MATCH(G179,'RWH 10-yr Simulation'!$A$11:$A$3662,0)) -> 0 | M179: 2003-12-03 | N179: =INDEX('RWH 10-yr Simulation'!$M$11:$M$3662,MATCH(M179,'RWH 10-yr Simulation'!$A$11:$A$3662,0)) -> 0
A180: 2003-02-26 | B180: =INDEX('RWH 10-yr Simulation'!$M$11:$M$3662,MATCH(A180,'RWH 10-yr Simulation'!$A$11:$A$3662,0)) -> 0 | G180: 2003-11-14 | H180: =INDEX('RWH 10-yr Simulation'!$M$11:$M$3662,MATCH(G180,'RWH 10-yr Simulation'!$A$11:$A$3662,0)) -> 0 | M180: 2003-12-04 | N180: =INDEX('RWH 10-yr Simulation'!$M$11:$M$3662,MATCH(M180,'RWH 10-yr Simulation'!$A$11:$A$3662,0)) -> 0
A181: 2003-03-13 | B181: =INDEX('RWH 10-yr Simulation'!$M$11:$M$3662,MATCH(A181,'RWH 10-yr Simulation'!$A$11:$A$3662,0)) -> 0 | G181: 2003-11-16 | H181: =INDEX('RWH 10-yr Simulation'!$M$11:$M$3662,MATCH(G181,'RWH 10-yr Simulation'!$A$11:$A$3662,0)) -> 0 | M181: 2003-12-05 | N181: =INDEX('RWH 10-yr Simulation'!$M$11:$M$3662,MATCH(M181,'RWH 10-yr Simulation'!$A$11:$A$3662,0)) -> 0
A182: 2003-03-14 | B182: =INDEX('RWH 10-yr Simulation'!$M$11:$M$3662,MATCH(A182,'RWH 10-yr Simulation'!$A$11:$A$3662,0)) -> 0 | G182: 2003-11-29 | H182: =INDEX('RWH 10-yr Simulation'!$M$11:$M$3662,MATCH(G182,'RWH 10-yr Simulation'!$A$11:$A$3662,0)) -> 0 | M182: 2003-12-06 | N182: =INDEX('RWH 10-yr Simulation'!$M$11:$M$3662,MATCH(M182,'RWH 10-yr Simulation'!$A$11:$A$3662,0)) -> 0
A183: 2003-03-15 | B183: =INDEX('RWH 10-yr Simulation'!$M$11:$M$3662,MATCH(A183,'RWH 10-yr Simulation'!$A$11:$A$3662,0)) -> 0 | G183: 2003-11-30 | H183: =INDEX('RWH 10-yr Simulation'!$M$11:$M$3662,MATCH(G183,'RWH 10-yr Simulation'!$A$11:$A$3662,0)) -> 0 | M183: 2003-12-08 | N183: =INDEX('RWH 10-yr Simulation'!$M$11:$M$3662,MATCH(M183,'RWH 10-yr Simulation'!$A$11:$A$3662,0)) -> 0
A184: 2003-11-01 | B184: =INDEX('RWH 10-yr Simulation'!$M$11:$M$3662,MATCH(A184,'RWH 10-yr Simulation'!$A$11:$A$3662,0)) -> 0 | G184: 2003-12-01 | H184: =INDEX('RWH 10-yr Simulation'!$M$11:$M$3662,MATCH(G184,'RWH 10-yr Simulation'!$A$11:$A$3662,0)) -> 0 | M184: 2003-12-09 | N184: =INDEX('RWH 10-yr Simulation'!$M$11:$M$3662,MATCH(M184,'RWH 10-yr Simulation'!$A$11:$A$3662,0)) -> 0
A185: 2003-11-02 | B185: =INDEX('RWH 10-yr Simulation'!$M$11:$M$3662,MATCH(A185,'RWH 10-yr Simulation'!$A$11:$A$3662,0)) -> 0 | G185: 2003-12-03 | H185: =INDEX('RWH 10-yr Simulation'!$M$11:$M$3662,MATCH(G185,'RWH 10-yr Simulation'!$A$11:$A$3662,0)) -> 0 | M185: 2003-12-11 | N185: =INDEX('RWH 10-yr Simulation'!$M$11:$M$3662,MATCH(M185,'RWH 10-yr Simulation'!$A$11:$A$3662,0)) -> 0
A186: 2003-11-04 | B186: =INDEX('RWH 10-yr Simulation'!$M$11:$M$3662,MATCH(A186,'RWH 10-yr Simulation'!$A$11:$A$3662,0)) -> 0 | G186: 2003-12-04 | H186: =INDEX('RWH 10-yr Simulation'!$M$11:$M$3662,MATCH(G186,'RWH 10-yr Simulation'!$A$11:$A$3662,0)) -> 0 | M186: 2003-12-12 | N186: =INDEX('RWH 10-yr Simulation'!$M$11:$M$3662,MATCH(M186,'RWH 10-yr Simulation'!$A$11:$A$3662,0)) -> 0
A187: 2003-11-05 | B187: =INDEX('RWH 10-yr Simulation'!$M$11:$M$3662,MATCH(A187,'RWH 10-yr Simulation'!$A$11:$A$3662,0)) -> 0 | G187: 2003-12-05 | H187: =INDEX('RWH 10-yr Simulation'!$M$11:$M$3662,MATCH(G187,'RWH 10-yr Simulation'!$A$11:$A$3662,0)) -> 0 | M187: 2003-12-13 | N187: =INDEX('RWH 10-yr Simulation'!$M$11:$M$3662,MATCH(M187,'RWH 10-yr Simulation'!$A$11:$A$3662,0)) -> 0
A188: 2003-11-06 | B188: =INDEX('RWH 10-yr Simulation'!$M$11:$M$3662,MATCH(A188,'RWH 10-yr Simulation'!$A$11:$A$3662,0)) -> 0 | G188: 2003-12-06 | H188: =INDEX('RWH 10-yr Simulation'!$M$11:$M$3662,MATCH(G188,'RWH 10-yr Simulation'!$A$11:$A$3662,0)) -> 0 | M188: 2003-12-18 | N188: =INDEX('RWH 10-yr Simulation'!$M$11:$M$3662,MATCH(M188,'RWH 10-yr Simulation'!$A$11:$A$3662,0)) -> 0
A189: 2003-11-07 | B189: =INDEX('RWH 10-yr Simulation'!$M$11:$M$3662,MATCH(A189,'RWH 10-yr Simulation'!$A$11:$A$3662,0)) -> 0 | G189: 2003-12-08 | H189: =INDEX('RWH 10-yr Simulation'!$M$11:$M$3662,MATCH(G189,'RWH 10-yr Simulation'!$A$11:$A$3662,0)) -> 0 | M189: 2003-12-19 | N189: =INDEX('RWH 10-yr Simulation'!$M$11:$M$3662,MATCH(M189,'RWH 10-yr Simulation'!$A$11:$A$3662,0)) -> 0
A190: 2003-11-13 | B190: =INDEX('RWH 10-yr Simulation'!$M$11:$M$3662,MATCH(A190,'RWH 10-yr Simulation'!$A$11:$A$3662,0)) -> 0 | G190: 2003-12-09 | H190: =INDEX('RWH 10-yr Simulation'!$M$11:$M$3662,MATCH(G190,'RWH 10-yr Simulation'!$A$11:$A$3662,0)) -> 0 | M190: 2003-12-22 | N190: =INDEX('RWH 10-yr Simulation'!$M$11:$M$3662,MATCH(M190,'RWH 10-yr Simulation'!$A$11:$A$3662,0)) -> 0
A191: 2003-11-14 | B191: =INDEX('RWH 10-yr Simulation'!$M$11:$M$3662,MATCH(A191,'RWH 10-yr Simulation'!$A$11:$A$3662,0)) -> 0 | G191: 2003-12-11 | H191: =INDEX('RWH 10-yr Simulation'!$M$11:$M$3662,MATCH(G191,'RWH 10-yr Simulation'!$A$11:$A$3662,0)) -> 0 | M191: 2003-12-23 | N191: =INDEX('RWH 10-yr Simulation'!$M$11:$M$3662,MATCH(M191,'RWH 10-yr Simulation'!$A$11:$A$3662,0)) -> 0
A192: 2003-11-16 | B192: =INDEX('RWH 10-yr Simulation'!$M$11:$M$3662,MATCH(A192,'RWH 10-yr Simulation'!$A$11:$A$3662,0)) -> 0 | G192: 2003-12-12 | H192: =INDEX('RWH 10-yr Simulation'!$M$11:$M$3662,MATCH(G192,'RWH 10-yr Simulation'!$A$11:$A$3662,0)) -> 0 | M192: 2003-12-24 | N192: =INDEX('RWH 10-yr Simulation'!$M$11:$M$3662,MATCH(M192,'RWH 10-yr Simulation'!$A$11:$A$3662,0)) -> 0
A193: 2003-11-29 | B193: =INDEX('RWH 10-yr Simulation'!$M$11:$M$3662,MATCH(A193,'RWH 10-yr Simulation'!$A$11:$A$3662,0)) -> 0 | G193: 2003-12-13 | H193: =INDEX('RWH 10-yr Simulation'!$M$11:$M$3662,MATCH(G193,'RWH 10-yr Simulation'!$A$11:$A$3662,0)) -> 0 | M193: 2003-12-27 | N193: =INDEX('RWH 10-yr Simulation'!$M$11:$M$3662,MATCH(M193,'RWH 10-yr Simulation'!$A$11:$A$3662,0)) -> 0
A194: 2003-11-30 | B194: =INDEX('RWH 10-yr Simulation'!$M$11:$M$3662,MATCH(A194,'RWH 10-yr Simulation'!$A$11:$A$3662,0)) -> 0 | G194: 2003-12-18 | H194: =INDEX('RWH 10-yr Simulation'!$M$11:$M$3662,MATCH(G194,'RWH 10-yr Simulation'!$A$11:$A$3662,0)) -> 0 | M194: 2003-12-28 | N194: =INDEX('RWH 10-yr Simulation'!$M$11:$M$3662,MATCH(M194,'RWH 10-yr Simulation'!$A$11:$A$3662,0)) -> 0
A195: 2003-12-01 | B195: =INDEX('RWH 10-yr Simulation'!$M$11:$M$3662,MATCH(A195,'RWH 10-yr Simulation'!$A$11:$A$3662,0)) -> 0 | G195: 2003-12-19 | H195: =INDEX('RWH 10-yr Simulation'!$M$11:$M$3662,MATCH(G195,'RWH 10-yr Simulation'!$A$11:$A$3662,0)) -> 0 | M195: 2003-12-29 | N195: =INDEX('RWH 10-yr Simulation'!$M$11:$M$3662,MATCH(M195,'RWH 10-yr Simulation'!$A$11:$A$3662,0)) -> 0
A196: 2003-12-03 | B196: =INDEX('RWH 10-yr Simulation'!$M$11:$M$3662,MATCH(A196,'RWH 10-yr Simulation'!$A$11:$A$3662,0)) -> 0 | G196: 2003-12-22 | H196: =INDEX('RWH 10-yr Simulation'!$M$11:$M$3662,MATCH(G196,'RWH 10-yr Simulation'!$A$11:$A$3662,0)) -> 0 | M196: 2003-12-31 | N196: =INDEX('RWH 10-yr Simulation'!$M$11:$M$3662,MATCH(M196,'RWH 10-yr Simulation'!$A$11:$A$3662,0)) -> 0
A197: 2003-12-04 | B197: =INDEX('RWH 10-yr Simulation'!$M$11:$M$3662,MATCH(A197,'RWH 10-yr Simulation'!$A$11:$A$3662,0)) -> 0 | G197: 2003-12-23 | H197: =INDEX('RWH 10-yr Simulation'!$M$11:$M$3662,MATCH(G197,'RWH 10-yr Simulation'!$A$11:$A$3662,0)) -> 0 | M197: 2004-01-01 | N197: =INDEX('RWH 10-yr Simulation'!$M$11:$M$3662,MATCH(M197,'RWH 10-yr Simulation'!$A$11:$A$3662,0)) -> 0
A198: 2003-12-05 | B198: =INDEX('RWH 10-yr Simulation'!$M$11:$M$3662,MATCH(A198,'RWH 10-yr Simulation'!$A$11:$A$3662,0)) -> 0 | G198: 2003-12-24 | H198: =INDEX('RWH 10-yr Simulation'!$M$11:$M$3662,MATCH(G198,'RWH 10-yr Simulation'!$A$11:$A$3662,0)) -> 0 | M198: 2004-01-05 | N198: =INDEX('RWH 10-yr Simulation'!$M$11:$M$3662,MATCH(M198,'RWH 10-yr Simulation'!$A$11:$A$3662,0)) -> 0
A199: 2003-12-06 | B199: =INDEX('RWH 10-yr Simulation'!$M$11:$M$3662,MATCH(A199,'RWH 10-yr Simulation'!$A$11:$A$3662,0)) -> 0 | G199: 2003-12-27 | H199: =INDEX('RWH 10-yr Simulation'!$M$11:$M$3662,MATCH(G199,'RWH 10-yr Simulation'!$A$11:$A$3662,0)) -> 0 | M199: 2004-01-06 | N199: =INDEX('RWH 10-yr Simulation'!$M$11:$M$3662,MATCH(M199,'RWH 10-yr Simulation'!$A$11:$A$3662,0)) -> 0
A200: 2003-12-08 | B200: =INDEX('RWH 10-yr Simulation'!$M$11:$M$3662,MATCH(A200,'RWH 10-yr Simulation'!$A$11:$A$3662,0)) -> 0 | G200: 2003-12-28 | H200: =INDEX('RWH 10-yr Simulation'!$M$11:$M$3662,MATCH(G200,'RWH 10-yr Simulation'!$A$11:$A$3662,0)) -> 0 | M200: 2004-01-08 | N200: =INDEX('RWH 10-yr Simulation'!$M$11:$M$3662,MATCH(M200,'RWH 10-yr Simulation'!$A$11:$A$3662,0)) -> 0
A201: 2003-12-09 | B201: =INDEX('RWH 10-yr Simulation'!$M$11:$M$3662,MATCH(A201,'RWH 10-yr Simulation'!$A$11:$A$3662,0)) -> 0 | G201: 2003-12-29 | H201: =INDEX('RWH 10-yr Simulation'!$M$11:$M$3662,MATCH(G201,'RWH 10-yr Simulation'!$A$11:$A$3662,0)) -> 0 | M201: 2004-01-09 | N201: =INDEX('RWH 10-yr Simulation'!$M$11:$M$3662,MATCH(M201,'RWH 10-yr Simulation'!$A$11:$A$3662,0)) -> 0
A202: 2003-12-11 | B202: =INDEX('RWH 10-yr Simulation'!$M$11:$M$3662,MATCH(A202,'RWH 10-yr Simulation'!$A$11:$A$3662,0)) -> 0 | G202: 2003-12-31 | H202: =INDEX('RWH 10-yr Simulation'!$M$11:$M$3662,MATCH(G202,'RWH 10-yr Simulation'!$A$11:$A$3662,0)) -> 0 | M202: 2004-01-13 | N202: =INDEX('RWH 10-yr Simulation'!$M$11:$M$3662,MATCH(M202,'RWH 10-yr Simulation'!$A$11:$A$3662,0)) -> 0
A203: 2003-12-12 | B203: =INDEX('RWH 10-yr Simulation'!$M$11:$M$3662,MATCH(A203,'RWH 10-yr Simulation'!$A$11:$A$3662,0)) -> 0 | G203: 2004-01-01 | H203: =INDEX('RWH 10-yr Simulation'!$M$11:$M$3662,MATCH(G203,'RWH 10-yr Simulation'!$A$11:$A$3662,0)) -> 0 | M203: 2004-01-22 | N203: =INDEX('RWH 10-yr Simulation'!$M$11:$M$3662,MATCH(M203,'RWH 10-yr Simulation'!$A$11:$A$3662,0)) -> 0
A204: 2003-12-13 | B204: =INDEX('RWH 10-yr Simulation'!$M$11:$M$3662,MATCH(A204,'RWH 10-yr Simulation'!$A$11:$A$3662,0)) -> 0 | G204: 2004-01-05 | H204: =INDEX('RWH 10-yr Simulation'!$M$11:$M$3662,MATCH(G204,'RWH 10-yr Simulation'!$A$11:$A$3662,0)) -> 0 | M204: 2004-01-23 | N204: =INDEX('RWH 10-yr Simulation'!$M$11:$M$3662,MATCH(M204,'RWH 10-yr Simulation'!$A$11:$A$3662,0)) -> 0
A205: 2003-12-18 | B205: =INDEX('RWH 10-yr Simulation'!$M$11:$M$3662,MATCH(A205,'RWH 10-yr Simulation'!$A$11:$A$3662,0)) -> 0 | G205: 2004-01-06 | H205: =INDEX('RWH 10-yr Simulation'!$M$11:$M$3662,MATCH(G205,'RWH 10-yr Simulation'!$A$11:$A$3662,0)) -> 0 | M205: 2004-01-26 | N205: =INDEX('RWH 10-yr Simulation'!$M$11:$M$3662,MATCH(M205,'RWH 10-yr Simulation'!$A$11:$A$3662,0)) -> 0
... 506 more rows

Sheet Rainfall and Hydrographs
A1: San Francisco 1-yr, 24hr and 2-yr, 24hr Design Storms: | G1: San Francisco's Design Storm Hyetographs: | K1: Project Site Runoff Hydrographs:
K2: (Based on information entered in the "Sizing Calculator" worksheet.)
B3: Intensities (in/hr) | D3: Depths (in)
A4: Hour | B4: 1yr | C4: 2yr | D4: 1yr | E4: 2yr
A5: 00:00:00 | B5: 0 | C5: 0 | D5: 0 | E5: 0
A6: 00:05:00 | B6: 0.0539 | C6: 0.0547 | D6: =B6*5/60 -> 0.004491666667 | E6: =C6*5/60 -> 0.004558333333
A7: 00:10:00 | B7: 0.0541 | C7: 0.0549 | D7: =B7*5/60 -> 0.004508333333 | E7: 0.004575
A8: 00:15:00 | B8: 0.0543 | C8: 0.0551 | D8: 0.004525 | E8: 0.004591666667
A9: 00:20:00 | B9: 0.0545 | C9: 0.0553 | D9: 0.004541666667 | E9: 0.004608333333
A10: 00:25:00 | B10: 0.0547 | C10: 0.0555 | D10: 0.004558333333 | E10: 0.004625
A11: 00:30:00 | B11: 0.0549 | C11: 0.0557 | D11: 0.004575 | E11: 0.004641666667
A12: 00:35:00 | B12: 0.0551 | C12: 0.0559 | D12: 0.004591666667 | E12: 0.004658333333
A13: 00:40:00 | B13: 0.0553 | C13: 0.0562 | D13: 0.004608333333 | E13: 0.004683333333
A14: 00:45:00 | B14: 0.0555 | C14: 0.0564 | D14: 0.004625 | E14: 0.0047
A15: 00:50:00 | B15: 0.0557 | C15: 0.0566 | D15: 0.004641666667 | E15: 0.004716666667
A16: 00:55:00 | B16: 0.056 | C16: 0.0568 | D16: 0.004666666667 | E16: 0.004733333333
A17: 01:00:00 | B17: 0.0562 | C17: 0.0571 | D17: 0.004683333333 | E17: 0.004758333333
A18: 01:05:00 | B18: 0.0564 | C18: 0.0573 | D18: 0.0047 | E18: 0.004775
A19: 01:10:00 | B19: 0.0566 | C19: 0.0575 | D19: 0.004716666667 | E19: 0.004791666667
A20: 01:15:00 | B20: 0.0568 | C20: 0.0578 | D20: 0.004733333333 | E20: 0.004816666667
A21: 01:20:00 | B21: 0.0571 | C21: 0.058 | D21: 0.004758333333 | E21: 0.004833333333
A22: 01:25:00 | B22: 0.0573 | C22: 0.0583 | D22: 0.004775 | E22: 0.004858333333
A23: 01:30:00 | B23: 0.0575 | C23: 0.0585 | D23: 0.004791666667 | E23: 0.004875
A24: 01:35:00 | B24: 0.0578 | C24: 0.0588 | D24: 0.004816666667 | E24: 0.0049
A25: 01:40:00 | B25: 0.058 | C25: 0.059 | D25: 0.004833333333 | E25: 0.004916666667
A26: 01:45:00 | B26: 0.0582 | C26: 0.0593 | D26: 0.00485 | E26: 0.004941666667
A27: 01:50:00 | B27: 0.0585 | C27: 0.0596 | D27: 0.004875 | E27: 0.004966666667
A28: 01:55:00 | B28: 0.0587 | C28: 0.0598 | D28: 0.004891666667 | E28: 0.004983333333
A29: 02:00:00 | B29: 0.059 | C29: 0.0601 | D29: 0.004916666667 | E29: 0.005008333333
A30: 02:05:00 | B30: 0.0592 | C30: 0.0604 | D30: 0.004933333333 | E30: 0.005033333333
A31: 02:10:00 | B31: 0.0595 | C31: 0.0606 | D31: 0.004958333333 | E31: 0.00505
A32: 02:15:00 | B32: 0.0598 | C32: 0.0609 | D32: 0.004983333333 | E32: 0.005075
A33: 02:20:00 | B33: 0.06 | C33: 0.0612 | D33: 0.005 | E33: 0.0051
A34: 02:25:00 | B34: 0.0603 | C34: 0.0615 | D34: 0.005025 | E34: 0.005125
A35: 02:30:00 | B35: 0.0606 | C35: 0.0618 | D35: 0.00505 | E35: 0.00515
A36: 02:35:00 | B36: 0.0608 | C36: 0.0621 | D36: 0.005066666667 | E36: 0.005175
A37: 02:40:00 | B37: 0.0611 | C37: 0.0624 | D37: 0.005091666667 | E37: 0.0052
A38: 02:45:00 | B38: 0.0614 | C38: 0.0627 | D38: 0.005116666667 | E38: 0.005225
A39: 02:50:00 | B39: 0.0617 | C39: 0.063 | D39: 0.005141666667 | E39: 0.00525
A40: 02:55:00 | B40: 0.062 | C40: 0.0633 | D40: 0.005166666667 | E40: 0.005275
A41: 03:00:00 | B41: 0.0623 | C41: 0.0636 | D41: 0.005191666667 | E41: 0.0053
A42: 03:05:00 | B42: 0.0626 | C42: 0.0639 | D42: 0.005216666667 | E42: 0.005325
A43: 03:10:00 | B43: 0.0629 | C43: 0.0643 | D43: 0.005241666667 | E43: 0.005358333333
A44: 03:15:00 | B44: 0.0632 | C44: 0.0646 | D44: 0.005266666667 | E44: 0.005383333333
A45: 03:20:00 | B45: 0.0635 | C45: 0.0649 | D45: 0.005291666667 | E45: 0.005408333333
A46: 03:25:00 | B46: 0.0638 | C46: 0.0653 | D46: 0.005316666667 | E46: 0.005441666667
A47: 03:30:00 | B47: 0.0641 | C47: 0.0656 | D47: 0.005341666667 | E47: 0.005466666667
A48: 03:35:00 | B48: 0.0644 | C48: 0.066 | D48: 0.005366666667 | E48: 0.0055
A49: 03:40:00 | B49: 0.0648 | C49: 0.0663 | D49: 0.0054 | E49: 0.005525
A50: 03:45:00 | B50: 0.0651 | C50: 0.0667 | D50: 0.005425 | E50: 0.005558333333
A51: 03:50:00 | B51: 0.0654 | C51: 0.0671 | D51: 0.00545 | E51: 0.005591666667
A52: 03:55:00 | B52: 0.0658 | C52: 0.0674 | D52: 0.005483333333 | E52: 0.005616666667
A53: 04:00:00 | B53: 0.0661 | C53: 0.0678 | D53: 0.005508333333 | E53: 0.00565
A54: 04:05:00 | B54: 0.0665 | C54: 0.0682 | D54: 0.005541666667 | E54: 0.005683333333
A55: 04:10:00 | B55: 0.0668 | C55: 0.0686 | D55: 0.005566666667 | E55: 0.005716666667
A56: 04:15:00 | B56: 0.0672 | C56: 0.069 | D56: 0.0056 | E56: 0.00575
A57: 04:20:00 | B57: 0.0676 | C57: 0.0694 | D57: 0.005633333333 | E57: 0.005783333333
A58: 04:25:00 | B58: 0.068 | C58: 0.0698 | D58: 0.005666666667 | E58: 0.005816666667
A59: 04:30:00 | B59: 0.0683 | C59: 0.0702 | D59: 0.005691666667 | E59: 0.00585
A60: 04:35:00 | B60: 0.0687 | C60: 0.0706 | D60: 0.005725 | E60: 0.005883333333
A61: 04:40:00 | B61: 0.0691 | C61: 0.0711 | D61: 0.005758333333 | E61: 0.005925
A62: 04:45:00 | B62: 0.0695 | C62: 0.0715 | D62: 0.005791666667 | E62: 0.005958333333
A63: 04:50:00 | B63: 0.07 | C63: 0.072 | D63: 0.005833333333 | E63: 0.006
A64: 04:55:00 | B64: 0.0704 | C64: 0.0724 | D64: 0.005866666667 | E64: 0.006033333333
A65: 05:00:00 | B65: 0.0708 | C65: 0.0729 | D65: 0.0059 | E65: 0.006075
A66: 05:05:00 | B66: 0.0712 | C66: 0.0734 | D66: 0.005933333333 | E66: 0.006116666667
A67: 05:10:00 | B67: 0.0717 | C67: 0.0738 | D67: 0.005975 | E67: 0.00615
A68: 05:15:00 | B68: 0.0721 | C68: 0.0743 | D68: 0.006008333333 | E68: 0.006191666667
A69: 05:20:00 | B69: 0.0726 | C69: 0.0748 | D69: 0.00605 | E69: 0.006233333333
A70: 05:25:00 | B70: 0.0731 | C70: 0.0753 | D70: 0.006091666667 | E70: 0.006275
A71: 05:30:00 | B71: 0.0735 | C71: 0.0759 | D71: =B71*5/60 -> 0.006125 | E71: 0.006325
A72: 05:35:00 | B72: 0.074 | C72: 0.0764 | D72: 0.006166666667 | E72: 0.006366666667
A73: 05:40:00 | B73: 0.0745 | C73: 0.0769 | D73: 0.006208333333 | E73: 0.006408333333
A74: 05:45:00 | B74: 0.075 | C74: 0.0775 | D74: 0.00625 | E74: 0.006458333333
A75: 05:50:00 | B75: 0.0755 | C75: 0.078 | D75: 0.006291666667 | E75: 0.0065
A76: 05:55:00 | B76: 0.0761 | C76: 0.0786 | D76: 0.006341666667 | E76: 0.00655
A77: 06:00:00 | B77: 0.0766 | C77: 0.0792 | D77: 0.006383333333 | E77: 0.0066
A78: 06:05:00 | B78: 0.0772 | C78: 0.0798 | D78: 0.006433333333 | E78: 0.00665
A79: 06:10:00 | B79: 0.0777 | C79: 0.0804 | D79: 0.006475 | E79: 0.0067
A80: 06:15:00 | B80: 0.0783 | C80: 0.0811 | D80: 0.006525 | E80: 0.006758333333
A81: 06:20:00 | B81: 0.0789 | C81: 0.0817 | D81: 0.006575 | E81: 0.006808333333
A82: 06:25:00 | B82: 0.0795 | C82: 0.0824 | D82: 0.006625 | E82: 0.006866666667
A83: 06:30:00 | B83: 0.0801 | C83: 0.083 | D83: 0.006675 | E83: 0.006916666667
A84: 06:35:00 | B84: 0.0807 | C84: 0.0837 | D84: 0.006725 | E84: 0.006975
A85: 06:40:00 | B85: 0.0814 | C85: 0.0844 | D85: 0.006783333333 | E85: 0.007033333333
A86: 06:45:00 | B86: 0.082 | C86: 0.0851 | D86: 0.006833333333 | E86: 0.007091666667
A87: 06:50:00 | B87: 0.0827 | C87: 0.0859 | D87: 0.006891666667 | E87: 0.007158333333
A88: 06:55:00 | B88: 0.0834 | C88: 0.0866 | D88: 0.00695 | E88: 0.007216666667
A89: 07:00:00 | B89: 0.0841 | C89: 0.0874 | D89: 0.007008333333 | E89: 0.007283333333
A90: 07:05:00 | B90: 0.0848 | C90: 0.0882 | D90: 0.007066666667 | E90: 0.00735
A91: 07:10:00 | B91: 0.0856 | C91: 0.089 | D91: 0.007133333333 | E91: 0.007416666667
A92: 07:15:00 | B92: 0.0863 | C92: 0.0899 | D92: 0.007191666667 | E92: 0.007491666667
A93: 07:20:00 | B93: 0.0871 | C93: 0.0907 | D93: 0.007258333333 | E93: 0.007558333333
A94: 07:25:00 | B94: 0.0879 | C94: 0.0916 | D94: 0.007325 | E94: 0.007633333333
A95: 07:30:00 | B95: 0.0887 | C95: 0.0925 | D95: 0.007391666667 | E95: 0.007708333333
A96: 07:35:00 | B96: 0.0896 | C96: 0.0935 | D96: 0.007466666667 | E96: 0.007791666667
A97: 07:40:00 | B97: 0.0905 | C97: 0.0944 | D97: 0.007541666667 | E97: 0.007866666667
A98: 07:45:00 | B98: 0.0914 | C98: 0.0954 | D98: 0.007616666667 | E98: 0.00795
A99: 07:50:00 | B99: 0.0923 | C99: 0.0965 | D99: 0.007691666667 | E99: 0.008041666667
A100: 07:55:00 | B100: 0.0933 | C100: 0.0975 | D100: 0.007775 | E100: 0.008125
A101: 08:00:00 | B101: 0.0942 | C101: 0.0986 | D101: 0.00785 | E101: 0.008216666667
A102: 08:05:00 | B102: 0.0953 | C102: 0.0997 | D102: 0.007941666667 | E102: 0.008308333333
A103: 08:10:00 | B103: 0.0963 | C103: 0.1009 | D103: 0.008025 | E103: 0.008408333333
A104: 08:15:00 | B104: 0.0974 | C104: 0.1021 | D104: 0.008116666667 | E104: 0.008508333333
A105: 08:20:00 | B105: 0.0985 | C105: 0.1034 | D105: 0.008208333333 | E105: 0.008616666667
A106: 08:25:00 | B106: 0.0997 | C106: 0.1046 | D106: 0.008308333333 | E106: 0.008716666667
A107: 08:30:00 | B107: 0.1009 | C107: 0.106 | D107: 0.008408333333 | E107: 0.008833333333
A108: 08:35:00 | B108: 0.1021 | C108: 0.1074 | D108: 0.008508333333 | E108: 0.00895
A109: 08:40:00 | B109: 0.1034 | C109: 0.1088 | D109: 0.008616666667 | E109: 0.009066666667
A110: 08:45:00 | B110: 0.1048 | C110: 0.1103 | D110: 0.008733333333 | E110: 0.009191666667
A111: 08:50:00 | B111: 0.1062 | C111: 0.1119 | D111: 0.00885 | E111: 0.009325
A112: 08:55:00 | B112: 0.1076 | C112: 0.1135 | D112: 0.008966666667 | E112: 0.009458333333
A113: 09:00:00 | B113: 0.1092 | C113: 0.1152 | D113: 0.0091 | E113: 0.0096
A114: 09:05:00 | B114: 0.1107 | C114: 0.1169 | D114: 0.009225 | E114: 0.009741666667
A115: 09:10:00 | B115: 0.1124 | C115: 0.1188 | D115: 0.009366666667 | E115: 0.0099
A116: 09:15:00 | B116: 0.1141 | C116: 0.1207 | D116: 0.009508333333 | E116: 0.01005833333
A117: 09:20:00 | B117: 0.1159 | C117: 0.1227 | D117: 0.009658333333 | E117: 0.010225
A118: 09:25:00 | B118: 0.1178 | C118: 0.1248 | D118: 0.009816666667 | E118: 0.0104
A119: 09:30:00 | B119: 0.1198 | C119: 0.1271 | D119: 0.009983333333 | E119: 0.01059166667
A120: 09:35:00 | B120: 0.1219 | C120: 0.1294 | D120: 0.01015833333 | E120: 0.01078333333
A121: 09:40:00 | B121: 0.1241 | C121: 0.1319 | D121: 0.01034166667 | E121: 0.01099166667
A122: 09:45:00 | B122: 0.1264 | C122: 0.1345 | D122: 0.01053333333 | E122: 0.01120833333
A123: 09:50:00 | B123: 0.1288 | C123: 0.1373 | D123: 0.01073333333 | E123: 0.01144166667
A124: 09:55:00 | B124: 0.1314 | C124: 0.1402 | D124: 0.01095 | E124: 0.01168333333
A125: 10:00:00 | B125: 0.1342 | C125: 0.1433 | D125: 0.01118333333 | E125: 0.01194166667
A126: 10:05:00 | B126: 0.1371 | C126: 0.1466 | D126: 0.011425 | E126: 0.01221666667
A127: 10:10:00 | B127: 0.1402 | C127: 0.1502 | D127: 0.01168333333 | E127: 0.01251666667
A128: 10:15:00 | B128: 0.1436 | C128: 0.154 | D128: 0.01196666667 | E128: 0.01283333333
A129: 10:20:00 | B129: 0.1472 | C129: 0.1581 | D129: 0.01226666667 | E129: 0.013175
A130: 10:25:00 | B130: 0.1511 | C130: 0.1625 | D130: 0.01259166667 | E130: 0.01354166667
A131: 10:30:00 | B131: 0.1553 | C131: 0.1673 | D131: 0.01294166667 | E131: 0.01394166667
A132: 10:35:00 | B132: 0.1598 | C132: 0.1725 | D132: 0.01331666667 | E132: 0.014375
A133: 10:40:00 | B133: 0.1648 | C133: 0.1782 | D133: 0.01373333333 | E133: 0.01485
A134: 10:45:00 | B134: 0.1703 | C134: 0.1845 | D134: 0.01419166667 | E134: 0.015375
A135: 10:50:00 | B135: 0.1763 | C135: 0.1914 | D135: =B135*5/60 -> 0.01469166667 | E135: 0.01595
A136: 10:55:00 | B136: 0.1831 | C136: 0.1992 | D136: 0.01525833333 | E136: 0.0166
A137: 11:00:00 | B137: 0.1906 | C137: 0.2079 | D137: 0.01588333333 | E137: 0.017325
A138: 11:05:00 | B138: 0.1991 | C138: 0.2178 | D138: 0.01659166667 | E138: 0.01815
A139: 11:10:00 | B139: 0.2089 | C139: 0.2291 | D139: 0.01740833333 | E139: 0.01909166667
A140: 11:15:00 | B140: 0.2203 | C140: 0.2424 | D140: 0.01835833333 | E140: 0.0202
A141: 11:20:00 | B141: 0.2336 | C141: 0.258 | D141: 0.01946666667 | E141: 0.0215
A142: 11:25:00 | B142: 0.2497 | C142: 0.277 | D142: 0.02080833333 | E142: 0.02308333333
A143: 11:30:00 | B143: 0.2696 | C143: 0.3005 | D143: 0.02246666667 | E143: 0.02504166667
A144: 11:35:00 | B144: 0.295 | C144: 0.3308 | D144: 0.02458333333 | E144: 0.02756666667
A145: 11:40:00 | B145: 0.329 | C145: 0.3717 | D145: 0.02741666667 | E145: 0.030975
A146: 11:45:00 | B146: 0.3781 | C146: 0.4315 | D146: 0.03150833333 | E146: 0.03595833333
A147: 11:50:00 | B147: 0.458 | C147: 0.5303 | D147: 0.03816666667 | E147: 0.04419166667
A148: 11:55:00 | B148: 0.6248 | C148: 0.7428 | D148: 0.05206666667 | E148: 0.0619
A149: 12:00:00 | B149: 1.9574 | C149: 2.3573 | D149: 0.1631166667 | E149: 0.1964416667
A150: 12:05:00 | B150: 0.8266 | C150: 1.0093 | D150: 0.06888333333 | E150: 0.08410833333
A151: 12:10:00 | B151: 0.5226 | C151: 0.6116 | D151: 0.04355 | E151: 0.05096666667
A152: 12:15:00 | B152: 0.4124 | C152: 0.4737 | D152: 0.03436666667 | E152: 0.039475
A153: 12:20:00 | B153: 0.3511 | C153: 0.3985 | D153: 0.02925833333 | E153: 0.03320833333
A154: 12:25:00 | B154: 0.3106 | C154: 0.3496 | D154: 0.02588333333 | E154: 0.02913333333
A155: 12:30:00 | B155: 0.2814 | C155: 0.3146 | D155: 0.02345 | E155: 0.02621666667
A156: 12:35:00 | B156: 0.2591 | C156: 0.2881 | D156: 0.02159166667 | E156: 0.02400833333
A157: 12:40:00 | B157: 0.2413 | C157: 0.267 | D157: 0.02010833333 | E157: 0.02225
A158: 12:45:00 | B158: 0.2266 | C158: 0.2498 | D158: 0.01888333333 | E158: 0.02081666667
A159: 12:50:00 | B159: 0.2144 | C159: 0.2355 | D159: 0.01786666667 | E159: 0.019625
A160: 12:55:00 | B160: 0.2039 | C160: 0.2232 | D160: 0.01699166667 | E160: 0.0186
A161: 13:00:00 | B161: 0.1947 | C161: 0.2127 | D161: 0.016225 | E161: 0.017725
A162: 13:05:00 | B162: 0.1867 | C162: 0.2034 | D162: 0.01555833333 | E162: 0.01695
A163: 13:10:00 | B163: 0.1796 | C163: 0.1952 | D163: 0.01496666667 | E163: 0.01626666667
A164: 13:15:00 | B164: 0.1732 | C164: 0.1878 | D164: 0.01443333333 | E164: 0.01565
A165: 13:20:00 | B165: 0.1675 | C165: 0.1812 | D165: 0.01395833333 | E165: 0.0151
A166: 13:25:00 | B166: 0.1623 | C166: 0.1753 | D166: 0.013525 | E166: 0.01460833333
A167: 13:30:00 | B167: 0.1575 | C167: 0.1698 | D167: 0.013125 | E167: 0.01415
A168: 13:35:00 | B168: 0.1531 | C168: 0.1648 | D168: 0.01275833333 | E168: 0.01373333333
A169: 13:40:00 | B169: 0.1491 | C169: 0.1602 | D169: 0.012425 | E169: 0.01335
A170: 13:45:00 | B170: 0.1454 | C170: 0.156 | D170: 0.01211666667 | E170: 0.013
A171: 13:50:00 | B171: 0.1419 | C171: 0.152 | D171: 0.011825 | E171: 0.01266666667
A172: 13:55:00 | B172: 0.1387 | C172: 0.1484 | D172: 0.01155833333 | E172: 0.01236666667
A173: 14:00:00 | B173: 0.1356 | C173: 0.1449 | D173: 0.0113 | E173: 0.012075
A174: 14:05:00 | B174: 0.1328 | C174: 0.1417 | D174: 0.01106666667 | E174: 0.01180833333
A175: 14:10:00 | B175: 0.1301 | C175: 0.1387 | D175: 0.01084166667 | E175: 0.01155833333
A176: 14:15:00 | B176: 0.1276 | C176: 0.1359 | D176: 0.01063333333 | E176: 0.011325
A177: 14:20:00 | B177: 0.1252 | C177: 0.1332 | D177: 0.01043333333 | E177: 0.0111
A178: 14:25:00 | B178: 0.1229 | C178: 0.1306 | D178: 0.01024166667 | E178: 0.01088333333
A179: 14:30:00 | B179: 0.1208 | C179: 0.1282 | D179: 0.01006666667 | E179: 0.01068333333
A180: 14:35:00 | B180: 0.1188 | C180: 0.1259 | D180: 0.0099 | E180: 0.01049166667
A181: 14:40:00 | B181: 0.1168 | C181: 0.1238 | D181: 0.009733333333 | E181: 0.01031666667
A182: 14:45:00 | B182: 0.115 | C182: 0.1217 | D182: 0.009583333333 | E182: 0.01014166667
A183: 14:50:00 | B183: 0.1132 | C183: 0.1197 | D183: 0.009433333333 | E183: 0.009975
A184: 14:55:00 | B184: 0.1115 | C184: 0.1178 | D184: 0.009291666667 | E184: 0.009816666667
A185: 15:00:00 | B185: 0.1099 | C185: 0.116 | D185: 0.009158333333 | E185: 0.009666666667
A186: 15:05:00 | B186: 0.1084 | C186: 0.1143 | D186: 0.009033333333 | E186: 0.009525
A187: 15:10:00 | B187: 0.1069 | C187: 0.1127 | D187: 0.008908333333 | E187: 0.009391666667
A188: 15:15:00 | B188: 0.1055 | C188: 0.1111 | D188: 0.008791666667 | E188: 0.009258333333
A189: 15:20:00 | B189: 0.1041 | C189: 0.1096 | D189: 0.008675 | E189: 0.009133333333
A190: 15:25:00 | B190: 0.1028 | C190: 0.1081 | D190: 0.008566666667 | E190: 0.009008333333
A191: 15:30:00 | B191: 0.1015 | C191: 0.1067 | D191: 0.008458333333 | E191: 0.008891666667
A192: 15:35:00 | B192: 0.1003 | C192: 0.1053 | D192: 0.008358333333 | E192: 0.008775
A193: 15:40:00 | B193: 0.0991 | C193: 0.104 | D193: 0.008258333333 | E193: 0.008666666667
A194: 15:45:00 | B194: 0.098 | C194: 0.1027 | D194: 0.008166666667 | E194: 0.008558333333
A195: 15:50:00 | B195: 0.0969 | C195: 0.1015 | D195: 0.008075 | E195: 0.008458333333
A196: 15:55:00 | B196: 0.0958 | C196: 0.1003 | D196: 0.007983333333 | E196: 0.008358333333
A197: 16:00:00 | B197: 0.0948 | C197: 0.0992 | D197: 0.0079 | E197: 0.008266666667
A198: 16:05:00 | B198: 0.0938 | C198: 0.0981 | D198: 0.007816666667 | E198: 0.008175
A199: 16:10:00 | B199: 0.0928 | C199: 0.097 | D199: =B199*5/60 -> 0.007733333333 | E199: 0.008083333333
A200: 16:15:00 | B200: 0.0918 | C200: 0.0959 | D200: 0.00765 | E200: 0.007991666667
... 95 more rows

Sheet References
A2: PROJECT TEAM
A3: San Francisco Public Utilities Commission (SFPUC) | G3: Ken Kortkamp, Project Lead
A4: http://sfwater.org | G4: Shayne Martinsen, Peer Review
A5: Lotus Water | G5: Scott Durbin
A6: http://lotuswater.com | G6: Katie Pilat
G7: Kristen Matsumura
A9: REFERENCE MATERIALS
A10: General Information: | B10: SFPUC Stormwater Management Requirements and Design Guidelines
B11: http://sfwater.org/smr
A13: Stormwater Guidance Materials Available on the SFPUC Website
A14: Stormwater Control Plan Information: | B14: Click on "SCP Resources" at the linked webpage below for additional SCP guidance:
B16: http://sfwater.org/smr
A17: CSS BMP Calculation Approach: | B17: See "Hydrologic Calculation Methods and Background Information" section of page linked below.
B18: http://sfwater.org/index.aspx?page=1008
A19: Green Infrastructure Typical Details: | B19: See links to CAD and PDF versions of BMP details on the following webpage:
B20: http://sfwater.org/index.aspx?page=1007
A21: Modified Compliance: | B21: See link to Modified Compliance Application on the webpage linked below:
B23: http://sfwater.org/index.aspx?page=1008
A24: Design Storms: | B24: See "Hydrologic Calculation Methods and Background Information" section of page linked below.
B25: http://sfwater.org/index.aspx?page=1008
A26: Urban Water Management Plan: | B26: SFPUC. 2010 Urban Water Management Plan for the City and County of San Francisco. June 2011.
B28: http://sfwater.org/modules/showdocument.aspx?documentid=1055
A29: Urban Water Management Plan Appendices: | B29: SFPUC. 2010 Urban Water Management Plan for the City and County of San Francisco - Appendices. June 2011.
B31: http://www.sfwater.org/modules/showdocument.aspx?documentid=1054
A32: Non-Potable Water Program: | B32: San Francisco's Non-potable Water Program Guidebook
B33: http://sfwater.org/modules/showdocument.aspx?documentid=4962
A34: Non-Potable Water Program: | B34: Synergies for Compliance with the NPO and SMO
B35: https://sfwater.org/Modules/ShowDocument.aspx?documentID=10522
A36: Other Reference Materials
A37: Soil Groups and Time of Concentration Calculations: | B37: United States Department of Agriculture (USDA). Natural Resource Conservation Service (NRCS). Conservation Engineering Division. Technical Release 55 (TR-55). "Urban Hydrology for Small Watersheds". June 1986.
B40: http://www.nrcs.usda.gov/Internet/FSE_DOCUMENTS/stelprdb1044171.pdf
A41: Evapotranspiration Rates: | B41: California Department of Water Resources (DWR). California Irrigation Management Information System (CIMIS). "Reference Evapotranspiration Map". 1999.
B43: http://www.cimis.water.ca.gov/App_Themes/images/etozonemap.jpg
A44: Irrigation Water Needs: | B44: DWR. CIMIS. Leaflet 21427. "Using Reference Evapotranspiration (Eto) and Crop Coefficients to Estimate Crop Evapotranspiration (ETc) for Agronomic Crops, Grasses, and Vegetable Crops". 1987.
B46: http://www.cimis.water.ca.gov/Content/PDF/21427-KcAgronomicGrassandVeg.pdf
A47: Water Use Efficiency: | B47: Costello, L.R. and K.S. Jones. California Center for Urban Horticulture, University of California, Davis. "WUCOLS IV: Water Use Classification of Landscape Species". 2014.
B49: https://ucanr.edu/sites/WUCOLS/

Sheet 1-yr SBUH (hidden)
A1: SITE CONDITIONS | E1: EXISTING | N1: PROPOSED CONDITIONS - Total Runoff Generated | AC1: Bioretention (No Underdrain No Liner) | AM1: Bioretention (No Underdrain No Liner) Performance Summary | AQ1: Rainwater Harvesting Cistern | AX1: Rainwater Harvesting Performance Summary | BF1: Infiltration Trench | BM1: Infiltration Trench Performance Summary | BQ1: Dry Well | BX1: Dry Well Performance Summary | CA1: Permeable Pavement (No Underdrain) | CI1: Permeable Pavement (No Underdrain) Performance Summary | CL1: Bioretention/FTP (Underdrain No Liner) | CX1: Bioretention/FTP (Underdrain No Liner) Performance Summary | DD1: Bioretention/FTP (Underdrain Liner) | DP1: Bioretention/FTP (Underdrain Liner) Performance Summary | DW1: Vegetated Roof | EG1: Vegetated Roof Performance Summary | EM1: Permeable Pavement (Underdrain) | ET1: Permeable Pavement (Underdrain) Performance Summary | FC1: Detention Vault | FH1: Detention Vault Performance Summary | FM1: PROPOSED CONDITIONS - Runoff Draining Directly to Sewer | FP1: TOTAL PROJECT CONDITIONS OUTFLOWS
A2: Project Area (sf): | B2: ='CSS BMP Sizing Calculator'!D4 -> 0 | E2: Parameter | F2: Pervious | G2: Pervious (TP) | H2: Impervious | I2: Total Area | N2: Parameter | O2: Pervious | P2: Pervious (TP) | Q2: Impervious | R2: Total Area | AE2: Pervious Drainage Area (ft2) | AF2: =IF('CSS BMP Sizing Calculator'!$N$21="Yes", IF(OR('CSS BMP Sizing Calculator'!$N$22="Bioretention (No Underdrain No Liner)", 'CSS BMP Sizing Calculator'!$N$23="Bioretention (No Underdrain No Liner)"),0,'CSS BMP Sizing Calculator'!$H39),'CSS BMP Sizing Calculator'!$H39) -> 0 | AG2: Media Infiltration | AH2: ='CSS BMP Sizing Calculator'!$AF$23 -> 4 | AI2: in/hr | AM2: Total Runoff to BMP (ft3) | AN2: =SUM(AC$16:AC$592)*$B$6 -> 0 | AR2: Pervious Drainage Area (ft2) | AS2: =IF('CSS BMP Sizing Calculator'!$N$21="Yes", IF(OR('CSS BMP Sizing Calculator'!$N$22="Cistern", 'CSS BMP Sizing Calculator'!$N$23="Cistern"),0,'CSS BMP Sizing Calculator'!$H40),'CSS BMP Sizing Calculator'!$H40) -> 0 | AX2: Total Runoff to BMP (ft3) | AY2: =SUM(AQ$16:AQ$592)*$B$6 -> 0 | BF2: Pervious Drainage Area (ft2) | BG2: =IF('CSS BMP Sizing Calculator'!$N$21="Yes", IF(OR('CSS BMP Sizing Calculator'!$N$22="Infiltration Trench", 'CSS BMP Sizing Calculator'!$N$23="Infiltration Trench"),0,'CSS BMP Sizing Calculator'!$H41),'CSS BMP Sizing Calculator'!$H41) -> 0 | BL2: Total Runoff to BMP (ft3) | BM2: =SUM(BE$16:BE$592)*$B$6 -> 0 | BQ2: Pervious Drainage Area (ft2) | BR2: =IF('CSS BMP Sizing Calculator'!$N$21="Yes", IF(OR('CSS BMP Sizing Calculator'!$N$22="Dry Well/Infiltration Gallery", 'CSS BMP Sizing Calculator'!$N$23="Dry Well/Infiltration Gallery"),0,'CSS BMP Sizing Calculator'!$H42),'CSS BMP Sizing Calculator'!$H42) -> 0 | BW2: Total Runoff to BMP (ft3) | BX2: =SUM(BP$16:BP$592)*$B$6 -> 0 | CB2: Pervious Drainage Area (ft2) | CC2: =IF('CSS BMP Sizing Calculator'!$N$21="Yes", IF(OR('CSS BMP Sizing Calculator'!$N$22="Permeable Pavement (No Underdrain)", 'CSS BMP Sizing Calculator'!$N$23="Permeable Pavement (No Underdrain)"),0,'CSS BMP Sizing Calculator'!$H43),'CSS BMP Sizing Calculator'!$H43) -> 0 | CH2: Total Runoff to BMP (ft3) | CI2: =SUM(CA$16:CA$592)*$B$6 -> 0 | CN2: Pervious Drainage Area (ft2) | CO2: =IF('CSS BMP Sizing Calculator'!$N$21="Yes", IF(OR('CSS BMP Sizing Calculator'!$N$22="Bioretention/FTP (Underdrain No Liner)", 'CSS BMP Sizing Calculator'!$N$23="Bioretention/FTP (Underdrain No Liner)"),0,'CSS BMP Sizing Calculator'!$H45),'CSS BMP Sizing Calculator'!$H45) -> 0 | CP2: Media Infiltration | CQ2: ='CSS BMP Sizing Calculator'!$AF$23 -> 4 | CR2: in/hr | CS2: E/T Losses (in/hr) | CT2: ='CSS BMP Sizing Calculator'!$AF16 -> 0.0025 | CW2: Total Runoff to BMP (ft3) | CX2: =SUM(CL$16:CL$880)*$B$6 -> 0 | DF2: Pervious Drainage Area (ft2) | DG2: =IF('CSS BMP Sizing Calculator'!$N$21="Yes", IF(OR('CSS BMP Sizing Calculator'!$N$22="Bioretention/FTP (Underdrain Liner)", 'CSS BMP Sizing Calculator'!$N$23="Bioretention/FTP (Underdrain Liner)"),0,'CSS BMP Sizing Calculator'!$H46),'CSS BMP Sizing Calculator'!$H46) -> 0 | DH2: Media Infiltration | DI2: ='CSS BMP Sizing Calculator'!$AF$23 -> 4 | DJ2: in/hr | DK2: E/T Losses (in/hr) | DL2: ='CSS BMP Sizing Calculator'!$AF17 -> 0.11 | DO2: Total Runoff to BMP (ft3) | DP2: =SUM(DD$16:DD$880)*$B$6 -> 0 | DW2: Pervious Drainage Area (ft2) | DX2: =IF('CSS BMP Sizing Calculator'!$N$21="Yes", IF(OR('CSS BMP Sizing Calculator'!$N$22="Vegetated Roof", 'CSS BMP Sizing Calculator'!$N$23="Vegetated Roof"),0,'CSS BMP Sizing Calculator'!$H47),'CSS BMP Sizing Calculator'!$H47) -> 0 | DZ2: Media Infiltration | EA2: ='CSS BMP Sizing Calculator'!$U$47 -> 1 | EB2: in/hr | EF2: Total Runoff to BMP (ft3) | EG2: =SUM(DV$16:DV$880)*$B$6 -> 0 | EN2: Pervious Drainage Area (ft2) | EO2: =IF('CSS BMP Sizing Calculator'!$N$21="Yes", IF(OR('CSS BMP Sizing Calculator'!$N$22="Permeable Pavement (Underdrain)", 'CSS BMP Sizing Calculator'!$N$23="Permeable Pavement (Underdrain)"),0,'CSS BMP Sizing Calculator'!$H49),'CSS BMP Sizing Calculator'!$H49) -> 0 | ET2: Total Runoff to BMP (ft3) | EU2: =SUM(EM$16:EM$880)*$B$6 -> 0 | FB2: Pervious Drainage Area (ft2) | FC2: =IF('CSS BMP Sizing Calculator'!$N$21="Yes", IF(OR('CSS BMP Sizing Calculator'!$N$22="Detention Vault or Tank", 'CSS BMP Sizing Calculator'!$N$23="Detention Vault or Tank"),0,'CSS BMP Sizing Calculator'!$H50),'CSS BMP Sizing Calculator'!$H50) -> 0 | FH2: Total Runoff to BMP (ft3) | FI2: =SUM(FA$16:FA$592)*$B$6 -> 0 | FO2: Direct to CSS
AE3: Impervious Drainage Area (ft2) | AF3: =IF('CSS BMP Sizing Calculator'!$N$21="Yes", IF(OR('CSS BMP Sizing Calculator'!$N$22="Bioretention (No Underdrain No Liner)", 'CSS BMP Sizing Calculator'!$N$23="Bioretention (No Underdrain No Liner)"),0,'CSS BMP Sizing Calculator'!$G39),'CSS BMP Sizing Calculator'!$G39) -> 0 | AG3: Media Infiltration | AH3: =(AH2/12)*AF5/3600 -> 0 | AI3: cfs | AM3: Total Infiltration (ft3) | AN3: =SUM(AI$16:AI$880) -> 0 | AR3: Impervious Drainage Area (ft2) | AS3: =IF('CSS BMP Sizing Calculator'!$N$21="Yes", IF(OR('CSS BMP Sizing Calculator'!$N$22="Cistern", 'CSS BMP Sizing Calculator'!$N$23="Cistern"),0,'CSS BMP Sizing Calculator'!$G40),'CSS BMP Sizing Calculator'!$G40) -> 0 | AX3: Total Infiltration (ft3) | AY3: =SUM(AT$16:AT$592) -> 0 | BF3: Impervious Drainage Area (ft2) | BG3: =IF('CSS BMP Sizing Calculator'!$N$21="Yes", IF(OR('CSS BMP Sizing Calculator'!$N$22="Infiltration Trench", 'CSS BMP Sizing Calculator'!$N$23="Infiltration Trench"),0,'CSS BMP Sizing Calculator'!$G41),'CSS BMP Sizing Calculator'!$G41) -> 0 | BL3: Total Infiltration (ft3) | BM3: =SUM(BH$16:BH$880) -> 0 | BQ3: Impervious Drainage Area (ft2) | BR3: =IF('CSS BMP Sizing Calculator'!$N$21="Yes", IF(OR('CSS BMP Sizing Calculator'!$N$22="Dry Well/Infiltration Gallery", 'CSS BMP Sizing Calculator'!$N$23="Dry Well/Infiltration Gallery"),0,'CSS BMP Sizing Calculator'!$G42),'CSS BMP Sizing Calculator'!$G42) -> 0 | BW3: Total Infiltration (ft3) | BX3: =SUM(BS$16:BS$880) -> 0 | CB3: Impervious Drainage Area (ft2) | CC3: =IF('CSS BMP Sizing Calculator'!$N$21="Yes", IF(OR('CSS BMP Sizing Calculator'!$N$22="Permeable Pavement (No Underdrain)", 'CSS BMP Sizing Calculator'!$N$23="Permeable Pavement (No Underdrain)"),0,'CSS BMP Sizing Calculator'!$G43),'CSS BMP Sizing Calculator'!$G43) -> 0 | CH3: Total Infiltration (ft3) | CI3: =SUM(CD$16:CD$880) -> 0 | CN3: Impervious Drainage Area (ft2) | CO3: =IF('CSS BMP Sizing Calculator'!$N$21="Yes", IF(OR('CSS BMP Sizing Calculator'!$N$22="Bioretention/FTP (Underdrain No Liner)", 'CSS BMP Sizing Calculator'!$N$23="Bioretention/FTP (Underdrain No Liner)"),0,'CSS BMP Sizing Calculator'!$G45),'CSS BMP Sizing Calculator'!$G45) -> 0 | CP3: Media Infiltration | CQ3: =(CQ2/12)*CO5/3600 -> 0 | CR3: cfs | CS3: E/T Losses (cfs) | CT3: =CT2*CO4/12/3600 -> 0 | CW3: Total Inf Losses (ft3) | CX3: =SUM(CU$16:CU$880) -> 0 | CY3: V Red | CZ3: Q Red | DA3: OF Q Red | DF3: Impervious Drainage Area (ft2) | DG3: =IF('CSS BMP Sizing Calculator'!$N$21="Yes", IF(OR('CSS BMP Sizing Calculator'!$N$22="Bioretention/FTP (Underdrain Liner)", 'CSS BMP Sizing Calculator'!$N$23="Bioretention/FTP (Underdrain Liner)"),0,'CSS BMP Sizing Calculator'!$G46),'CSS BMP Sizing Calculator'!$G46) -> 0 | DH3: Media Infiltration | DI3: =(DI2/12)*DG5/3600 -> 0 | DJ3: cfs | DK3: E/T Losses (cfs) | DL3: =DL2*DG4/12/3600 -> 0 | DO3: Total Inf Losses (ft3) | DP3: =SUM(DM$16:DM$880) -> 0 | DQ3: V Red | DR3: Q Red | DS3: OF Q Red | DW3: Impervious Drainage Area (ft2) | DX3: =IF('CSS BMP Sizing Calculator'!$N$21="Yes", IF(OR('CSS BMP Sizing Calculator'!$N$22="Vegetated Roof", 'CSS BMP Sizing Calculator'!$N$23="Vegetated Roof"),0,'CSS BMP Sizing Calculator'!$G47),'CSS BMP Sizing Calculator'!$G47) -> 0 | DZ3: Media Infiltration | EA3: =(EA2/12)*DX5/3600 -> 0 | EB3: cfs | EF3: Total E/T Losses (ft3) | EG3: =SUM(EB$16:EB$880) -> 0 | EH3: V Red | EI3: Q Red | EN3: Impervious Drainage Area (ft2) | EO3: =IF('CSS BMP Sizing Calculator'!$N$21="Yes", IF(OR('CSS BMP Sizing Calculator'!$N$22="Permeable Pavement (Underdrain)", 'CSS BMP Sizing Calculator'!$N$23="Permeable Pavement (Underdrain)"),0,'CSS BMP Sizing Calculator'!$G49),'CSS BMP Sizing Calculator'!$G49) -> 0 | ET3: Total Infiltration (ft3) | EU3: =SUM(ER$16:ER$880) -> 0 | EV3: V Red | EW3: Q Red | EX3: OF Q Red | FB3: Impervious Drainage Area (ft2) | FC3: =IF('CSS BMP Sizing Calculator'!$N$21="Yes", IF(OR('CSS BMP Sizing Calculator'!$N$22="Detention Vault or Tank", 'CSS BMP Sizing Calculator'!$N$23="Detention Vault or Tank"),0,'CSS BMP Sizing Calculator'!$G50),'CSS BMP Sizing Calculator'!$G50) -> 0 | FH3: Total Infiltration (ft3) | FI3: =SUM(FD$16:FD$880) -> 0 | FJ3: V Red | FK3: Q Red | FL3: OF Q Red | FN3: Pervious Drainage Area (ft2) | FO3: =IF('CSS BMP Sizing Calculator'!$U60>0,'CSS BMP Sizing Calculator'!$U60,0) -> 0
A4: Rainfall Depth (in): | B4: =D9 -> 2.649416667 | E4: Area (sf) | F4: ='CSS BMP Sizing Calculator'!D35-G4 -> 0 | G4: ='CSS BMP Sizing Calculator'!D33 -> 0 | H4: ='CSS BMP Sizing Calculator'!X24 -> 0 | I4: =SUM(F4:H4) -> 0 | N4: Area (sf) | O4: ='CSS BMP Sizing Calculator'!AA34-P4 -> 0 | P4: ='CSS BMP Sizing Calculator'!E33 -> 0 | Q4: ='CSS BMP Sizing Calculator'!AA24+SUM('CSS BMP Sizing Calculator'!$E$51) -> 0 | R4: =SUM(O4:Q4) -> 0 | AE4: Infiltration Base Area (ft2) | AF4: =IF('CSS BMP Sizing Calculator'!$N$21="Yes", IF(OR('CSS BMP Sizing Calculator'!$N$22="Bioretention (No Underdrain No Liner)", 'CSS BMP Sizing Calculator'!$N$23="Bioretention (No Underdrain No Liner)"),0,'CSS BMP Sizing Calculator'!$E39),'CSS BMP Sizing Calculator'!$E39) -> 0 | AG4: Pond Height | AH4: ='CSS BMP Sizing Calculator'!$I$39 -> 0.5 | AI4: ft | AM4: Total Reuse (ft3) | AN4: =SUM(AJ$16:AJ$592) -> 0 | AR4: Infiltration Base Area (ft2) | AS4: 0 | AX4: Total Reuse (ft3) | AY4: =SUM(AU$16:AU$880) -> 0 | BF4: Infiltration Base Area (ft2) | BG4: =IF('CSS BMP Sizing Calculator'!$N$21="Yes", IF(OR('CSS BMP Sizing Calculator'!$N$22="Infiltration Trench", 'CSS BMP Sizing Calculator'!$N$23="Infiltration Trench"),0,'CSS BMP Sizing Calculator'!$E41),'CSS BMP Sizing Calculator'!$E41) -> 0 | BL4: Total Reuse (ft3) | BM4: 0 | BQ4: Infiltration Base Area (ft2) | BR4: =IF('CSS BMP Sizing Calculator'!$N$21="Yes", IF(OR('CSS BMP Sizing Calculator'!$N$22="Dry Well/Infiltration Gallery", 'CSS BMP Sizing Calculator'!$N$23="Dry Well/Infiltration Gallery"),0,'CSS BMP Sizing Calculator'!$R42),'CSS BMP Sizing Calculator'!$R42) -> 0 | BW4: Total Reuse (ft3) | BX4: 0 | CB4: Infiltration Base Area (ft2) | CC4: =IF('CSS BMP Sizing Calculator'!$N$21="Yes", IF(OR('CSS BMP Sizing Calculator'!$N$22="Permeable Pavement (No Underdrain)", 'CSS BMP Sizing Calculator'!$N$23="Permeable Pavement (No Underdrain)"),0,'CSS BMP Sizing Calculator'!$E43),'CSS BMP Sizing Calculator'!$E43) -> 0 | CH4: Total Reuse (ft3) | CI4: 0 | CN4: E/T Base Area (ft2) | CO4: =IF('CSS BMP Sizing Calculator'!$N$21="Yes", IF(OR('CSS BMP Sizing Calculator'!$N$22="Bioretention/FTP (Underdrain No Liner)", 'CSS BMP Sizing Calculator'!$N$23="Bioretention/FTP (Underdrain No Liner)"),0,'CSS BMP Sizing Calculator'!$E45),'CSS BMP Sizing Calculator'!$E45) -> 0 | CS4: E/T Losses (cf) | CT4: =CT3*$B$6 -> 0 | CW4: Total E/T Losses (ft3) | CX4: =SUM(CR16:CR880) -> 0 | CY4: =(CX3+CX4)/CX2 ->  | CZ4: =(CX9-CX10)/CX9 ->  | DA4: =(CX9-CX11)/CX9 ->  | DF4: E/T Base Area (ft2) | DG4: =IF('CSS BMP Sizing Calculator'!$N$21="Yes", IF(OR('CSS BMP Sizing Calculator'!$N$22="Bioretention/FTP (Underdrain Liner)", 'CSS BMP Sizing Calculator'!$N$23="Bioretention/FTP (Underdrain Liner)"),0,'CSS BMP Sizing Calculator'!$E46),'CSS BMP Sizing Calculator'!$E46) -> 0 | DK4: E/T Losses (cf) | DL4: =DL3*$B$6 -> 0 | DO4: Total E/T Losses (ft3) | DP4: =SUM(DJ16:DJ880) -> 0 | DQ4: =(DP3+DP4)/DP2 ->  | DR4: =(DP9-DP10)/DP9 ->  | DS4: =(DP9-DP11)/DP9 ->  | DW4: E/T Base Area (ft2) | DX4: =IF('CSS BMP Sizing Calculator'!$N$21="Yes", IF(OR('CSS BMP Sizing Calculator'!$N$22="Vegetated Roof", 'CSS BMP Sizing Calculator'!$N$23="Vegetated Roof"),0,'CSS BMP Sizing Calculator'!$E47),'CSS BMP Sizing Calculator'!$E47) -> 0 | EF4: Total Reuse (ft3) | EG4: =SUM(EC$16:EC$592) -> 0 | EH4: =EG3/EG2 ->  | EI4: =(EG8-EG9)/EG8 ->  | EN4: Infiltration Base Area (ft2) | EO4: =IF('CSS BMP Sizing Calculator'!$N$21="Yes", IF(OR('CSS BMP Sizing Calculator'!$N$22="Permeable Pavement (Underdrain)", 'CSS BMP Sizing Calculator'!$N$23="Permeable Pavement (Underdrain)"),0,'CSS BMP Sizing Calculator'!$E49),'CSS BMP Sizing Calculator'!$E49) -> 0 | ET4: Total Reuse (ft3) | EU4: =SUM(EQ$16:EQ$880) -> 0 | EV4: =EU3/EU2 ->  | EW4: =(EU8-EU9)/EU8 ->  | EX4: =(EU8-EU10)/EU8 ->  | FB4: Infiltration Base Area (ft2) | FC4: 0 | FH4: Total Reuse (ft3) | FI4: =SUM(FE$16:FE$880) -> 0 | FJ4: =FI3/FI2 ->  | FK4: =(FI8-FI9)/FI8 ->  | FL4: =(FI8-FI10)/FI8 ->  | FN4: Impervious Drainage Area (ft2) | FO4: =IF('CSS BMP Sizing Calculator'!$U59>0,'CSS BMP Sizing Calculator'!$U59,0) -> 0
A5: Time Increment (min): | B5: 5 | E5: CN | F5: ='CSS BMP Sizing Calculator'!W30 -> 0 | G5: ='CSS BMP Sizing Calculator'!F33 -> 0 | H5: ='CSS BMP Sizing Calculator'!W22 -> 0 | N5: CN | O5: ='CSS BMP Sizing Calculator'!Z30 -> 0 | P5: ='CSS BMP Sizing Calculator'!F33 -> 0 | Q5: ='CSS BMP Sizing Calculator'!Z22 -> 98 | AE5: LID Footprint Area (ft2) | AF5: =AF4 -> 0 | AG5: Total Pond Vol | AH5: =AH4*AF5 -> 0 | AI5: cf | AM5: Volume Remaining in Storage (ft3) | AN5: =AL880 -> 0 | AR5: LID Footprint Area (ft2) | AS5: =IF('CSS BMP Sizing Calculator'!$N$21="Yes", IF(OR('CSS BMP Sizing Calculator'!$N$22="Cistern", 'CSS BMP Sizing Calculator'!$N$23="Cistern"),0,'CSS BMP Sizing Calculator'!AF40),'CSS BMP Sizing Calculator'!AF40) -> 0 | AX5: Volume Remaining in Storage (ft3) | AY5: =AW880 -> 0 | BF5: LID Footprint Area (ft2) | BG5: =BG4 -> 0 | BL5: Volume Remaining in Storage (ft3) | BM5: =BK880 -> 0 | BQ5: LID Footprint Area (ft2) | BR5: =BR4 -> 0 | BW5: Volume Remaining in Storage (ft3) | BX5: =BV880 -> 0 | CB5: LID Footprint Area (ft2) | CC5: =CC4 -> 0 | CH5: Volume Remaining in Storage (ft3) | CI5: =CG880 -> 0 | CN5: LID Footprint Area (ft2) | CO5: =CO4 -> 0 | CS5: Gravel Storage Height | CT5: =IF('CSS BMP Sizing Calculator'!K45-'CSS BMP Sizing Calculator'!L45>0,'CSS BMP Sizing Calculator'!K45-'CSS BMP Sizing Calculator'!L45,0) -> 0 | CU5: ft | CW5: Total Reuse (ft3) | CX5: =SUM(CT$16:CT$592) -> 0 | DF5: LID Footprint Area (ft2) | DG5: =DG4 -> 0 | DK5: Gravel Storage Height | DL5: ='CSS BMP Sizing Calculator'!K46 -> 0 | DM5: ft | DO5: Total Reuse (ft3) | DP5: 0 | DW5: LID Footprint Area (ft2) | DX5: =DX4 -> 0 | DZ5: Pond Height | EA5: =1/24 -> 0.04166666667 | EB5: ft | EF5: Volume Remaining in Storage (ft3) | EG5: =EE880 -> 0 | EN5: LID Footprint Area (ft2) | EO5: =EO4 -> 0 | ET5: Volume Remaining in Storage (ft3) | EU5: =ES880 -> 0 | FB5: LID Footprint Area (ft2) | FC5: =IF('CSS BMP Sizing Calculator'!$N$21="Yes", IF(OR('CSS BMP Sizing Calculator'!$N$22="Detention Vault or Tank", 'CSS BMP Sizing Calculator'!$N$23="Detention Vault or Tank"),0,'CSS BMP Sizing Calculator'!$V50),'CSS BMP Sizing Calculator'!$V50) -> 0 | FH5: Volume Remaining in Storage (ft3) | FI5: =FG880 -> 0 | FN5: Total Runoff to Sewer (ft3) | FO5: =SUM(FO$16:FO$592)*$B$6 -> 0 | FP5: Total Outflow Volume (ft3)
